Workbook

Sheet ACCUEILPRO
A1: Accueil
F7: =ACCUEIL!F7 -> 2022-08-07

Sheet ACCUEILPREM
A1: Accueil
F7: =ACCUEIL!F7 -> 2022-08-07

Sheet ACCUEILGP
A1: Accueil
F7: =ACCUEIL!F7 -> 2022-08-07

Sheet ACCUEIL
F7: 2022-08-07

Sheet Accueilagence
A1: Accueil
E7: =ACCUEIL!F7 -> 2022-08-07

Sheet Accueilsecteur
A1: Accueil
E7: =ACCUEIL!F7 -> 2022-08-07

Sheet AccueilDircom
A1: Accueil
E7: =ACCUEIL!F7 -> 2022-08-07

Sheet DC_FICHE
A1: Accueil
A2: BAROMETRE BDD
A4: UNITE: | B4: DIRECTION REGIONALE | E4: ETP perf : | F4: =VLOOKUP(A5,'RECAP DIRCOM'!$G$6:$I$12,3,FALSE) -> 221.71
A5: =VLOOKUP(B5,LISTES!$M$6:$N$12,2,FALSE) -> 262 | B5: BAS-RHIN
C6: Coefficient du critére | E6: Résultats | I6: Ecart au 1ier | M6: Evolution | O6: Rang
E7: du 1ier | G7: DIRECTION | I7: Du mois | K7: Au 31/12/2019
A9: RANG au CLASSEMENT GENERAL | K9: =VLOOKUP($A$5,#REF!,168,FALSE) ->  | M9: =+K9-O9 ->  | O9: =VLOOKUP($A$5,'RECAP DIRCOM'!$G$6:$CY$312,168,FALSE) -> 
A11: CRITERE CLIENTS | C11: 15% | O11: =VLOOKUP($A$5,'RECAP DIRCOM'!$G$6:$CY$312,23,FALSE) -> 36.92661585
B12: PNB Evolution nette Clients BP | C12: 4% | E12: ='RECAP DIRCOM'!#REF! ->  | G12: =VLOOKUP($A$5,'RECAP DIRCOM'!$G$6:$CY$312,6,FALSE) -> 0.8 | I12: =VLOOKUP($A$5,'RECAP DIRCOM'!$G$6:$CY$312,7,FALSE) -> 500% | K12: =VLOOKUP($A$5,#REF!,7,FALSE) ->  | M12: =+K12-I12 ->  | O12: =VLOOKUP($A$5,'RECAP DIRCOM'!$G$6:$CY$312,8,FALSE) -> 0.6170728629
B13: PNB Evolution nette Clients PREMIUM | C13: 5% | E13: ='RECAP DIRCOM'!#REF! ->  | G13: =VLOOKUP($A$5,'RECAP DIRCOM'!$G$6:$CY$312,10,FALSE) -> 4.0 | I13: =VLOOKUP($A$5,'RECAP DIRCOM'!$G$6:$CY$312,11,FALSE) -> 43% | K13: =VLOOKUP($A$5,#REF!,11,FALSE) ->  | M13: =+K13-I13 ->  | O13: =VLOOKUP($A$5,'RECAP DIRCOM'!$G$6:$CY$312,12,FALSE) -> 0.4342959454
B14: PNB Evolution nette Clients Jeunes Equipés | C14: 3% | E14: ='RECAP DIRCOM'!#REF! ->  | G14: =VLOOKUP($A$5,'RECAP DIRCOM'!$G$6:$CY$312,14,FALSE) -> 0.0 | I14: =VLOOKUP($A$5,'RECAP DIRCOM'!$G$6:$CY$312,15,FALSE) -> 0% | K14: =VLOOKUP($A$5,#REF!,15,FALSE) ->  | M14: =+K14-I14 ->  | O14: =VLOOKUP($A$5,'RECAP DIRCOM'!$G$6:$CY$312,16,FALSE) -> 0
B15: PNB Evolution nette Clients Pro Actifs Equipés | C15: 3% | E15: ='RECAP DIRCOM'!W4 -> 0.0 | G15: =VLOOKUP($A$5,'RECAP DIRCOM'!$G$6:$CY$312,18,FALSE) -> 3290.5 | I15: =VLOOKUP($A$5,'RECAP DIRCOM'!$G$6:$CY$312,19,FALSE) -> 1484% | K15: =VLOOKUP($A$5,#REF!,19,FALSE) ->  | M15: =+K15-I15 ->  | O15: =VLOOKUP($A$5,'RECAP DIRCOM'!$G$6:$CY$312,20,FALSE) -> 0.2359672214
A17: CRITERE BANCARISATION | C17: 15% | O17: =VLOOKUP($A$5,'RECAP DIRCOM'!$G$6:$CY$312,48,FALSE) -> 32380.49179
B18: PNB Ventes nettes forfaits | C18: 4% | E18: ='RECAP DIRCOM'!X4 -> 19.4 | G18: =VLOOKUP($A$5,'RECAP DIRCOM'!$G$6:$CY$312,31,FALSE) -> 0.0 | I18: =VLOOKUP($A$5,'RECAP DIRCOM'!$G$6:$CY$312,32,FALSE) -> 0% | K18: =VLOOKUP($A$5,#REF!,32,FALSE) ->  | M18: =+K18-I18 ->  | O18: =VLOOKUP($A$5,'RECAP DIRCOM'!$G$6:$CY$312,33,FALSE) -> 39781.69951
B19: PNB Ventes nettes IZICARTES Débit Différé | C19: 4% | E19: ='RECAP DIRCOM'!AB4 -> 46.9 | G19: =VLOOKUP($A$5,'RECAP DIRCOM'!$G$6:$CY$312,35,FALSE) -> 0.1 | I19: =VLOOKUP($A$5,'RECAP DIRCOM'!$G$6:$CY$312,36,FALSE) -> 500% | K19: =VLOOKUP($A$5,#REF!,36,FALSE) ->  | M19: =+K19-I19 ->  | O19: =VLOOKUP($A$5,'RECAP DIRCOM'!$G$6:$CY$312,37,FALSE) -> 8026
B20: PNB Ventes nettes cartes HDG Débit Différé | C20: 4% | E20: ='RECAP DIRCOM'!#REF! ->  | G20: =VLOOKUP($A$5,'RECAP DIRCOM'!$G$6:$CY$312,39,FALSE) -> 0.2 | I20: =VLOOKUP($A$5,'RECAP DIRCOM'!$G$6:$CY$312,40,FALSE) -> 400% | K20: =VLOOKUP($A$5,#REF!,40,FALSE) ->  | M20: =+K20-I20 ->  | O20: =VLOOKUP($A$5,'RECAP DIRCOM'!$G$6:$CY$312,41,FALSE) -> 0.1784285403
B21: PNB Ventes nettes Forfaits Pro, Carte pro | C21: 3% | E21: ='RECAP DIRCOM'!#REF! ->  | G21: =VLOOKUP($A$5,'RECAP DIRCOM'!$G$6:$CY$312,43,FALSE) -> 5.0 | I21: =VLOOKUP($A$5,'RECAP DIRCOM'!$G$6:$CY$312,44,FALSE) -> 0% | K21: =VLOOKUP($A$5,#REF!,44,FALSE) ->  | M21: =+K21-I21 ->  | O21: =VLOOKUP($A$5,'RECAP DIRCOM'!$G$6:$CY$312,45,FALSE) -> 0
A23: CRITERE EPARGNE | C23: 10% | O23: =VLOOKUP($A$5,'RECAP DIRCOM'!$G$6:$CY$312,69,FALSE) -> 0.3424007979
B24: PNB Epargne Liquide | C24: 3% | E24: ='RECAP DIRCOM'!AM4 -> 207.0 | G24: =VLOOKUP($A$5,'RECAP DIRCOM'!$G$6:$CY$312,56,FALSE) -> 3030.0 | I24: =VLOOKUP($A$5,'RECAP DIRCOM'!$G$6:$CY$312,57,FALSE) -> 1367% | K24: =VLOOKUP($A$5,#REF!,57,FALSE) ->  | M24: =+K24-I24 ->  | O24: =VLOOKUP($A$5,'RECAP DIRCOM'!$G$6:$CY$312,58,FALSE) -> 0.3987360639
B25: PNB CA UC + arbitrage | C25: 4% | E25: ='RECAP DIRCOM'!AQ4 -> 48.0 | G25: =VLOOKUP($A$5,'RECAP DIRCOM'!$G$6:$CY$312,60,FALSE) -> 0.4 | I25: =VLOOKUP($A$5,'RECAP DIRCOM'!$G$6:$CY$312,61,FALSE) -> 34% | K25: =VLOOKUP($A$5,#REF!,61,FALSE) ->  | M25: =+K25-I25 ->  | O25: =VLOOKUP($A$5,'RECAP DIRCOM'!$G$6:$CY$312,62,FALSE) -> 6
B26: PNB Excédent assurance vie | C26: 3% | E26: ='RECAP DIRCOM'!#REF! ->  | G26: =VLOOKUP($A$5,'RECAP DIRCOM'!$G$6:$CY$312,64,FALSE) -> 0.0 | I26: =VLOOKUP($A$5,'RECAP DIRCOM'!$G$6:$CY$312,65,FALSE) -> 0% | K26: =VLOOKUP($A$5,#REF!,65,FALSE) ->  | M26: =+K26-I26 ->  | O26: =VLOOKUP($A$5,'RECAP DIRCOM'!$G$6:$CY$312,66,FALSE) -> 0
A28: CRITERE CREDITS | C28: 15% | O28: =VLOOKUP($A$5,'RECAP DIRCOM'!$G$6:$CY$312,102,FALSE) -> 
B29: PNB crédit conso | C29: 4% | E29: ='RECAP DIRCOM'!BB4 -> 282.5 | G29: =VLOOKUP($A$5,'RECAP DIRCOM'!$G$6:$CY$312,77,FALSE) -> 4.0 | I29: =VLOOKUP($A$5,'RECAP DIRCOM'!$G$6:$CY$312,78,FALSE) -> 0% | K29: =VLOOKUP($A$5,#REF!,78,FALSE) ->  | M29: =+K29-I29 ->  | O29: =VLOOKUP($A$5,'RECAP DIRCOM'!$G$6:$CY$312,79,FALSE) -> 0
B30: PNB ADE crédit conso | C30: 1% | E30: ='RECAP DIRCOM'!#REF! ->  | G30: =VLOOKUP($A$5,'RECAP DIRCOM'!$G$6:$CY$312,81,FALSE) -> 0.0 | I30: =VLOOKUP($A$5,'RECAP DIRCOM'!$G$6:$CY$312,82,FALSE) -> 0% | K30: =VLOOKUP($A$5,#REF!,82,FALSE) ->  | O30: =VLOOKUP($A$5,'RECAP DIRCOM'!$G$6:$CY$312,83,FALSE) -> 0
B31: PNB crédit immo | C31: 4% | E31: ='RECAP DIRCOM'!BF4 -> 41.1 | G31: =VLOOKUP($A$5,'RECAP DIRCOM'!$G$6:$CY$312,85,FALSE) -> 0.0 | I31: =VLOOKUP($A$5,'RECAP DIRCOM'!$G$6:$CY$312,86,FALSE) -> 0% | K31: =VLOOKUP($A$5,#REF!,86,FALSE) ->  | O31: =VLOOKUP($A$5,'RECAP DIRCOM'!$G$6:$CY$312,87,FALSE) -> 0
B32: PNB ADE crédit immo | C32: 2% | E32: ='RECAP DIRCOM'!#REF! ->  | G32: =VLOOKUP($A$5,'RECAP DIRCOM'!$G$6:$CY$312,89,FALSE) -> 0.0 | I32: =VLOOKUP($A$5,'RECAP DIRCOM'!$G$6:$CY$312,90,FALSE) -> 0% | K32: =VLOOKUP($A$5,#REF!,90,FALSE) ->  | O32: =VLOOKUP($A$5,'RECAP DIRCOM'!$G$6:$CY$312,91,FALSE) -> 0
B33: PNB SACCEF | C33: 2% | E33: ='RECAP DIRCOM'!#REF! ->  | G33: =VLOOKUP($A$5,'RECAP DIRCOM'!$G$6:$CY$312,93,FALSE) -> 0.0 | I33: =VLOOKUP($A$5,'RECAP DIRCOM'!$G$6:$CY$312,94,FALSE) -> 28% | K33: =VLOOKUP($A$5,#REF!,94,FALSE) ->  | O33: =VLOOKUP($A$5,'RECAP DIRCOM'!$G$6:$CY$312,95,FALSE) -> 0.2571073462
B34: PNB Crédit MLT + Crédit Bail | C34: 2% | E34: ='RECAP DIRCOM'!BJ4 -> 22.7 | G34: =VLOOKUP($A$5,'RECAP DIRCOM'!$G$6:$CY$312,97,FALSE) -> 0.0 | I34: =VLOOKUP($A$5,'RECAP DIRCOM'!$G$6:$CY$312,98,FALSE) ->  | K34: =VLOOKUP($A$5,#REF!,98,FALSE) ->  | O34: =VLOOKUP($A$5,'RECAP DIRCOM'!$G$6:$CY$312,99,FALSE) -> 
A36: CRITERE IARD PREVOYANCE | C36: 15% | O36: =VLOOKUP($A$5,'RECAP DIRCOM'!$G$6:$CY$312,119,FALSE) -> 
B37: PNB Ventes nettes IARD | C37: 9% | E37: ='RECAP DIRCOM'!BU4 -> 114.1 | G37: =VLOOKUP($A$5,'RECAP DIRCOM'!$G$6:$CY$312,110,FALSE) ->  | I37: =VLOOKUP($A$5,'RECAP DIRCOM'!$G$6:$CY$312,111,FALSE) ->  | K37: =VLOOKUP($A$5,#REF!,111,FALSE) ->  | M37: =+K37-I37 ->  | O37: =VLOOKUP($A$5,'RECAP DIRCOM'!$G$6:$CY$312,112,FALSE) -> 
B38: PNB Ventes nettes Prévoyance | C38: 6% | E38: ='RECAP DIRCOM'!BY4 -> 33.1 | G38: =VLOOKUP($A$5,'RECAP DIRCOM'!$G$6:$CY$312,114,FALSE) ->  | I38: =VLOOKUP($A$5,'RECAP DIRCOM'!$G$6:$CY$312,115,FALSE) ->  | K38: =VLOOKUP($A$5,#REF!,115,FALSE) ->  | M38: =+K38-I38 ->  | O38: =VLOOKUP($A$5,'RECAP DIRCOM'!$G$6:$CY$312,116,FALSE) -> 
A40: CRITERE ACCELERATEURS PNB | C40: 15% | O40: =VLOOKUP($A$5,'RECAP DIRCOM'!$G$6:$CY$312,144,FALSE) -> 
B41: PNB Ventes brutes SED Finalisées | C41: 6% | E41: ='RECAP DIRCOM'!#REF! ->  | G41: =VLOOKUP($A$5,'RECAP DIRCOM'!$G$6:$CY$312,127,FALSE) ->  | I41: =VLOOKUP($A$5,'RECAP DIRCOM'!$G$6:$CY$312,128,FALSE) ->  | K41: =VLOOKUP($A$5,#REF!,128,FALSE) ->  | M41: =+K41-I41 ->  | O41: =VLOOKUP($A$5,'RECAP DIRCOM'!$G$6:$CY$312,129,FALSE) -> 
B42: PNB clients équipés E documents | C42: 3% | E42: ='RECAP DIRCOM'!#REF! ->  | G42: =VLOOKUP($A$5,'RECAP DIRCOM'!$G$6:$CY$312,131,FALSE) ->  | I42: =VLOOKUP($A$5,'RECAP DIRCOM'!$G$6:$CY$312,132,FALSE) ->  | K42: =VLOOKUP($A$5,#REF!,132,FALSE) ->  | M42: =+K42-I42 ->  | O42: =VLOOKUP($A$5,'RECAP DIRCOM'!$G$6:$CY$312,133,FALSE) -> 
B43: Economie opt'in | C43: 3% | E43: ='RECAP DIRCOM'!#REF! ->  | G43: =VLOOKUP($A$5,'RECAP DIRCOM'!$G$6:$CY$312,135,FALSE) ->  | I43: =VLOOKUP($A$5,'RECAP DIRCOM'!$G$6:$CY$312,136,FALSE) ->  | K43: =VLOOKUP($A$5,#REF!,136,FALSE) ->  | M43: =+K43-I43 ->  | O43: =VLOOKUP($A$5,'RECAP DIRCOM'!$G$6:$CY$312,137,FALSE) -> 
B44: Remises commerciales | C44: 3% | E44: ='RECAP DIRCOM'!#REF! ->  | G44: =VLOOKUP($A$5,'RECAP DIRCOM'!$G$6:$CY$312,139,FALSE) ->  | I44: =VLOOKUP($A$5,'RECAP DIRCOM'!$G$6:$CY$312,140,FALSE) ->  | K44: =VLOOKUP($A$5,#REF!,140,FALSE) ->  | M44: =+K44-I44 ->  | O44: =VLOOKUP($A$5,'RECAP DIRCOM'!$G$6:$CY$312,141,FALSE) -> 
A46: CRITERE Qualité-Satisfaction Clients | C46: 15% | O46: =VLOOKUP($A$5,'RECAP DIRCOM'!$G$6:$CY$312,159,FALSE) -> 
B47: Objectifs NPS* | C47: 8% | E47: ='RECAP DIRCOM'!K4 -> 25 | G47: =VLOOKUP($A$5,'RECAP DIRCOM'!$G$6:$CY$312,151,FALSE) ->  | I47: =VLOOKUP($A$5,'RECAP DIRCOM'!$G$6:$CY$312,152,FALSE) ->  | K47: =VLOOKUP($A$5,#REF!,152,FALSE) ->  | M47: =+K47-I47 ->  | O47: =VLOOKUP($A$5,'RECAP DIRCOM'!$G$6:$CY$312,153,FALSE) -> 
B48: Enquête Qualité Haute Définition | C48: 7% | E48: ='RECAP DIRCOM'!N4 -> 69% | G48: =VLOOKUP($A$5,'RECAP DIRCOM'!$G$6:$CY$312,154,FALSE) ->  | I48: =VLOOKUP($A$5,'RECAP DIRCOM'!$G$6:$CY$312,155,FALSE) ->  | K48: =VLOOKUP($A$5,#REF!,155,FALSE) ->  | M48: =+K48-I48 ->  | O48: =VLOOKUP($A$5,'RECAP DIRCOM'!$G$6:$CY$312,156,FALSE) -> 

Sheet DC_TOTAL
B1: Accueil | D1: BAROMETRE BDD - DIRECTIONS REGIONALES
D2: TOTAL GENERAL
D3: =ACCUEIL!F7 -> 2022-08-07
D7: TOTAL GENERAL | G7: Total Satisfaction Clients | J7: Total Bancarisation | M7: Total Epargne | P7: Total IARD Prévoyance | S7: Total Crédits
E8: coef | F8: =+I8+L8+O8+R8+U8 -> 100% | H8: coef | I8: =DC_SATISFACTION!L8 -> 20% | K8: coef | L8: =DC_BANCA!N8 -> 20% | N8: coef | O8: =DC_EPARGNE!N8 -> 20% | Q8: coef | R8: =DC_IARD!N8 -> 20% | T8: coef | U8: =DC_CREDIT!R8 -> 20%
A9: eds | B9: Direction | C9: ="ETP perf "&DATEMAJ!$C$28 -> ETP perf 07-août | D9: Moyenne ecart au 1er | E9: % Ecart au 1er | F9: Rang CEGEE | G9: Moyenne ecart au 1er | H9: % Ecart au 1er | I9: Rang CEGEE | J9: Moyenne ecart au 1er | K9: % Ecart au 1er | L9: Rang CEGEE | M9: Moyenne ecart au 1er | N9: % Ecart au 1er | O9: Rang CEGEE | P9: Moyenne ecart au 1er | Q9: % Ecart au 1er | R9: Rang CEGEE | S9: Moyenne ecart au 1er | T9: % Ecart au 1er | U9: Rang CEGEE
A10: 50 | B10: Marne-Ardennes | C10: 194 | D10: 3% | E10: 0% | F10: 1 | G10: 14% | H10: 14% | I10: 2 | J10: 0% | K10: 0% | L10: 1 | M10: 3% | N10: 0% | O10: 1 | P10: 0% | Q10: 0% | R10: 1 | S10: 5% | T10: 0% | U10: 1
A11: 262 | B11: Moselle | C11: 227 | D11: 6% | E11: 3% | F11: 2 | G11: 23% | H11: 23% | I11: 3 | J11: 1% | K11: 1% | L11: 2 | M11: 6% | N11: 3% | O11: 2 | P11: 1% | Q11: 1% | R11: 2 | S11: 7% | T11: 2% | U11: 2
A12: 264 | B12: Meurthe et Moselle Meuse | C12: 204 | D12: 18% | E12: 15% | F12: 3 | G12: 34% | H12: 34% | I12: 4 | J12: 20% | K12: 20% | L12: 3 | M12: 10% | N12: 7% | O12: 3 | P12: 20% | Q12: 20% | R12: 3 | S12: 14% | T12: 9% | U12: 3
A13: 30 | B13: Vosges | C13: 117 | D13: 23% | E13: 20% | F13: 4 | G13: 0% | H13: 0% | I13: 1 | J13: 35% | K13: 34% | L13: 5 | M13: 15% | N13: 12% | O13: 4 | P13: 37% | Q13: 37% | R13: 6 | S13: 35% | T13: 30% | U13: 5
A14: 110 | B14: Bas-Rhin | C14: 222 | D14: 28% | E14: 26% | F14: 5 | G14: 43% | H14: 43% | I14: 5 | J14: 23% | K14: 22% | L14: 4 | M14: 18% | N14: 15% | O14: 5 | P14: 28% | Q14: 28% | R14: 4 | S14: 39% | T14: 34% | U14: 6
A15: 160 | B15: Aube Haute Marne | C15: 113 | D15: 39% | E15: 36% | F15: 6 | G15: 49% | H15: 49% | I15: 6 | J15: 43% | K15: 42% | L15: 6 | M15: 46% | N15: 43% | O15: 6 | P15: 28% | Q15: 28% | R15: 5 | S15: 35% | T15: 30% | U15: 4
A16: 80 | B16: Haut-Rhin | C16: 123 | D16: 58% | E16: 55% | F16: 7 | G16: 58% | H16: 58% | I16: 7 | J16: 61% | K16: 60% | L16: 7 | M16: 72% | N16: 69% | O16: 7 | P16: 59% | Q16: 59% | R16: 7 | S16: 46% | T16: 41% | U16: 7
B17: Total CEGEE Directions Régionales | C17: =SUM(C10:C16) -> 1199

Sheet DC_BANCA
B1: Accueil | D1: BAROMETRE BDD - DIRECTIONS REGIONALES
D2: BANCARISATION
D3: =ACCUEIL!F7 -> 2022-08-07
D7: Ventes Nettes produits pondérés | H7: Ventes sur client non détenteur de l’univers | L7: Total Bancarisation
D8: =DATEMAJ!C8 -> au 07/08 | F8: coef | G8: ='RECAP DIRCOM'!AA4 -> 12% | H8: =DATEMAJ!C9 -> au 07/08 | J8: coef | K8: ='RECAP DIRCOM'!AE4 -> 8% | M8: coef | N8: ='RECAP DIRCOM'!AH4 -> 20%
B9: Direction | C9: ="ETP perf "&DATEMAJ!$C$28 -> ETP perf 07-août | D9: VN | E9: VN / ETP | F9: % Ecart au 1er | G9: Rang | H9: VB | I9: VB / ETP | J9: % Ecart au 1er | K9: Rang | L9: Moyenne ecart au 1er | M9: % Ecart au 1er | N9: Rang CEGEE
A10: 50 | B10: Aube Haute Marne | C10: =VLOOKUP($A10,'RECAP DIRCOM'!$G$6:$CU$12,3,FALSE) -> 113 | D10: =VLOOKUP($A10,'RECAP DIRCOM'!$G$6:$CU$12,18,FALSE) -> 971 | E10: =VLOOKUP($A10,'RECAP DIRCOM'!$G$6:$CU$12,19,FALSE) -> 8.60 | F10: =VLOOKUP($A10,'RECAP DIRCOM'!$G$6:$CU$12,20,FALSE) -> 56% | G10: =VLOOKUP($A10,'RECAP DIRCOM'!$G$6:$CU$12,21,FALSE) -> 6 | H10: =VLOOKUP($A10,'RECAP DIRCOM'!$G$6:$CU$12,22,FALSE) -> 4,031 | I10: =VLOOKUP($A10,'RECAP DIRCOM'!$G$6:$CU$12,23,FALSE) -> 35.73 | J10: =VLOOKUP($A10,'RECAP DIRCOM'!$G$6:$CU$12,24,FALSE) -> 24% | K10: =VLOOKUP($A10,'RECAP DIRCOM'!$G$6:$CU$12,25,FALSE) -> 5 | L10: =VLOOKUP($A10,'RECAP DIRCOM'!$G$6:$CU$12,26,FALSE) -> 43% | M10: =VLOOKUP($A10,'RECAP DIRCOM'!$G$6:$CU$12,27,FALSE) -> 42% | N10: =VLOOKUP($A10,'RECAP DIRCOM'!$G$6:$CU$12,28,FALSE) -> 6
A11: 262 | B11: Bas-Rhin | C11: =VLOOKUP($A11,'RECAP DIRCOM'!$G$6:$CU$12,3,FALSE) -> 222 | D11: =VLOOKUP($A11,'RECAP DIRCOM'!$G$6:$CU$12,18,FALSE) -> 3,291 | E11: =VLOOKUP($A11,'RECAP DIRCOM'!$G$6:$CU$12,19,FALSE) -> 14.84 | F11: =VLOOKUP($A11,'RECAP DIRCOM'!$G$6:$CU$12,20,FALSE) -> 24% | G11: =VLOOKUP($A11,'RECAP DIRCOM'!$G$6:$CU$12,21,FALSE) -> 3 | H11: =VLOOKUP($A11,'RECAP DIRCOM'!$G$6:$CU$12,22,FALSE) -> 8,187 | I11: =VLOOKUP($A11,'RECAP DIRCOM'!$G$6:$CU$12,23,FALSE) -> 36.93 | J11: =VLOOKUP($A11,'RECAP DIRCOM'!$G$6:$CU$12,24,FALSE) -> 21% | K11: =VLOOKUP($A11,'RECAP DIRCOM'!$G$6:$CU$12,25,FALSE) -> 4 | L11: =VLOOKUP($A11,'RECAP DIRCOM'!$G$6:$CU$12,26,FALSE) -> 23% | M11: =VLOOKUP($A11,'RECAP DIRCOM'!$G$6:$CU$12,27,FALSE) -> 22% | N11: =VLOOKUP($A11,'RECAP DIRCOM'!$G$6:$CU$12,28,FALSE) -> 4
A12: 264 | B12: Haut-Rhin | C12: =VLOOKUP($A12,'RECAP DIRCOM'!$G$6:$CU$12,3,FALSE) -> 123 | D12: =VLOOKUP($A12,'RECAP DIRCOM'!$G$6:$CU$12,18,FALSE) -> 552 | E12: =VLOOKUP($A12,'RECAP DIRCOM'!$G$6:$CU$12,19,FALSE) -> 4.50 | F12: =VLOOKUP($A12,'RECAP DIRCOM'!$G$6:$CU$12,20,FALSE) -> 77% | G12: =VLOOKUP($A12,'RECAP DIRCOM'!$G$6:$CU$12,21,FALSE) -> 7 | H12: =VLOOKUP($A12,'RECAP DIRCOM'!$G$6:$CU$12,22,FALSE) -> 3,649 | I12: =VLOOKUP($A12,'RECAP DIRCOM'!$G$6:$CU$12,23,FALSE) -> 29.79 | J12: =VLOOKUP($A12,'RECAP DIRCOM'!$G$6:$CU$12,24,FALSE) -> 36% | K12: =VLOOKUP($A12,'RECAP DIRCOM'!$G$6:$CU$12,25,FALSE) -> 7 | L12: =VLOOKUP($A12,'RECAP DIRCOM'!$G$6:$CU$12,26,FALSE) -> 61% | M12: =VLOOKUP($A12,'RECAP DIRCOM'!$G$6:$CU$12,27,FALSE) -> 60% | N12: =VLOOKUP($A12,'RECAP DIRCOM'!$G$6:$CU$12,28,FALSE) -> 7
A13: 30 | B13: Marne-Ardennes | C13: =VLOOKUP($A13,'RECAP DIRCOM'!$G$6:$CU$12,3,FALSE) -> 194 | D13: =VLOOKUP($A13,'RECAP DIRCOM'!$G$6:$CU$12,18,FALSE) -> 3,731 | E13: =VLOOKUP($A13,'RECAP DIRCOM'!$G$6:$CU$12,19,FALSE) -> 19.27 | F13: =VLOOKUP($A13,'RECAP DIRCOM'!$G$6:$CU$12,20,FALSE) -> 1% | G13: =VLOOKUP($A13,'RECAP DIRCOM'!$G$6:$CU$12,21,FALSE) -> 2 | H13: =VLOOKUP($A13,'RECAP DIRCOM'!$G$6:$CU$12,22,FALSE) -> 9,080 | I13: =VLOOKUP($A13,'RECAP DIRCOM'!$G$6:$CU$12,23,FALSE) -> 46.91 | J13: =VLOOKUP($A13,'RECAP DIRCOM'!$G$6:$CU$12,24,FALSE) -> 0% | K13: =VLOOKUP($A13,'RECAP DIRCOM'!$G$6:$CU$12,25,FALSE) -> 1 | L13: =VLOOKUP($A13,'RECAP DIRCOM'!$G$6:$CU$12,26,FALSE) -> 0% | M13: =VLOOKUP($A13,'RECAP DIRCOM'!$G$6:$CU$12,27,FALSE) -> 0% | N13: =VLOOKUP($A13,'RECAP DIRCOM'!$G$6:$CU$12,28,FALSE) -> 1
A14: 110 | B14: Meurthe et Moselle Meuse | C14: =VLOOKUP($A14,'RECAP DIRCOM'!$G$6:$CU$12,3,FALSE) -> 204 | D14: =VLOOKUP($A14,'RECAP DIRCOM'!$G$6:$CU$12,18,FALSE) -> 2,885 | E14: =VLOOKUP($A14,'RECAP DIRCOM'!$G$6:$CU$12,19,FALSE) -> 14.15 | F14: =VLOOKUP($A14,'RECAP DIRCOM'!$G$6:$CU$12,20,FALSE) -> 27% | G14: =VLOOKUP($A14,'RECAP DIRCOM'!$G$6:$CU$12,21,FALSE) -> 4 | H14: =VLOOKUP($A14,'RECAP DIRCOM'!$G$6:$CU$12,22,FALSE) -> 8,576 | I14: =VLOOKUP($A14,'RECAP DIRCOM'!$G$6:$CU$12,23,FALSE) -> 42.06 | J14: =VLOOKUP($A14,'RECAP DIRCOM'!$G$6:$CU$12,24,FALSE) -> 10% | K14: =VLOOKUP($A14,'RECAP DIRCOM'!$G$6:$CU$12,25,FALSE) -> 3 | L14: =VLOOKUP($A14,'RECAP DIRCOM'!$G$6:$CU$12,26,FALSE) -> 20% | M14: =VLOOKUP($A14,'RECAP DIRCOM'!$G$6:$CU$12,27,FALSE) -> 20% | N14: =VLOOKUP($A14,'RECAP DIRCOM'!$G$6:$CU$12,28,FALSE) -> 3
A15: 160 | B15: Moselle | C15: =VLOOKUP($A15,'RECAP DIRCOM'!$G$6:$CU$12,3,FALSE) -> 227 | D15: =VLOOKUP($A15,'RECAP DIRCOM'!$G$6:$CU$12,18,FALSE) -> 4,410 | E15: =VLOOKUP($A15,'RECAP DIRCOM'!$G$6:$CU$12,19,FALSE) -> 19.43 | F15: =VLOOKUP($A15,'RECAP DIRCOM'!$G$6:$CU$12,20,FALSE) -> 0% | G15: =VLOOKUP($A15,'RECAP DIRCOM'!$G$6:$CU$12,21,FALSE) -> 1 | H15: =VLOOKUP($A15,'RECAP DIRCOM'!$G$6:$CU$12,22,FALSE) -> 10,346 | I15: =VLOOKUP($A15,'RECAP DIRCOM'!$G$6:$CU$12,23,FALSE) -> 45.57 | J15: =VLOOKUP($A15,'RECAP DIRCOM'!$G$6:$CU$12,24,FALSE) -> 3% | K15: =VLOOKUP($A15,'RECAP DIRCOM'!$G$6:$CU$12,25,FALSE) -> 2 | L15: =VLOOKUP($A15,'RECAP DIRCOM'!$G$6:$CU$12,26,FALSE) -> 1% | M15: =VLOOKUP($A15,'RECAP DIRCOM'!$G$6:$CU$12,27,FALSE) -> 1% | N15: =VLOOKUP($A15,'RECAP DIRCOM'!$G$6:$CU$12,28,FALSE) -> 2
A16: 80 | B16: Vosges | C16: =VLOOKUP($A16,'RECAP DIRCOM'!$G$6:$CU$12,3,FALSE) -> 117 | D16: =VLOOKUP($A16,'RECAP DIRCOM'!$G$6:$CU$12,18,FALSE) -> 1,390 | E16: =VLOOKUP($A16,'RECAP DIRCOM'!$G$6:$CU$12,19,FALSE) -> 11.88 | F16: =VLOOKUP($A16,'RECAP DIRCOM'!$G$6:$CU$12,20,FALSE) -> 39% | G16: =VLOOKUP($A16,'RECAP DIRCOM'!$G$6:$CU$12,21,FALSE) -> 5 | H16: =VLOOKUP($A16,'RECAP DIRCOM'!$G$6:$CU$12,22,FALSE) -> 3,899 | I16: =VLOOKUP($A16,'RECAP DIRCOM'!$G$6:$CU$12,23,FALSE) -> 33.32 | J16: =VLOOKUP($A16,'RECAP DIRCOM'!$G$6:$CU$12,24,FALSE) -> 29% | K16: =VLOOKUP($A16,'RECAP DIRCOM'!$G$6:$CU$12,25,FALSE) -> 6 | L16: =VLOOKUP($A16,'RECAP DIRCOM'!$G$6:$CU$12,26,FALSE) -> 35% | M16: =VLOOKUP($A16,'RECAP DIRCOM'!$G$6:$CU$12,27,FALSE) -> 34% | N16: =VLOOKUP($A16,'RECAP DIRCOM'!$G$6:$CU$12,28,FALSE) -> 5
B17: Total CEGEE Directions Régionales | C17: =SUM(C10:C16) -> 1199

Sheet DC_EPARGNE
B1: Accueil | D1: BAROMETRE BDD - DIRECTIONS REGIONALES
D2: EPARGNE
D3: =ACCUEIL!F7 -> 2022-08-07
D7: Excédent Epargne hors DAV pondéré | H7: Ventes sur client non détenteur de l’univers | L7: Total Epargne
D8: =DATEMAJ!C14 -> au 07/08 | F8: coef | G8: ='RECAP DIRCOM'!AP4 -> 12% | H8: =DATEMAJ!C15 -> au 07/08 | J8: coef | K8: ='RECAP DIRCOM'!AT4 -> 8% | M8: coef | N8: ='RECAP DIRCOM'!AW4 -> 20%
B9: Direction | C9: ="ETP perf "&DATEMAJ!$C$28 -> ETP perf 07-août | D9: Excédent | E9: Excédent / ETP | F9: % Ecart au 1er | G9: Rang | H9: VB | I9: VB / ETP | J9: % Ecart au 1er | K9: Rang | L9: Moyenne ecart au 1er | M9: % Ecart au 1er | N9: Rang CEGEE
A10: 50 | B10: Aube Haute Marne | C10: =VLOOKUP($A10,'RECAP DIRCOM'!$G$6:$CU$12,3,FALSE) -> 113 | D10: =VLOOKUP($A10,'RECAP DIRCOM'!$G$6:$CU$12,33,FALSE) -> 10,100 | E10: =VLOOKUP($A10,'RECAP DIRCOM'!$G$6:$CU$12,34,FALSE) -> 89.53 | F10: =VLOOKUP($A10,'RECAP DIRCOM'!$G$6:$CU$12,35,FALSE) -> 57% | G10: =VLOOKUP($A10,'RECAP DIRCOM'!$G$6:$CU$12,36,FALSE) -> 6 | H10: =VLOOKUP($A10,'RECAP DIRCOM'!$G$6:$CU$12,37,FALSE) -> 3,788 | I10: =VLOOKUP($A10,'RECAP DIRCOM'!$G$6:$CU$12,38,FALSE) -> 33.58 | J10: =VLOOKUP($A10,'RECAP DIRCOM'!$G$6:$CU$12,39,FALSE) -> 30% | K10: =VLOOKUP($A10,'RECAP DIRCOM'!$G$6:$CU$12,40,FALSE) -> 5 | L10: =VLOOKUP($A10,'RECAP DIRCOM'!$G$6:$CU$12,41,FALSE) -> 46% | M10: =VLOOKUP($A10,'RECAP DIRCOM'!$G$6:$CU$12,42,FALSE) -> 43% | N10: =VLOOKUP($A10,'RECAP DIRCOM'!$G$6:$CU$12,43,FALSE) -> 6
A11: 262 | B11: Bas-Rhin | C11: =VLOOKUP($A11,'RECAP DIRCOM'!$G$6:$CU$12,3,FALSE) -> 222 | D11: =VLOOKUP($A11,'RECAP DIRCOM'!$G$6:$CU$12,33,FALSE) -> 39,782 | E11: =VLOOKUP($A11,'RECAP DIRCOM'!$G$6:$CU$12,34,FALSE) -> 179.43 | F11: =VLOOKUP($A11,'RECAP DIRCOM'!$G$6:$CU$12,35,FALSE) -> 13% | G11: =VLOOKUP($A11,'RECAP DIRCOM'!$G$6:$CU$12,36,FALSE) -> 5 | H11: =VLOOKUP($A11,'RECAP DIRCOM'!$G$6:$CU$12,37,FALSE) -> 8,026 | I11: =VLOOKUP($A11,'RECAP DIRCOM'!$G$6:$CU$12,38,FALSE) -> 36.20 | J11: =VLOOKUP($A11,'RECAP DIRCOM'!$G$6:$CU$12,39,FALSE) -> 25% | K11: =VLOOKUP($A11,'RECAP DIRCOM'!$G$6:$CU$12,40,FALSE) -> 4 | L11: =VLOOKUP($A11,'RECAP DIRCOM'!$G$6:$CU$12,41,FALSE) -> 18% | M11: =VLOOKUP($A11,'RECAP DIRCOM'!$G$6:$CU$12,42,FALSE) -> 15% | N11: =VLOOKUP($A11,'RECAP DIRCOM'!$G$6:$CU$12,43,FALSE) -> 5
A12: 264 | B12: Haut-Rhin | C12: =VLOOKUP($A12,'RECAP DIRCOM'!$G$6:$CU$12,3,FALSE) -> 123 | D12: =VLOOKUP($A12,'RECAP DIRCOM'!$G$6:$CU$12,33,FALSE) -> 2,664 | E12: =VLOOKUP($A12,'RECAP DIRCOM'!$G$6:$CU$12,34,FALSE) -> 21.75 | F12: =VLOOKUP($A12,'RECAP DIRCOM'!$G$6:$CU$12,35,FALSE) -> 89% | G12: =VLOOKUP($A12,'RECAP DIRCOM'!$G$6:$CU$12,36,FALSE) -> 7 | H12: =VLOOKUP($A12,'RECAP DIRCOM'!$G$6:$CU$12,37,FALSE) -> 3,237 | I12: =VLOOKUP($A12,'RECAP DIRCOM'!$G$6:$CU$12,38,FALSE) -> 26.42 | J12: =VLOOKUP($A12,'RECAP DIRCOM'!$G$6:$CU$12,39,FALSE) -> 45% | K12: =VLOOKUP($A12,'RECAP DIRCOM'!$G$6:$CU$12,40,FALSE) -> 7 | L12: =VLOOKUP($A12,'RECAP DIRCOM'!$G$6:$CU$12,41,FALSE) -> 72% | M12: =VLOOKUP($A12,'RECAP DIRCOM'!$G$6:$CU$12,42,FALSE) -> 69% | N12: =VLOOKUP($A12,'RECAP DIRCOM'!$G$6:$CU$12,43,FALSE) -> 7
A13: 30 | B13: Marne-Ardennes | C13: =VLOOKUP($A13,'RECAP DIRCOM'!$G$6:$CU$12,3,FALSE) -> 194 | D13: =VLOOKUP($A13,'RECAP DIRCOM'!$G$6:$CU$12,33,FALSE) -> 39,273 | E13: =VLOOKUP($A13,'RECAP DIRCOM'!$G$6:$CU$12,34,FALSE) -> 202.87 | F13: =VLOOKUP($A13,'RECAP DIRCOM'!$G$6:$CU$12,35,FALSE) -> 2% | G13: =VLOOKUP($A13,'RECAP DIRCOM'!$G$6:$CU$12,36,FALSE) -> 2 | H13: =VLOOKUP($A13,'RECAP DIRCOM'!$G$6:$CU$12,37,FALSE) -> 8,953 | I13: =VLOOKUP($A13,'RECAP DIRCOM'!$G$6:$CU$12,38,FALSE) -> 46.25 | J13: =VLOOKUP($A13,'RECAP DIRCOM'!$G$6:$CU$12,39,FALSE) -> 4% | K13: =VLOOKUP($A13,'RECAP DIRCOM'!$G$6:$CU$12,40,FALSE) -> 2 | L13: =VLOOKUP($A13,'RECAP DIRCOM'!$G$6:$CU$12,41,FALSE) -> 3% | M13: =VLOOKUP($A13,'RECAP DIRCOM'!$G$6:$CU$12,42,FALSE) -> 0% | N13: =VLOOKUP($A13,'RECAP DIRCOM'!$G$6:$CU$12,43,FALSE) -> 1
A14: 110 | B14: Meurthe et Moselle Meuse | C14: =VLOOKUP($A14,'RECAP DIRCOM'!$G$6:$CU$12,3,FALSE) -> 204 | D14: =VLOOKUP($A14,'RECAP DIRCOM'!$G$6:$CU$12,33,FALSE) -> 42,218 | E14: =VLOOKUP($A14,'RECAP DIRCOM'!$G$6:$CU$12,34,FALSE) -> 207.03 | F14: =VLOOKUP($A14,'RECAP DIRCOM'!$G$6:$CU$12,35,FALSE) -> 0% | G14: =VLOOKUP($A14,'RECAP DIRCOM'!$G$6:$CU$12,36,FALSE) -> 1 | H14: =VLOOKUP($A14,'RECAP DIRCOM'!$G$6:$CU$12,37,FALSE) -> 7,385 | I14: =VLOOKUP($A14,'RECAP DIRCOM'!$G$6:$CU$12,38,FALSE) -> 36.22 | J14: =VLOOKUP($A14,'RECAP DIRCOM'!$G$6:$CU$12,39,FALSE) -> 25% | K14: =VLOOKUP($A14,'RECAP DIRCOM'!$G$6:$CU$12,40,FALSE) -> 3 | L14: =VLOOKUP($A14,'RECAP DIRCOM'!$G$6:$CU$12,41,FALSE) -> 10% | M14: =VLOOKUP($A14,'RECAP DIRCOM'!$G$6:$CU$12,42,FALSE) -> 7% | N14: =VLOOKUP($A14,'RECAP DIRCOM'!$G$6:$CU$12,43,FALSE) -> 3
A15: 160 | B15: Moselle | C15: =VLOOKUP($A15,'RECAP DIRCOM'!$G$6:$CU$12,3,FALSE) -> 227 | D15: =VLOOKUP($A15,'RECAP DIRCOM'!$G$6:$CU$12,33,FALSE) -> 42,590 | E15: =VLOOKUP($A15,'RECAP DIRCOM'!$G$6:$CU$12,34,FALSE) -> 187.60 | F15: =VLOOKUP($A15,'RECAP DIRCOM'!$G$6:$CU$12,35,FALSE) -> 9% | G15: =VLOOKUP($A15,'RECAP DIRCOM'!$G$6:$CU$12,36,FALSE) -> 4 | H15: =VLOOKUP($A15,'RECAP DIRCOM'!$G$6:$CU$12,37,FALSE) -> 10,901 | I15: =VLOOKUP($A15,'RECAP DIRCOM'!$G$6:$CU$12,38,FALSE) -> 48.02 | J15: =VLOOKUP($A15,'RECAP DIRCOM'!$G$6:$CU$12,39,FALSE) -> 0% | K15: =VLOOKUP($A15,'RECAP DIRCOM'!$G$6:$CU$12,40,FALSE) -> 1 | L15: =VLOOKUP($A15,'RECAP DIRCOM'!$G$6:$CU$12,41,FALSE) -> 6% | M15: =VLOOKUP($A15,'RECAP DIRCOM'!$G$6:$CU$12,42,FALSE) -> 3% | N15: =VLOOKUP($A15,'RECAP DIRCOM'!$G$6:$CU$12,43,FALSE) -> 2
A16: 80 | B16: Vosges | C16: =VLOOKUP($A16,'RECAP DIRCOM'!$G$6:$CU$12,3,FALSE) -> 117 | D16: =VLOOKUP($A16,'RECAP DIRCOM'!$G$6:$CU$12,33,FALSE) -> 23,681 | E16: =VLOOKUP($A16,'RECAP DIRCOM'!$G$6:$CU$12,34,FALSE) -> 202.37 | F16: =VLOOKUP($A16,'RECAP DIRCOM'!$G$6:$CU$12,35,FALSE) -> 2% | G16: =VLOOKUP($A16,'RECAP DIRCOM'!$G$6:$CU$12,36,FALSE) -> 3 | H16: =VLOOKUP($A16,'RECAP DIRCOM'!$G$6:$CU$12,37,FALSE) -> 3,688 | I16: =VLOOKUP($A16,'RECAP DIRCOM'!$G$6:$CU$12,38,FALSE) -> 31.52 | J16: =VLOOKUP($A16,'RECAP DIRCOM'!$G$6:$CU$12,39,FALSE) -> 34% | K16: =VLOOKUP($A16,'RECAP DIRCOM'!$G$6:$CU$12,40,FALSE) -> 6 | L16: =VLOOKUP($A16,'RECAP DIRCOM'!$G$6:$CU$12,41,FALSE) -> 15% | M16: =VLOOKUP($A16,'RECAP DIRCOM'!$G$6:$CU$12,42,FALSE) -> 12% | N16: =VLOOKUP($A16,'RECAP DIRCOM'!$G$6:$CU$12,43,FALSE) -> 4
B17: Total CEGEE Directions Régionales | C17: =SUM(C10:C16) -> 1199

Sheet DC_CREDIT
B1: Accueil | D1: BAROMETRE BDD - DIRECTIONS REGIONALES
D2: CREDITS
D3: =ACCUEIL!F7 -> 2022-08-07
D7: Engagements et ventes accessoires pondérés Immo | H7: Engagements et ventes accessoires pondérés Conso | L7: Ventes sur client non détenteur de l’univers | P7: Total Crédits
D8: =DATEMAJ!C18 -> au 07/08 | F8: coef | G8: ='RECAP DIRCOM'!BE4 -> 6% | H8: =DATEMAJ!C19 -> au 07/08 | J8: coef | K8: ='RECAP DIRCOM'!BI4 -> 6% | L8: =DATEMAJ!C20 -> au 07/08 | N8: coef | O8: ='RECAP DIRCOM'!BM4 -> 8% | Q8: coef | R8: ='RECAP DIRCOM'!BP4 -> 20%
B9: Direction | C9: ="ETP perf "&DATEMAJ!$C$28 -> ETP perf 07-août | D9: PNB | E9: PNB / ETP | F9: % Ecart au 1er | G9: Rang | H9: PNB | I9: PNB / ETP | J9: % Ecart au 1er | K9: Rang | L9: VB | M9: VB / ETP | N9: % Ecart au 1er | O9: Rang | P9: Moyenne ecart au 1er | Q9: % Ecart au 1er | R9: Rang CEGEE
A10: 50 | B10: Aube Haute Marne | C10: =VLOOKUP($A10,'RECAP DIRCOM'!$G$6:$CU$12,3,FALSE) -> 113 | D10: =VLOOKUP($A10,'RECAP DIRCOM'!$G$6:$CU$12,48,FALSE) -> 15,515 | E10: =VLOOKUP($A10,'RECAP DIRCOM'!$G$6:$CU$12,49,FALSE) -> 137.52 | F10: =VLOOKUP($A10,'RECAP DIRCOM'!$G$6:$CU$12,50,FALSE) -> 51% | G10: =VLOOKUP($A10,'RECAP DIRCOM'!$G$6:$CU$12,51,FALSE) -> 5 | H10: =VLOOKUP($A10,'RECAP DIRCOM'!$G$6:$CU$12,52,FALSE) -> 4,003 | I10: =VLOOKUP($A10,'RECAP DIRCOM'!$G$6:$CU$12,53,FALSE) -> 35.48 | J10: =VLOOKUP($A10,'RECAP DIRCOM'!$G$6:$CU$12,54,FALSE) -> 14% | K10: =VLOOKUP($A10,'RECAP DIRCOM'!$G$6:$CU$12,55,FALSE) -> 3 | L10: =VLOOKUP($A10,'RECAP DIRCOM'!$G$6:$CU$12,56,FALSE) -> 1,574 | M10: =VLOOKUP($A10,'RECAP DIRCOM'!$G$6:$CU$12,57,FALSE) -> 13.95 | N10: =VLOOKUP($A10,'RECAP DIRCOM'!$G$6:$CU$12,58,FALSE) -> 39% | O10: =VLOOKUP($A10,'RECAP DIRCOM'!$G$6:$CU$12,59,FALSE) -> 5 | P10: =VLOOKUP($A10,'RECAP DIRCOM'!$G$6:$CU$12,60,FALSE) -> 35% | Q10: =VLOOKUP($A10,'RECAP DIRCOM'!$G$6:$CU$12,61,FALSE) -> 30% | R10: =VLOOKUP($A10,'RECAP DIRCOM'!$G$6:$CU$12,62,FALSE) -> 4
A11: 262 | B11: Bas-Rhin | C11: =VLOOKUP($A11,'RECAP DIRCOM'!$G$6:$CU$12,3,FALSE) -> 222 | D11: =VLOOKUP($A11,'RECAP DIRCOM'!$G$6:$CU$12,48,FALSE) -> 32,380 | E11: =VLOOKUP($A11,'RECAP DIRCOM'!$G$6:$CU$12,49,FALSE) -> 146.05 | F11: =VLOOKUP($A11,'RECAP DIRCOM'!$G$6:$CU$12,50,FALSE) -> 48% | G11: =VLOOKUP($A11,'RECAP DIRCOM'!$G$6:$CU$12,51,FALSE) -> 4 | H11: =VLOOKUP($A11,'RECAP DIRCOM'!$G$6:$CU$12,52,FALSE) -> 6,589 | I11: =VLOOKUP($A11,'RECAP DIRCOM'!$G$6:$CU$12,53,FALSE) -> 29.72 | J11: =VLOOKUP($A11,'RECAP DIRCOM'!$G$6:$CU$12,54,FALSE) -> 28% | K11: =VLOOKUP($A11,'RECAP DIRCOM'!$G$6:$CU$12,55,FALSE) -> 6 | L11: =VLOOKUP($A11,'RECAP DIRCOM'!$G$6:$CU$12,56,FALSE) -> 3,030 | M11: =VLOOKUP($A11,'RECAP DIRCOM'!$G$6:$CU$12,57,FALSE) -> 13.67 | N11: =VLOOKUP($A11,'RECAP DIRCOM'!$G$6:$CU$12,58,FALSE) -> 40% | O11: =VLOOKUP($A11,'RECAP DIRCOM'!$G$6:$CU$12,59,FALSE) -> 6 | P11: =VLOOKUP($A11,'RECAP DIRCOM'!$G$6:$CU$12,60,FALSE) -> 39% | Q11: =VLOOKUP($A11,'RECAP DIRCOM'!$G$6:$CU$12,61,FALSE) -> 34% | R11: =VLOOKUP($A11,'RECAP DIRCOM'!$G$6:$CU$12,62,FALSE) -> 6
A12: 264 | B12: Haut-Rhin | C12: =VLOOKUP($A12,'RECAP DIRCOM'!$G$6:$CU$12,3,FALSE) -> 123 | D12: =VLOOKUP($A12,'RECAP DIRCOM'!$G$6:$CU$12,48,FALSE) -> 14,998 | E12: =VLOOKUP($A12,'RECAP DIRCOM'!$G$6:$CU$12,49,FALSE) -> 122.42 | F12: =VLOOKUP($A12,'RECAP DIRCOM'!$G$6:$CU$12,50,FALSE) -> 57% | G12: =VLOOKUP($A12,'RECAP DIRCOM'!$G$6:$CU$12,51,FALSE) -> 7 | H12: =VLOOKUP($A12,'RECAP DIRCOM'!$G$6:$CU$12,52,FALSE) -> 3,473 | I12: =VLOOKUP($A12,'RECAP DIRCOM'!$G$6:$CU$12,53,FALSE) -> 28.35 | J12: =VLOOKUP($A12,'RECAP DIRCOM'!$G$6:$CU$12,54,FALSE) -> 31% | K12: =VLOOKUP($A12,'RECAP DIRCOM'!$G$6:$CU$12,55,FALSE) -> 7 | L12: =VLOOKUP($A12,'RECAP DIRCOM'!$G$6:$CU$12,56,FALSE) -> 1,390 | M12: =VLOOKUP($A12,'RECAP DIRCOM'!$G$6:$CU$12,57,FALSE) -> 11.35 | N12: =VLOOKUP($A12,'RECAP DIRCOM'!$G$6:$CU$12,58,FALSE) -> 50% | O12: =VLOOKUP($A12,'RECAP DIRCOM'!$G$6:$CU$12,59,FALSE) -> 7 | P12: =VLOOKUP($A12,'RECAP DIRCOM'!$G$6:$CU$12,60,FALSE) -> 46% | Q12: =VLOOKUP($A12,'RECAP DIRCOM'!$G$6:$CU$12,61,FALSE) -> 41% | R12: =VLOOKUP($A12,'RECAP DIRCOM'!$G$6:$CU$12,62,FALSE) -> 7
A13: 30 | B13: Marne-Ardennes | C13: =VLOOKUP($A13,'RECAP DIRCOM'!$G$6:$CU$12,3,FALSE) -> 194 | D13: =VLOOKUP($A13,'RECAP DIRCOM'!$G$6:$CU$12,48,FALSE) -> 54,684 | E13: =VLOOKUP($A13,'RECAP DIRCOM'!$G$6:$CU$12,49,FALSE) -> 282.49 | F13: =VLOOKUP($A13,'RECAP DIRCOM'!$G$6:$CU$12,50,FALSE) -> 0% | G13: =VLOOKUP($A13,'RECAP DIRCOM'!$G$6:$CU$12,51,FALSE) -> 1 | H13: =VLOOKUP($A13,'RECAP DIRCOM'!$G$6:$CU$12,52,FALSE) -> 6,643 | I13: =VLOOKUP($A13,'RECAP DIRCOM'!$G$6:$CU$12,53,FALSE) -> 34.32 | J13: =VLOOKUP($A13,'RECAP DIRCOM'!$G$6:$CU$12,54,FALSE) -> 16% | K13: =VLOOKUP($A13,'RECAP DIRCOM'!$G$6:$CU$12,55,FALSE) -> 4 | L13: =VLOOKUP($A13,'RECAP DIRCOM'!$G$6:$CU$12,56,FALSE) -> 4,400 | M13: =VLOOKUP($A13,'RECAP DIRCOM'!$G$6:$CU$12,57,FALSE) -> 22.73 | N13: =VLOOKUP($A13,'RECAP DIRCOM'!$G$6:$CU$12,58,FALSE) -> 0% | O13: =VLOOKUP($A13,'RECAP DIRCOM'!$G$6:$CU$12,59,FALSE) -> 1 | P13: =VLOOKUP($A13,'RECAP DIRCOM'!$G$6:$CU$12,60,FALSE) -> 5% | Q13: =VLOOKUP($A13,'RECAP DIRCOM'!$G$6:$CU$12,61,FALSE) -> 0% | R13: =VLOOKUP($A13,'RECAP DIRCOM'!$G$6:$CU$12,62,FALSE) -> 1
A14: 110 | B14: Meurthe et Moselle Meuse | C14: =VLOOKUP($A14,'RECAP DIRCOM'!$G$6:$CU$12,3,FALSE) -> 204 | D14: =VLOOKUP($A14,'RECAP DIRCOM'!$G$6:$CU$12,48,FALSE) -> 49,756 | E14: =VLOOKUP($A14,'RECAP DIRCOM'!$G$6:$CU$12,49,FALSE) -> 244.00 | F14: =VLOOKUP($A14,'RECAP DIRCOM'!$G$6:$CU$12,50,FALSE) -> 14% | G14: =VLOOKUP($A14,'RECAP DIRCOM'!$G$6:$CU$12,51,FALSE) -> 3 | H14: =VLOOKUP($A14,'RECAP DIRCOM'!$G$6:$CU$12,52,FALSE) -> 7,677 | I14: =VLOOKUP($A14,'RECAP DIRCOM'!$G$6:$CU$12,53,FALSE) -> 37.65 | J14: =VLOOKUP($A14,'RECAP DIRCOM'!$G$6:$CU$12,54,FALSE) -> 8% | K14: =VLOOKUP($A14,'RECAP DIRCOM'!$G$6:$CU$12,55,FALSE) -> 2 | L14: =VLOOKUP($A14,'RECAP DIRCOM'!$G$6:$CU$12,56,FALSE) -> 3,817 | M14: =VLOOKUP($A14,'RECAP DIRCOM'!$G$6:$CU$12,57,FALSE) -> 18.72 | N14: =VLOOKUP($A14,'RECAP DIRCOM'!$G$6:$CU$12,58,FALSE) -> 18% | O14: =VLOOKUP($A14,'RECAP DIRCOM'!$G$6:$CU$12,59,FALSE) -> 3 | P14: =VLOOKUP($A14,'RECAP DIRCOM'!$G$6:$CU$12,60,FALSE) -> 14% | Q14: =VLOOKUP($A14,'RECAP DIRCOM'!$G$6:$CU$12,61,FALSE) -> 9% | R14: =VLOOKUP($A14,'RECAP DIRCOM'!$G$6:$CU$12,62,FALSE) -> 3
A15: 160 | B15: Moselle | C15: =VLOOKUP($A15,'RECAP DIRCOM'!$G$6:$CU$12,3,FALSE) -> 227 | D15: =VLOOKUP($A15,'RECAP DIRCOM'!$G$6:$CU$12,48,FALSE) -> 60,559 | E15: =VLOOKUP($A15,'RECAP DIRCOM'!$G$6:$CU$12,49,FALSE) -> 266.76 | F15: =VLOOKUP($A15,'RECAP DIRCOM'!$G$6:$CU$12,50,FALSE) -> 6% | G15: =VLOOKUP($A15,'RECAP DIRCOM'!$G$6:$CU$12,51,FALSE) -> 2 | H15: =VLOOKUP($A15,'RECAP DIRCOM'!$G$6:$CU$12,52,FALSE) -> 9,320 | I15: =VLOOKUP($A15,'RECAP DIRCOM'!$G$6:$CU$12,53,FALSE) -> 41.05 | J15: =VLOOKUP($A15,'RECAP DIRCOM'!$G$6:$CU$12,54,FALSE) -> 0% | K15: =VLOOKUP($A15,'RECAP DIRCOM'!$G$6:$CU$12,55,FALSE) -> 1 | L15: =VLOOKUP($A15,'RECAP DIRCOM'!$G$6:$CU$12,56,FALSE) -> 4,530 | M15: =VLOOKUP($A15,'RECAP DIRCOM'!$G$6:$CU$12,57,FALSE) -> 19.95 | N15: =VLOOKUP($A15,'RECAP DIRCOM'!$G$6:$CU$12,58,FALSE) -> 12% | O15: =VLOOKUP($A15,'RECAP DIRCOM'!$G$6:$CU$12,59,FALSE) -> 2 | P15: =VLOOKUP($A15,'RECAP DIRCOM'!$G$6:$CU$12,60,FALSE) -> 7% | Q15: =VLOOKUP($A15,'RECAP DIRCOM'!$G$6:$CU$12,61,FALSE) -> 2% | R15: =VLOOKUP($A15,'RECAP DIRCOM'!$G$6:$CU$12,62,FALSE) -> 2
A16: 80 | B16: Vosges | C16: =VLOOKUP($A16,'RECAP DIRCOM'!$G$6:$CU$12,3,FALSE) -> 117 | D16: =VLOOKUP($A16,'RECAP DIRCOM'!$G$6:$CU$12,48,FALSE) -> 15,897 | E16: =VLOOKUP($A16,'RECAP DIRCOM'!$G$6:$CU$12,49,FALSE) -> 135.85 | F16: =VLOOKUP($A16,'RECAP DIRCOM'!$G$6:$CU$12,50,FALSE) -> 52% | G16: =VLOOKUP($A16,'RECAP DIRCOM'!$G$6:$CU$12,51,FALSE) -> 6 | H16: =VLOOKUP($A16,'RECAP DIRCOM'!$G$6:$CU$12,52,FALSE) -> 3,734 | I16: =VLOOKUP($A16,'RECAP DIRCOM'!$G$6:$CU$12,53,FALSE) -> 31.91 | J16: =VLOOKUP($A16,'RECAP DIRCOM'!$G$6:$CU$12,54,FALSE) -> 22% | K16: =VLOOKUP($A16,'RECAP DIRCOM'!$G$6:$CU$12,55,FALSE) -> 5 | L16: =VLOOKUP($A16,'RECAP DIRCOM'!$G$6:$CU$12,56,FALSE) -> 1,817 | M16: =VLOOKUP($A16,'RECAP DIRCOM'!$G$6:$CU$12,57,FALSE) -> 15.53 | N16: =VLOOKUP($A16,'RECAP DIRCOM'!$G$6:$CU$12,58,FALSE) -> 32% | O16: =VLOOKUP($A16,'RECAP DIRCOM'!$G$6:$CU$12,59,FALSE) -> 4 | P16: =VLOOKUP($A16,'RECAP DIRCOM'!$G$6:$CU$12,60,FALSE) -> 35% | Q16: =VLOOKUP($A16,'RECAP DIRCOM'!$G$6:$CU$12,61,FALSE) -> 30% | R16: =VLOOKUP($A16,'RECAP DIRCOM'!$G$6:$CU$12,62,FALSE) -> 5
B17: Total CEGEE Directions Régionales | C17: =SUM(C10:C16) -> 1199

Sheet DC_IARD
B1: Accueil | D1: BAROMETRE BDD - DIRECTIONS REGIONALES
D2: IARD ET PREVOYANCE
D3: =ACCUEIL!F7 -> 2022-08-07
D7: Ventes Nettes produits pondérés | H7: Ventes sur client non détenteur de l’univers | L7: Total IARD Prévoyance
D8: =DATEMAJ!C23 -> au 07/08 | F8: coef | G8: ='RECAP DIRCOM'!BX4 -> 12% | H8: =DATEMAJ!C24 -> au 07/08 | J8: coef | K8: ='RECAP DIRCOM'!CB4 -> 8% | M8: coef | N8: ='RECAP DIRCOM'!CE4 -> 20%
B9: Direction | C9: ="ETP perf "&DATEMAJ!$C$28 -> ETP perf 07-août | D9: VN | E9: VN / ETP | F9: % Ecart au 1er | G9: Rang | H9: VB | I9: VB / ETP | J9: % Ecart au 1er | K9: Rang | L9: Moyenne ecart au 1er | M9: % Ecart au 1er | N9: Rang CEGEE
A10: 50 | B10: Aube Haute Marne | C10: =VLOOKUP($A10,'RECAP DIRCOM'!$G$6:$CU$12,3,FALSE) -> 113 | D10: =VLOOKUP($A10,'RECAP DIRCOM'!$G$6:$CU$12,67,FALSE) -> 8,849 | E10: =VLOOKUP($A10,'RECAP DIRCOM'!$G$6:$CU$12,68,FALSE) -> 78.43 | F10: =VLOOKUP($A10,'RECAP DIRCOM'!$G$6:$CU$12,69,FALSE) -> 31% | G10: =VLOOKUP($A10,'RECAP DIRCOM'!$G$6:$CU$12,70,FALSE) -> 4 | H10: =VLOOKUP($A10,'RECAP DIRCOM'!$G$6:$CU$12,71,FALSE) -> 2,827 | I10: =VLOOKUP($A10,'RECAP DIRCOM'!$G$6:$CU$12,72,FALSE) -> 25.06 | J10: =VLOOKUP($A10,'RECAP DIRCOM'!$G$6:$CU$12,73,FALSE) -> 24% | K10: =VLOOKUP($A10,'RECAP DIRCOM'!$G$6:$CU$12,74,FALSE) -> 5 | L10: =VLOOKUP($A10,'RECAP DIRCOM'!$G$6:$CU$12,75,FALSE) -> 28% | M10: =VLOOKUP($A10,'RECAP DIRCOM'!$G$6:$CU$12,76,FALSE) -> 28% | N10: =VLOOKUP($A10,'RECAP DIRCOM'!$G$6:$CU$12,77,FALSE) -> 5
A11: 262 | B11: Bas-Rhin | C11: =VLOOKUP($A11,'RECAP DIRCOM'!$G$6:$CU$12,3,FALSE) -> 222 | D11: =VLOOKUP($A11,'RECAP DIRCOM'!$G$6:$CU$12,67,FALSE) -> 16,635 | E11: =VLOOKUP($A11,'RECAP DIRCOM'!$G$6:$CU$12,68,FALSE) -> 75.03 | F11: =VLOOKUP($A11,'RECAP DIRCOM'!$G$6:$CU$12,69,FALSE) -> 34% | G11: =VLOOKUP($A11,'RECAP DIRCOM'!$G$6:$CU$12,70,FALSE) -> 5 | H11: =VLOOKUP($A11,'RECAP DIRCOM'!$G$6:$CU$12,71,FALSE) -> 6,025 | I11: =VLOOKUP($A11,'RECAP DIRCOM'!$G$6:$CU$12,72,FALSE) -> 27.18 | J11: =VLOOKUP($A11,'RECAP DIRCOM'!$G$6:$CU$12,73,FALSE) -> 18% | K11: =VLOOKUP($A11,'RECAP DIRCOM'!$G$6:$CU$12,74,FALSE) -> 4 | L11: =VLOOKUP($A11,'RECAP DIRCOM'!$G$6:$CU$12,75,FALSE) -> 28% | M11: =VLOOKUP($A11,'RECAP DIRCOM'!$G$6:$CU$12,76,FALSE) -> 28% | N11: =VLOOKUP($A11,'RECAP DIRCOM'!$G$6:$CU$12,77,FALSE) -> 4
A12: 264 | B12: Haut-Rhin | C12: =VLOOKUP($A12,'RECAP DIRCOM'!$G$6:$CU$12,3,FALSE) -> 123 | D12: =VLOOKUP($A12,'RECAP DIRCOM'!$G$6:$CU$12,67,FALSE) -> 3,514 | E12: =VLOOKUP($A12,'RECAP DIRCOM'!$G$6:$CU$12,68,FALSE) -> 28.68 | F12: =VLOOKUP($A12,'RECAP DIRCOM'!$G$6:$CU$12,69,FALSE) -> 75% | G12: =VLOOKUP($A12,'RECAP DIRCOM'!$G$6:$CU$12,70,FALSE) -> 7 | H12: =VLOOKUP($A12,'RECAP DIRCOM'!$G$6:$CU$12,71,FALSE) -> 2,612 | I12: =VLOOKUP($A12,'RECAP DIRCOM'!$G$6:$CU$12,72,FALSE) -> 21.32 | J12: =VLOOKUP($A12,'RECAP DIRCOM'!$G$6:$CU$12,73,FALSE) -> 36% | K12: =VLOOKUP($A12,'RECAP DIRCOM'!$G$6:$CU$12,74,FALSE) -> 7 | L12: =VLOOKUP($A12,'RECAP DIRCOM'!$G$6:$CU$12,75,FALSE) -> 59% | M12: =VLOOKUP($A12,'RECAP DIRCOM'!$G$6:$CU$12,76,FALSE) -> 59% | N12: =VLOOKUP($A12,'RECAP DIRCOM'!$G$6:$CU$12,77,FALSE) -> 7
A13: 30 | B13: Marne-Ardennes | C13: =VLOOKUP($A13,'RECAP DIRCOM'!$G$6:$CU$12,3,FALSE) -> 194 | D13: =VLOOKUP($A13,'RECAP DIRCOM'!$G$6:$CU$12,67,FALSE) -> 22,087 | E13: =VLOOKUP($A13,'RECAP DIRCOM'!$G$6:$CU$12,68,FALSE) -> 114.10 | F13: =VLOOKUP($A13,'RECAP DIRCOM'!$G$6:$CU$12,69,FALSE) -> 0% | G13: =VLOOKUP($A13,'RECAP DIRCOM'!$G$6:$CU$12,70,FALSE) -> 1 | H13: =VLOOKUP($A13,'RECAP DIRCOM'!$G$6:$CU$12,71,FALSE) -> 6,405 | I13: =VLOOKUP($A13,'RECAP DIRCOM'!$G$6:$CU$12,72,FALSE) -> 33.09 | J13: =VLOOKUP($A13,'RECAP DIRCOM'!$G$6:$CU$12,73,FALSE) -> 0% | K13: =VLOOKUP($A13,'RECAP DIRCOM'!$G$6:$CU$12,74,FALSE) -> 1 | L13: =VLOOKUP($A13,'RECAP DIRCOM'!$G$6:$CU$12,75,FALSE) -> 0% | M13: =VLOOKUP($A13,'RECAP DIRCOM'!$G$6:$CU$12,76,FALSE) -> 0% | N13: =VLOOKUP($A13,'RECAP DIRCOM'!$G$6:$CU$12,77,FALSE) -> 1
A14: 110 | B14: Meurthe et Moselle Meuse | C14: =VLOOKUP($A14,'RECAP DIRCOM'!$G$6:$CU$12,3,FALSE) -> 204 | D14: =VLOOKUP($A14,'RECAP DIRCOM'!$G$6:$CU$12,67,FALSE) -> 17,376 | E14: =VLOOKUP($A14,'RECAP DIRCOM'!$G$6:$CU$12,68,FALSE) -> 85.21 | F14: =VLOOKUP($A14,'RECAP DIRCOM'!$G$6:$CU$12,69,FALSE) -> 25% | G14: =VLOOKUP($A14,'RECAP DIRCOM'!$G$6:$CU$12,70,FALSE) -> 3 | H14: =VLOOKUP($A14,'RECAP DIRCOM'!$G$6:$CU$12,71,FALSE) -> 5,977 | I14: =VLOOKUP($A14,'RECAP DIRCOM'!$G$6:$CU$12,72,FALSE) -> 29.31 | J14: =VLOOKUP($A14,'RECAP DIRCOM'!$G$6:$CU$12,73,FALSE) -> 11% | K14: =VLOOKUP($A14,'RECAP DIRCOM'!$G$6:$CU$12,74,FALSE) -> 3 | L14: =VLOOKUP($A14,'RECAP DIRCOM'!$G$6:$CU$12,75,FALSE) -> 20% | M14: =VLOOKUP($A14,'RECAP DIRCOM'!$G$6:$CU$12,76,FALSE) -> 20% | N14: =VLOOKUP($A14,'RECAP DIRCOM'!$G$6:$CU$12,77,FALSE) -> 3
A15: 160 | B15: Moselle | C15: =VLOOKUP($A15,'RECAP DIRCOM'!$G$6:$CU$12,3,FALSE) -> 227 | D15: =VLOOKUP($A15,'RECAP DIRCOM'!$G$6:$CU$12,67,FALSE) -> 25,708 | E15: =VLOOKUP($A15,'RECAP DIRCOM'!$G$6:$CU$12,68,FALSE) -> 113.24 | F15: =VLOOKUP($A15,'RECAP DIRCOM'!$G$6:$CU$12,69,FALSE) -> 1% | G15: =VLOOKUP($A15,'RECAP DIRCOM'!$G$6:$CU$12,70,FALSE) -> 2 | H15: =VLOOKUP($A15,'RECAP DIRCOM'!$G$6:$CU$12,71,FALSE) -> 7,318 | I15: =VLOOKUP($A15,'RECAP DIRCOM'!$G$6:$CU$12,72,FALSE) -> 32.24 | J15: =VLOOKUP($A15,'RECAP DIRCOM'!$G$6:$CU$12,73,FALSE) -> 3% | K15: =VLOOKUP($A15,'RECAP DIRCOM'!$G$6:$CU$12,74,FALSE) -> 2 | L15: =VLOOKUP($A15,'RECAP DIRCOM'!$G$6:$CU$12,75,FALSE) -> 1% | M15: =VLOOKUP($A15,'RECAP DIRCOM'!$G$6:$CU$12,76,FALSE) -> 1% | N15: =VLOOKUP($A15,'RECAP DIRCOM'!$G$6:$CU$12,77,FALSE) -> 2
A16: 80 | B16: Vosges | C16: =VLOOKUP($A16,'RECAP DIRCOM'!$G$6:$CU$12,3,FALSE) -> 117 | D16: =VLOOKUP($A16,'RECAP DIRCOM'!$G$6:$CU$12,67,FALSE) -> 7,737 | E16: =VLOOKUP($A16,'RECAP DIRCOM'!$G$6:$CU$12,68,FALSE) -> 66.12 | F16: =VLOOKUP($A16,'RECAP DIRCOM'!$G$6:$CU$12,69,FALSE) -> 42% | G16: =VLOOKUP($A16,'RECAP DIRCOM'!$G$6:$CU$12,70,FALSE) -> 6 | H16: =VLOOKUP($A16,'RECAP DIRCOM'!$G$6:$CU$12,71,FALSE) -> 2,739 | I16: =VLOOKUP($A16,'RECAP DIRCOM'!$G$6:$CU$12,72,FALSE) -> 23.41 | J16: =VLOOKUP($A16,'RECAP DIRCOM'!$G$6:$CU$12,73,FALSE) -> 29% | K16: =VLOOKUP($A16,'RECAP DIRCOM'!$G$6:$CU$12,74,FALSE) -> 6 | L16: =VLOOKUP($A16,'RECAP DIRCOM'!$G$6:$CU$12,75,FALSE) -> 37% | M16: =VLOOKUP($A16,'RECAP DIRCOM'!$G$6:$CU$12,76,FALSE) -> 37% | N16: =VLOOKUP($A16,'RECAP DIRCOM'!$G$6:$CU$12,77,FALSE) -> 6
B17: Total CEGEE Directions Régionales | C17: =SUM(C10:C16) -> 1199

Sheet DC_SATISFACTION
B1: Accueil | D1: BAROMETRE BDD - DIRECTIONS REGIONALES
D2: SATISFACTION
D3: =ACCUEIL!F7 -> 2022-08-07
D7: NPS à froid (SAE) | G7: NPS à chaud (QHD) | J7: Total Satisfaction Clients
D8: =DATEMAJ!E4 -> au 30/06 | E8: coef | F8: ='RECAP DIRCOM'!M4 -> 10% | G8: =DATEMAJ!C5 -> au 30/06 | H8: coef | I8: ='RECAP DIRCOM'!P4 -> 10% | K8: coef | L8: ='RECAP DIRCOM'!S4 -> 20%
B9: Direction | C9: ="ETP perf "&DATEMAJ!$C$28 -> ETP perf 07-août | E9: % Ecart au 1er | F9: Rang | H9: % Ecart au 1er | I9: Rang | J9: Moyenne ecart au 1er | K9: % Ecart au 1er | L9: Rang CEGEE
A10: 50 | B10: Aube Haute Marne | C10: =VLOOKUP($A10,'RECAP DIRCOM'!$G$6:$CU$12,3,FALSE) -> 113 | D10: =VLOOKUP($A10,'RECAP DIRCOM'!$G$6:$CU$12,5,FALSE) -> 5.5 | E10: =VLOOKUP($A10,'RECAP DIRCOM'!$G$6:$CU$12,6,FALSE) -> 78% | F10: =VLOOKUP($A10,'RECAP DIRCOM'!$G$6:$CU$12,7,FALSE) -> 6 | G10: =VLOOKUP($A10,'RECAP DIRCOM'!$G$6:$CU$12,8,FALSE) -> 55% | H10: =VLOOKUP($A10,'RECAP DIRCOM'!$G$6:$CU$12,9,FALSE) -> 20% | I10: =VLOOKUP($A10,'RECAP DIRCOM'!$G$6:$CU$12,10,FALSE) -> 6 | J10: =VLOOKUP($A10,'RECAP DIRCOM'!$G$6:$CU$12,11,FALSE) -> 49% | K10: =VLOOKUP($A10,'RECAP DIRCOM'!$G$6:$CU$12,12,FALSE) -> 49% | L10: =VLOOKUP($A10,'RECAP DIRCOM'!$G$6:$CU$12,13,FALSE) -> 6
A11: 262 | B11: Bas-Rhin | C11: =VLOOKUP($A11,'RECAP DIRCOM'!$G$6:$CU$12,3,FALSE) -> 222 | D11: =VLOOKUP($A11,'RECAP DIRCOM'!$G$6:$CU$12,5,FALSE) -> 5.75 | E11: =VLOOKUP($A11,'RECAP DIRCOM'!$G$6:$CU$12,6,FALSE) -> 77% | F11: =VLOOKUP($A11,'RECAP DIRCOM'!$G$6:$CU$12,7,FALSE) -> 5 | G11: =VLOOKUP($A11,'RECAP DIRCOM'!$G$6:$CU$12,8,FALSE) -> 62% | H11: =VLOOKUP($A11,'RECAP DIRCOM'!$G$6:$CU$12,9,FALSE) -> 10% | I11: =VLOOKUP($A11,'RECAP DIRCOM'!$G$6:$CU$12,10,FALSE) -> 4 | J11: =VLOOKUP($A11,'RECAP DIRCOM'!$G$6:$CU$12,11,FALSE) -> 43% | K11: =VLOOKUP($A11,'RECAP DIRCOM'!$G$6:$CU$12,12,FALSE) -> 43% | L11: =VLOOKUP($A11,'RECAP DIRCOM'!$G$6:$CU$12,13,FALSE) -> 5
A12: 264 | B12: Haut-Rhin | C12: =VLOOKUP($A12,'RECAP DIRCOM'!$G$6:$CU$12,3,FALSE) -> 123 | D12: =VLOOKUP($A12,'RECAP DIRCOM'!$G$6:$CU$12,5,FALSE) -> 3 | E12: =VLOOKUP($A12,'RECAP DIRCOM'!$G$6:$CU$12,6,FALSE) -> 88% | F12: =VLOOKUP($A12,'RECAP DIRCOM'!$G$6:$CU$12,7,FALSE) -> 7 | G12: =VLOOKUP($A12,'RECAP DIRCOM'!$G$6:$CU$12,8,FALSE) -> 50% | H12: =VLOOKUP($A12,'RECAP DIRCOM'!$G$6:$CU$12,9,FALSE) -> 28% | I12: =VLOOKUP($A12,'RECAP DIRCOM'!$G$6:$CU$12,10,FALSE) -> 7 | J12: =VLOOKUP($A12,'RECAP DIRCOM'!$G$6:$CU$12,11,FALSE) -> 58% | K12: =VLOOKUP($A12,'RECAP DIRCOM'!$G$6:$CU$12,12,FALSE) -> 58% | L12: =VLOOKUP($A12,'RECAP DIRCOM'!$G$6:$CU$12,13,FALSE) -> 7
A13: 30 | B13: Marne-Ardennes | C13: =VLOOKUP($A13,'RECAP DIRCOM'!$G$6:$CU$12,3,FALSE) -> 194 | D13: =VLOOKUP($A13,'RECAP DIRCOM'!$G$6:$CU$12,5,FALSE) -> 18.5 | E13: =VLOOKUP($A13,'RECAP DIRCOM'!$G$6:$CU$12,6,FALSE) -> 24% | F13: =VLOOKUP($A13,'RECAP DIRCOM'!$G$6:$CU$12,7,FALSE) -> 2 | G13: =VLOOKUP($A13,'RECAP DIRCOM'!$G$6:$CU$12,8,FALSE) -> 67% | H13: =VLOOKUP($A13,'RECAP DIRCOM'!$G$6:$CU$12,9,FALSE) -> 3% | I13: =VLOOKUP($A13,'RECAP DIRCOM'!$G$6:$CU$12,10,FALSE) -> 2 | J13: =VLOOKUP($A13,'RECAP DIRCOM'!$G$6:$CU$12,11,FALSE) -> 14% | K13: =VLOOKUP($A13,'RECAP DIRCOM'!$G$6:$CU$12,12,FALSE) -> 14% | L13: =VLOOKUP($A13,'RECAP DIRCOM'!$G$6:$CU$12,13,FALSE) -> 2
A14: 110 | B14: Meurthe et Moselle Meuse | C14: =VLOOKUP($A14,'RECAP DIRCOM'!$G$6:$CU$12,3,FALSE) -> 204 | D14: =VLOOKUP($A14,'RECAP DIRCOM'!$G$6:$CU$12,5,FALSE) -> 10.75 | E14: =VLOOKUP($A14,'RECAP DIRCOM'!$G$6:$CU$12,6,FALSE) -> 56% | F14: =VLOOKUP($A14,'RECAP DIRCOM'!$G$6:$CU$12,7,FALSE) -> 4 | G14: =VLOOKUP($A14,'RECAP DIRCOM'!$G$6:$CU$12,8,FALSE) -> 61% | H14: =VLOOKUP($A14,'RECAP DIRCOM'!$G$6:$CU$12,9,FALSE) -> 12% | I14: =VLOOKUP($A14,'RECAP DIRCOM'!$G$6:$CU$12,10,FALSE) -> 5 | J14: =VLOOKUP($A14,'RECAP DIRCOM'!$G$6:$CU$12,11,FALSE) -> 34% | K14: =VLOOKUP($A14,'RECAP DIRCOM'!$G$6:$CU$12,12,FALSE) -> 34% | L14: =VLOOKUP($A14,'RECAP DIRCOM'!$G$6:$CU$12,13,FALSE) -> 4
A15: 160 | B15: Moselle | C15: =VLOOKUP($A15,'RECAP DIRCOM'!$G$6:$CU$12,3,FALSE) -> 227 | D15: =VLOOKUP($A15,'RECAP DIRCOM'!$G$6:$CU$12,5,FALSE) -> 15.25 | E15: =VLOOKUP($A15,'RECAP DIRCOM'!$G$6:$CU$12,6,FALSE) -> 38% | F15: =VLOOKUP($A15,'RECAP DIRCOM'!$G$6:$CU$12,7,FALSE) -> 3 | G15: =VLOOKUP($A15,'RECAP DIRCOM'!$G$6:$CU$12,8,FALSE) -> 63% | H15: =VLOOKUP($A15,'RECAP DIRCOM'!$G$6:$CU$12,9,FALSE) -> 8% | I15: =VLOOKUP($A15,'RECAP DIRCOM'!$G$6:$CU$12,10,FALSE) -> 3 | J15: =VLOOKUP($A15,'RECAP DIRCOM'!$G$6:$CU$12,11,FALSE) -> 23% | K15: =VLOOKUP($A15,'RECAP DIRCOM'!$G$6:$CU$12,12,FALSE) -> 23% | L15: =VLOOKUP($A15,'RECAP DIRCOM'!$G$6:$CU$12,13,FALSE) -> 3
A16: 80 | B16: Vosges | C16: =VLOOKUP($A16,'RECAP DIRCOM'!$G$6:$CU$12,3,FALSE) -> 117 | D16: =VLOOKUP($A16,'RECAP DIRCOM'!$G$6:$CU$12,5,FALSE) -> 24.5 | E16: =VLOOKUP($A16,'RECAP DIRCOM'!$G$6:$CU$12,6,FALSE) -> 0% | F16: =VLOOKUP($A16,'RECAP DIRCOM'!$G$6:$CU$12,7,FALSE) -> 1 | G16: =VLOOKUP($A16,'RECAP DIRCOM'!$G$6:$CU$12,8,FALSE) -> 69% | H16: =VLOOKUP($A16,'RECAP DIRCOM'!$G$6:$CU$12,9,FALSE) -> 0% | I16: =VLOOKUP($A16,'RECAP DIRCOM'!$G$6:$CU$12,10,FALSE) -> 1 | J16: =VLOOKUP($A16,'RECAP DIRCOM'!$G$6:$CU$12,11,FALSE) -> 0% | K16: =VLOOKUP($A16,'RECAP DIRCOM'!$G$6:$CU$12,12,FALSE) -> 0% | L16: =VLOOKUP($A16,'RECAP DIRCOM'!$G$6:$CU$12,13,FALSE) -> 1
B17: Total CEGEE Directions Régionales | C17: =SUM(C10:C16) -> 1199

Sheet SE_FICHE
A1: Accueil
A2: BAROMETRE BDD
A4: UNITE: | B4: TERRITOIRE | E4: ETP perf : | F4: =VLOOKUP(A5,'RECAP SECT'!$G$6:$I$23,3,FALSE) -> 47.33
A5: =VLOOKUP(B5,LISTES!$H$6:$I$23,2,FALSE) -> 5130 | B5: COLMAR
C6: Coefficient du critére | E6: Résultats | I6: Ecart au 1ier | M6: Evolution | O6: Rang
E7: du 1ier | G7: du territoire | I7: Du mois | K7: Au 31/12/2019
A9: RANG au CLASSEMENT GENERAL | K9: =VLOOKUP($A$5,#REF!,168,FALSE) ->  | M9: =+K9-O9 ->  | O9: =VLOOKUP($A$5,'RECAP SECT'!$G$6:$CY$312,168,FALSE) ->  | S9: =VLOOKUP($A$5,#REF!,154,FALSE) ->  | U9: =+S9-O9 -> 
A11: CRITERE CONQUETE | C11: 15% | O11: =VLOOKUP($A$5,'RECAP SECT'!$G$6:$CY$312,23,FALSE) -> 36.38284386
B12: PNB Evolution nette Clients BP | C12: 4% | E12: ='RECAP SECT'!#REF! ->  | G12: =VLOOKUP($A$5,'RECAP SECT'!$G$6:$CY$312,6,FALSE) -> 0.9 | I12: =VLOOKUP($A$5,'RECAP SECT'!$G$6:$CY$312,7,FALSE) -> 1600% | K12: =VLOOKUP($A$5,#REF!,7,FALSE) ->  | M12: =+K12-I12 ->  | O12: =VLOOKUP($A$5,'RECAP SECT'!$G$6:$CY$312,8,FALSE) -> 0.5364569123 | S12: =VLOOKUP($A$5,#REF!,6,FALSE) ->  | U12: =+S12-I12 -> 
B13: PNB Evolution nette Clients PREMIUM | C13: 5% | E13: ='RECAP SECT'!#REF! ->  | G13: =VLOOKUP($A$5,'RECAP SECT'!$G$6:$CY$312,10,FALSE) -> 16.0 | I13: =VLOOKUP($A$5,'RECAP SECT'!$G$6:$CY$312,11,FALSE) -> 59% | K13: =VLOOKUP($A$5,#REF!,11,FALSE) ->  | M13: =+K13-I13 ->  | O13: =VLOOKUP($A$5,'RECAP SECT'!$G$6:$CY$312,12,FALSE) -> 0.5863080966 | S13: =VLOOKUP($A$5,#REF!,9,FALSE) ->  | U13: =+S13-I13 -> 
B14: PNB Evolution nette Clients Jeunes Equipés | C14: 3% | E14: ='RECAP SECT'!#REF! ->  | G14: =VLOOKUP($A$5,'RECAP SECT'!$G$6:$CY$312,14,FALSE) -> 0.0 | I14: =VLOOKUP($A$5,'RECAP SECT'!$G$6:$CY$312,15,FALSE) -> 0% | K14: =VLOOKUP($A$5,#REF!,15,FALSE) ->  | M14: =+K14-I14 ->  | O14: =VLOOKUP($A$5,'RECAP SECT'!$G$6:$CY$312,16,FALSE) -> 0 | S14: =VLOOKUP($A$5,#REF!,12,FALSE) ->  | U14: =+S14-I14 -> 
B15: PNB Evolution nette Clients Pro Actifs Equipés | C15: 3% | E15: ='RECAP SECT'!W4 -> 0.0 | G15: =VLOOKUP($A$5,'RECAP SECT'!$G$6:$CY$312,18,FALSE) -> 443.5 | I15: =VLOOKUP($A$5,'RECAP SECT'!$G$6:$CY$312,19,FALSE) -> 937% | K15: =VLOOKUP($A$5,#REF!,19,FALSE) ->  | M15: =+K15-I15 ->  | O15: =VLOOKUP($A$5,'RECAP SECT'!$G$6:$CY$312,20,FALSE) -> 0.6972671289 | S15: =VLOOKUP($A$5,#REF!,15,FALSE) ->  | U15: =+S15-I15 -> 
A17: CRITERE BANCARISATION | C17: 15% | O17: =VLOOKUP($A$5,'RECAP SECT'!$G$6:$CY$312,48,FALSE) -> 6691.389498
B18: PNB Ventes nettes forfaits | C18: 4% | E18: ='RECAP SECT'!X4 -> 31.0 | G18: =VLOOKUP($A$5,'RECAP SECT'!$G$6:$CY$312,31,FALSE) -> 0.0 | I18: =VLOOKUP($A$5,'RECAP SECT'!$G$6:$CY$312,32,FALSE) -> 0% | K18: =VLOOKUP($A$5,#REF!,32,FALSE) ->  | M18: =+K18-I18 ->  | O18: =VLOOKUP($A$5,'RECAP SECT'!$G$6:$CY$312,33,FALSE) -> 4654.43395 | S18: =VLOOKUP($A$5,#REF!,27,FALSE) ->  | U18: =+S18-I18 -> 
B19: PNB Ventes nettes IZICARTES Débit Différé | C19: 4% | E19: ='RECAP SECT'!AB4 -> 67.0 | G19: =VLOOKUP($A$5,'RECAP SECT'!$G$6:$CY$312,35,FALSE) -> 0.7 | I19: =VLOOKUP($A$5,'RECAP SECT'!$G$6:$CY$312,36,FALSE) -> 1600% | K19: =VLOOKUP($A$5,#REF!,36,FALSE) ->  | M19: =+K19-I19 ->  | O19: =VLOOKUP($A$5,'RECAP SECT'!$G$6:$CY$312,37,FALSE) -> 1547 | S19: =VLOOKUP($A$5,#REF!,30,FALSE) ->  | U19: =+S19-I19 -> 
B20: PNB Ventes nettes cartes HDG Débit Différé | C20: 4% | E20: ='RECAP SECT'!#REF! ->  | G20: =VLOOKUP($A$5,'RECAP SECT'!$G$6:$CY$312,39,FALSE) -> 0.5 | I20: =VLOOKUP($A$5,'RECAP SECT'!$G$6:$CY$312,40,FALSE) -> 1800% | K20: =VLOOKUP($A$5,#REF!,40,FALSE) ->  | M20: =+K20-I20 ->  | O20: =VLOOKUP($A$5,'RECAP SECT'!$G$6:$CY$312,41,FALSE) -> 0.63519058 | S20: =VLOOKUP($A$5,#REF!,33,FALSE) ->  | U20: =+S20-I20 -> 
B21: PNB Ventes nettes Forfaits Pro, Carte pro | C21: 3% | E21: ='RECAP SECT'!#REF! ->  | G21: =VLOOKUP($A$5,'RECAP SECT'!$G$6:$CY$312,43,FALSE) -> 16.0 | I21: =VLOOKUP($A$5,'RECAP SECT'!$G$6:$CY$312,44,FALSE) -> 0% | K21: =VLOOKUP($A$5,#REF!,44,FALSE) ->  | M21: =+K21-I21 ->  | O21: =VLOOKUP($A$5,'RECAP SECT'!$G$6:$CY$312,45,FALSE) -> 0 | S21: =VLOOKUP($A$5,#REF!,39,FALSE) ->  | U21: =+S21-I21 -> 
A23: CRITERE EPARGNE | C23: 10% | O23: =VLOOKUP($A$5,'RECAP SECT'!$G$6:$CY$312,69,FALSE) -> 0.6623713383
B24: PNB Epargne Liquide | C24: 3% | E24: ='RECAP SECT'!AM4 -> 358.2 | G24: =VLOOKUP($A$5,'RECAP SECT'!$G$6:$CY$312,56,FALSE) -> 682.0 | I24: =VLOOKUP($A$5,'RECAP SECT'!$G$6:$CY$312,57,FALSE) -> 1441% | K24: =VLOOKUP($A$5,#REF!,57,FALSE) ->  | M24: =+K24-I24 ->  | O24: =VLOOKUP($A$5,'RECAP SECT'!$G$6:$CY$312,58,FALSE) -> 0.5646583248 | S24: =VLOOKUP($A$5,#REF!,51,FALSE) ->  | U24: =+S24-I24 -> 
B25: PNB CA UC + arbitrage | C25: 4% | E25: ='RECAP SECT'!AQ4 -> 65.3 | G25: =VLOOKUP($A$5,'RECAP SECT'!$G$6:$CY$312,60,FALSE) -> 0.5 | I25: =VLOOKUP($A$5,'RECAP SECT'!$G$6:$CY$312,61,FALSE) -> 45% | K25: =VLOOKUP($A$5,#REF!,61,FALSE) ->  | M25: =+K25-I25 ->  | O25: =VLOOKUP($A$5,'RECAP SECT'!$G$6:$CY$312,62,FALSE) -> 18 | S25: =VLOOKUP($A$5,#REF!,57,FALSE) ->  | U25: =+S25-I25 -> 
B26: PNB Excédent assurance vie | C26: 3% | E26: ='RECAP SECT'!#REF! ->  | G26: =VLOOKUP($A$5,'RECAP SECT'!$G$6:$CY$312,64,FALSE) -> 0.0 | I26: =VLOOKUP($A$5,'RECAP SECT'!$G$6:$CY$312,65,FALSE) -> 0% | K26: =VLOOKUP($A$5,#REF!,65,FALSE) ->  | M26: =+K26-I26 ->  | O26: =VLOOKUP($A$5,'RECAP SECT'!$G$6:$CY$312,66,FALSE) -> 0 | S26: =VLOOKUP($A$5,#REF!,60,FALSE) ->  | U26: =+S26-I26 -> 
A28: CRITERE CREDITS | C28: 15% | O28: =VLOOKUP($A$5,'RECAP SECT'!$G$6:$CY$312,102,FALSE) -> 
B29: PNB crédit conso | C29: 4% | E29: ='RECAP SECT'!BB4 -> 435.3 | G29: =VLOOKUP($A$5,'RECAP SECT'!$G$6:$CY$312,77,FALSE) -> 17.0 | I29: =VLOOKUP($A$5,'RECAP SECT'!$G$6:$CY$312,78,FALSE) -> 0% | K29: =VLOOKUP($A$5,#REF!,78,FALSE) ->  | M29: =+K29-I29 ->  | O29: =VLOOKUP($A$5,'RECAP SECT'!$G$6:$CY$312,79,FALSE) -> 0 | S29: =VLOOKUP($A$5,#REF!,75,FALSE) ->  | U29: =+S29-I29 -> 
B30: PNB ADE crédit conso | C30: 1% | E30: ='RECAP SECT'!#REF! ->  | G30: =VLOOKUP($A$5,'RECAP SECT'!$G$6:$CY$312,81,FALSE) -> 0.0 | I30: =VLOOKUP($A$5,'RECAP SECT'!$G$6:$CY$312,82,FALSE) -> 0% | K30: =VLOOKUP($A$5,#REF!,82,FALSE) ->  | O30: =VLOOKUP($A$5,'RECAP SECT'!$G$6:$CY$312,83,FALSE) -> 0 | S30: =VLOOKUP($A$5,#REF!,78,FALSE) -> 
B31: PNB crédit immo | C31: 4% | E31: ='RECAP SECT'!BF4 -> 51.2 | G31: =VLOOKUP($A$5,'RECAP SECT'!$G$6:$CY$312,85,FALSE) -> 0.0 | I31: =VLOOKUP($A$5,'RECAP SECT'!$G$6:$CY$312,86,FALSE) -> 0% | K31: =VLOOKUP($A$5,#REF!,86,FALSE) ->  | O31: =VLOOKUP($A$5,'RECAP SECT'!$G$6:$CY$312,87,FALSE) -> 0 | S31: =VLOOKUP($A$5,#REF!,81,FALSE) -> 
B32: PNB ADE crédit immo | C32: 2% | E32: ='RECAP SECT'!#REF! ->  | G32: =VLOOKUP($A$5,'RECAP SECT'!$G$6:$CY$312,89,FALSE) -> 0.0 | I32: =VLOOKUP($A$5,'RECAP SECT'!$G$6:$CY$312,90,FALSE) -> 0% | K32: =VLOOKUP($A$5,#REF!,90,FALSE) ->  | O32: =VLOOKUP($A$5,'RECAP SECT'!$G$6:$CY$312,91,FALSE) -> 0 | S32: =VLOOKUP($A$5,#REF!,84,FALSE) -> 
B33: PNB SACCEF | C33: 2% | E33: ='RECAP SECT'!#REF! ->  | G33: =VLOOKUP($A$5,'RECAP SECT'!$G$6:$CY$312,93,FALSE) -> 0.0 | I33: =VLOOKUP($A$5,'RECAP SECT'!$G$6:$CY$312,94,FALSE) -> 54% | K33: =VLOOKUP($A$5,#REF!,94,FALSE) ->  | O33: =VLOOKUP($A$5,'RECAP SECT'!$G$6:$CY$312,95,FALSE) -> 0.4481150789 | S33: =VLOOKUP($A$5,#REF!,87,FALSE) -> 
B34: PNB Crédit MLT + Crédit Bail | C34: 2% | E34: ='RECAP SECT'!BJ4 -> 33.1 | G34: =VLOOKUP($A$5,'RECAP SECT'!$G$6:$CY$312,97,FALSE) -> 0.0 | I34: =VLOOKUP($A$5,'RECAP SECT'!$G$6:$CY$312,98,FALSE) ->  | K34: =VLOOKUP($A$5,#REF!,98,FALSE) ->  | O34: =VLOOKUP($A$5,'RECAP SECT'!$G$6:$CY$312,99,FALSE) ->  | S34: =VLOOKUP($A$5,#REF!,90,FALSE) -> 
A36: CRITERE IARD PREVOYANCE | C36: 15% | O36: =VLOOKUP($A$5,'RECAP SECT'!$G$6:$CY$312,119,FALSE) -> 
B37: PNB Ventes nettes IARD | C37: 9% | E37: ='RECAP SECT'!BU4 -> 166.5 | G37: =VLOOKUP($A$5,'RECAP SECT'!$G$6:$CY$312,110,FALSE) ->  | I37: =VLOOKUP($A$5,'RECAP SECT'!$G$6:$CY$312,111,FALSE) ->  | K37: =VLOOKUP($A$5,#REF!,111,FALSE) ->  | M37: =+K37-I37 ->  | O37: =VLOOKUP($A$5,'RECAP SECT'!$G$6:$CY$312,112,FALSE) ->  | S37: =VLOOKUP($A$5,#REF!,102,FALSE) ->  | U37: =+S37-I37 -> 
B38: PNB Ventes nettes Prévoyance | C38: 6% | E38: ='RECAP SECT'!BY4 -> 45.5 | G38: =VLOOKUP($A$5,'RECAP SECT'!$G$6:$CY$312,114,FALSE) ->  | I38: =VLOOKUP($A$5,'RECAP SECT'!$G$6:$CY$312,115,FALSE) ->  | K38: =VLOOKUP($A$5,#REF!,115,FALSE) ->  | M38: =+K38-I38 ->  | O38: =VLOOKUP($A$5,'RECAP SECT'!$G$6:$CY$312,116,FALSE) ->  | S38: =VLOOKUP($A$5,#REF!,105,FALSE) ->  | U38: =+S38-I38 -> 
A40: CRITERE ACCELERATEURS PNB | C40: 15% | O40: =VLOOKUP($A$5,'RECAP SECT'!$G$6:$CY$312,144,FALSE) -> 
B41: PNB Ventes brutes SED Finalisées | C41: 6% | E41: ='RECAP SECT'!#REF! ->  | G41: =VLOOKUP($A$5,'RECAP SECT'!$G$6:$CY$312,127,FALSE) ->  | I41: =VLOOKUP($A$5,'RECAP SECT'!$G$6:$CY$312,128,FALSE) ->  | K41: =VLOOKUP($A$5,#REF!,128,FALSE) ->  | M41: =+K41-I41 ->  | O41: =VLOOKUP($A$5,'RECAP SECT'!$G$6:$CY$312,129,FALSE) ->  | S41: =VLOOKUP($A$5,#REF!,120,FALSE) ->  | U41: =+S41-I41 -> 
B42: PNB clients équipés E documents | C42: 3% | E42: ='RECAP SECT'!#REF! ->  | G42: =VLOOKUP($A$5,'RECAP SECT'!$G$6:$CY$312,131,FALSE) ->  | I42: =VLOOKUP($A$5,'RECAP SECT'!$G$6:$CY$312,132,FALSE) ->  | K42: =VLOOKUP($A$5,#REF!,132,FALSE) ->  | M42: =+K42-I42 ->  | O42: =VLOOKUP($A$5,'RECAP SECT'!$G$6:$CY$312,133,FALSE) ->  | S42: =VLOOKUP($A$5,#REF!,123,FALSE) ->  | U42: =+S42-I42 -> 
B43: Economie opt'in | C43: 3% | E43: ='RECAP SECT'!#REF! ->  | G43: =VLOOKUP($A$5,'RECAP SECT'!$G$6:$CY$312,135,FALSE) ->  | I43: =VLOOKUP($A$5,'RECAP SECT'!$G$6:$CY$312,136,FALSE) ->  | K43: =VLOOKUP($A$5,#REF!,136,FALSE) ->  | M43: =+K43-I43 ->  | O43: =VLOOKUP($A$5,'RECAP SECT'!$G$6:$CY$312,137,FALSE) -> 
B44: Remises commerciales | C44: 3% | E44: ='RECAP SECT'!#REF! ->  | G44: =VLOOKUP($A$5,'RECAP SECT'!$G$6:$CY$312,139,FALSE) ->  | I44: =VLOOKUP($A$5,'RECAP SECT'!$G$6:$CY$312,140,FALSE) ->  | K44: =VLOOKUP($A$5,#REF!,140,FALSE) ->  | M44: =+K44-I44 ->  | O44: =VLOOKUP($A$5,'RECAP SECT'!$G$6:$CY$312,141,FALSE) ->  | S44: =VLOOKUP($A$5,#REF!,126,FALSE) ->  | U44: =+S44-I44 -> 
A46: CRITERE Satisfaction Clients | C46: 15% | O46: =VLOOKUP($A$5,'RECAP SECT'!$G$6:$CY$312,159,FALSE) -> 
B47: Objectifs NPS* | C47: 8% | E47: ='RECAP SECT'!K4 -> 26 | G47: =VLOOKUP($A$5,'RECAP SECT'!$G$6:$CY$312,151,FALSE) ->  | I47: =VLOOKUP($A$5,'RECAP SECT'!$G$6:$CY$312,152,FALSE) ->  | K47: =VLOOKUP($A$5,#REF!,152,FALSE) ->  | M47: =+K47-I47 ->  | O47: =VLOOKUP($A$5,'RECAP SECT'!$G$6:$CY$312,153,FALSE) ->  | S47: =VLOOKUP($A$5,#REF!,138,FALSE) ->  | U47: =+S47-I47 -> 
B48: Enquête Qualité Haute Définition | C48: 7% | E48: ='RECAP SECT'!N4 -> 74% | G48: =VLOOKUP($A$5,'RECAP SECT'!$G$6:$CY$312,154,FALSE) ->  | I48: =VLOOKUP($A$5,'RECAP SECT'!$G$6:$CY$312,155,FALSE) ->  | K48: =VLOOKUP($A$5,#REF!,155,FALSE) ->  | M48: =+K48-I48 ->  | O48: =VLOOKUP($A$5,'RECAP SECT'!$G$6:$CY$312,156,FALSE) ->  | S48: =VLOOKUP($A$5,#REF!,141,FALSE) ->  | U48: =+S48-I48 -> 

Sheet SE_TOTAL
B1: Accueil | F1: BAROMETRE BDD - TERRITOIRES
F2: TOTAL GENERAL
F3: =ACCUEIL!F7 -> 2022-08-07
F7: TOTAL GENERAL | I7: Total Satisfaction Clients | L7: Total Bancarisation | O7: Total Epargne | R7: Total IARD Prévoyance | U7: Total Crédits
G8: coef | H8: =K8+N8+Q8+T8+W8 -> 100% | J8: coef | K8: =SE_SATISFACTION!N8 -> 20% | M8: coef | N8: =SE_BANCA!P8 -> 20% | P8: coef | Q8: =SE_EPARGNE!P8 -> 20% | S8: coef | T8: =SE_IARD!P8 -> 20% | V8: coef | W8: =SE_CREDIT!T8 -> 20%
B9: Direction | C9: eds | D9: Territoire | E9: ="ETP perf "&DATEMAJ!$C$28 -> ETP perf 07-août | F9: Moyenne ecart au 1er | G9: % Ecart au 1er | H9: Rang CEGEE | I9: Moyenne ecart au 1er | J9: % Ecart au 1er | K9: Rang CEGEE | L9: Moyenne ecart au 1er | M9: % Ecart au 1er | N9: Rang CEGEE | O9: Moyenne ecart au 1er | P9: % Ecart au 1er | Q9: Rang CEGEE | R9: Moyenne ecart au 1er | S9: % Ecart au 1er | T9: Rang CEGEE | U9: Moyenne ecart au 1er | V9: % Ecart au 1er | W9: Rang CEGEE
A10: 50 | B10: MARNE-ARDENNES | C10: 11 | D10: REIMS | E10: 68.3 | F10: 10% | G10: 0% | H10: 1 | I10: 27% | J10: 27% | K10: 7 | L10: 2% | M10: 0% | N10: 1 | O10: 23% | P10: 16% | Q10: 6 | R10: 8% | S10: 6% | T10: 2 | U10: 6% | V10: 0% | W10: 1
A11: 50 | B11: MOSELLE | C11: 44 | D11: MOSELLE NORD | E11: 57.6 | F11: 16% | G11: 6% | H11: 2 | I11: 43% | J11: 43% | K11: 13 | L11: 4% | M11: 2% | N11: 2 | O11: 43% | P11: 35% | Q11: 13 | R11: 2% | S11: 0% | T11: 1 | U11: 6% | V11: 0% | W11: 2
A12: 262 | B12: MARNE-ARDENNES | C12: 6 | D12: CHALONS EN CHAMPAGNE | E12: 38.1 | F12: 18% | G12: 8% | H12: 3 | I12: 0% | J12: 0% | K12: 1 | L12: 25% | M12: 23% | N12: 4 | O12: 35% | P12: 27% | Q12: 9 | R12: 17% | S12: 15% | T12: 4 | U12: 28% | V12: 22% | W12: 7
A13: 262 | B13: MARNE-ARDENNES | C13: 2 | D13: CHARLEVILLE MEZIERES | E13: 49.0 | F13: 20% | G13: 10% | H13: 4 | I13: 28% | J13: 28% | K13: 8 | L13: 37% | M13: 36% | N13: 9 | O13: 12% | P13: 4% | Q13: 2 | R13: 16% | S13: 14% | T13: 3 | U13: 22% | V13: 16% | W13: 5
A14: 262 | B14: MOSELLE | C14: 42 | D14: MOSELLE EST | E14: 60.3 | F14: 21% | G14: 11% | H14: 5 | I14: 16% | J14: 16% | K14: 5 | L14: 23% | M14: 21% | N14: 3 | O14: 38% | P14: 30% | Q14: 10 | R14: 18% | S14: 16% | T14: 5 | U14: 26% | V14: 19% | W14: 6
A15: 264 | B15: MOSELLE | C15: 45 | D15: METZ | E15: 73.0 | F15: 24% | G15: 14% | H15: 6 | I15: 30% | J15: 30% | K15: 9 | L15: 38% | M15: 36% | N15: 10 | O15: 8% | P15: 0% | Q15: 1 | R15: 31% | S15: 29% | T15: 9 | U15: 29% | V15: 23% | W15: 8
A16: 264 | B16: AUBE HAUTE MARNE | C16: 21 | D16: CHAUMONT | E16: 33.9 | F16: 24% | G16: 14% | H16: 7 | I16: 22% | J16: 22% | K16: 6 | L16: 43% | M16: 41% | N16: 14 | O16: 14% | P16: 6% | Q16: 4 | R16: 23% | S16: 21% | T16: 8 | U16: 35% | V16: 29% | W16: 10
A17: 30 | B17: BAS-RHIN | C17: 5006 | D17: STRASBOURG | E17: 65.4 | F17: 24% | G17: 14% | H17: 8 | I17: 37% | J17: 37% | K17: 10 | L17: 26% | M17: 25% | N17: 5 | O17: 17% | P17: 10% | Q17: 5 | R17: 18% | S17: 16% | T17: 6 | U17: 38% | V17: 32% | W17: 11
A18: 30 | B18: MEURTHE ET MOSELLE MEUSE | C18: 26 | D18: NANCY | E18: 55.5 | F18: 25% | G18: 15% | H18: 9 | I18: 37% | J18: 37% | K18: 12 | L18: 35% | M18: 33% | N18: 8 | O18: 12% | P18: 5% | Q18: 3 | R18: 35% | S18: 34% | T18: 10 | U18: 20% | V18: 14% | W18: 3
A19: 30 | B19: MEURTHE ET MOSELLE MEUSE | C19: 27 | D19: PONT A MOUSSON | E19: 60.0 | F19: 29% | G19: 19% | H19: 10 | I19: 57% | J19: 57% | K19: 14 | L19: 34% | M19: 32% | N19: 6 | O19: 29% | P19: 21% | Q19: 8 | R19: 19% | S19: 18% | T19: 7 | U19: 21% | V19: 15% | W19: 4
A20: 110 | B20: VOSGES | C20: 57 | D20: EPINAL | E20: 53.1 | F20: 29% | G20: 19% | H20: 11 | I20: 9% | J20: 9% | K20: 3 | L20: 40% | M20: 38% | N20: 12 | O20: 28% | P20: 20% | Q20: 7 | R20: 43% | S20: 42% | T20: 13 | U20: 41% | V20: 35% | W20: 12
A21: 110 | B21: MEURTHE ET MOSELLE MEUSE | C21: 31 | D21: VERDUN | E21: 48.1 | F21: 29% | G21: 20% | H21: 12 | I21: 13% | J21: 13% | K21: 4 | L21: 34% | M21: 33% | N21: 7 | O21: 49% | P21: 41% | Q21: 15 | R21: 36% | S21: 35% | T21: 11 | U21: 31% | V21: 24% | W21: 9
A22: 110 | B22: VOSGES | C22: 55 | D22: SAINT DIE | E22: 40.1 | F22: 34% | G22: 25% | H22: 13 | I22: 6% | J22: 6% | K22: 2 | L22: 55% | M22: 53% | N22: 15 | O22: 41% | P22: 33% | Q22: 12 | R22: 46% | S22: 44% | T22: 15 | U22: 41% | V22: 35% | W22: 13
A23: 160 | B23: BAS-RHIN | C23: 5101 | D23: SELESTAT | E23: 51.1 | F23: 41% | G23: 31% | H23: 14 | I23: 57% | J23: 57% | K23: 15 | L23: 38% | M23: 37% | N23: 11 | O23: 39% | P23: 32% | Q23: 11 | R23: 42% | S23: 41% | T23: 12 | U23: 45% | V23: 39% | W23: 15
A24: 160 | B24: BAS-RHIN | C24: 5060 | D24: HAGUENAU | E24: 57.0 | F24: 41% | G24: 31% | H24: 15 | I24: 37% | J24: 37% | K24: 11 | L24: 42% | M24: 40% | N24: 13 | O24: 46% | P24: 39% | Q24: 14 | R24: 48% | S24: 46% | T24: 16 | U24: 49% | V24: 43% | W24: 17
A25: 160 | B25: HAUT-RHIN | C25: 5130 | D25: COLMAR | E25: 47.3 | F25: 54% | G25: 45% | H25: 16 | I25: 59% | J25: 59% | K25: 16 | L25: 60% | M25: 58% | N25: 17 | O25: 64% | P25: 56% | Q25: 16 | R25: 56% | S25: 54% | T25: 17 | U25: 51% | V25: 45% | W25: 18
A26: 80 | B26: AUBE HAUTE MARNE | C26: 14 | D26: TROYES | E26: 54.2 | F26: 55% | G26: 45% | H26: 17 | I26: 67% | J26: 67% | K26: 18 | L26: 57% | M26: 55% | N26: 16 | O26: 80% | P26: 72% | Q26: 17 | R26: 44% | S26: 42% | T26: 14 | U26: 42% | V26: 36% | W26: 14
A27: 80 | B27: HAUT-RHIN | C27: 5169 | D27: MULHOUSE | E27: 45.7 | F27: 63% | G27: 53% | H27: 18 | I27: 63% | J27: 63% | K27: 17 | L27: 70% | M27: 69% | N27: 18 | O27: 85% | P27: 77% | Q27: 18 | R27: 68% | S27: 66% | T27: 18 | U27: 47% | V27: 41% | W27: 16
A28: Total CEGEE Directions Régionales | E28: =SUM(E10:E27) -> 958

Sheet SE_BANCA
B1: Accueil | F1: BAROMETRE BDD - TERRITOIRES
F2: BANCARISATION
F3: =ACCUEIL!F7 -> 2022-08-07
F7: Ventes Nettes produits pondérés | J7: Ventes sur client non détenteur de l’univers | N7: Total Bancarisation
F8: =DATEMAJ!C8 -> au 07/08 | H8: coef | I8: ='RECAP DIRCOM'!AA4 -> 12% | J8: =DATEMAJ!C9 -> au 07/08 | L8: coef | M8: ='RECAP DIRCOM'!AE4 -> 8% | O8: coef | P8: ='RECAP DIRCOM'!AH4 -> 20%
B9: Direction | C9: eds | D9: Territoire | E9: ="ETP perf "&DATEMAJ!$C$28 -> ETP perf 07-août | F9: VN | G9: VN / ETP | H9: % Ecart au 1er | I9: Rang | J9: VB | K9: VB / ETP | L9: % Ecart au 1er | M9: Rang | N9: Moyenne ecart au 1er | O9: % Ecart au 1er | P9: Rang CEGEE
A10: 50 | B10: AUBE HAUTE MARNE | C10: 21 | D10: CHAUMONT | E10: =VLOOKUP($C10,'RECAP SECT'!$G$6:$CU$253,3,FALSE) -> 33.9 | F10: =VLOOKUP($C10,'RECAP SECT'!$G$6:$CU$253,18,FALSE) -> 516 | G10: =VLOOKUP($C10,'RECAP SECT'!$G$6:$CU$253,19,FALSE) -> 15.20 | H10: =VLOOKUP($C10,'RECAP SECT'!$G$6:$CU$253,20,FALSE) -> 51% | I10: =VLOOKUP($C10,'RECAP SECT'!$G$6:$CU$253,21,FALSE) -> 14 | J10: =VLOOKUP($C10,'RECAP SECT'!$G$6:$CU$253,22,FALSE) -> 1,568 | K10: =VLOOKUP($C10,'RECAP SECT'!$G$6:$CU$253,23,FALSE) -> 46.21 | L10: =VLOOKUP($C10,'RECAP SECT'!$G$6:$CU$253,24,FALSE) -> 31% | M10: =VLOOKUP($C10,'RECAP SECT'!$G$6:$CU$253,25,FALSE) -> 11 | N10: =VLOOKUP($C10,'RECAP SECT'!$G$6:$CU$253,26,FALSE) -> 43% | O10: =VLOOKUP($C10,'RECAP SECT'!$G$6:$CU$253,27,FALSE) -> 41% | P10: =VLOOKUP($C10,'RECAP SECT'!$G$6:$CU$253,28,FALSE) -> 14
A11: 50 | B11: AUBE HAUTE MARNE | C11: 14 | D11: TROYES | E11: =VLOOKUP($C11,'RECAP SECT'!$G$6:$CU$253,3,FALSE) -> 54.2 | F11: =VLOOKUP($C11,'RECAP SECT'!$G$6:$CU$253,18,FALSE) -> 455 | G11: =VLOOKUP($C11,'RECAP SECT'!$G$6:$CU$253,19,FALSE) -> 8.39 | H11: =VLOOKUP($C11,'RECAP SECT'!$G$6:$CU$253,20,FALSE) -> 73% | I11: =VLOOKUP($C11,'RECAP SECT'!$G$6:$CU$253,21,FALSE) -> 17 | J11: =VLOOKUP($C11,'RECAP SECT'!$G$6:$CU$253,22,FALSE) -> 2,463 | K11: =VLOOKUP($C11,'RECAP SECT'!$G$6:$CU$253,23,FALSE) -> 45.43 | L11: =VLOOKUP($C11,'RECAP SECT'!$G$6:$CU$253,24,FALSE) -> 32% | M11: =VLOOKUP($C11,'RECAP SECT'!$G$6:$CU$253,25,FALSE) -> 12 | N11: =VLOOKUP($C11,'RECAP SECT'!$G$6:$CU$253,26,FALSE) -> 57% | O11: =VLOOKUP($C11,'RECAP SECT'!$G$6:$CU$253,27,FALSE) -> 55% | P11: =VLOOKUP($C11,'RECAP SECT'!$G$6:$CU$253,28,FALSE) -> 16
A12: 262 | B12: BAS-RHIN | C12: 5060 | D12: HAGUENAU | E12: =VLOOKUP($C12,'RECAP SECT'!$G$6:$CU$253,3,FALSE) -> 57.0 | F12: =VLOOKUP($C12,'RECAP SECT'!$G$6:$CU$253,18,FALSE) -> 1,008 | G12: =VLOOKUP($C12,'RECAP SECT'!$G$6:$CU$253,19,FALSE) -> 17.71 | H12: =VLOOKUP($C12,'RECAP SECT'!$G$6:$CU$253,20,FALSE) -> 43% | I12: =VLOOKUP($C12,'RECAP SECT'!$G$6:$CU$253,21,FALSE) -> 8 | J12: =VLOOKUP($C12,'RECAP SECT'!$G$6:$CU$253,22,FALSE) -> 2,258 | K12: =VLOOKUP($C12,'RECAP SECT'!$G$6:$CU$253,23,FALSE) -> 39.65 | L12: =VLOOKUP($C12,'RECAP SECT'!$G$6:$CU$253,24,FALSE) -> 41% | M12: =VLOOKUP($C12,'RECAP SECT'!$G$6:$CU$253,25,FALSE) -> 16 | N12: =VLOOKUP($C12,'RECAP SECT'!$G$6:$CU$253,26,FALSE) -> 42% | O12: =VLOOKUP($C12,'RECAP SECT'!$G$6:$CU$253,27,FALSE) -> 40% | P12: =VLOOKUP($C12,'RECAP SECT'!$G$6:$CU$253,28,FALSE) -> 13
A13: 262 | B13: BAS-RHIN | C13: 5101 | D13: SELESTAT | E13: =VLOOKUP($C13,'RECAP SECT'!$G$6:$CU$253,3,FALSE) -> 51.1 | F13: =VLOOKUP($C13,'RECAP SECT'!$G$6:$CU$253,18,FALSE) -> 970 | G13: =VLOOKUP($C13,'RECAP SECT'!$G$6:$CU$253,19,FALSE) -> 18.97 | H13: =VLOOKUP($C13,'RECAP SECT'!$G$6:$CU$253,20,FALSE) -> 39% | I13: =VLOOKUP($C13,'RECAP SECT'!$G$6:$CU$253,21,FALSE) -> 6 | J13: =VLOOKUP($C13,'RECAP SECT'!$G$6:$CU$253,22,FALSE) -> 2,122 | K13: =VLOOKUP($C13,'RECAP SECT'!$G$6:$CU$253,23,FALSE) -> 41.51 | L13: =VLOOKUP($C13,'RECAP SECT'!$G$6:$CU$253,24,FALSE) -> 38% | M13: =VLOOKUP($C13,'RECAP SECT'!$G$6:$CU$253,25,FALSE) -> 15 | N13: =VLOOKUP($C13,'RECAP SECT'!$G$6:$CU$253,26,FALSE) -> 38% | O13: =VLOOKUP($C13,'RECAP SECT'!$G$6:$CU$253,27,FALSE) -> 37% | P13: =VLOOKUP($C13,'RECAP SECT'!$G$6:$CU$253,28,FALSE) -> 11
A14: 262 | B14: BAS-RHIN | C14: 5006 | D14: STRASBOURG | E14: =VLOOKUP($C14,'RECAP SECT'!$G$6:$CU$253,3,FALSE) -> 65.4 | F14: =VLOOKUP($C14,'RECAP SECT'!$G$6:$CU$253,18,FALSE) -> 1,313 | G14: =VLOOKUP($C14,'RECAP SECT'!$G$6:$CU$253,19,FALSE) -> 20.07 | H14: =VLOOKUP($C14,'RECAP SECT'!$G$6:$CU$253,20,FALSE) -> 35% | I14: =VLOOKUP($C14,'RECAP SECT'!$G$6:$CU$253,21,FALSE) -> 5 | J14: =VLOOKUP($C14,'RECAP SECT'!$G$6:$CU$253,22,FALSE) -> 3,807 | K14: =VLOOKUP($C14,'RECAP SECT'!$G$6:$CU$253,23,FALSE) -> 58.19 | L14: =VLOOKUP($C14,'RECAP SECT'!$G$6:$CU$253,24,FALSE) -> 13% | M14: =VLOOKUP($C14,'RECAP SECT'!$G$6:$CU$253,25,FALSE) -> 3 | N14: =VLOOKUP($C14,'RECAP SECT'!$G$6:$CU$253,26,FALSE) -> 26% | O14: =VLOOKUP($C14,'RECAP SECT'!$G$6:$CU$253,27,FALSE) -> 25% | P14: =VLOOKUP($C14,'RECAP SECT'!$G$6:$CU$253,28,FALSE) -> 5
A15: 264 | B15: HAUT-RHIN | C15: 5130 | D15: COLMAR | E15: =VLOOKUP($C15,'RECAP SECT'!$G$6:$CU$253,3,FALSE) -> 47.3 | F15: =VLOOKUP($C15,'RECAP SECT'!$G$6:$CU$253,18,FALSE) -> 444 | G15: =VLOOKUP($C15,'RECAP SECT'!$G$6:$CU$253,19,FALSE) -> 9.37 | H15: =VLOOKUP($C15,'RECAP SECT'!$G$6:$CU$253,20,FALSE) -> 70% | I15: =VLOOKUP($C15,'RECAP SECT'!$G$6:$CU$253,21,FALSE) -> 16 | J15: =VLOOKUP($C15,'RECAP SECT'!$G$6:$CU$253,22,FALSE) -> 1,722 | K15: =VLOOKUP($C15,'RECAP SECT'!$G$6:$CU$253,23,FALSE) -> 36.38 | L15: =VLOOKUP($C15,'RECAP SECT'!$G$6:$CU$253,24,FALSE) -> 46% | M15: =VLOOKUP($C15,'RECAP SECT'!$G$6:$CU$253,25,FALSE) -> 18 | N15: =VLOOKUP($C15,'RECAP SECT'!$G$6:$CU$253,26,FALSE) -> 60% | O15: =VLOOKUP($C15,'RECAP SECT'!$G$6:$CU$253,27,FALSE) -> 58% | P15: =VLOOKUP($C15,'RECAP SECT'!$G$6:$CU$253,28,FALSE) -> 17
A16: 264 | B16: HAUT-RHIN | C16: 5169 | D16: MULHOUSE | E16: =VLOOKUP($C16,'RECAP SECT'!$G$6:$CU$253,3,FALSE) -> 45.7 | F16: =VLOOKUP($C16,'RECAP SECT'!$G$6:$CU$253,18,FALSE) -> 108 | G16: =VLOOKUP($C16,'RECAP SECT'!$G$6:$CU$253,19,FALSE) -> 2.36 | H16: =VLOOKUP($C16,'RECAP SECT'!$G$6:$CU$253,20,FALSE) -> 92% | I16: =VLOOKUP($C16,'RECAP SECT'!$G$6:$CU$253,21,FALSE) -> 18 | J16: =VLOOKUP($C16,'RECAP SECT'!$G$6:$CU$253,22,FALSE) -> 1,927 | K16: =VLOOKUP($C16,'RECAP SECT'!$G$6:$CU$253,23,FALSE) -> 42.19 | L16: =VLOOKUP($C16,'RECAP SECT'!$G$6:$CU$253,24,FALSE) -> 37% | M16: =VLOOKUP($C16,'RECAP SECT'!$G$6:$CU$253,25,FALSE) -> 14 | N16: =VLOOKUP($C16,'RECAP SECT'!$G$6:$CU$253,26,FALSE) -> 70% | O16: =VLOOKUP($C16,'RECAP SECT'!$G$6:$CU$253,27,FALSE) -> 69% | P16: =VLOOKUP($C16,'RECAP SECT'!$G$6:$CU$253,28,FALSE) -> 18
A17: 30 | B17: MARNE-ARDENNES | C17: 6 | D17: CHALONS EN CHAMPAGNE | E17: =VLOOKUP($C17,'RECAP SECT'!$G$6:$CU$253,3,FALSE) -> 38.1 | F17: =VLOOKUP($C17,'RECAP SECT'!$G$6:$CU$253,18,FALSE) -> 910 | G17: =VLOOKUP($C17,'RECAP SECT'!$G$6:$CU$253,19,FALSE) -> 23.88 | H17: =VLOOKUP($C17,'RECAP SECT'!$G$6:$CU$253,20,FALSE) -> 23% | I17: =VLOOKUP($C17,'RECAP SECT'!$G$6:$CU$253,21,FALSE) -> 3 | J17: =VLOOKUP($C17,'RECAP SECT'!$G$6:$CU$253,22,FALSE) -> 1,843 | K17: =VLOOKUP($C17,'RECAP SECT'!$G$6:$CU$253,23,FALSE) -> 48.37 | L17: =VLOOKUP($C17,'RECAP SECT'!$G$6:$CU$253,24,FALSE) -> 28% | M17: =VLOOKUP($C17,'RECAP SECT'!$G$6:$CU$253,25,FALSE) -> 10 | N17: =VLOOKUP($C17,'RECAP SECT'!$G$6:$CU$253,26,FALSE) -> 25% | O17: =VLOOKUP($C17,'RECAP SECT'!$G$6:$CU$253,27,FALSE) -> 23% | P17: =VLOOKUP($C17,'RECAP SECT'!$G$6:$CU$253,28,FALSE) -> 4
A18: 30 | B18: MARNE-ARDENNES | C18: 2 | D18: CHARLEVILLE MEZIERES | E18: =VLOOKUP($C18,'RECAP SECT'!$G$6:$CU$253,3,FALSE) -> 49.0 | F18: =VLOOKUP($C18,'RECAP SECT'!$G$6:$CU$253,18,FALSE) -> 766 | G18: =VLOOKUP($C18,'RECAP SECT'!$G$6:$CU$253,19,FALSE) -> 15.62 | H18: =VLOOKUP($C18,'RECAP SECT'!$G$6:$CU$253,20,FALSE) -> 50% | I18: =VLOOKUP($C18,'RECAP SECT'!$G$6:$CU$253,21,FALSE) -> 13 | J18: =VLOOKUP($C18,'RECAP SECT'!$G$6:$CU$253,22,FALSE) -> 2,657 | K18: =VLOOKUP($C18,'RECAP SECT'!$G$6:$CU$253,23,FALSE) -> 54.22 | L18: =VLOOKUP($C18,'RECAP SECT'!$G$6:$CU$253,24,FALSE) -> 19% | M18: =VLOOKUP($C18,'RECAP SECT'!$G$6:$CU$253,25,FALSE) -> 5 | N18: =VLOOKUP($C18,'RECAP SECT'!$G$6:$CU$253,26,FALSE) -> 37% | O18: =VLOOKUP($C18,'RECAP SECT'!$G$6:$CU$253,27,FALSE) -> 36% | P18: =VLOOKUP($C18,'RECAP SECT'!$G$6:$CU$253,28,FALSE) -> 9
A19: 30 | B19: MARNE-ARDENNES | C19: 11 | D19: REIMS | E19: =VLOOKUP($C19,'RECAP SECT'!$G$6:$CU$253,3,FALSE) -> 68.3 | F19: =VLOOKUP($C19,'RECAP SECT'!$G$6:$CU$253,18,FALSE) -> 2,056 | G19: =VLOOKUP($C19,'RECAP SECT'!$G$6:$CU$253,19,FALSE) -> 30.08 | H19: =VLOOKUP($C19,'RECAP SECT'!$G$6:$CU$253,20,FALSE) -> 3% | I19: =VLOOKUP($C19,'RECAP SECT'!$G$6:$CU$253,21,FALSE) -> 2 | J19: =VLOOKUP($C19,'RECAP SECT'!$G$6:$CU$253,22,FALSE) -> 4,580 | K19: =VLOOKUP($C19,'RECAP SECT'!$G$6:$CU$253,23,FALSE) -> 67.02 | L19: =VLOOKUP($C19,'RECAP SECT'!$G$6:$CU$253,24,FALSE) -> 0% | M19: =VLOOKUP($C19,'RECAP SECT'!$G$6:$CU$253,25,FALSE) -> 1 | N19: =VLOOKUP($C19,'RECAP SECT'!$G$6:$CU$253,26,FALSE) -> 2% | O19: =VLOOKUP($C19,'RECAP SECT'!$G$6:$CU$253,27,FALSE) -> 0% | P19: =VLOOKUP($C19,'RECAP SECT'!$G$6:$CU$253,28,FALSE) -> 1
A20: 110 | B20: MEURTHE ET MOSELLE MEUSE | C20: 26 | D20: NANCY | E20: =VLOOKUP($C20,'RECAP SECT'!$G$6:$CU$253,3,FALSE) -> 55.5 | F20: =VLOOKUP($C20,'RECAP SECT'!$G$6:$CU$253,18,FALSE) -> 954 | G20: =VLOOKUP($C20,'RECAP SECT'!$G$6:$CU$253,19,FALSE) -> 17.19 | H20: =VLOOKUP($C20,'RECAP SECT'!$G$6:$CU$253,20,FALSE) -> 44% | I20: =VLOOKUP($C20,'RECAP SECT'!$G$6:$CU$253,21,FALSE) -> 11 | J20: =VLOOKUP($C20,'RECAP SECT'!$G$6:$CU$253,22,FALSE) -> 2,943 | K20: =VLOOKUP($C20,'RECAP SECT'!$G$6:$CU$253,23,FALSE) -> 53.04 | L20: =VLOOKUP($C20,'RECAP SECT'!$G$6:$CU$253,24,FALSE) -> 21% | M20: =VLOOKUP($C20,'RECAP SECT'!$G$6:$CU$253,25,FALSE) -> 7 | N20: =VLOOKUP($C20,'RECAP SECT'!$G$6:$CU$253,26,FALSE) -> 35% | O20: =VLOOKUP($C20,'RECAP SECT'!$G$6:$CU$253,27,FALSE) -> 33% | P20: =VLOOKUP($C20,'RECAP SECT'!$G$6:$CU$253,28,FALSE) -> 8
A21: 110 | B21: MEURTHE ET MOSELLE MEUSE | C21: 27 | D21: PONT A MOUSSON | E21: =VLOOKUP($C21,'RECAP SECT'!$G$6:$CU$253,3,FALSE) -> 60.0 | F21: =VLOOKUP($C21,'RECAP SECT'!$G$6:$CU$253,18,FALSE) -> 1,031 | G21: =VLOOKUP($C21,'RECAP SECT'!$G$6:$CU$253,19,FALSE) -> 17.20 | H21: =VLOOKUP($C21,'RECAP SECT'!$G$6:$CU$253,20,FALSE) -> 44% | I21: =VLOOKUP($C21,'RECAP SECT'!$G$6:$CU$253,21,FALSE) -> 10 | J21: =VLOOKUP($C21,'RECAP SECT'!$G$6:$CU$253,22,FALSE) -> 3,267 | K21: =VLOOKUP($C21,'RECAP SECT'!$G$6:$CU$253,23,FALSE) -> 54.47 | L21: =VLOOKUP($C21,'RECAP SECT'!$G$6:$CU$253,24,FALSE) -> 19% | M21: =VLOOKUP($C21,'RECAP SECT'!$G$6:$CU$253,25,FALSE) -> 4 | N21: =VLOOKUP($C21,'RECAP SECT'!$G$6:$CU$253,26,FALSE) -> 34% | O21: =VLOOKUP($C21,'RECAP SECT'!$G$6:$CU$253,27,FALSE) -> 32% | P21: =VLOOKUP($C21,'RECAP SECT'!$G$6:$CU$253,28,FALSE) -> 6
A22: 110 | B22: MEURTHE ET MOSELLE MEUSE | C22: 31 | D22: VERDUN | E22: =VLOOKUP($C22,'RECAP SECT'!$G$6:$CU$253,3,FALSE) -> 48.1 | F22: =VLOOKUP($C22,'RECAP SECT'!$G$6:$CU$253,18,FALSE) -> 900 | G22: =VLOOKUP($C22,'RECAP SECT'!$G$6:$CU$253,19,FALSE) -> 18.72 | H22: =VLOOKUP($C22,'RECAP SECT'!$G$6:$CU$253,20,FALSE) -> 40% | I22: =VLOOKUP($C22,'RECAP SECT'!$G$6:$CU$253,21,FALSE) -> 7 | J22: =VLOOKUP($C22,'RECAP SECT'!$G$6:$CU$253,22,FALSE) -> 2,366 | K22: =VLOOKUP($C22,'RECAP SECT'!$G$6:$CU$253,23,FALSE) -> 49.22 | L22: =VLOOKUP($C22,'RECAP SECT'!$G$6:$CU$253,24,FALSE) -> 27% | M22: =VLOOKUP($C22,'RECAP SECT'!$G$6:$CU$253,25,FALSE) -> 9 | N22: =VLOOKUP($C22,'RECAP SECT'!$G$6:$CU$253,26,FALSE) -> 34% | O22: =VLOOKUP($C22,'RECAP SECT'!$G$6:$CU$253,27,FALSE) -> 33% | P22: =VLOOKUP($C22,'RECAP SECT'!$G$6:$CU$253,28,FALSE) -> 7
A23: 160 | B23: MOSELLE | C23: 45 | D23: METZ | E23: =VLOOKUP($C23,'RECAP SECT'!$G$6:$CU$253,3,FALSE) -> 73.0 | F23: =VLOOKUP($C23,'RECAP SECT'!$G$6:$CU$253,18,FALSE) -> 1,232 | G23: =VLOOKUP($C23,'RECAP SECT'!$G$6:$CU$253,19,FALSE) -> 16.87 | H23: =VLOOKUP($C23,'RECAP SECT'!$G$6:$CU$253,20,FALSE) -> 45% | I23: =VLOOKUP($C23,'RECAP SECT'!$G$6:$CU$253,21,FALSE) -> 12 | J23: =VLOOKUP($C23,'RECAP SECT'!$G$6:$CU$253,22,FALSE) -> 3,598 | K23: =VLOOKUP($C23,'RECAP SECT'!$G$6:$CU$253,23,FALSE) -> 49.26 | L23: =VLOOKUP($C23,'RECAP SECT'!$G$6:$CU$253,24,FALSE) -> 26% | M23: =VLOOKUP($C23,'RECAP SECT'!$G$6:$CU$253,25,FALSE) -> 8 | N23: =VLOOKUP($C23,'RECAP SECT'!$G$6:$CU$253,26,FALSE) -> 38% | O23: =VLOOKUP($C23,'RECAP SECT'!$G$6:$CU$253,27,FALSE) -> 36% | P23: =VLOOKUP($C23,'RECAP SECT'!$G$6:$CU$253,28,FALSE) -> 10
A24: 160 | B24: MOSELLE | C24: 42 | D24: MOSELLE EST | E24: =VLOOKUP($C24,'RECAP SECT'!$G$6:$CU$253,3,FALSE) -> 60.3 | F24: =VLOOKUP($C24,'RECAP SECT'!$G$6:$CU$253,18,FALSE) -> 1,394 | G24: =VLOOKUP($C24,'RECAP SECT'!$G$6:$CU$253,19,FALSE) -> 23.11 | H24: =VLOOKUP($C24,'RECAP SECT'!$G$6:$CU$253,20,FALSE) -> 25% | I24: =VLOOKUP($C24,'RECAP SECT'!$G$6:$CU$253,21,FALSE) -> 4 | J24: =VLOOKUP($C24,'RECAP SECT'!$G$6:$CU$253,22,FALSE) -> 3,256 | K24: =VLOOKUP($C24,'RECAP SECT'!$G$6:$CU$253,23,FALSE) -> 53.98 | L24: =VLOOKUP($C24,'RECAP SECT'!$G$6:$CU$253,24,FALSE) -> 19% | M24: =VLOOKUP($C24,'RECAP SECT'!$G$6:$CU$253,25,FALSE) -> 6 | N24: =VLOOKUP($C24,'RECAP SECT'!$G$6:$CU$253,26,FALSE) -> 23% | O24: =VLOOKUP($C24,'RECAP SECT'!$G$6:$CU$253,27,FALSE) -> 21% | P24: =VLOOKUP($C24,'RECAP SECT'!$G$6:$CU$253,28,FALSE) -> 3
A25: 160 | B25: MOSELLE | C25: 44 | D25: MOSELLE NORD | E25: =VLOOKUP($C25,'RECAP SECT'!$G$6:$CU$253,3,FALSE) -> 57.6 | F25: =VLOOKUP($C25,'RECAP SECT'!$G$6:$CU$253,18,FALSE) -> 1,784 | G25: =VLOOKUP($C25,'RECAP SECT'!$G$6:$CU$253,19,FALSE) -> 30.95 | H25: =VLOOKUP($C25,'RECAP SECT'!$G$6:$CU$253,20,FALSE) -> 0% | I25: =VLOOKUP($C25,'RECAP SECT'!$G$6:$CU$253,21,FALSE) -> 1 | J25: =VLOOKUP($C25,'RECAP SECT'!$G$6:$CU$253,22,FALSE) -> 3,492 | K25: =VLOOKUP($C25,'RECAP SECT'!$G$6:$CU$253,23,FALSE) -> 60.59 | L25: =VLOOKUP($C25,'RECAP SECT'!$G$6:$CU$253,24,FALSE) -> 10% | M25: =VLOOKUP($C25,'RECAP SECT'!$G$6:$CU$253,25,FALSE) -> 2 | N25: =VLOOKUP($C25,'RECAP SECT'!$G$6:$CU$253,26,FALSE) -> 4% | O25: =VLOOKUP($C25,'RECAP SECT'!$G$6:$CU$253,27,FALSE) -> 2% | P25: =VLOOKUP($C25,'RECAP SECT'!$G$6:$CU$253,28,FALSE) -> 2
A26: 80 | B26: VOSGES | C26: 57 | D26: EPINAL | E26: =VLOOKUP($C26,'RECAP SECT'!$G$6:$CU$253,3,FALSE) -> 53.1 | F26: =VLOOKUP($C26,'RECAP SECT'!$G$6:$CU$253,18,FALSE) -> 920 | G26: =VLOOKUP($C26,'RECAP SECT'!$G$6:$CU$253,19,FALSE) -> 17.33 | H26: =VLOOKUP($C26,'RECAP SECT'!$G$6:$CU$253,20,FALSE) -> 44% | I26: =VLOOKUP($C26,'RECAP SECT'!$G$6:$CU$253,21,FALSE) -> 9 | J26: =VLOOKUP($C26,'RECAP SECT'!$G$6:$CU$253,22,FALSE) -> 2,378 | K26: =VLOOKUP($C26,'RECAP SECT'!$G$6:$CU$253,23,FALSE) -> 44.79 | L26: =VLOOKUP($C26,'RECAP SECT'!$G$6:$CU$253,24,FALSE) -> 33% | M26: =VLOOKUP($C26,'RECAP SECT'!$G$6:$CU$253,25,FALSE) -> 13 | N26: =VLOOKUP($C26,'RECAP SECT'!$G$6:$CU$253,26,FALSE) -> 40% | O26: =VLOOKUP($C26,'RECAP SECT'!$G$6:$CU$253,27,FALSE) -> 38% | P26: =VLOOKUP($C26,'RECAP SECT'!$G$6:$CU$253,28,FALSE) -> 12
A27: 80 | B27: VOSGES | C27: 55 | D27: SAINT DIE | E27: =VLOOKUP($C27,'RECAP SECT'!$G$6:$CU$253,3,FALSE) -> 40.1 | F27: =VLOOKUP($C27,'RECAP SECT'!$G$6:$CU$253,18,FALSE) -> 470 | G27: =VLOOKUP($C27,'RECAP SECT'!$G$6:$CU$253,19,FALSE) -> 11.71 | H27: =VLOOKUP($C27,'RECAP SECT'!$G$6:$CU$253,20,FALSE) -> 62% | I27: =VLOOKUP($C27,'RECAP SECT'!$G$6:$CU$253,21,FALSE) -> 15 | J27: =VLOOKUP($C27,'RECAP SECT'!$G$6:$CU$253,22,FALSE) -> 1,521 | K27: =VLOOKUP($C27,'RECAP SECT'!$G$6:$CU$253,23,FALSE) -> 37.90 | L27: =VLOOKUP($C27,'RECAP SECT'!$G$6:$CU$253,24,FALSE) -> 43% | M27: =VLOOKUP($C27,'RECAP SECT'!$G$6:$CU$253,25,FALSE) -> 17 | N27: =VLOOKUP($C27,'RECAP SECT'!$G$6:$CU$253,26,FALSE) -> 55% | O27: =VLOOKUP($C27,'RECAP SECT'!$G$6:$CU$253,27,FALSE) -> 53% | P27: =VLOOKUP($C27,'RECAP SECT'!$G$6:$CU$253,28,FALSE) -> 15
A28: Total CEGEE Directions Régionales | E28: =SUM(E10:E27) -> 958

Sheet SE_EPARGNE
B1: Accueil | F1: BAROMETRE BDD - TERRITOIRES
F2: EPARGNE
F3: =ACCUEIL!F7 -> 2022-08-07
F7: Excédent Epargne hors DAV pondéré | J7: Ventes sur client non détenteur de l’univers | N7: Total Epargne
F8: =DATEMAJ!C14 -> au 07/08 | H8: coef | I8: ='RECAP DIRCOM'!AP4 -> 12% | J8: =DATEMAJ!C15 -> au 07/08 | L8: coef | M8: ='RECAP DIRCOM'!AT4 -> 8% | O8: coef | P8: ='RECAP DIRCOM'!AW4 -> 20%
A9: eds | B9: Direction | C9: eds | D9: Territoire | E9: ="ETP perf "&DATEMAJ!$C$28 -> ETP perf 07-août | F9: Excédent | G9: Excédent / ETP | H9: % Ecart au 1er | I9: Rang | J9: VB | K9: VB / ETP | L9: % Ecart au 1er | M9: Rang | N9: Moyenne ecart au 1er | O9: % Ecart au 1er | P9: Rang CEGEE
A10: 50 | B10: AUBE HAUTE MARNE | C10: 21 | D10: CHAUMONT | E10: =VLOOKUP($C10,'RECAP SECT'!$G$6:$CU$253,3,FALSE) -> 33.9 | F10: =VLOOKUP($C10,'RECAP SECT'!$G$6:$CU$253,33,FALSE) -> 12,015 | G10: =VLOOKUP($C10,'RECAP SECT'!$G$6:$CU$253,34,FALSE) -> 354.11 | H10: =VLOOKUP($C10,'RECAP SECT'!$G$6:$CU$253,35,FALSE) -> 1% | I10: =VLOOKUP($C10,'RECAP SECT'!$G$6:$CU$253,36,FALSE) -> 2 | J10: =VLOOKUP($C10,'RECAP SECT'!$G$6:$CU$253,37,FALSE) -> 1,492 | K10: =VLOOKUP($C10,'RECAP SECT'!$G$6:$CU$253,38,FALSE) -> 43.97 | L10: =VLOOKUP($C10,'RECAP SECT'!$G$6:$CU$253,39,FALSE) -> 33% | M10: =VLOOKUP($C10,'RECAP SECT'!$G$6:$CU$253,40,FALSE) -> 9 | N10: =VLOOKUP($C10,'RECAP SECT'!$G$6:$CU$253,41,FALSE) -> 14% | O10: =VLOOKUP($C10,'RECAP SECT'!$G$6:$CU$253,42,FALSE) -> 6% | P10: =VLOOKUP($C10,'RECAP SECT'!$G$6:$CU$253,43,FALSE) -> 4
A11: 50 | B11: AUBE HAUTE MARNE | C11: 14 | D11: TROYES | E11: =VLOOKUP($C11,'RECAP SECT'!$G$6:$CU$253,3,FALSE) -> 54.2 | F11: =VLOOKUP($C11,'RECAP SECT'!$G$6:$CU$253,33,FALSE) -> -1,915 | G11: =VLOOKUP($C11,'RECAP SECT'!$G$6:$CU$253,34,FALSE) -> -35.32 | H11: =VLOOKUP($C11,'RECAP SECT'!$G$6:$CU$253,35,FALSE) -> 110% | I11: =VLOOKUP($C11,'RECAP SECT'!$G$6:$CU$253,36,FALSE) -> 17 | J11: =VLOOKUP($C11,'RECAP SECT'!$G$6:$CU$253,37,FALSE) -> 2,296 | K11: =VLOOKUP($C11,'RECAP SECT'!$G$6:$CU$253,38,FALSE) -> 42.35 | L11: =VLOOKUP($C11,'RECAP SECT'!$G$6:$CU$253,39,FALSE) -> 35% | M11: =VLOOKUP($C11,'RECAP SECT'!$G$6:$CU$253,40,FALSE) -> 13 | N11: =VLOOKUP($C11,'RECAP SECT'!$G$6:$CU$253,41,FALSE) -> 80% | O11: =VLOOKUP($C11,'RECAP SECT'!$G$6:$CU$253,42,FALSE) -> 72% | P11: =VLOOKUP($C11,'RECAP SECT'!$G$6:$CU$253,43,FALSE) -> 17
A12: 262 | B12: BAS-RHIN | C12: 5060 | D12: HAGUENAU | E12: =VLOOKUP($C12,'RECAP SECT'!$G$6:$CU$253,3,FALSE) -> 57.0 | F12: =VLOOKUP($C12,'RECAP SECT'!$G$6:$CU$253,33,FALSE) -> 10,228 | G12: =VLOOKUP($C12,'RECAP SECT'!$G$6:$CU$253,34,FALSE) -> 179.60 | H12: =VLOOKUP($C12,'RECAP SECT'!$G$6:$CU$253,35,FALSE) -> 50% | I12: =VLOOKUP($C12,'RECAP SECT'!$G$6:$CU$253,36,FALSE) -> 12 | J12: =VLOOKUP($C12,'RECAP SECT'!$G$6:$CU$253,37,FALSE) -> 2,202 | K12: =VLOOKUP($C12,'RECAP SECT'!$G$6:$CU$253,38,FALSE) -> 38.67 | L12: =VLOOKUP($C12,'RECAP SECT'!$G$6:$CU$253,39,FALSE) -> 41% | M12: =VLOOKUP($C12,'RECAP SECT'!$G$6:$CU$253,40,FALSE) -> 15 | N12: =VLOOKUP($C12,'RECAP SECT'!$G$6:$CU$253,41,FALSE) -> 46% | O12: =VLOOKUP($C12,'RECAP SECT'!$G$6:$CU$253,42,FALSE) -> 39% | P12: =VLOOKUP($C12,'RECAP SECT'!$G$6:$CU$253,43,FALSE) -> 14
A13: 262 | B13: BAS-RHIN | C13: 5101 | D13: SELESTAT | E13: =VLOOKUP($C13,'RECAP SECT'!$G$6:$CU$253,3,FALSE) -> 51.1 | F13: =VLOOKUP($C13,'RECAP SECT'!$G$6:$CU$253,33,FALSE) -> 10,826 | G13: =VLOOKUP($C13,'RECAP SECT'!$G$6:$CU$253,34,FALSE) -> 211.78 | H13: =VLOOKUP($C13,'RECAP SECT'!$G$6:$CU$253,35,FALSE) -> 41% | I13: =VLOOKUP($C13,'RECAP SECT'!$G$6:$CU$253,36,FALSE) -> 10 | J13: =VLOOKUP($C13,'RECAP SECT'!$G$6:$CU$253,37,FALSE) -> 2,114 | K13: =VLOOKUP($C13,'RECAP SECT'!$G$6:$CU$253,38,FALSE) -> 41.35 | L13: =VLOOKUP($C13,'RECAP SECT'!$G$6:$CU$253,39,FALSE) -> 37% | M13: =VLOOKUP($C13,'RECAP SECT'!$G$6:$CU$253,40,FALSE) -> 14 | N13: =VLOOKUP($C13,'RECAP SECT'!$G$6:$CU$253,41,FALSE) -> 39% | O13: =VLOOKUP($C13,'RECAP SECT'!$G$6:$CU$253,42,FALSE) -> 32% | P13: =VLOOKUP($C13,'RECAP SECT'!$G$6:$CU$253,43,FALSE) -> 11
A14: 262 | B14: BAS-RHIN | C14: 5006 | D14: STRASBOURG | E14: =VLOOKUP($C14,'RECAP SECT'!$G$6:$CU$253,3,FALSE) -> 65.4 | F14: =VLOOKUP($C14,'RECAP SECT'!$G$6:$CU$253,33,FALSE) -> 18,727 | G14: =VLOOKUP($C14,'RECAP SECT'!$G$6:$CU$253,34,FALSE) -> 286.26 | H14: =VLOOKUP($C14,'RECAP SECT'!$G$6:$CU$253,35,FALSE) -> 20% | I14: =VLOOKUP($C14,'RECAP SECT'!$G$6:$CU$253,36,FALSE) -> 5 | J14: =VLOOKUP($C14,'RECAP SECT'!$G$6:$CU$253,37,FALSE) -> 3,710 | K14: =VLOOKUP($C14,'RECAP SECT'!$G$6:$CU$253,38,FALSE) -> 56.71 | L14: =VLOOKUP($C14,'RECAP SECT'!$G$6:$CU$253,39,FALSE) -> 13% | M14: =VLOOKUP($C14,'RECAP SECT'!$G$6:$CU$253,40,FALSE) -> 4 | N14: =VLOOKUP($C14,'RECAP SECT'!$G$6:$CU$253,41,FALSE) -> 17% | O14: =VLOOKUP($C14,'RECAP SECT'!$G$6:$CU$253,42,FALSE) -> 10% | P14: =VLOOKUP($C14,'RECAP SECT'!$G$6:$CU$253,43,FALSE) -> 5
A15: 264 | B15: HAUT-RHIN | C15: 5130 | D15: COLMAR | E15: =VLOOKUP($C15,'RECAP SECT'!$G$6:$CU$253,3,FALSE) -> 47.3 | F15: =VLOOKUP($C15,'RECAP SECT'!$G$6:$CU$253,33,FALSE) -> 4,654 | G15: =VLOOKUP($C15,'RECAP SECT'!$G$6:$CU$253,34,FALSE) -> 98.34 | H15: =VLOOKUP($C15,'RECAP SECT'!$G$6:$CU$253,35,FALSE) -> 73% | I15: =VLOOKUP($C15,'RECAP SECT'!$G$6:$CU$253,36,FALSE) -> 16 | J15: =VLOOKUP($C15,'RECAP SECT'!$G$6:$CU$253,37,FALSE) -> 1,547 | K15: =VLOOKUP($C15,'RECAP SECT'!$G$6:$CU$253,38,FALSE) -> 32.69 | L15: =VLOOKUP($C15,'RECAP SECT'!$G$6:$CU$253,39,FALSE) -> 50% | M15: =VLOOKUP($C15,'RECAP SECT'!$G$6:$CU$253,40,FALSE) -> 18 | N15: =VLOOKUP($C15,'RECAP SECT'!$G$6:$CU$253,41,FALSE) -> 64% | O15: =VLOOKUP($C15,'RECAP SECT'!$G$6:$CU$253,42,FALSE) -> 56% | P15: =VLOOKUP($C15,'RECAP SECT'!$G$6:$CU$253,43,FALSE) -> 16
A16: 264 | B16: HAUT-RHIN | C16: 5169 | D16: MULHOUSE | E16: =VLOOKUP($C16,'RECAP SECT'!$G$6:$CU$253,3,FALSE) -> 45.7 | F16: =VLOOKUP($C16,'RECAP SECT'!$G$6:$CU$253,33,FALSE) -> -1,990 | G16: =VLOOKUP($C16,'RECAP SECT'!$G$6:$CU$253,34,FALSE) -> -43.58 | H16: =VLOOKUP($C16,'RECAP SECT'!$G$6:$CU$253,35,FALSE) -> 112% | I16: =VLOOKUP($C16,'RECAP SECT'!$G$6:$CU$253,36,FALSE) -> 18 | J16: =VLOOKUP($C16,'RECAP SECT'!$G$6:$CU$253,37,FALSE) -> 1,690 | K16: =VLOOKUP($C16,'RECAP SECT'!$G$6:$CU$253,38,FALSE) -> 37.00 | L16: =VLOOKUP($C16,'RECAP SECT'!$G$6:$CU$253,39,FALSE) -> 43% | M16: =VLOOKUP($C16,'RECAP SECT'!$G$6:$CU$253,40,FALSE) -> 16 | N16: =VLOOKUP($C16,'RECAP SECT'!$G$6:$CU$253,41,FALSE) -> 85% | O16: =VLOOKUP($C16,'RECAP SECT'!$G$6:$CU$253,42,FALSE) -> 77% | P16: =VLOOKUP($C16,'RECAP SECT'!$G$6:$CU$253,43,FALSE) -> 18
A17: 30 | B17: MARNE-ARDENNES | C17: 6 | D17: CHALONS EN CHAMPAGNE | E17: =VLOOKUP($C17,'RECAP SECT'!$G$6:$CU$253,3,FALSE) -> 38.1 | F17: =VLOOKUP($C17,'RECAP SECT'!$G$6:$CU$253,33,FALSE) -> 7,471 | G17: =VLOOKUP($C17,'RECAP SECT'!$G$6:$CU$253,34,FALSE) -> 196.09 | H17: =VLOOKUP($C17,'RECAP SECT'!$G$6:$CU$253,35,FALSE) -> 45% | I17: =VLOOKUP($C17,'RECAP SECT'!$G$6:$CU$253,36,FALSE) -> 11 | J17: =VLOOKUP($C17,'RECAP SECT'!$G$6:$CU$253,37,FALSE) -> 2,029 | K17: =VLOOKUP($C17,'RECAP SECT'!$G$6:$CU$253,38,FALSE) -> 53.25 | L17: =VLOOKUP($C17,'RECAP SECT'!$G$6:$CU$253,39,FALSE) -> 19% | M17: =VLOOKUP($C17,'RECAP SECT'!$G$6:$CU$253,40,FALSE) -> 6 | N17: =VLOOKUP($C17,'RECAP SECT'!$G$6:$CU$253,41,FALSE) -> 35% | O17: =VLOOKUP($C17,'RECAP SECT'!$G$6:$CU$253,42,FALSE) -> 27% | P17: =VLOOKUP($C17,'RECAP SECT'!$G$6:$CU$253,43,FALSE) -> 9
A18: 30 | B18: MARNE-ARDENNES | C18: 2 | D18: CHARLEVILLE MEZIERES | E18: =VLOOKUP($C18,'RECAP SECT'!$G$6:$CU$253,3,FALSE) -> 49.0 | F18: =VLOOKUP($C18,'RECAP SECT'!$G$6:$CU$253,33,FALSE) -> 15,254 | G18: =VLOOKUP($C18,'RECAP SECT'!$G$6:$CU$253,34,FALSE) -> 311.30 | H18: =VLOOKUP($C18,'RECAP SECT'!$G$6:$CU$253,35,FALSE) -> 13% | I18: =VLOOKUP($C18,'RECAP SECT'!$G$6:$CU$253,36,FALSE) -> 4 | J18: =VLOOKUP($C18,'RECAP SECT'!$G$6:$CU$253,37,FALSE) -> 2,885 | K18: =VLOOKUP($C18,'RECAP SECT'!$G$6:$CU$253,38,FALSE) -> 58.88 | L18: =VLOOKUP($C18,'RECAP SECT'!$G$6:$CU$253,39,FALSE) -> 10% | M18: =VLOOKUP($C18,'RECAP SECT'!$G$6:$CU$253,40,FALSE) -> 3 | N18: =VLOOKUP($C18,'RECAP SECT'!$G$6:$CU$253,41,FALSE) -> 12% | O18: =VLOOKUP($C18,'RECAP SECT'!$G$6:$CU$253,42,FALSE) -> 4% | P18: =VLOOKUP($C18,'RECAP SECT'!$G$6:$CU$253,43,FALSE) -> 2
A19: 30 | B19: MARNE-ARDENNES | C19: 11 | D19: REIMS | E19: =VLOOKUP($C19,'RECAP SECT'!$G$6:$CU$253,3,FALSE) -> 68.3 | F19: =VLOOKUP($C19,'RECAP SECT'!$G$6:$CU$253,33,FALSE) -> 16,548 | G19: =VLOOKUP($C19,'RECAP SECT'!$G$6:$CU$253,34,FALSE) -> 242.14 | H19: =VLOOKUP($C19,'RECAP SECT'!$G$6:$CU$253,35,FALSE) -> 32% | I19: =VLOOKUP($C19,'RECAP SECT'!$G$6:$CU$253,36,FALSE) -> 8 | J19: =VLOOKUP($C19,'RECAP SECT'!$G$6:$CU$253,37,FALSE) -> 4,039 | K19: =VLOOKUP($C19,'RECAP SECT'!$G$6:$CU$253,38,FALSE) -> 59.10 | L19: =VLOOKUP($C19,'RECAP SECT'!$G$6:$CU$253,39,FALSE) -> 10% | M19: =VLOOKUP($C19,'RECAP SECT'!$G$6:$CU$253,40,FALSE) -> 2 | N19: =VLOOKUP($C19,'RECAP SECT'!$G$6:$CU$253,41,FALSE) -> 23% | O19: =VLOOKUP($C19,'RECAP SECT'!$G$6:$CU$253,42,FALSE) -> 16% | P19: =VLOOKUP($C19,'RECAP SECT'!$G$6:$CU$253,43,FALSE) -> 6
A20: 110 | B20: MEURTHE ET MOSELLE MEUSE | C20: 26 | D20: NANCY | E20: =VLOOKUP($C20,'RECAP SECT'!$G$6:$CU$253,3,FALSE) -> 55.5 | F20: =VLOOKUP($C20,'RECAP SECT'!$G$6:$CU$253,33,FALSE) -> 19,165 | G20: =VLOOKUP($C20,'RECAP SECT'!$G$6:$CU$253,34,FALSE) -> 345.38 | H20: =VLOOKUP($C20,'RECAP SECT'!$G$6:$CU$253,35,FALSE) -> 4% | I20: =VLOOKUP($C20,'RECAP SECT'!$G$6:$CU$253,36,FALSE) -> 3 | J20: =VLOOKUP($C20,'RECAP SECT'!$G$6:$CU$253,37,FALSE) -> 2,709 | K20: =VLOOKUP($C20,'RECAP SECT'!$G$6:$CU$253,38,FALSE) -> 48.82 | L20: =VLOOKUP($C20,'RECAP SECT'!$G$6:$CU$253,39,FALSE) -> 25% | M20: =VLOOKUP($C20,'RECAP SECT'!$G$6:$CU$253,40,FALSE) -> 8 | N20: =VLOOKUP($C20,'RECAP SECT'!$G$6:$CU$253,41,FALSE) -> 12% | O20: =VLOOKUP($C20,'RECAP SECT'!$G$6:$CU$253,42,FALSE) -> 5% | P20: =VLOOKUP($C20,'RECAP SECT'!$G$6:$CU$253,43,FALSE) -> 3
A21: 110 | B21: MEURTHE ET MOSELLE MEUSE | C21: 27 | D21: PONT A MOUSSON | E21: =VLOOKUP($C21,'RECAP SECT'!$G$6:$CU$253,3,FALSE) -> 60.0 | F21: =VLOOKUP($C21,'RECAP SECT'!$G$6:$CU$253,33,FALSE) -> 16,032 | G21: =VLOOKUP($C21,'RECAP SECT'!$G$6:$CU$253,34,FALSE) -> 267.30 | H21: =VLOOKUP($C21,'RECAP SECT'!$G$6:$CU$253,35,FALSE) -> 25% | I21: =VLOOKUP($C21,'RECAP SECT'!$G$6:$CU$253,36,FALSE) -> 7 | J21: =VLOOKUP($C21,'RECAP SECT'!$G$6:$CU$253,37,FALSE) -> 2,580 | K21: =VLOOKUP($C21,'RECAP SECT'!$G$6:$CU$253,38,FALSE) -> 43.01 | L21: =VLOOKUP($C21,'RECAP SECT'!$G$6:$CU$253,39,FALSE) -> 34% | M21: =VLOOKUP($C21,'RECAP SECT'!$G$6:$CU$253,40,FALSE) -> 11 | N21: =VLOOKUP($C21,'RECAP SECT'!$G$6:$CU$253,41,FALSE) -> 29% | O21: =VLOOKUP($C21,'RECAP SECT'!$G$6:$CU$253,42,FALSE) -> 21% | P21: =VLOOKUP($C21,'RECAP SECT'!$G$6:$CU$253,43,FALSE) -> 8
A22: 110 | B22: MEURTHE ET MOSELLE MEUSE | C22: 31 | D22: VERDUN | E22: =VLOOKUP($C22,'RECAP SECT'!$G$6:$CU$253,3,FALSE) -> 48.1 | F22: =VLOOKUP($C22,'RECAP SECT'!$G$6:$CU$253,33,FALSE) -> 7,020 | G22: =VLOOKUP($C22,'RECAP SECT'!$G$6:$CU$253,34,FALSE) -> 146.05 | H22: =VLOOKUP($C22,'RECAP SECT'!$G$6:$CU$253,35,FALSE) -> 59% | I22: =VLOOKUP($C22,'RECAP SECT'!$G$6:$CU$253,36,FALSE) -> 14 | J22: =VLOOKUP($C22,'RECAP SECT'!$G$6:$CU$253,37,FALSE) -> 2,096 | K22: =VLOOKUP($C22,'RECAP SECT'!$G$6:$CU$253,38,FALSE) -> 43.60 | L22: =VLOOKUP($C22,'RECAP SECT'!$G$6:$CU$253,39,FALSE) -> 33% | M22: =VLOOKUP($C22,'RECAP SECT'!$G$6:$CU$253,40,FALSE) -> 10 | N22: =VLOOKUP($C22,'RECAP SECT'!$G$6:$CU$253,41,FALSE) -> 49% | O22: =VLOOKUP($C22,'RECAP SECT'!$G$6:$CU$253,42,FALSE) -> 41% | P22: =VLOOKUP($C22,'RECAP SECT'!$G$6:$CU$253,43,FALSE) -> 15
A23: 160 | B23: MOSELLE | C23: 45 | D23: METZ | E23: =VLOOKUP($C23,'RECAP SECT'!$G$6:$CU$253,3,FALSE) -> 73.0 | F23: =VLOOKUP($C23,'RECAP SECT'!$G$6:$CU$253,33,FALSE) -> 26,160 | G23: =VLOOKUP($C23,'RECAP SECT'!$G$6:$CU$253,34,FALSE) -> 358.17 | H23: =VLOOKUP($C23,'RECAP SECT'!$G$6:$CU$253,35,FALSE) -> 0% | I23: =VLOOKUP($C23,'RECAP SECT'!$G$6:$CU$253,36,FALSE) -> 1 | J23: =VLOOKUP($C23,'RECAP SECT'!$G$6:$CU$253,37,FALSE) -> 3,866 | K23: =VLOOKUP($C23,'RECAP SECT'!$G$6:$CU$253,38,FALSE) -> 52.93 | L23: =VLOOKUP($C23,'RECAP SECT'!$G$6:$CU$253,39,FALSE) -> 19% | M23: =VLOOKUP($C23,'RECAP SECT'!$G$6:$CU$253,40,FALSE) -> 7 | N23: =VLOOKUP($C23,'RECAP SECT'!$G$6:$CU$253,41,FALSE) -> 8% | O23: =VLOOKUP($C23,'RECAP SECT'!$G$6:$CU$253,42,FALSE) -> 0% | P23: =VLOOKUP($C23,'RECAP SECT'!$G$6:$CU$253,43,FALSE) -> 1
A24: 160 | B24: MOSELLE | C24: 42 | D24: MOSELLE EST | E24: =VLOOKUP($C24,'RECAP SECT'!$G$6:$CU$253,3,FALSE) -> 60.3 | F24: =VLOOKUP($C24,'RECAP SECT'!$G$6:$CU$253,33,FALSE) -> 10,429 | G24: =VLOOKUP($C24,'RECAP SECT'!$G$6:$CU$253,34,FALSE) -> 172.89 | H24: =VLOOKUP($C24,'RECAP SECT'!$G$6:$CU$253,35,FALSE) -> 52% | I24: =VLOOKUP($C24,'RECAP SECT'!$G$6:$CU$253,36,FALSE) -> 13 | J24: =VLOOKUP($C24,'RECAP SECT'!$G$6:$CU$253,37,FALSE) -> 3,269 | K24: =VLOOKUP($C24,'RECAP SECT'!$G$6:$CU$253,38,FALSE) -> 54.19 | L24: =VLOOKUP($C24,'RECAP SECT'!$G$6:$CU$253,39,FALSE) -> 17% | M24: =VLOOKUP($C24,'RECAP SECT'!$G$6:$CU$253,40,FALSE) -> 5 | N24: =VLOOKUP($C24,'RECAP SECT'!$G$6:$CU$253,41,FALSE) -> 38% | O24: =VLOOKUP($C24,'RECAP SECT'!$G$6:$CU$253,42,FALSE) -> 30% | P24: =VLOOKUP($C24,'RECAP SECT'!$G$6:$CU$253,43,FALSE) -> 10
A25: 160 | B25: MOSELLE | C25: 44 | D25: MOSELLE NORD | E25: =VLOOKUP($C25,'RECAP SECT'!$G$6:$CU$253,3,FALSE) -> 57.6 | F25: =VLOOKUP($C25,'RECAP SECT'!$G$6:$CU$253,33,FALSE) -> 6,001 | G25: =VLOOKUP($C25,'RECAP SECT'!$G$6:$CU$253,34,FALSE) -> 104.13 | H25: =VLOOKUP($C25,'RECAP SECT'!$G$6:$CU$253,35,FALSE) -> 71% | I25: =VLOOKUP($C25,'RECAP SECT'!$G$6:$CU$253,36,FALSE) -> 15 | J25: =VLOOKUP($C25,'RECAP SECT'!$G$6:$CU$253,37,FALSE) -> 3,766 | K25: =VLOOKUP($C25,'RECAP SECT'!$G$6:$CU$253,38,FALSE) -> 65.35 | L25: =VLOOKUP($C25,'RECAP SECT'!$G$6:$CU$253,39,FALSE) -> 0% | M25: =VLOOKUP($C25,'RECAP SECT'!$G$6:$CU$253,40,FALSE) -> 1 | N25: =VLOOKUP($C25,'RECAP SECT'!$G$6:$CU$253,41,FALSE) -> 43% | O25: =VLOOKUP($C25,'RECAP SECT'!$G$6:$CU$253,42,FALSE) -> 35% | P25: =VLOOKUP($C25,'RECAP SECT'!$G$6:$CU$253,43,FALSE) -> 13
A26: 80 | B26: VOSGES | C26: 57 | D26: EPINAL | E26: =VLOOKUP($C26,'RECAP SECT'!$G$6:$CU$253,3,FALSE) -> 53.1 | F26: =VLOOKUP($C26,'RECAP SECT'!$G$6:$CU$253,33,FALSE) -> 14,603 | G26: =VLOOKUP($C26,'RECAP SECT'!$G$6:$CU$253,34,FALSE) -> 275.06 | H26: =VLOOKUP($C26,'RECAP SECT'!$G$6:$CU$253,35,FALSE) -> 23% | I26: =VLOOKUP($C26,'RECAP SECT'!$G$6:$CU$253,36,FALSE) -> 6 | J26: =VLOOKUP($C26,'RECAP SECT'!$G$6:$CU$253,37,FALSE) -> 2,283 | K26: =VLOOKUP($C26,'RECAP SECT'!$G$6:$CU$253,38,FALSE) -> 43.00 | L26: =VLOOKUP($C26,'RECAP SECT'!$G$6:$CU$253,39,FALSE) -> 34% | M26: =VLOOKUP($C26,'RECAP SECT'!$G$6:$CU$253,40,FALSE) -> 12 | N26: =VLOOKUP($C26,'RECAP SECT'!$G$6:$CU$253,41,FALSE) -> 28% | O26: =VLOOKUP($C26,'RECAP SECT'!$G$6:$CU$253,42,FALSE) -> 20% | P26: =VLOOKUP($C26,'RECAP SECT'!$G$6:$CU$253,43,FALSE) -> 7
A27: 80 | B27: VOSGES | C27: 55 | D27: SAINT DIE | E27: =VLOOKUP($C27,'RECAP SECT'!$G$6:$CU$253,3,FALSE) -> 40.1 | F27: =VLOOKUP($C27,'RECAP SECT'!$G$6:$CU$253,33,FALSE) -> 9,078 | G27: =VLOOKUP($C27,'RECAP SECT'!$G$6:$CU$253,34,FALSE) -> 226.23 | H27: =VLOOKUP($C27,'RECAP SECT'!$G$6:$CU$253,35,FALSE) -> 37% | I27: =VLOOKUP($C27,'RECAP SECT'!$G$6:$CU$253,36,FALSE) -> 9 | J27: =VLOOKUP($C27,'RECAP SECT'!$G$6:$CU$253,37,FALSE) -> 1,405 | K27: =VLOOKUP($C27,'RECAP SECT'!$G$6:$CU$253,38,FALSE) -> 35.01 | L27: =VLOOKUP($C27,'RECAP SECT'!$G$6:$CU$253,39,FALSE) -> 46% | M27: =VLOOKUP($C27,'RECAP SECT'!$G$6:$CU$253,40,FALSE) -> 17 | N27: =VLOOKUP($C27,'RECAP SECT'!$G$6:$CU$253,41,FALSE) -> 41% | O27: =VLOOKUP($C27,'RECAP SECT'!$G$6:$CU$253,42,FALSE) -> 33% | P27: =VLOOKUP($C27,'RECAP SECT'!$G$6:$CU$253,43,FALSE) -> 12
A28: Total CEGEE Directions Régionales | E28: =SUM(E10:E27) -> 958

Sheet SE_CREDIT
B1: Accueil | F1: BAROMETRE BDD - TERRITOIRES
F2: CREDITS
F3: =ACCUEIL!F7 -> 2022-08-07
F7: Engagements et ventes accessoires pondérés Immo | J7: Engagements et ventes accessoires pondérés Conso | N7: Ventes sur client non détenteur de l’univers | R7: Total Crédits
F8: =DATEMAJ!C18 -> au 07/08 | H8: coef | I8: ='RECAP DIRCOM'!BE4 -> 6% | J8: =DATEMAJ!C19 -> au 07/08 | L8: coef | M8: ='RECAP DIRCOM'!BI4 -> 6% | N8: =DATEMAJ!C20 -> au 07/08 | P8: coef | Q8: ='RECAP DIRCOM'!BM4 -> 8% | S8: coef | T8: ='RECAP DIRCOM'!BP4 -> 20%
B9: Direction | C9: eds | D9: Territoire | E9: ="ETP perf "&DATEMAJ!$C$28 -> ETP perf 07-août | F9: PNB | G9: PNB / ETP | H9: % Ecart au 1er | I9: Rang | J9: PNB | K9: PNB / ETP | L9: % Ecart au 1er | M9: Rang | N9: VB | O9: VB / ETP | P9: % Ecart au 1er | Q9: Rang | R9: Moyenne ecart au 1er | S9: % Ecart au 1er | T9: Rang CEGEE
A10: 50 | B10: AUBE HAUTE MARNE | C10: 21 | D10: CHAUMONT | E10: =VLOOKUP($C10,'RECAP SECT'!$G$6:$CU$253,3,FALSE) -> 33.9 | F10: =VLOOKUP($C10,'RECAP SECT'!$G$6:$CU$253,48,FALSE) -> 5,619 | G10: =VLOOKUP($C10,'RECAP SECT'!$G$6:$CU$253,49,FALSE) -> 165.62 | H10: =VLOOKUP($C10,'RECAP SECT'!$G$6:$CU$253,50,FALSE) -> 62% | I10: =VLOOKUP($C10,'RECAP SECT'!$G$6:$CU$253,51,FALSE) -> 15 | J10: =VLOOKUP($C10,'RECAP SECT'!$G$6:$CU$253,52,FALSE) -> 1,691 | K10: =VLOOKUP($C10,'RECAP SECT'!$G$6:$CU$253,53,FALSE) -> 49.85 | L10: =VLOOKUP($C10,'RECAP SECT'!$G$6:$CU$253,54,FALSE) -> 3% | M10: =VLOOKUP($C10,'RECAP SECT'!$G$6:$CU$253,55,FALSE) -> 4 | N10: =VLOOKUP($C10,'RECAP SECT'!$G$6:$CU$253,56,FALSE) -> 675 | O10: =VLOOKUP($C10,'RECAP SECT'!$G$6:$CU$253,57,FALSE) -> 19.89 | P10: =VLOOKUP($C10,'RECAP SECT'!$G$6:$CU$253,58,FALSE) -> 40% | Q10: =VLOOKUP($C10,'RECAP SECT'!$G$6:$CU$253,59,FALSE) -> 11 | R10: =VLOOKUP($C10,'RECAP SECT'!$G$6:$CU$253,60,FALSE) -> 35% | S10: =VLOOKUP($C10,'RECAP SECT'!$G$6:$CU$253,61,FALSE) -> 29% | T10: =VLOOKUP($C10,'RECAP SECT'!$G$6:$CU$253,62,FALSE) -> 10
A11: 50 | B11: AUBE HAUTE MARNE | C11: 14 | D11: TROYES | E11: =VLOOKUP($C11,'RECAP SECT'!$G$6:$CU$253,3,FALSE) -> 54.2 | F11: =VLOOKUP($C11,'RECAP SECT'!$G$6:$CU$253,48,FALSE) -> 9,895 | G11: =VLOOKUP($C11,'RECAP SECT'!$G$6:$CU$253,49,FALSE) -> 182.54 | H11: =VLOOKUP($C11,'RECAP SECT'!$G$6:$CU$253,50,FALSE) -> 58% | I11: =VLOOKUP($C11,'RECAP SECT'!$G$6:$CU$253,51,FALSE) -> 12 | J11: =VLOOKUP($C11,'RECAP SECT'!$G$6:$CU$253,52,FALSE) -> 2,311 | K11: =VLOOKUP($C11,'RECAP SECT'!$G$6:$CU$253,53,FALSE) -> 42.63 | L11: =VLOOKUP($C11,'RECAP SECT'!$G$6:$CU$253,54,FALSE) -> 17% | M11: =VLOOKUP($C11,'RECAP SECT'!$G$6:$CU$253,55,FALSE) -> 10 | N11: =VLOOKUP($C11,'RECAP SECT'!$G$6:$CU$253,56,FALSE) -> 899 | O11: =VLOOKUP($C11,'RECAP SECT'!$G$6:$CU$253,57,FALSE) -> 16.58 | P11: =VLOOKUP($C11,'RECAP SECT'!$G$6:$CU$253,58,FALSE) -> 50% | Q11: =VLOOKUP($C11,'RECAP SECT'!$G$6:$CU$253,59,FALSE) -> 14 | R11: =VLOOKUP($C11,'RECAP SECT'!$G$6:$CU$253,60,FALSE) -> 42% | S11: =VLOOKUP($C11,'RECAP SECT'!$G$6:$CU$253,61,FALSE) -> 36% | T11: =VLOOKUP($C11,'RECAP SECT'!$G$6:$CU$253,62,FALSE) -> 14
A12: 262 | B12: BAS-RHIN | C12: 5060 | D12: HAGUENAU | E12: =VLOOKUP($C12,'RECAP SECT'!$G$6:$CU$253,3,FALSE) -> 57.0 | F12: =VLOOKUP($C12,'RECAP SECT'!$G$6:$CU$253,48,FALSE) -> 7,824 | G12: =VLOOKUP($C12,'RECAP SECT'!$G$6:$CU$253,49,FALSE) -> 137.39 | H12: =VLOOKUP($C12,'RECAP SECT'!$G$6:$CU$253,50,FALSE) -> 68% | I12: =VLOOKUP($C12,'RECAP SECT'!$G$6:$CU$253,51,FALSE) -> 18 | J12: =VLOOKUP($C12,'RECAP SECT'!$G$6:$CU$253,52,FALSE) -> 2,331 | K12: =VLOOKUP($C12,'RECAP SECT'!$G$6:$CU$253,53,FALSE) -> 40.92 | L12: =VLOOKUP($C12,'RECAP SECT'!$G$6:$CU$253,54,FALSE) -> 20% | M12: =VLOOKUP($C12,'RECAP SECT'!$G$6:$CU$253,55,FALSE) -> 12 | N12: =VLOOKUP($C12,'RECAP SECT'!$G$6:$CU$253,56,FALSE) -> 811 | O12: =VLOOKUP($C12,'RECAP SECT'!$G$6:$CU$253,57,FALSE) -> 14.24 | P12: =VLOOKUP($C12,'RECAP SECT'!$G$6:$CU$253,58,FALSE) -> 57% | Q12: =VLOOKUP($C12,'RECAP SECT'!$G$6:$CU$253,59,FALSE) -> 18 | R12: =VLOOKUP($C12,'RECAP SECT'!$G$6:$CU$253,60,FALSE) -> 49% | S12: =VLOOKUP($C12,'RECAP SECT'!$G$6:$CU$253,61,FALSE) -> 43% | T12: =VLOOKUP($C12,'RECAP SECT'!$G$6:$CU$253,62,FALSE) -> 17
A13: 262 | B13: BAS-RHIN | C13: 5101 | D13: SELESTAT | E13: =VLOOKUP($C13,'RECAP SECT'!$G$6:$CU$253,3,FALSE) -> 51.1 | F13: =VLOOKUP($C13,'RECAP SECT'!$G$6:$CU$253,48,FALSE) -> 9,362 | G13: =VLOOKUP($C13,'RECAP SECT'!$G$6:$CU$253,49,FALSE) -> 183.15 | H13: =VLOOKUP($C13,'RECAP SECT'!$G$6:$CU$253,50,FALSE) -> 58% | I13: =VLOOKUP($C13,'RECAP SECT'!$G$6:$CU$253,51,FALSE) -> 11 | J13: =VLOOKUP($C13,'RECAP SECT'!$G$6:$CU$253,52,FALSE) -> 1,993 | K13: =VLOOKUP($C13,'RECAP SECT'!$G$6:$CU$253,53,FALSE) -> 38.99 | L13: =VLOOKUP($C13,'RECAP SECT'!$G$6:$CU$253,54,FALSE) -> 24% | M13: =VLOOKUP($C13,'RECAP SECT'!$G$6:$CU$253,55,FALSE) -> 14 | N13: =VLOOKUP($C13,'RECAP SECT'!$G$6:$CU$253,56,FALSE) -> 845 | O13: =VLOOKUP($C13,'RECAP SECT'!$G$6:$CU$253,57,FALSE) -> 16.53 | P13: =VLOOKUP($C13,'RECAP SECT'!$G$6:$CU$253,58,FALSE) -> 50% | Q13: =VLOOKUP($C13,'RECAP SECT'!$G$6:$CU$253,59,FALSE) -> 15 | R13: =VLOOKUP($C13,'RECAP SECT'!$G$6:$CU$253,60,FALSE) -> 45% | S13: =VLOOKUP($C13,'RECAP SECT'!$G$6:$CU$253,61,FALSE) -> 39% | T13: =VLOOKUP($C13,'RECAP SECT'!$G$6:$CU$253,62,FALSE) -> 15
A14: 262 | B14: BAS-RHIN | C14: 5006 | D14: STRASBOURG | E14: =VLOOKUP($C14,'RECAP SECT'!$G$6:$CU$253,3,FALSE) -> 65.4 | F14: =VLOOKUP($C14,'RECAP SECT'!$G$6:$CU$253,48,FALSE) -> 15,194 | G14: =VLOOKUP($C14,'RECAP SECT'!$G$6:$CU$253,49,FALSE) -> 232.25 | H14: =VLOOKUP($C14,'RECAP SECT'!$G$6:$CU$253,50,FALSE) -> 47% | I14: =VLOOKUP($C14,'RECAP SECT'!$G$6:$CU$253,51,FALSE) -> 9 | J14: =VLOOKUP($C14,'RECAP SECT'!$G$6:$CU$253,52,FALSE) -> 2,265 | K14: =VLOOKUP($C14,'RECAP SECT'!$G$6:$CU$253,53,FALSE) -> 34.63 | L14: =VLOOKUP($C14,'RECAP SECT'!$G$6:$CU$253,54,FALSE) -> 32% | M14: =VLOOKUP($C14,'RECAP SECT'!$G$6:$CU$253,55,FALSE) -> 18 | N14: =VLOOKUP($C14,'RECAP SECT'!$G$6:$CU$253,56,FALSE) -> 1,374 | O14: =VLOOKUP($C14,'RECAP SECT'!$G$6:$CU$253,57,FALSE) -> 21.00 | P14: =VLOOKUP($C14,'RECAP SECT'!$G$6:$CU$253,58,FALSE) -> 37% | Q14: =VLOOKUP($C14,'RECAP SECT'!$G$6:$CU$253,59,FALSE) -> 9 | R14: =VLOOKUP($C14,'RECAP SECT'!$G$6:$CU$253,60,FALSE) -> 38% | S14: =VLOOKUP($C14,'RECAP SECT'!$G$6:$CU$253,61,FALSE) -> 32% | T14: =VLOOKUP($C14,'RECAP SECT'!$G$6:$CU$253,62,FALSE) -> 11
A15: 264 | B15: HAUT-RHIN | C15: 5130 | D15: COLMAR | E15: =VLOOKUP($C15,'RECAP SECT'!$G$6:$CU$253,3,FALSE) -> 47.3 | F15: =VLOOKUP($C15,'RECAP SECT'!$G$6:$CU$253,48,FALSE) -> 6,691 | G15: =VLOOKUP($C15,'RECAP SECT'!$G$6:$CU$253,49,FALSE) -> 141.38 | H15: =VLOOKUP($C15,'RECAP SECT'!$G$6:$CU$253,50,FALSE) -> 68% | I15: =VLOOKUP($C15,'RECAP SECT'!$G$6:$CU$253,51,FALSE) -> 17 | J15: =VLOOKUP($C15,'RECAP SECT'!$G$6:$CU$253,52,FALSE) -> 1,759 | K15: =VLOOKUP($C15,'RECAP SECT'!$G$6:$CU$253,53,FALSE) -> 37.16 | L15: =VLOOKUP($C15,'RECAP SECT'!$G$6:$CU$253,54,FALSE) -> 27% | M15: =VLOOKUP($C15,'RECAP SECT'!$G$6:$CU$253,55,FALSE) -> 17 | N15: =VLOOKUP($C15,'RECAP SECT'!$G$6:$CU$253,56,FALSE) -> 682 | O15: =VLOOKUP($C15,'RECAP SECT'!$G$6:$CU$253,57,FALSE) -> 14.41 | P15: =VLOOKUP($C15,'RECAP SECT'!$G$6:$CU$253,58,FALSE) -> 56% | Q15: =VLOOKUP($C15,'RECAP SECT'!$G$6:$CU$253,59,FALSE) -> 17 | R15: =VLOOKUP($C15,'RECAP SECT'!$G$6:$CU$253,60,FALSE) -> 51% | S15: =VLOOKUP($C15,'RECAP SECT'!$G$6:$CU$253,61,FALSE) -> 45% | T15: =VLOOKUP($C15,'RECAP SECT'!$G$6:$CU$253,62,FALSE) -> 18
A16: 264 | B16: HAUT-RHIN | C16: 5169 | D16: MULHOUSE | E16: =VLOOKUP($C16,'RECAP SECT'!$G$6:$CU$253,3,FALSE) -> 45.7 | F16: =VLOOKUP($C16,'RECAP SECT'!$G$6:$CU$253,48,FALSE) -> 8,306 | G16: =VLOOKUP($C16,'RECAP SECT'!$G$6:$CU$253,49,FALSE) -> 181.88 | H16: =VLOOKUP($C16,'RECAP SECT'!$G$6:$CU$253,50,FALSE) -> 58% | I16: =VLOOKUP($C16,'RECAP SECT'!$G$6:$CU$253,51,FALSE) -> 13 | J16: =VLOOKUP($C16,'RECAP SECT'!$G$6:$CU$253,52,FALSE) -> 1,714 | K16: =VLOOKUP($C16,'RECAP SECT'!$G$6:$CU$253,53,FALSE) -> 37.53 | L16: =VLOOKUP($C16,'RECAP SECT'!$G$6:$CU$253,54,FALSE) -> 27% | M16: =VLOOKUP($C16,'RECAP SECT'!$G$6:$CU$253,55,FALSE) -> 16 | N16: =VLOOKUP($C16,'RECAP SECT'!$G$6:$CU$253,56,FALSE) -> 708 | O16: =VLOOKUP($C16,'RECAP SECT'!$G$6:$CU$253,57,FALSE) -> 15.50 | P16: =VLOOKUP($C16,'RECAP SECT'!$G$6:$CU$253,58,FALSE) -> 53% | Q16: =VLOOKUP($C16,'RECAP SECT'!$G$6:$CU$253,59,FALSE) -> 16 | R16: =VLOOKUP($C16,'RECAP SECT'!$G$6:$CU$253,60,FALSE) -> 47% | S16: =VLOOKUP($C16,'RECAP SECT'!$G$6:$CU$253,61,FALSE) -> 41% | T16: =VLOOKUP($C16,'RECAP SECT'!$G$6:$CU$253,62,FALSE) -> 16
A17: 30 | B17: MARNE-ARDENNES | C17: 6 | D17: CHALONS EN CHAMPAGNE | E17: =VLOOKUP($C17,'RECAP SECT'!$G$6:$CU$253,3,FALSE) -> 38.1 | F17: =VLOOKUP($C17,'RECAP SECT'!$G$6:$CU$253,48,FALSE) -> 9,730 | G17: =VLOOKUP($C17,'RECAP SECT'!$G$6:$CU$253,49,FALSE) -> 255.39 | H17: =VLOOKUP($C17,'RECAP SECT'!$G$6:$CU$253,50,FALSE) -> 41% | I17: =VLOOKUP($C17,'RECAP SECT'!$G$6:$CU$253,51,FALSE) -> 8 | J17: =VLOOKUP($C17,'RECAP SECT'!$G$6:$CU$253,52,FALSE) -> 1,772 | K17: =VLOOKUP($C17,'RECAP SECT'!$G$6:$CU$253,53,FALSE) -> 46.51 | L17: =VLOOKUP($C17,'RECAP SECT'!$G$6:$CU$253,54,FALSE) -> 9% | M17: =VLOOKUP($C17,'RECAP SECT'!$G$6:$CU$253,55,FALSE) -> 5 | N17: =VLOOKUP($C17,'RECAP SECT'!$G$6:$CU$253,56,FALSE) -> 851 | O17: =VLOOKUP($C17,'RECAP SECT'!$G$6:$CU$253,57,FALSE) -> 22.34 | P17: =VLOOKUP($C17,'RECAP SECT'!$G$6:$CU$253,58,FALSE) -> 33% | Q17: =VLOOKUP($C17,'RECAP SECT'!$G$6:$CU$253,59,FALSE) -> 6 | R17: =VLOOKUP($C17,'RECAP SECT'!$G$6:$CU$253,60,FALSE) -> 28% | S17: =VLOOKUP($C17,'RECAP SECT'!$G$6:$CU$253,61,FALSE) -> 22% | T17: =VLOOKUP($C17,'RECAP SECT'!$G$6:$CU$253,62,FALSE) -> 7
A18: 30 | B18: MARNE-ARDENNES | C18: 2 | D18: CHARLEVILLE MEZIERES | E18: =VLOOKUP($C18,'RECAP SECT'!$G$6:$CU$253,3,FALSE) -> 49.0 | F18: =VLOOKUP($C18,'RECAP SECT'!$G$6:$CU$253,48,FALSE) -> 15,205 | G18: =VLOOKUP($C18,'RECAP SECT'!$G$6:$CU$253,49,FALSE) -> 310.31 | H18: =VLOOKUP($C18,'RECAP SECT'!$G$6:$CU$253,50,FALSE) -> 29% | I18: =VLOOKUP($C18,'RECAP SECT'!$G$6:$CU$253,51,FALSE) -> 5 | J18: =VLOOKUP($C18,'RECAP SECT'!$G$6:$CU$253,52,FALSE) -> 2,076 | K18: =VLOOKUP($C18,'RECAP SECT'!$G$6:$CU$253,53,FALSE) -> 42.36 | L18: =VLOOKUP($C18,'RECAP SECT'!$G$6:$CU$253,54,FALSE) -> 17% | M18: =VLOOKUP($C18,'RECAP SECT'!$G$6:$CU$253,55,FALSE) -> 11 | N18: =VLOOKUP($C18,'RECAP SECT'!$G$6:$CU$253,56,FALSE) -> 1,287 | O18: =VLOOKUP($C18,'RECAP SECT'!$G$6:$CU$253,57,FALSE) -> 26.27 | P18: =VLOOKUP($C18,'RECAP SECT'!$G$6:$CU$253,58,FALSE) -> 21% | Q18: =VLOOKUP($C18,'RECAP SECT'!$G$6:$CU$253,59,FALSE) -> 3 | R18: =VLOOKUP($C18,'RECAP SECT'!$G$6:$CU$253,60,FALSE) -> 22% | S18: =VLOOKUP($C18,'RECAP SECT'!$G$6:$CU$253,61,FALSE) -> 16% | T18: =VLOOKUP($C18,'RECAP SECT'!$G$6:$CU$253,62,FALSE) -> 5
A19: 30 | B19: MARNE-ARDENNES | C19: 11 | D19: REIMS | E19: =VLOOKUP($C19,'RECAP SECT'!$G$6:$CU$253,3,FALSE) -> 68.3 | F19: =VLOOKUP($C19,'RECAP SECT'!$G$6:$CU$253,48,FALSE) -> 29,748 | G19: =VLOOKUP($C19,'RECAP SECT'!$G$6:$CU$253,49,FALSE) -> 435.30 | H19: =VLOOKUP($C19,'RECAP SECT'!$G$6:$CU$253,50,FALSE) -> 0% | I19: =VLOOKUP($C19,'RECAP SECT'!$G$6:$CU$253,51,FALSE) -> 1 | J19: =VLOOKUP($C19,'RECAP SECT'!$G$6:$CU$253,52,FALSE) -> 2,795 | K19: =VLOOKUP($C19,'RECAP SECT'!$G$6:$CU$253,53,FALSE) -> 40.90 | L19: =VLOOKUP($C19,'RECAP SECT'!$G$6:$CU$253,54,FALSE) -> 20% | M19: =VLOOKUP($C19,'RECAP SECT'!$G$6:$CU$253,55,FALSE) -> 13 | N19: =VLOOKUP($C19,'RECAP SECT'!$G$6:$CU$253,56,FALSE) -> 2,262 | O19: =VLOOKUP($C19,'RECAP SECT'!$G$6:$CU$253,57,FALSE) -> 33.10 | P19: =VLOOKUP($C19,'RECAP SECT'!$G$6:$CU$253,58,FALSE) -> 0% | Q19: =VLOOKUP($C19,'RECAP SECT'!$G$6:$CU$253,59,FALSE) -> 1 | R19: =VLOOKUP($C19,'RECAP SECT'!$G$6:$CU$253,60,FALSE) -> 6% | S19: =VLOOKUP($C19,'RECAP SECT'!$G$6:$CU$253,61,FALSE) -> 0% | T19: =VLOOKUP($C19,'RECAP SECT'!$G$6:$CU$253,62,FALSE) -> 1
A20: 110 | B20: MEURTHE ET MOSELLE MEUSE | C20: 26 | D20: NANCY | E20: =VLOOKUP($C20,'RECAP SECT'!$G$6:$CU$253,3,FALSE) -> 55.5 | F20: =VLOOKUP($C20,'RECAP SECT'!$G$6:$CU$253,48,FALSE) -> 18,872 | G20: =VLOOKUP($C20,'RECAP SECT'!$G$6:$CU$253,49,FALSE) -> 340.10 | H20: =VLOOKUP($C20,'RECAP SECT'!$G$6:$CU$253,50,FALSE) -> 22% | I20: =VLOOKUP($C20,'RECAP SECT'!$G$6:$CU$253,51,FALSE) -> 3 | J20: =VLOOKUP($C20,'RECAP SECT'!$G$6:$CU$253,52,FALSE) -> 2,475 | K20: =VLOOKUP($C20,'RECAP SECT'!$G$6:$CU$253,53,FALSE) -> 44.60 | L20: =VLOOKUP($C20,'RECAP SECT'!$G$6:$CU$253,54,FALSE) -> 13% | M20: =VLOOKUP($C20,'RECAP SECT'!$G$6:$CU$253,55,FALSE) -> 8 | N20: =VLOOKUP($C20,'RECAP SECT'!$G$6:$CU$253,56,FALSE) -> 1,396 | O20: =VLOOKUP($C20,'RECAP SECT'!$G$6:$CU$253,57,FALSE) -> 25.16 | P20: =VLOOKUP($C20,'RECAP SECT'!$G$6:$CU$253,58,FALSE) -> 24% | Q20: =VLOOKUP($C20,'RECAP SECT'!$G$6:$CU$253,59,FALSE) -> 4 | R20: =VLOOKUP($C20,'RECAP SECT'!$G$6:$CU$253,60,FALSE) -> 20% | S20: =VLOOKUP($C20,'RECAP SECT'!$G$6:$CU$253,61,FALSE) -> 14% | T20: =VLOOKUP($C20,'RECAP SECT'!$G$6:$CU$253,62,FALSE) -> 3
A21: 110 | B21: MEURTHE ET MOSELLE MEUSE | C21: 27 | D21: PONT A MOUSSON | E21: =VLOOKUP($C21,'RECAP SECT'!$G$6:$CU$253,3,FALSE) -> 60.0 | F21: =VLOOKUP($C21,'RECAP SECT'!$G$6:$CU$253,48,FALSE) -> 19,975 | G21: =VLOOKUP($C21,'RECAP SECT'!$G$6:$CU$253,49,FALSE) -> 333.02 | H21: =VLOOKUP($C21,'RECAP SECT'!$G$6:$CU$253,50,FALSE) -> 23% | I21: =VLOOKUP($C21,'RECAP SECT'!$G$6:$CU$253,51,FALSE) -> 4 | J21: =VLOOKUP($C21,'RECAP SECT'!$G$6:$CU$253,52,FALSE) -> 2,739 | K21: =VLOOKUP($C21,'RECAP SECT'!$G$6:$CU$253,53,FALSE) -> 45.66 | L21: =VLOOKUP($C21,'RECAP SECT'!$G$6:$CU$253,54,FALSE) -> 11% | M21: =VLOOKUP($C21,'RECAP SECT'!$G$6:$CU$253,55,FALSE) -> 7 | N21: =VLOOKUP($C21,'RECAP SECT'!$G$6:$CU$253,56,FALSE) -> 1,474 | O21: =VLOOKUP($C21,'RECAP SECT'!$G$6:$CU$253,57,FALSE) -> 24.57 | P21: =VLOOKUP($C21,'RECAP SECT'!$G$6:$CU$253,58,FALSE) -> 26% | Q21: =VLOOKUP($C21,'RECAP SECT'!$G$6:$CU$253,59,FALSE) -> 5 | R21: =VLOOKUP($C21,'RECAP SECT'!$G$6:$CU$253,60,FALSE) -> 21% | S21: =VLOOKUP($C21,'RECAP SECT'!$G$6:$CU$253,61,FALSE) -> 15% | T21: =VLOOKUP($C21,'RECAP SECT'!$G$6:$CU$253,62,FALSE) -> 4
A22: 110 | B22: MEURTHE ET MOSELLE MEUSE | C22: 31 | D22: VERDUN | E22: =VLOOKUP($C22,'RECAP SECT'!$G$6:$CU$253,3,FALSE) -> 48.1 | F22: =VLOOKUP($C22,'RECAP SECT'!$G$6:$CU$253,48,FALSE) -> 10,909 | G22: =VLOOKUP($C22,'RECAP SECT'!$G$6:$CU$253,49,FALSE) -> 226.94 | H22: =VLOOKUP($C22,'RECAP SECT'!$G$6:$CU$253,50,FALSE) -> 48% | I22: =VLOOKUP($C22,'RECAP SECT'!$G$6:$CU$253,51,FALSE) -> 10 | J22: =VLOOKUP($C22,'RECAP SECT'!$G$6:$CU$253,52,FALSE) -> 2,463 | K22: =VLOOKUP($C22,'RECAP SECT'!$G$6:$CU$253,53,FALSE) -> 51.24 | L22: =VLOOKUP($C22,'RECAP SECT'!$G$6:$CU$253,54,FALSE) -> 0% | M22: =VLOOKUP($C22,'RECAP SECT'!$G$6:$CU$253,55,FALSE) -> 1 | N22: =VLOOKUP($C22,'RECAP SECT'!$G$6:$CU$253,56,FALSE) -> 947 | O22: =VLOOKUP($C22,'RECAP SECT'!$G$6:$CU$253,57,FALSE) -> 19.70 | P22: =VLOOKUP($C22,'RECAP SECT'!$G$6:$CU$253,58,FALSE) -> 40% | Q22: =VLOOKUP($C22,'RECAP SECT'!$G$6:$CU$253,59,FALSE) -> 12 | R22: =VLOOKUP($C22,'RECAP SECT'!$G$6:$CU$253,60,FALSE) -> 31% | S22: =VLOOKUP($C22,'RECAP SECT'!$G$6:$CU$253,61,FALSE) -> 24% | T22: =VLOOKUP($C22,'RECAP SECT'!$G$6:$CU$253,62,FALSE) -> 9
A23: 160 | B23: MOSELLE | C23: 45 | D23: METZ | E23: =VLOOKUP($C23,'RECAP SECT'!$G$6:$CU$253,3,FALSE) -> 73.0 | F23: =VLOOKUP($C23,'RECAP SECT'!$G$6:$CU$253,48,FALSE) -> 19,722 | G23: =VLOOKUP($C23,'RECAP SECT'!$G$6:$CU$253,49,FALSE) -> 270.01 | H23: =VLOOKUP($C23,'RECAP SECT'!$G$6:$CU$253,50,FALSE) -> 38% | I23: =VLOOKUP($C23,'RECAP SECT'!$G$6:$CU$253,51,FALSE) -> 7 | J23: =VLOOKUP($C23,'RECAP SECT'!$G$6:$CU$253,52,FALSE) -> 3,382 | K23: =VLOOKUP($C23,'RECAP SECT'!$G$6:$CU$253,53,FALSE) -> 46.31 | L23: =VLOOKUP($C23,'RECAP SECT'!$G$6:$CU$253,54,FALSE) -> 10% | M23: =VLOOKUP($C23,'RECAP SECT'!$G$6:$CU$253,55,FALSE) -> 6 | N23: =VLOOKUP($C23,'RECAP SECT'!$G$6:$CU$253,56,FALSE) -> 1,548 | O23: =VLOOKUP($C23,'RECAP SECT'!$G$6:$CU$253,57,FALSE) -> 21.19 | P23: =VLOOKUP($C23,'RECAP SECT'!$G$6:$CU$253,58,FALSE) -> 36% | Q23: =VLOOKUP($C23,'RECAP SECT'!$G$6:$CU$253,59,FALSE) -> 8 | R23: =VLOOKUP($C23,'RECAP SECT'!$G$6:$CU$253,60,FALSE) -> 29% | S23: =VLOOKUP($C23,'RECAP SECT'!$G$6:$CU$253,61,FALSE) -> 23% | T23: =VLOOKUP($C23,'RECAP SECT'!$G$6:$CU$253,62,FALSE) -> 8
A24: 160 | B24: MOSELLE | C24: 42 | D24: MOSELLE EST | E24: =VLOOKUP($C24,'RECAP SECT'!$G$6:$CU$253,3,FALSE) -> 60.3 | F24: =VLOOKUP($C24,'RECAP SECT'!$G$6:$CU$253,48,FALSE) -> 16,440 | G24: =VLOOKUP($C24,'RECAP SECT'!$G$6:$CU$253,49,FALSE) -> 272.55 | H24: =VLOOKUP($C24,'RECAP SECT'!$G$6:$CU$253,50,FALSE) -> 37% | I24: =VLOOKUP($C24,'RECAP SECT'!$G$6:$CU$253,51,FALSE) -> 6 | J24: =VLOOKUP($C24,'RECAP SECT'!$G$6:$CU$253,52,FALSE) -> 3,016 | K24: =VLOOKUP($C24,'RECAP SECT'!$G$6:$CU$253,53,FALSE) -> 50.01 | L24: =VLOOKUP($C24,'RECAP SECT'!$G$6:$CU$253,54,FALSE) -> 2% | M24: =VLOOKUP($C24,'RECAP SECT'!$G$6:$CU$253,55,FALSE) -> 3 | N24: =VLOOKUP($C24,'RECAP SECT'!$G$6:$CU$253,56,FALSE) -> 1,318 | O24: =VLOOKUP($C24,'RECAP SECT'!$G$6:$CU$253,57,FALSE) -> 21.85 | P24: =VLOOKUP($C24,'RECAP SECT'!$G$6:$CU$253,58,FALSE) -> 34% | Q24: =VLOOKUP($C24,'RECAP SECT'!$G$6:$CU$253,59,FALSE) -> 7 | R24: =VLOOKUP($C24,'RECAP SECT'!$G$6:$CU$253,60,FALSE) -> 26% | S24: =VLOOKUP($C24,'RECAP SECT'!$G$6:$CU$253,61,FALSE) -> 19% | T24: =VLOOKUP($C24,'RECAP SECT'!$G$6:$CU$253,62,FALSE) -> 6
A25: 160 | B25: MOSELLE | C25: 44 | D25: MOSELLE NORD | E25: =VLOOKUP($C25,'RECAP SECT'!$G$6:$CU$253,3,FALSE) -> 57.6 | F25: =VLOOKUP($C25,'RECAP SECT'!$G$6:$CU$253,48,FALSE) -> 24,397 | G25: =VLOOKUP($C25,'RECAP SECT'!$G$6:$CU$253,49,FALSE) -> 423.34 | H25: =VLOOKUP($C25,'RECAP SECT'!$G$6:$CU$253,50,FALSE) -> 3% | I25: =VLOOKUP($C25,'RECAP SECT'!$G$6:$CU$253,51,FALSE) -> 2 | J25: =VLOOKUP($C25,'RECAP SECT'!$G$6:$CU$253,52,FALSE) -> 2,921 | K25: =VLOOKUP($C25,'RECAP SECT'!$G$6:$CU$253,53,FALSE) -> 50.69 | L25: =VLOOKUP($C25,'RECAP SECT'!$G$6:$CU$253,54,FALSE) -> 1% | M25: =VLOOKUP($C25,'RECAP SECT'!$G$6:$CU$253,55,FALSE) -> 2 | N25: =VLOOKUP($C25,'RECAP SECT'!$G$6:$CU$253,56,FALSE) -> 1,664 | O25: =VLOOKUP($C25,'RECAP SECT'!$G$6:$CU$253,57,FALSE) -> 28.87 | P25: =VLOOKUP($C25,'RECAP SECT'!$G$6:$CU$253,58,FALSE) -> 13% | Q25: =VLOOKUP($C25,'RECAP SECT'!$G$6:$CU$253,59,FALSE) -> 2 | R25: =VLOOKUP($C25,'RECAP SECT'!$G$6:$CU$253,60,FALSE) -> 6% | S25: =VLOOKUP($C25,'RECAP SECT'!$G$6:$CU$253,61,FALSE) -> 0% | T25: =VLOOKUP($C25,'RECAP SECT'!$G$6:$CU$253,62,FALSE) -> 2
A26: 80 | B26: VOSGES | C26: 57 | D26: EPINAL | E26: =VLOOKUP($C26,'RECAP SECT'!$G$6:$CU$253,3,FALSE) -> 53.1 | F26: =VLOOKUP($C26,'RECAP SECT'!$G$6:$CU$253,48,FALSE) -> 9,564 | G26: =VLOOKUP($C26,'RECAP SECT'!$G$6:$CU$253,49,FALSE) -> 180.14 | H26: =VLOOKUP($C26,'RECAP SECT'!$G$6:$CU$253,50,FALSE) -> 59% | I26: =VLOOKUP($C26,'RECAP SECT'!$G$6:$CU$253,51,FALSE) -> 14 | J26: =VLOOKUP($C26,'RECAP SECT'!$G$6:$CU$253,52,FALSE) -> 2,009 | K26: =VLOOKUP($C26,'RECAP SECT'!$G$6:$CU$253,53,FALSE) -> 37.84 | L26: =VLOOKUP($C26,'RECAP SECT'!$G$6:$CU$253,54,FALSE) -> 26% | M26: =VLOOKUP($C26,'RECAP SECT'!$G$6:$CU$253,55,FALSE) -> 15 | N26: =VLOOKUP($C26,'RECAP SECT'!$G$6:$CU$253,56,FALSE) -> 1,066 | O26: =VLOOKUP($C26,'RECAP SECT'!$G$6:$CU$253,57,FALSE) -> 20.08 | P26: =VLOOKUP($C26,'RECAP SECT'!$G$6:$CU$253,58,FALSE) -> 39% | Q26: =VLOOKUP($C26,'RECAP SECT'!$G$6:$CU$253,59,FALSE) -> 10 | R26: =VLOOKUP($C26,'RECAP SECT'!$G$6:$CU$253,60,FALSE) -> 41% | S26: =VLOOKUP($C26,'RECAP SECT'!$G$6:$CU$253,61,FALSE) -> 35% | T26: =VLOOKUP($C26,'RECAP SECT'!$G$6:$CU$253,62,FALSE) -> 12
A27: 80 | B27: VOSGES | C27: 55 | D27: SAINT DIE | E27: =VLOOKUP($C27,'RECAP SECT'!$G$6:$CU$253,3,FALSE) -> 40.1 | F27: =VLOOKUP($C27,'RECAP SECT'!$G$6:$CU$253,48,FALSE) -> 6,333 | G27: =VLOOKUP($C27,'RECAP SECT'!$G$6:$CU$253,49,FALSE) -> 157.82 | H27: =VLOOKUP($C27,'RECAP SECT'!$G$6:$CU$253,50,FALSE) -> 64% | I27: =VLOOKUP($C27,'RECAP SECT'!$G$6:$CU$253,51,FALSE) -> 16 | J27: =VLOOKUP($C27,'RECAP SECT'!$G$6:$CU$253,52,FALSE) -> 1,725 | K27: =VLOOKUP($C27,'RECAP SECT'!$G$6:$CU$253,53,FALSE) -> 42.99 | L27: =VLOOKUP($C27,'RECAP SECT'!$G$6:$CU$253,54,FALSE) -> 16% | M27: =VLOOKUP($C27,'RECAP SECT'!$G$6:$CU$253,55,FALSE) -> 9 | N27: =VLOOKUP($C27,'RECAP SECT'!$G$6:$CU$253,56,FALSE) -> 751 | O27: =VLOOKUP($C27,'RECAP SECT'!$G$6:$CU$253,57,FALSE) -> 18.71 | P27: =VLOOKUP($C27,'RECAP SECT'!$G$6:$CU$253,58,FALSE) -> 43% | Q27: =VLOOKUP($C27,'RECAP SECT'!$G$6:$CU$253,59,FALSE) -> 13 | R27: =VLOOKUP($C27,'RECAP SECT'!$G$6:$CU$253,60,FALSE) -> 41% | S27: =VLOOKUP($C27,'RECAP SECT'!$G$6:$CU$253,61,FALSE) -> 35% | T27: =VLOOKUP($C27,'RECAP SECT'!$G$6:$CU$253,62,FALSE) -> 13
A28: Total CEGEE Directions Régionales | E28: =SUM(E10:E27) -> 958

Sheet SE_IARD
B1: Accueil | F1: BAROMETRE BDD - TERRITOIRES
F2: IARD ET PREVOYANCE
F3: =ACCUEIL!F7 -> 2022-08-07
F7: Ventes Nettes produits pondérés | J7: Ventes sur client non détenteur de l’univers | N7: Total IARD Prévoyance
F8: =DATEMAJ!C23 -> au 07/08 | H8: coef | I8: ='RECAP DIRCOM'!BX4 -> 12% | J8: =DATEMAJ!C24 -> au 07/08 | L8: coef | M8: ='RECAP DIRCOM'!CB4 -> 8% | O8: coef | P8: ='RECAP DIRCOM'!CE4 -> 20%
B9: Direction | C9: eds | D9: Territoire | E9: ="ETP perf "&DATEMAJ!$C$28 -> ETP perf 07-août | F9: VN | G9: VN / ETP | H9: % Ecart au 1er | I9: Rang | J9: VB | K9: VB / ETP | L9: % Ecart au 1er | M9: Rang | N9: Moyenne ecart au 1er | O9: % Ecart au 1er | P9: Rang CEGEE
A10: 50 | B10: AUBE HAUTE MARNE | C10: 21 | D10: CHAUMONT | E10: =VLOOKUP($C10,'RECAP SECT'!$G$6:$CU$253,3,FALSE) -> 33.9 | F10: =VLOOKUP($C10,'RECAP SECT'!$G$6:$CU$253,67,FALSE) -> 4,545 | G10: =VLOOKUP($C10,'RECAP SECT'!$G$6:$CU$253,68,FALSE) -> 133.95 | H10: =VLOOKUP($C10,'RECAP SECT'!$G$6:$CU$253,69,FALSE) -> 20% | I10: =VLOOKUP($C10,'RECAP SECT'!$G$6:$CU$253,70,FALSE) -> 6 | J10: =VLOOKUP($C10,'RECAP SECT'!$G$6:$CU$253,71,FALSE) -> 1,126 | K10: =VLOOKUP($C10,'RECAP SECT'!$G$6:$CU$253,72,FALSE) -> 33.19 | L10: =VLOOKUP($C10,'RECAP SECT'!$G$6:$CU$253,73,FALSE) -> 27% | M10: =VLOOKUP($C10,'RECAP SECT'!$G$6:$CU$253,74,FALSE) -> 10 | N10: =VLOOKUP($C10,'RECAP SECT'!$G$6:$CU$253,75,FALSE) -> 23% | O10: =VLOOKUP($C10,'RECAP SECT'!$G$6:$CU$253,76,FALSE) -> 21% | P10: =VLOOKUP($C10,'RECAP SECT'!$G$6:$CU$253,77,FALSE) -> 8
A11: 50 | B11: AUBE HAUTE MARNE | C11: 14 | D11: TROYES | E11: =VLOOKUP($C11,'RECAP SECT'!$G$6:$CU$253,3,FALSE) -> 54.2 | F11: =VLOOKUP($C11,'RECAP SECT'!$G$6:$CU$253,67,FALSE) -> 4,304 | G11: =VLOOKUP($C11,'RECAP SECT'!$G$6:$CU$253,68,FALSE) -> 79.39 | H11: =VLOOKUP($C11,'RECAP SECT'!$G$6:$CU$253,69,FALSE) -> 52% | I11: =VLOOKUP($C11,'RECAP SECT'!$G$6:$CU$253,70,FALSE) -> 15 | J11: =VLOOKUP($C11,'RECAP SECT'!$G$6:$CU$253,71,FALSE) -> 1,701 | K11: =VLOOKUP($C11,'RECAP SECT'!$G$6:$CU$253,72,FALSE) -> 31.38 | L11: =VLOOKUP($C11,'RECAP SECT'!$G$6:$CU$253,73,FALSE) -> 31% | M11: =VLOOKUP($C11,'RECAP SECT'!$G$6:$CU$253,74,FALSE) -> 12 | N11: =VLOOKUP($C11,'RECAP SECT'!$G$6:$CU$253,75,FALSE) -> 44% | O11: =VLOOKUP($C11,'RECAP SECT'!$G$6:$CU$253,76,FALSE) -> 42% | P11: =VLOOKUP($C11,'RECAP SECT'!$G$6:$CU$253,77,FALSE) -> 14
A12: 262 | B12: BAS-RHIN | C12: 5060 | D12: HAGUENAU | E12: =VLOOKUP($C12,'RECAP SECT'!$G$6:$CU$253,3,FALSE) -> 57.0 | F12: =VLOOKUP($C12,'RECAP SECT'!$G$6:$CU$253,67,FALSE) -> 4,302 | G12: =VLOOKUP($C12,'RECAP SECT'!$G$6:$CU$253,68,FALSE) -> 75.54 | H12: =VLOOKUP($C12,'RECAP SECT'!$G$6:$CU$253,69,FALSE) -> 55% | I12: =VLOOKUP($C12,'RECAP SECT'!$G$6:$CU$253,70,FALSE) -> 16 | J12: =VLOOKUP($C12,'RECAP SECT'!$G$6:$CU$253,71,FALSE) -> 1,631 | K12: =VLOOKUP($C12,'RECAP SECT'!$G$6:$CU$253,72,FALSE) -> 28.64 | L12: =VLOOKUP($C12,'RECAP SECT'!$G$6:$CU$253,73,FALSE) -> 37% | M12: =VLOOKUP($C12,'RECAP SECT'!$G$6:$CU$253,74,FALSE) -> 16 | N12: =VLOOKUP($C12,'RECAP SECT'!$G$6:$CU$253,75,FALSE) -> 48% | O12: =VLOOKUP($C12,'RECAP SECT'!$G$6:$CU$253,76,FALSE) -> 46% | P12: =VLOOKUP($C12,'RECAP SECT'!$G$6:$CU$253,77,FALSE) -> 16
A13: 262 | B13: BAS-RHIN | C13: 5101 | D13: SELESTAT | E13: =VLOOKUP($C13,'RECAP SECT'!$G$6:$CU$253,3,FALSE) -> 51.1 | F13: =VLOOKUP($C13,'RECAP SECT'!$G$6:$CU$253,67,FALSE) -> 4,393 | G13: =VLOOKUP($C13,'RECAP SECT'!$G$6:$CU$253,68,FALSE) -> 85.94 | H13: =VLOOKUP($C13,'RECAP SECT'!$G$6:$CU$253,69,FALSE) -> 48% | I13: =VLOOKUP($C13,'RECAP SECT'!$G$6:$CU$253,70,FALSE) -> 12 | J13: =VLOOKUP($C13,'RECAP SECT'!$G$6:$CU$253,71,FALSE) -> 1,543 | K13: =VLOOKUP($C13,'RECAP SECT'!$G$6:$CU$253,72,FALSE) -> 30.18 | L13: =VLOOKUP($C13,'RECAP SECT'!$G$6:$CU$253,73,FALSE) -> 34% | M13: =VLOOKUP($C13,'RECAP SECT'!$G$6:$CU$253,74,FALSE) -> 14 | N13: =VLOOKUP($C13,'RECAP SECT'!$G$6:$CU$253,75,FALSE) -> 42% | O13: =VLOOKUP($C13,'RECAP SECT'!$G$6:$CU$253,76,FALSE) -> 41% | P13: =VLOOKUP($C13,'RECAP SECT'!$G$6:$CU$253,77,FALSE) -> 12
A14: 262 | B14: BAS-RHIN | C14: 5006 | D14: STRASBOURG | E14: =VLOOKUP($C14,'RECAP SECT'!$G$6:$CU$253,3,FALSE) -> 65.4 | F14: =VLOOKUP($C14,'RECAP SECT'!$G$6:$CU$253,67,FALSE) -> 7,940 | G14: =VLOOKUP($C14,'RECAP SECT'!$G$6:$CU$253,68,FALSE) -> 121.37 | H14: =VLOOKUP($C14,'RECAP SECT'!$G$6:$CU$253,69,FALSE) -> 27% | I14: =VLOOKUP($C14,'RECAP SECT'!$G$6:$CU$253,70,FALSE) -> 8 | J14: =VLOOKUP($C14,'RECAP SECT'!$G$6:$CU$253,71,FALSE) -> 2,851 | K14: =VLOOKUP($C14,'RECAP SECT'!$G$6:$CU$253,72,FALSE) -> 43.58 | L14: =VLOOKUP($C14,'RECAP SECT'!$G$6:$CU$253,73,FALSE) -> 4% | M14: =VLOOKUP($C14,'RECAP SECT'!$G$6:$CU$253,74,FALSE) -> 3 | N14: =VLOOKUP($C14,'RECAP SECT'!$G$6:$CU$253,75,FALSE) -> 18% | O14: =VLOOKUP($C14,'RECAP SECT'!$G$6:$CU$253,76,FALSE) -> 16% | P14: =VLOOKUP($C14,'RECAP SECT'!$G$6:$CU$253,77,FALSE) -> 6
A15: 264 | B15: HAUT-RHIN | C15: 5130 | D15: COLMAR | E15: =VLOOKUP($C15,'RECAP SECT'!$G$6:$CU$253,3,FALSE) -> 47.3 | F15: =VLOOKUP($C15,'RECAP SECT'!$G$6:$CU$253,67,FALSE) -> 2,660 | G15: =VLOOKUP($C15,'RECAP SECT'!$G$6:$CU$253,68,FALSE) -> 56.20 | H15: =VLOOKUP($C15,'RECAP SECT'!$G$6:$CU$253,69,FALSE) -> 66% | I15: =VLOOKUP($C15,'RECAP SECT'!$G$6:$CU$253,70,FALSE) -> 17 | J15: =VLOOKUP($C15,'RECAP SECT'!$G$6:$CU$253,71,FALSE) -> 1,289 | K15: =VLOOKUP($C15,'RECAP SECT'!$G$6:$CU$253,72,FALSE) -> 27.23 | L15: =VLOOKUP($C15,'RECAP SECT'!$G$6:$CU$253,73,FALSE) -> 40% | M15: =VLOOKUP($C15,'RECAP SECT'!$G$6:$CU$253,74,FALSE) -> 18 | N15: =VLOOKUP($C15,'RECAP SECT'!$G$6:$CU$253,75,FALSE) -> 56% | O15: =VLOOKUP($C15,'RECAP SECT'!$G$6:$CU$253,76,FALSE) -> 54% | P15: =VLOOKUP($C15,'RECAP SECT'!$G$6:$CU$253,77,FALSE) -> 17
A16: 264 | B16: HAUT-RHIN | C16: 5169 | D16: MULHOUSE | E16: =VLOOKUP($C16,'RECAP SECT'!$G$6:$CU$253,3,FALSE) -> 45.7 | F16: =VLOOKUP($C16,'RECAP SECT'!$G$6:$CU$253,67,FALSE) -> 854 | G16: =VLOOKUP($C16,'RECAP SECT'!$G$6:$CU$253,68,FALSE) -> 18.70 | H16: =VLOOKUP($C16,'RECAP SECT'!$G$6:$CU$253,69,FALSE) -> 89% | I16: =VLOOKUP($C16,'RECAP SECT'!$G$6:$CU$253,70,FALSE) -> 18 | J16: =VLOOKUP($C16,'RECAP SECT'!$G$6:$CU$253,71,FALSE) -> 1,323 | K16: =VLOOKUP($C16,'RECAP SECT'!$G$6:$CU$253,72,FALSE) -> 28.97 | L16: =VLOOKUP($C16,'RECAP SECT'!$G$6:$CU$253,73,FALSE) -> 36% | M16: =VLOOKUP($C16,'RECAP SECT'!$G$6:$CU$253,74,FALSE) -> 15 | N16: =VLOOKUP($C16,'RECAP SECT'!$G$6:$CU$253,75,FALSE) -> 68% | O16: =VLOOKUP($C16,'RECAP SECT'!$G$6:$CU$253,76,FALSE) -> 66% | P16: =VLOOKUP($C16,'RECAP SECT'!$G$6:$CU$253,77,FALSE) -> 18
A17: 30 | B17: MARNE-ARDENNES | C17: 6 | D17: CHALONS EN CHAMPAGNE | E17: =VLOOKUP($C17,'RECAP SECT'!$G$6:$CU$253,3,FALSE) -> 38.1 | F17: =VLOOKUP($C17,'RECAP SECT'!$G$6:$CU$253,67,FALSE) -> 5,229 | G17: =VLOOKUP($C17,'RECAP SECT'!$G$6:$CU$253,68,FALSE) -> 137.24 | H17: =VLOOKUP($C17,'RECAP SECT'!$G$6:$CU$253,69,FALSE) -> 18% | I17: =VLOOKUP($C17,'RECAP SECT'!$G$6:$CU$253,70,FALSE) -> 4 | J17: =VLOOKUP($C17,'RECAP SECT'!$G$6:$CU$253,71,FALSE) -> 1,451 | K17: =VLOOKUP($C17,'RECAP SECT'!$G$6:$CU$253,72,FALSE) -> 38.08 | L17: =VLOOKUP($C17,'RECAP SECT'!$G$6:$CU$253,73,FALSE) -> 16% | M17: =VLOOKUP($C17,'RECAP SECT'!$G$6:$CU$253,74,FALSE) -> 5 | N17: =VLOOKUP($C17,'RECAP SECT'!$G$6:$CU$253,75,FALSE) -> 17% | O17: =VLOOKUP($C17,'RECAP SECT'!$G$6:$CU$253,76,FALSE) -> 15% | P17: =VLOOKUP($C17,'RECAP SECT'!$G$6:$CU$253,77,FALSE) -> 4
A18: 30 | B18: MARNE-ARDENNES | C18: 2 | D18: CHARLEVILLE MEZIERES | E18: =VLOOKUP($C18,'RECAP SECT'!$G$6:$CU$253,3,FALSE) -> 49.0 | F18: =VLOOKUP($C18,'RECAP SECT'!$G$6:$CU$253,67,FALSE) -> 6,914 | G18: =VLOOKUP($C18,'RECAP SECT'!$G$6:$CU$253,68,FALSE) -> 141.10 | H18: =VLOOKUP($C18,'RECAP SECT'!$G$6:$CU$253,69,FALSE) -> 15% | I18: =VLOOKUP($C18,'RECAP SECT'!$G$6:$CU$253,70,FALSE) -> 3 | J18: =VLOOKUP($C18,'RECAP SECT'!$G$6:$CU$253,71,FALSE) -> 1,845 | K18: =VLOOKUP($C18,'RECAP SECT'!$G$6:$CU$253,72,FALSE) -> 37.65 | L18: =VLOOKUP($C18,'RECAP SECT'!$G$6:$CU$253,73,FALSE) -> 17% | M18: =VLOOKUP($C18,'RECAP SECT'!$G$6:$CU$253,74,FALSE) -> 7 | N18: =VLOOKUP($C18,'RECAP SECT'!$G$6:$CU$253,75,FALSE) -> 16% | O18: =VLOOKUP($C18,'RECAP SECT'!$G$6:$CU$253,76,FALSE) -> 14% | P18: =VLOOKUP($C18,'RECAP SECT'!$G$6:$CU$253,77,FALSE) -> 3
A19: 30 | B19: MARNE-ARDENNES | C19: 11 | D19: REIMS | E19: =VLOOKUP($C19,'RECAP SECT'!$G$6:$CU$253,3,FALSE) -> 68.3 | F19: =VLOOKUP($C19,'RECAP SECT'!$G$6:$CU$253,67,FALSE) -> 9,944 | G19: =VLOOKUP($C19,'RECAP SECT'!$G$6:$CU$253,68,FALSE) -> 145.51 | H19: =VLOOKUP($C19,'RECAP SECT'!$G$6:$CU$253,69,FALSE) -> 13% | I19: =VLOOKUP($C19,'RECAP SECT'!$G$6:$CU$253,70,FALSE) -> 2 | J19: =VLOOKUP($C19,'RECAP SECT'!$G$6:$CU$253,71,FALSE) -> 3,109 | K19: =VLOOKUP($C19,'RECAP SECT'!$G$6:$CU$253,72,FALSE) -> 45.49 | L19: =VLOOKUP($C19,'RECAP SECT'!$G$6:$CU$253,73,FALSE) -> 0% | M19: =VLOOKUP($C19,'RECAP SECT'!$G$6:$CU$253,74,FALSE) -> 1 | N19: =VLOOKUP($C19,'RECAP SECT'!$G$6:$CU$253,75,FALSE) -> 8% | O19: =VLOOKUP($C19,'RECAP SECT'!$G$6:$CU$253,76,FALSE) -> 6% | P19: =VLOOKUP($C19,'RECAP SECT'!$G$6:$CU$253,77,FALSE) -> 2
A20: 110 | B20: MEURTHE ET MOSELLE MEUSE | C20: 26 | D20: NANCY | E20: =VLOOKUP($C20,'RECAP SECT'!$G$6:$CU$253,3,FALSE) -> 55.5 | F20: =VLOOKUP($C20,'RECAP SECT'!$G$6:$CU$253,67,FALSE) -> 5,093 | G20: =VLOOKUP($C20,'RECAP SECT'!$G$6:$CU$253,68,FALSE) -> 91.78 | H20: =VLOOKUP($C20,'RECAP SECT'!$G$6:$CU$253,69,FALSE) -> 45% | I20: =VLOOKUP($C20,'RECAP SECT'!$G$6:$CU$253,70,FALSE) -> 11 | J20: =VLOOKUP($C20,'RECAP SECT'!$G$6:$CU$253,71,FALSE) -> 2,005 | K20: =VLOOKUP($C20,'RECAP SECT'!$G$6:$CU$253,72,FALSE) -> 36.13 | L20: =VLOOKUP($C20,'RECAP SECT'!$G$6:$CU$253,73,FALSE) -> 21% | M20: =VLOOKUP($C20,'RECAP SECT'!$G$6:$CU$253,74,FALSE) -> 8 | N20: =VLOOKUP($C20,'RECAP SECT'!$G$6:$CU$253,75,FALSE) -> 35% | O20: =VLOOKUP($C20,'RECAP SECT'!$G$6:$CU$253,76,FALSE) -> 34% | P20: =VLOOKUP($C20,'RECAP SECT'!$G$6:$CU$253,77,FALSE) -> 10
A21: 110 | B21: MEURTHE ET MOSELLE MEUSE | C21: 27 | D21: PONT A MOUSSON | E21: =VLOOKUP($C21,'RECAP SECT'!$G$6:$CU$253,3,FALSE) -> 60.0 | F21: =VLOOKUP($C21,'RECAP SECT'!$G$6:$CU$253,67,FALSE) -> 7,527 | G21: =VLOOKUP($C21,'RECAP SECT'!$G$6:$CU$253,68,FALSE) -> 125.49 | H21: =VLOOKUP($C21,'RECAP SECT'!$G$6:$CU$253,69,FALSE) -> 25% | I21: =VLOOKUP($C21,'RECAP SECT'!$G$6:$CU$253,70,FALSE) -> 7 | J21: =VLOOKUP($C21,'RECAP SECT'!$G$6:$CU$253,71,FALSE) -> 2,429 | K21: =VLOOKUP($C21,'RECAP SECT'!$G$6:$CU$253,72,FALSE) -> 40.50 | L21: =VLOOKUP($C21,'RECAP SECT'!$G$6:$CU$253,73,FALSE) -> 11% | M21: =VLOOKUP($C21,'RECAP SECT'!$G$6:$CU$253,74,FALSE) -> 4 | N21: =VLOOKUP($C21,'RECAP SECT'!$G$6:$CU$253,75,FALSE) -> 19% | O21: =VLOOKUP($C21,'RECAP SECT'!$G$6:$CU$253,76,FALSE) -> 18% | P21: =VLOOKUP($C21,'RECAP SECT'!$G$6:$CU$253,77,FALSE) -> 7
A22: 110 | B22: MEURTHE ET MOSELLE MEUSE | C22: 31 | D22: VERDUN | E22: =VLOOKUP($C22,'RECAP SECT'!$G$6:$CU$253,3,FALSE) -> 48.1 | F22: =VLOOKUP($C22,'RECAP SECT'!$G$6:$CU$253,67,FALSE) -> 4,756 | G22: =VLOOKUP($C22,'RECAP SECT'!$G$6:$CU$253,68,FALSE) -> 98.94 | H22: =VLOOKUP($C22,'RECAP SECT'!$G$6:$CU$253,69,FALSE) -> 41% | I22: =VLOOKUP($C22,'RECAP SECT'!$G$6:$CU$253,70,FALSE) -> 10 | J22: =VLOOKUP($C22,'RECAP SECT'!$G$6:$CU$253,71,FALSE) -> 1,543 | K22: =VLOOKUP($C22,'RECAP SECT'!$G$6:$CU$253,72,FALSE) -> 32.10 | L22: =VLOOKUP($C22,'RECAP SECT'!$G$6:$CU$253,73,FALSE) -> 29% | M22: =VLOOKUP($C22,'RECAP SECT'!$G$6:$CU$253,74,FALSE) -> 11 | N22: =VLOOKUP($C22,'RECAP SECT'!$G$6:$CU$253,75,FALSE) -> 36% | O22: =VLOOKUP($C22,'RECAP SECT'!$G$6:$CU$253,76,FALSE) -> 35% | P22: =VLOOKUP($C22,'RECAP SECT'!$G$6:$CU$253,77,FALSE) -> 11
A23: 160 | B23: MOSELLE | C23: 45 | D23: METZ | E23: =VLOOKUP($C23,'RECAP SECT'!$G$6:$CU$253,3,FALSE) -> 73.0 | F23: =VLOOKUP($C23,'RECAP SECT'!$G$6:$CU$253,67,FALSE) -> 7,865 | G23: =VLOOKUP($C23,'RECAP SECT'!$G$6:$CU$253,68,FALSE) -> 107.68 | H23: =VLOOKUP($C23,'RECAP SECT'!$G$6:$CU$253,69,FALSE) -> 35% | I23: =VLOOKUP($C23,'RECAP SECT'!$G$6:$CU$253,70,FALSE) -> 9 | J23: =VLOOKUP($C23,'RECAP SECT'!$G$6:$CU$253,71,FALSE) -> 2,528 | K23: =VLOOKUP($C23,'RECAP SECT'!$G$6:$CU$253,72,FALSE) -> 34.61 | L23: =VLOOKUP($C23,'RECAP SECT'!$G$6:$CU$253,73,FALSE) -> 24% | M23: =VLOOKUP($C23,'RECAP SECT'!$G$6:$CU$253,74,FALSE) -> 9 | N23: =VLOOKUP($C23,'RECAP SECT'!$G$6:$CU$253,75,FALSE) -> 31% | O23: =VLOOKUP($C23,'RECAP SECT'!$G$6:$CU$253,76,FALSE) -> 29% | P23: =VLOOKUP($C23,'RECAP SECT'!$G$6:$CU$253,77,FALSE) -> 9
A24: 160 | B24: MOSELLE | C24: 42 | D24: MOSELLE EST | E24: =VLOOKUP($C24,'RECAP SECT'!$G$6:$CU$253,3,FALSE) -> 60.3 | F24: =VLOOKUP($C24,'RECAP SECT'!$G$6:$CU$253,67,FALSE) -> 8,250 | G24: =VLOOKUP($C24,'RECAP SECT'!$G$6:$CU$253,68,FALSE) -> 136.77 | H24: =VLOOKUP($C24,'RECAP SECT'!$G$6:$CU$253,69,FALSE) -> 18% | I24: =VLOOKUP($C24,'RECAP SECT'!$G$6:$CU$253,70,FALSE) -> 5 | J24: =VLOOKUP($C24,'RECAP SECT'!$G$6:$CU$253,71,FALSE) -> 2,272 | K24: =VLOOKUP($C24,'RECAP SECT'!$G$6:$CU$253,72,FALSE) -> 37.67 | L24: =VLOOKUP($C24,'RECAP SECT'!$G$6:$CU$253,73,FALSE) -> 17% | M24: =VLOOKUP($C24,'RECAP SECT'!$G$6:$CU$253,74,FALSE) -> 6 | N24: =VLOOKUP($C24,'RECAP SECT'!$G$6:$CU$253,75,FALSE) -> 18% | O24: =VLOOKUP($C24,'RECAP SECT'!$G$6:$CU$253,76,FALSE) -> 16% | P24: =VLOOKUP($C24,'RECAP SECT'!$G$6:$CU$253,77,FALSE) -> 5
A25: 160 | B25: MOSELLE | C25: 44 | D25: MOSELLE NORD | E25: =VLOOKUP($C25,'RECAP SECT'!$G$6:$CU$253,3,FALSE) -> 57.6 | F25: =VLOOKUP($C25,'RECAP SECT'!$G$6:$CU$253,67,FALSE) -> 9,593 | G25: =VLOOKUP($C25,'RECAP SECT'!$G$6:$CU$253,68,FALSE) -> 166.46 | H25: =VLOOKUP($C25,'RECAP SECT'!$G$6:$CU$253,69,FALSE) -> 0% | I25: =VLOOKUP($C25,'RECAP SECT'!$G$6:$CU$253,70,FALSE) -> 1 | J25: =VLOOKUP($C25,'RECAP SECT'!$G$6:$CU$253,71,FALSE) -> 2,518 | K25: =VLOOKUP($C25,'RECAP SECT'!$G$6:$CU$253,72,FALSE) -> 43.69 | L25: =VLOOKUP($C25,'RECAP SECT'!$G$6:$CU$253,73,FALSE) -> 4% | M25: =VLOOKUP($C25,'RECAP SECT'!$G$6:$CU$253,74,FALSE) -> 2 | N25: =VLOOKUP($C25,'RECAP SECT'!$G$6:$CU$253,75,FALSE) -> 2% | O25: =VLOOKUP($C25,'RECAP SECT'!$G$6:$CU$253,76,FALSE) -> 0% | P25: =VLOOKUP($C25,'RECAP SECT'!$G$6:$CU$253,77,FALSE) -> 1
A26: 80 | B26: VOSGES | C26: 57 | D26: EPINAL | E26: =VLOOKUP($C26,'RECAP SECT'!$G$6:$CU$253,3,FALSE) -> 53.1 | F26: =VLOOKUP($C26,'RECAP SECT'!$G$6:$CU$253,67,FALSE) -> 4,456 | G26: =VLOOKUP($C26,'RECAP SECT'!$G$6:$CU$253,68,FALSE) -> 83.93 | H26: =VLOOKUP($C26,'RECAP SECT'!$G$6:$CU$253,69,FALSE) -> 50% | I26: =VLOOKUP($C26,'RECAP SECT'!$G$6:$CU$253,70,FALSE) -> 13 | J26: =VLOOKUP($C26,'RECAP SECT'!$G$6:$CU$253,71,FALSE) -> 1,605 | K26: =VLOOKUP($C26,'RECAP SECT'!$G$6:$CU$253,72,FALSE) -> 30.23 | L26: =VLOOKUP($C26,'RECAP SECT'!$G$6:$CU$253,73,FALSE) -> 34% | M26: =VLOOKUP($C26,'RECAP SECT'!$G$6:$CU$253,74,FALSE) -> 13 | N26: =VLOOKUP($C26,'RECAP SECT'!$G$6:$CU$253,75,FALSE) -> 43% | O26: =VLOOKUP($C26,'RECAP SECT'!$G$6:$CU$253,76,FALSE) -> 42% | P26: =VLOOKUP($C26,'RECAP SECT'!$G$6:$CU$253,77,FALSE) -> 13
A27: 80 | B27: VOSGES | C27: 55 | D27: SAINT DIE | E27: =VLOOKUP($C27,'RECAP SECT'!$G$6:$CU$253,3,FALSE) -> 40.1 | F27: =VLOOKUP($C27,'RECAP SECT'!$G$6:$CU$253,67,FALSE) -> 3,281 | G27: =VLOOKUP($C27,'RECAP SECT'!$G$6:$CU$253,68,FALSE) -> 81.76 | H27: =VLOOKUP($C27,'RECAP SECT'!$G$6:$CU$253,69,FALSE) -> 51% | I27: =VLOOKUP($C27,'RECAP SECT'!$G$6:$CU$253,70,FALSE) -> 14 | J27: =VLOOKUP($C27,'RECAP SECT'!$G$6:$CU$253,71,FALSE) -> 1,134 | K27: =VLOOKUP($C27,'RECAP SECT'!$G$6:$CU$253,72,FALSE) -> 28.26 | L27: =VLOOKUP($C27,'RECAP SECT'!$G$6:$CU$253,73,FALSE) -> 38% | M27: =VLOOKUP($C27,'RECAP SECT'!$G$6:$CU$253,74,FALSE) -> 17 | N27: =VLOOKUP($C27,'RECAP SECT'!$G$6:$CU$253,75,FALSE) -> 46% | O27: =VLOOKUP($C27,'RECAP SECT'!$G$6:$CU$253,76,FALSE) -> 44% | P27: =VLOOKUP($C27,'RECAP SECT'!$G$6:$CU$253,77,FALSE) -> 15
A28: Total CEGEE Directions Régionales | E28: =SUM(E10:E27) -> 958

Sheet SE_SATISFACTION
B1: Accueil | F1: BAROMETRE BDD - TERRITOIRES
F2: SATISFACTION
F3: =ACCUEIL!F7 -> 2022-08-07
F7: NPS à froid (SAE) | I7: NPS à chaud (QHD) | L7: Total Satisfaction Clients
F8: =DATEMAJ!E4 -> au 30/06 | G8: coef | H8: ='RECAP DIRCOM'!M4 -> 10% | I8: =DATEMAJ!C5 -> au 30/06 | J8: coef | K8: ='RECAP DIRCOM'!P4 -> 10% | M8: coef | N8: ='RECAP DIRCOM'!S4 -> 20%
B9: Direction | C9: eds | D9: Territoire | E9: ="ETP perf "&DATEMAJ!$C$28 -> ETP perf 07-août | G9: % Ecart au 1er | H9: Rang | J9: % Ecart au 1er | K9: Rang | L9: Moyenne ecart au 1er | M9: % Ecart au 1er | N9: Rang CEGEE
A10: 50 | B10: AUBE HAUTE MARNE | C10: 21 | D10: CHAUMONT | E10: =VLOOKUP($C10,'RECAP SECT'!$G$6:$CU$253,3,FALSE) -> 33.9 | F10: =VLOOKUP($C10,'RECAP SECT'!$G$6:$CU$253,5,FALSE) -> 17.75 | G10: =VLOOKUP($C10,'RECAP SECT'!$G$6:$CU$253,6,FALSE) -> 32% | H10: =VLOOKUP($C10,'RECAP SECT'!$G$6:$CU$253,7,FALSE) -> 6 | I10: =VLOOKUP($C10,'RECAP SECT'!$G$6:$CU$253,8,FALSE) -> 66% | J10: =VLOOKUP($C10,'RECAP SECT'!$G$6:$CU$253,9,FALSE) -> 12% | K10: =VLOOKUP($C10,'RECAP SECT'!$G$6:$CU$253,10,FALSE) -> 8 | L10: =VLOOKUP($C10,'RECAP SECT'!$G$6:$CU$253,11,FALSE) -> 22% | M10: =VLOOKUP($C10,'RECAP SECT'!$G$6:$CU$253,12,FALSE) -> 22% | N10: =VLOOKUP($C10,'RECAP SECT'!$G$6:$CU$253,13,FALSE) -> 6
A11: 50 | B11: AUBE HAUTE MARNE | C11: 14 | D11: TROYES | E11: =VLOOKUP($C11,'RECAP SECT'!$G$6:$CU$253,3,FALSE) -> 54.2 | F11: =VLOOKUP($C11,'RECAP SECT'!$G$6:$CU$253,5,FALSE) -> 0 | G11: =VLOOKUP($C11,'RECAP SECT'!$G$6:$CU$253,6,FALSE) -> 100% | H11: =VLOOKUP($C11,'RECAP SECT'!$G$6:$CU$253,7,FALSE) -> 18 | I11: =VLOOKUP($C11,'RECAP SECT'!$G$6:$CU$253,8,FALSE) -> 48% | J11: =VLOOKUP($C11,'RECAP SECT'!$G$6:$CU$253,9,FALSE) -> 35% | K11: =VLOOKUP($C11,'RECAP SECT'!$G$6:$CU$253,10,FALSE) -> 17 | L11: =VLOOKUP($C11,'RECAP SECT'!$G$6:$CU$253,11,FALSE) -> 67% | M11: =VLOOKUP($C11,'RECAP SECT'!$G$6:$CU$253,12,FALSE) -> 67% | N11: =VLOOKUP($C11,'RECAP SECT'!$G$6:$CU$253,13,FALSE) -> 18
A12: 262 | B12: BAS-RHIN | C12: 5060 | D12: HAGUENAU | E12: =VLOOKUP($C12,'RECAP SECT'!$G$6:$CU$253,3,FALSE) -> 57.0 | F12: =VLOOKUP($C12,'RECAP SECT'!$G$6:$CU$253,5,FALSE) -> 11.25 | G12: =VLOOKUP($C12,'RECAP SECT'!$G$6:$CU$253,6,FALSE) -> 57% | H12: =VLOOKUP($C12,'RECAP SECT'!$G$6:$CU$253,7,FALSE) -> 10 | I12: =VLOOKUP($C12,'RECAP SECT'!$G$6:$CU$253,8,FALSE) -> 62% | J12: =VLOOKUP($C12,'RECAP SECT'!$G$6:$CU$253,9,FALSE) -> 17% | K12: =VLOOKUP($C12,'RECAP SECT'!$G$6:$CU$253,10,FALSE) -> 11 | L12: =VLOOKUP($C12,'RECAP SECT'!$G$6:$CU$253,11,FALSE) -> 37% | M12: =VLOOKUP($C12,'RECAP SECT'!$G$6:$CU$253,12,FALSE) -> 37% | N12: =VLOOKUP($C12,'RECAP SECT'!$G$6:$CU$253,13,FALSE) -> 11
A13: 262 | B13: BAS-RHIN | C13: 5101 | D13: SELESTAT | E13: =VLOOKUP($C13,'RECAP SECT'!$G$6:$CU$253,3,FALSE) -> 51.1 | F13: =VLOOKUP($C13,'RECAP SECT'!$G$6:$CU$253,5,FALSE) -> 1.5 | G13: =VLOOKUP($C13,'RECAP SECT'!$G$6:$CU$253,6,FALSE) -> 94% | H13: =VLOOKUP($C13,'RECAP SECT'!$G$6:$CU$253,7,FALSE) -> 17 | I13: =VLOOKUP($C13,'RECAP SECT'!$G$6:$CU$253,8,FALSE) -> 59% | J13: =VLOOKUP($C13,'RECAP SECT'!$G$6:$CU$253,9,FALSE) -> 20% | K13: =VLOOKUP($C13,'RECAP SECT'!$G$6:$CU$253,10,FALSE) -> 14 | L13: =VLOOKUP($C13,'RECAP SECT'!$G$6:$CU$253,11,FALSE) -> 57% | M13: =VLOOKUP($C13,'RECAP SECT'!$G$6:$CU$253,12,FALSE) -> 57% | N13: =VLOOKUP($C13,'RECAP SECT'!$G$6:$CU$253,13,FALSE) -> 15
A14: 262 | B14: BAS-RHIN | C14: 5006 | D14: STRASBOURG | E14: =VLOOKUP($C14,'RECAP SECT'!$G$6:$CU$253,3,FALSE) -> 65.4 | F14: =VLOOKUP($C14,'RECAP SECT'!$G$6:$CU$253,5,FALSE) -> 9.75 | G14: =VLOOKUP($C14,'RECAP SECT'!$G$6:$CU$253,6,FALSE) -> 63% | H14: =VLOOKUP($C14,'RECAP SECT'!$G$6:$CU$253,7,FALSE) -> 12 | I14: =VLOOKUP($C14,'RECAP SECT'!$G$6:$CU$253,8,FALSE) -> 66% | J14: =VLOOKUP($C14,'RECAP SECT'!$G$6:$CU$253,9,FALSE) -> 11% | K14: =VLOOKUP($C14,'RECAP SECT'!$G$6:$CU$253,10,FALSE) -> 7 | L14: =VLOOKUP($C14,'RECAP SECT'!$G$6:$CU$253,11,FALSE) -> 37% | M14: =VLOOKUP($C14,'RECAP SECT'!$G$6:$CU$253,12,FALSE) -> 37% | N14: =VLOOKUP($C14,'RECAP SECT'!$G$6:$CU$253,13,FALSE) -> 10
A15: 264 | B15: HAUT-RHIN | C15: 5130 | D15: COLMAR | E15: =VLOOKUP($C15,'RECAP SECT'!$G$6:$CU$253,3,FALSE) -> 47.3 | F15: =VLOOKUP($C15,'RECAP SECT'!$G$6:$CU$253,5,FALSE) -> 2.75 | G15: =VLOOKUP($C15,'RECAP SECT'!$G$6:$CU$253,6,FALSE) -> 90% | H15: =VLOOKUP($C15,'RECAP SECT'!$G$6:$CU$253,7,FALSE) -> 16 | I15: =VLOOKUP($C15,'RECAP SECT'!$G$6:$CU$253,8,FALSE) -> 54% | J15: =VLOOKUP($C15,'RECAP SECT'!$G$6:$CU$253,9,FALSE) -> 28% | K15: =VLOOKUP($C15,'RECAP SECT'!$G$6:$CU$253,10,FALSE) -> 16 | L15: =VLOOKUP($C15,'RECAP SECT'!$G$6:$CU$253,11,FALSE) -> 59% | M15: =VLOOKUP($C15,'RECAP SECT'!$G$6:$CU$253,12,FALSE) -> 59% | N15: =VLOOKUP($C15,'RECAP SECT'!$G$6:$CU$253,13,FALSE) -> 16
A16: 264 | B16: HAUT-RHIN | C16: 5169 | D16: MULHOUSE | E16: =VLOOKUP($C16,'RECAP SECT'!$G$6:$CU$253,3,FALSE) -> 45.7 | F16: =VLOOKUP($C16,'RECAP SECT'!$G$6:$CU$253,5,FALSE) -> 3 | G16: =VLOOKUP($C16,'RECAP SECT'!$G$6:$CU$253,6,FALSE) -> 89% | H16: =VLOOKUP($C16,'RECAP SECT'!$G$6:$CU$253,7,FALSE) -> 15 | I16: =VLOOKUP($C16,'RECAP SECT'!$G$6:$CU$253,8,FALSE) -> 47% | J16: =VLOOKUP($C16,'RECAP SECT'!$G$6:$CU$253,9,FALSE) -> 37% | K16: =VLOOKUP($C16,'RECAP SECT'!$G$6:$CU$253,10,FALSE) -> 18 | L16: =VLOOKUP($C16,'RECAP SECT'!$G$6:$CU$253,11,FALSE) -> 63% | M16: =VLOOKUP($C16,'RECAP SECT'!$G$6:$CU$253,12,FALSE) -> 63% | N16: =VLOOKUP($C16,'RECAP SECT'!$G$6:$CU$253,13,FALSE) -> 17
A17: 30 | B17: MARNE-ARDENNES | C17: 6 | D17: CHALONS EN CHAMPAGNE | E17: =VLOOKUP($C17,'RECAP SECT'!$G$6:$CU$253,3,FALSE) -> 38.1 | F17: =VLOOKUP($C17,'RECAP SECT'!$G$6:$CU$253,5,FALSE) -> 26.25 | G17: =VLOOKUP($C17,'RECAP SECT'!$G$6:$CU$253,6,FALSE) -> 0% | H17: =VLOOKUP($C17,'RECAP SECT'!$G$6:$CU$253,7,FALSE) -> 1 | I17: =VLOOKUP($C17,'RECAP SECT'!$G$6:$CU$253,8,FALSE) -> 74% | J17: =VLOOKUP($C17,'RECAP SECT'!$G$6:$CU$253,9,FALSE) -> 0% | K17: =VLOOKUP($C17,'RECAP SECT'!$G$6:$CU$253,10,FALSE) -> 1 | L17: =VLOOKUP($C17,'RECAP SECT'!$G$6:$CU$253,11,FALSE) -> 0% | M17: =VLOOKUP($C17,'RECAP SECT'!$G$6:$CU$253,12,FALSE) -> 0% | N17: =VLOOKUP($C17,'RECAP SECT'!$G$6:$CU$253,13,FALSE) -> 1
A18: 30 | B18: MARNE-ARDENNES | C18: 2 | D18: CHARLEVILLE MEZIERES | E18: =VLOOKUP($C18,'RECAP SECT'!$G$6:$CU$253,3,FALSE) -> 49.0 | F18: =VLOOKUP($C18,'RECAP SECT'!$G$6:$CU$253,5,FALSE) -> 14.5 | G18: =VLOOKUP($C18,'RECAP SECT'!$G$6:$CU$253,6,FALSE) -> 45% | H18: =VLOOKUP($C18,'RECAP SECT'!$G$6:$CU$253,7,FALSE) -> 9 | I18: =VLOOKUP($C18,'RECAP SECT'!$G$6:$CU$253,8,FALSE) -> 66% | J18: =VLOOKUP($C18,'RECAP SECT'!$G$6:$CU$253,9,FALSE) -> 11% | K18: =VLOOKUP($C18,'RECAP SECT'!$G$6:$CU$253,10,FALSE) -> 6 | L18: =VLOOKUP($C18,'RECAP SECT'!$G$6:$CU$253,11,FALSE) -> 28% | M18: =VLOOKUP($C18,'RECAP SECT'!$G$6:$CU$253,12,FALSE) -> 28% | N18: =VLOOKUP($C18,'RECAP SECT'!$G$6:$CU$253,13,FALSE) -> 8
A19: 30 | B19: MARNE-ARDENNES | C19: 11 | D19: REIMS | E19: =VLOOKUP($C19,'RECAP SECT'!$G$6:$CU$253,3,FALSE) -> 68.3 | F19: =VLOOKUP($C19,'RECAP SECT'!$G$6:$CU$253,5,FALSE) -> 16.25 | G19: =VLOOKUP($C19,'RECAP SECT'!$G$6:$CU$253,6,FALSE) -> 38% | H19: =VLOOKUP($C19,'RECAP SECT'!$G$6:$CU$253,7,FALSE) -> 7 | I19: =VLOOKUP($C19,'RECAP SECT'!$G$6:$CU$253,8,FALSE) -> 63% | J19: =VLOOKUP($C19,'RECAP SECT'!$G$6:$CU$253,9,FALSE) -> 15% | K19: =VLOOKUP($C19,'RECAP SECT'!$G$6:$CU$253,10,FALSE) -> 9 | L19: =VLOOKUP($C19,'RECAP SECT'!$G$6:$CU$253,11,FALSE) -> 27% | M19: =VLOOKUP($C19,'RECAP SECT'!$G$6:$CU$253,12,FALSE) -> 27% | N19: =VLOOKUP($C19,'RECAP SECT'!$G$6:$CU$253,13,FALSE) -> 7
A20: 110 | B20: MEURTHE ET MOSELLE MEUSE | C20: 26 | D20: NANCY | E20: =VLOOKUP($C20,'RECAP SECT'!$G$6:$CU$253,3,FALSE) -> 55.5 | F20: =VLOOKUP($C20,'RECAP SECT'!$G$6:$CU$253,5,FALSE) -> 10.75 | G20: =VLOOKUP($C20,'RECAP SECT'!$G$6:$CU$253,6,FALSE) -> 59% | H20: =VLOOKUP($C20,'RECAP SECT'!$G$6:$CU$253,7,FALSE) -> 11 | I20: =VLOOKUP($C20,'RECAP SECT'!$G$6:$CU$253,8,FALSE) -> 62% | J20: =VLOOKUP($C20,'RECAP SECT'!$G$6:$CU$253,9,FALSE) -> 16% | K20: =VLOOKUP($C20,'RECAP SECT'!$G$6:$CU$253,10,FALSE) -> 10 | L20: =VLOOKUP($C20,'RECAP SECT'!$G$6:$CU$253,11,FALSE) -> 37% | M20: =VLOOKUP($C20,'RECAP SECT'!$G$6:$CU$253,12,FALSE) -> 37% | N20: =VLOOKUP($C20,'RECAP SECT'!$G$6:$CU$253,13,FALSE) -> 12
A21: 110 | B21: MEURTHE ET MOSELLE MEUSE | C21: 27 | D21: PONT A MOUSSON | E21: =VLOOKUP($C21,'RECAP SECT'!$G$6:$CU$253,3,FALSE) -> 60.0 | F21: =VLOOKUP($C21,'RECAP SECT'!$G$6:$CU$253,5,FALSE) -> 3.5 | G21: =VLOOKUP($C21,'RECAP SECT'!$G$6:$CU$253,6,FALSE) -> 87% | H21: =VLOOKUP($C21,'RECAP SECT'!$G$6:$CU$253,7,FALSE) -> 14 | I21: =VLOOKUP($C21,'RECAP SECT'!$G$6:$CU$253,8,FALSE) -> 54% | J21: =VLOOKUP($C21,'RECAP SECT'!$G$6:$CU$253,9,FALSE) -> 27% | K21: =VLOOKUP($C21,'RECAP SECT'!$G$6:$CU$253,10,FALSE) -> 15 | L21: =VLOOKUP($C21,'RECAP SECT'!$G$6:$CU$253,11,FALSE) -> 57% | M21: =VLOOKUP($C21,'RECAP SECT'!$G$6:$CU$253,12,FALSE) -> 57% | N21: =VLOOKUP($C21,'RECAP SECT'!$G$6:$CU$253,13,FALSE) -> 14
A22: 110 | B22: MEURTHE ET MOSELLE MEUSE | C22: 31 | D22: VERDUN | E22: =VLOOKUP($C22,'RECAP SECT'!$G$6:$CU$253,3,FALSE) -> 48.1 | F22: =VLOOKUP($C22,'RECAP SECT'!$G$6:$CU$253,5,FALSE) -> 22 | G22: =VLOOKUP($C22,'RECAP SECT'!$G$6:$CU$253,6,FALSE) -> 16% | H22: =VLOOKUP($C22,'RECAP SECT'!$G$6:$CU$253,7,FALSE) -> 4 | I22: =VLOOKUP($C22,'RECAP SECT'!$G$6:$CU$253,8,FALSE) -> 67% | J22: =VLOOKUP($C22,'RECAP SECT'!$G$6:$CU$253,9,FALSE) -> 10% | K22: =VLOOKUP($C22,'RECAP SECT'!$G$6:$CU$253,10,FALSE) -> 5 | L22: =VLOOKUP($C22,'RECAP SECT'!$G$6:$CU$253,11,FALSE) -> 13% | M22: =VLOOKUP($C22,'RECAP SECT'!$G$6:$CU$253,12,FALSE) -> 13% | N22: =VLOOKUP($C22,'RECAP SECT'!$G$6:$CU$253,13,FALSE) -> 4
A23: 160 | B23: MOSELLE | C23: 45 | D23: METZ | E23: =VLOOKUP($C23,'RECAP SECT'!$G$6:$CU$253,3,FALSE) -> 73.0 | F23: =VLOOKUP($C23,'RECAP SECT'!$G$6:$CU$253,5,FALSE) -> 15.25 | G23: =VLOOKUP($C23,'RECAP SECT'!$G$6:$CU$253,6,FALSE) -> 42% | H23: =VLOOKUP($C23,'RECAP SECT'!$G$6:$CU$253,7,FALSE) -> 8 | I23: =VLOOKUP($C23,'RECAP SECT'!$G$6:$CU$253,8,FALSE) -> 61% | J23: =VLOOKUP($C23,'RECAP SECT'!$G$6:$CU$253,9,FALSE) -> 18% | K23: =VLOOKUP($C23,'RECAP SECT'!$G$6:$CU$253,10,FALSE) -> 13 | L23: =VLOOKUP($C23,'RECAP SECT'!$G$6:$CU$253,11,FALSE) -> 30% | M23: =VLOOKUP($C23,'RECAP SECT'!$G$6:$CU$253,12,FALSE) -> 30% | N23: =VLOOKUP($C23,'RECAP SECT'!$G$6:$CU$253,13,FALSE) -> 9
A24: 160 | B24: MOSELLE | C24: 42 | D24: MOSELLE EST | E24: =VLOOKUP($C24,'RECAP SECT'!$G$6:$CU$253,3,FALSE) -> 60.3 | F24: =VLOOKUP($C24,'RECAP SECT'!$G$6:$CU$253,5,FALSE) -> 20 | G24: =VLOOKUP($C24,'RECAP SECT'!$G$6:$CU$253,6,FALSE) -> 24% | H24: =VLOOKUP($C24,'RECAP SECT'!$G$6:$CU$253,7,FALSE) -> 5 | I24: =VLOOKUP($C24,'RECAP SECT'!$G$6:$CU$253,8,FALSE) -> 68% | J24: =VLOOKUP($C24,'RECAP SECT'!$G$6:$CU$253,9,FALSE) -> 9% | K24: =VLOOKUP($C24,'RECAP SECT'!$G$6:$CU$253,10,FALSE) -> 4 | L24: =VLOOKUP($C24,'RECAP SECT'!$G$6:$CU$253,11,FALSE) -> 16% | M24: =VLOOKUP($C24,'RECAP SECT'!$G$6:$CU$253,12,FALSE) -> 16% | N24: =VLOOKUP($C24,'RECAP SECT'!$G$6:$CU$253,13,FALSE) -> 5
A25: 160 | B25: MOSELLE | C25: 44 | D25: MOSELLE NORD | E25: =VLOOKUP($C25,'RECAP SECT'!$G$6:$CU$253,3,FALSE) -> 57.6 | F25: =VLOOKUP($C25,'RECAP SECT'!$G$6:$CU$253,5,FALSE) -> 8.25 | G25: =VLOOKUP($C25,'RECAP SECT'!$G$6:$CU$253,6,FALSE) -> 69% | H25: =VLOOKUP($C25,'RECAP SECT'!$G$6:$CU$253,7,FALSE) -> 13 | I25: =VLOOKUP($C25,'RECAP SECT'!$G$6:$CU$253,8,FALSE) -> 61% | J25: =VLOOKUP($C25,'RECAP SECT'!$G$6:$CU$253,9,FALSE) -> 17% | K25: =VLOOKUP($C25,'RECAP SECT'!$G$6:$CU$253,10,FALSE) -> 12 | L25: =VLOOKUP($C25,'RECAP SECT'!$G$6:$CU$253,11,FALSE) -> 43% | M25: =VLOOKUP($C25,'RECAP SECT'!$G$6:$CU$253,12,FALSE) -> 43% | N25: =VLOOKUP($C25,'RECAP SECT'!$G$6:$CU$253,13,FALSE) -> 13
A26: 80 | B26: VOSGES | C26: 57 | D26: EPINAL | E26: =VLOOKUP($C26,'RECAP SECT'!$G$6:$CU$253,3,FALSE) -> 53.1 | F26: =VLOOKUP($C26,'RECAP SECT'!$G$6:$CU$253,5,FALSE) -> 23.5 | G26: =VLOOKUP($C26,'RECAP SECT'!$G$6:$CU$253,6,FALSE) -> 10% | H26: =VLOOKUP($C26,'RECAP SECT'!$G$6:$CU$253,7,FALSE) -> 3 | I26: =VLOOKUP($C26,'RECAP SECT'!$G$6:$CU$253,8,FALSE) -> 69% | J26: =VLOOKUP($C26,'RECAP SECT'!$G$6:$CU$253,9,FALSE) -> 7% | K26: =VLOOKUP($C26,'RECAP SECT'!$G$6:$CU$253,10,FALSE) -> 2 | L26: =VLOOKUP($C26,'RECAP SECT'!$G$6:$CU$253,11,FALSE) -> 9% | M26: =VLOOKUP($C26,'RECAP SECT'!$G$6:$CU$253,12,FALSE) -> 9% | N26: =VLOOKUP($C26,'RECAP SECT'!$G$6:$CU$253,13,FALSE) -> 3
A27: 80 | B27: VOSGES | C27: 55 | D27: SAINT DIE | E27: =VLOOKUP($C27,'RECAP SECT'!$G$6:$CU$253,3,FALSE) -> 40.1 | F27: =VLOOKUP($C27,'RECAP SECT'!$G$6:$CU$253,5,FALSE) -> 25.25 | G27: =VLOOKUP($C27,'RECAP SECT'!$G$6:$CU$253,6,FALSE) -> 4% | H27: =VLOOKUP($C27,'RECAP SECT'!$G$6:$CU$253,7,FALSE) -> 2 | I27: =VLOOKUP($C27,'RECAP SECT'!$G$6:$CU$253,8,FALSE) -> 68% | J27: =VLOOKUP($C27,'RECAP SECT'!$G$6:$CU$253,9,FALSE) -> 8% | K27: =VLOOKUP($C27,'RECAP SECT'!$G$6:$CU$253,10,FALSE) -> 3 | L27: =VLOOKUP($C27,'RECAP SECT'!$G$6:$CU$253,11,FALSE) -> 6% | M27: =VLOOKUP($C27,'RECAP SECT'!$G$6:$CU$253,12,FALSE) -> 6% | N27: =VLOOKUP($C27,'RECAP SECT'!$G$6:$CU$253,13,FALSE) -> 2
A28: Total CEGEE Directions Régionales | E28: =SUM(E10:E27) -> 958

Sheet AG_CLASS
B1: Accueil | H1: BAROMETRE BDD - AGENCES
H2: CLASSEMENTS
H3: =ACCUEIL!F7 -> 2022-08-07
H8: CLASSEMENT GENERAL | I8: CRITERE Satisfaction Clients | J8: NPS à froid (SAE) | K8: NPS à chaud (QHD) | L8: CRITERE BANCARISATION | M8: Ventes Nettes produits pondérés | N8: Ventes sur client non détenteur de l’univers | O8: CRITERE EPARGNE | P8: Excédent Epargne hors DAV pondéré | Q8: Ventes sur client non détenteur de l’univers | R8: CRITERE IARD PREVOYANCE | S8: Ventes Nettes produits pondérés | T8: Ventes sur client non détenteur de l’univers | U8: CRITERE CREDITS | V8: Engagements et ventes accessoires pondérés Immo | W8: Engagements et ventes accessoires pondérés Conso | X8: Ventes sur client non détenteur de l’univers
B9: Direction | C9: eds | D9: Territoire | E9: eds | F9: Agence | G9: ="ETP perf "&DATEMAJ!$C$28 -> ETP perf 07-août | H9: Rang | I9: Rang | J9: Rang | K9: Rang | L9: Rang | M9: Rang | N9: Rang | O9: Rang | P9: Rang | Q9: Rang | R9: Rang | S9: Rang | T9: Rang | U9: Rang | V9: Rang | W9: Rang | X9: Rang
A10: 50 | B10: MOSELLE | C10: 44 | D10: MOSELLE NORD | E10: 557508 | F10: NILVANGE | G10: 1.7 | H10: 1 | I10: 59 | J10: 63 | K10: 46 | L10: 1 | M10: 1 | N10: 1 | O10: 2 | P10: 97 | Q10: 1 | R10: 1 | S10: 1 | T10: 1 | U10: 1 | V10: 1 | W10: 2 | X10: 1
A11: 50 | B11: MOSELLE | C11: 42 | D11: MOSELLE EST | E11: 457163 | F11: BEHREN LES FORBACH | G11: 1.9 | H11: 2 | I11: 12 | J11: 17 | K11: 14 | L11: 2 | M11: 2 | N11: 2 | O11: 24 | P11: 84 | Q11: 3 | R11: 28 | S11: 89 | T11: 5 | U11: 2 | V11: 2 | W11: 1 | X11: 3
A12: 50 | B12: VOSGES | C12: 57 | D12: EPINAL | E12: 488288 | F12: EPINAL LEOPOLD BOURG | G12: 2.0 | H12: 3 | I12: 2 | J12: 2 | K12: 4 | L12: 24 | M12: 26 | N12: 45 | O12: 5 | P12: 6 | Q12: 28 | R12: 47 | S12: 29 | T12: 138 | U12: 33 | V12: 48 | W12: 51 | X12: 33
A13: 50 | B13: MARNE ARDENNES | C13: 11 | D13: REIMS | E13: 551305 | F13: REIMS HIPPODROME | G13: 5.3 | H13: 4 | I13: 74 | J13: 74 | K13: 78 | L13: 17 | M13: 45 | N13: 7 | O13: 17 | P13: 26 | Q13: 20 | R13: 8 | S13: 12 | T13: 10 | U13: 8 | V13: 16 | W13: 61 | X13: 6
A14: 50 | B14: MARNE ARDENNES | C14: 2 | D14: CHARLEVILLE MEZIERES | E14: 508820 | F14: VOUZIERS | G14: 2.9 | H14: 5 | I14: 42 | J14: 37 | K14: 98 | L14: 40 | M14: 43 | N14: 43 | O14: 14 | P14: 12 | Q14: 111 | R14: 3 | S14: 2 | T14: 14 | U14: 42 | V14: 83 | W14: 24 | X14: 64
A15: 50 | B15: MOSELLE | C15: 44 | D15: MOSELLE NORD | E15: 557660 | F15: UCKANGE | G15: 1.8 | H15: 6 | I15: 228 | J15: 182 | K15: 228 | L15: 9 | M15: 21 | N15: 5 | O15: 53 | P15: 180 | Q15: 2 | R15: 2 | S15: 3 | T15: 3 | U15: 3 | V15: 4 | W15: 45 | X15: 2
A16: 50 | B16: MARNE ARDENNES | C16: 6 | D16: CHALONS EN CHAMPAGNE | E16: 451115 | F16: MOURMELON LE GRAND | G16: 2.8 | H16: 7 | I16: 69 | J16: 109 | K16: 8 | L16: 6 | M16: 7 | N16: 23 | O16: 26 | P16: 56 | Q16: 8 | R16: 17 | S16: 27 | T16: 11 | U16: 28 | V16: 58 | W16: 9 | X16: 50
A17: 50 | B17: MARNE ARDENNES | C17: 6 | D17: CHALONS EN CHAMPAGNE | E17: 551330 | F17: MONTMIRAIL | G17: 2.8 | H17: 8 | I17: 8 | J17: 11 | K17: 20 | L17: 22 | M17: 10 | N17: 63 | O17: 75 | P17: 74 | Q17: 72 | R17: 14 | S17: 13 | T17: 25 | U17: 75 | V17: 63 | W17: 174 | X17: 48
A18: 50 | B18: MEURTHE ET MOSELLE MEUSE | C18: 26 | D18: NANCY | E18: 554476 | F18: NANCY ARTEM | G18: 2.8 | H18: 9 | I18: 57 | J18: 71 | K18: 22 | L18: 15 | M18: 18 | N18: 22 | O18: 135 | P18: 121 | Q18: 142 | R18: 48 | S18: 40 | T18: 85 | U18: 4 | V18: 3 | W18: 119 | X18: 4
A19: 50 | B19: MARNE ARDENNES | C19: 11 | D19: REIMS | E19: 551340 | F19: BETHENY | G19: 2.4 | H19: 10 | I19: 53 | J19: 38 | K19: 100 | L19: 7 | M19: 11 | N19: 11 | O19: 51 | P19: 86 | Q19: 12 | R19: 79 | S19: 88 | T19: 74 | U19: 17 | V19: 8 | W19: 126 | X19: 20
A20: 50 | B20: MARNE ARDENNES | C20: 6 | D20: CHALONS EN CHAMPAGNE | E20: 451120 | F20: SARRY | G20: 2.3 | H20: 11 | I20: 3 | J20: 3 | K20: 6 | L20: 25 | M20: 16 | N20: 61 | O20: 98 | P20: 112 | Q20: 49 | R20: 50 | S20: 41 | T20: 89 | U20: 73 | V20: 53 | W20: 117 | X20: 92
A21: 50 | B21: MOSELLE | C21: 45 | D21: METZ | E21: 457443 | F21: METZ REPUBLIQUE | G21: 3.6 | H21: 12 | I21: 38 | J21: 41 | K21: 39 | L21: 101 | M21: 88 | N21: 133 | O21: 1 | P21: 1 | Q21: 81 | R21: 15 | S21: 10 | T21: 43 | U21: 137 | V21: 145 | W21: 87 | X21: 153
A22: 50 | B22: MOSELLE | C22: 44 | D22: MOSELLE NORD | E22: 557113 | F22: AUDUN LE TICHE | G22: 2.1 | H22: 13 | I22: 124 | J22: 186 | K22: 19 | L22: 8 | M22: 20 | N22: 6 | O22: 57 | P22: 123 | Q22: 5 | R22: 18 | S22: 31 | T22: 12 | U22: 10 | V22: 17 | W22: 12 | X22: 27
A23: 50 | B23: MEURTHE ET MOSELLE MEUSE | C23: 26 | D23: NANCY | E23: 554601 | F23: SAINT MAX | G23: 3.5 | H23: 14 | I23: 22 | J23: 28 | K23: 21 | L23: 77 | M23: 64 | N23: 109 | O23: 13 | P23: 9 | Q23: 85 | R23: 31 | S23: 23 | T23: 83 | U23: 69 | V23: 59 | W23: 79 | X23: 88
A24: 50 | B24: MEURTHE ET MOSELLE MEUSE | C24: 27 | D24: PONT A MOUSSON | E24: 554381 | F24: LAXOU ARISTIDE BRIAND | G24: 2.4 | H24: 15 | I24: 175 | J24: 197 | K24: 156 | L24: 5 | M24: 8 | N24: 9 | O24: 78 | P24: 124 | Q24: 10 | R24: 12 | S24: 24 | T24: 9 | U24: 6 | V24: 6 | W24: 34 | X24: 7
A25: 50 | B25: BAS RHIN | C25: 5006 | D25: STRASBOURG | E25: 4037 | F25: MUNDOLSHEIM | G25: 3.7 | H25: 16 | I25: 66 | J25: 62 | K25: 84 | L25: 18 | M25: 25 | N25: 19 | O25: 169 | P25: 213 | Q25: 18 | R25: 10 | S25: 8 | T25: 18 | U25: 24 | V25: 25 | W25: 123 | X25: 13
A26: 50 | B26: MARNE ARDENNES | C26: 11 | D26: REIMS | E26: 551349 | F26: REIMS SAINT REMI | G26: 2.9 | H26: 17 | I26: 126 | J26: 138 | K26: 97 | L26: 3 | M26: 6 | N26: 10 | O26: 148 | P26: 189 | Q26: 15 | R26: 16 | S26: 25 | T26: 15 | U26: 16 | V26: 11 | W26: 137 | X26: 12
A27: 50 | B27: BAS RHIN | C27: 5006 | D27: STRASBOURG | E27: 4048 | F27: STRASBOURG KOENIGSHOFFEN | G27: 1.8 | H27: 18 | I27: 177 | J27: 202 | K27: 158 | L27: 14 | M27: 15 | N27: 16 | O27: 19 | P27: 46 | Q27: 6 | R27: 13 | S27: 70 | T27: 4 | U27: 20 | V27: 78 | W27: 16 | X27: 15
A28: 262 | B28: MOSELLE | C28: 42 | D28: MOSELLE EST | E28: 457165 | F28: BITCHE | G28: 2.5 | H28: 19 | I28: 35 | J28: 33 | K28: 44 | L28: 16 | M28: 4 | N28: 73 | O28: 122 | P28: 167 | Q28: 19 | R28: 19 | S28: 15 | T28: 33 | U28: 114 | V28: 120 | W28: 44 | X28: 188
A29: 262 | B29: MARNE ARDENNES | C29: 11 | D29: REIMS | E29: 451350 | F29: REIMS CENTRE VILLE | G29: 6.6 | H29: 20 | I29: 153 | J29: 150 | K29: 160 | L29: 12 | M29: 17 | N29: 12 | O29: 83 | P29: 99 | Q29: 35 | R29: 23 | S29: 32 | T29: 21 | U29: 7 | V29: 12 | W29: 52 | X29: 5
A30: 262 | B30: MARNE ARDENNES | C30: 6 | D30: CHALONS EN CHAMPAGNE | E30: 551354 | F30: VERTUS | G30: 2.0 | H30: 21 | I30: 1 | J30: 1 | K30: 1 | L30: 165 | M30: 128 | N30: 217 | O30: 11 | P30: 8 | Q30: 148 | R30: 199 | S30: 199 | T30: 165 | U30: 150 | V30: 167 | W30: 84 | X30: 162
A31: 262 | B31: MARNE ARDENNES | C31: 2 | D31: CHARLEVILLE MEZIERES | E31: 408801 | F31: CHARLEVILLE JEAN JAURES | G31: 8.8 | H31: 22 | I31: 55 | J31: 66 | K31: 32 | L31: 60 | M31: 73 | N31: 57 | O31: 66 | P31: 87 | Q31: 21 | R31: 34 | S31: 30 | T31: 75 | U31: 32 | V31: 20 | W31: 167 | X31: 28
A32: 262 | B32: AUBE HAUTE MARNE | C32: 21 | D32: CHAUMONT | E32: 510590 | F32: CHAUMONT REPUBLIQUE | G32: 2.9 | H32: 23 | I32: 41 | J32: 56 | K32: 33 | L32: 124 | M32: 169 | N32: 68 | O32: 36 | P32: 39 | Q32: 47 | R32: 21 | S32: 14 | T32: 54 | U32: 41 | V32: 104 | W32: 19 | X32: 49
A33: 262 | B33: MOSELLE | C33: 45 | D33: METZ | E33: 457453 | F33: MONTIGNY LES METZ | G33: 7.0 | H33: 24 | I33: 18 | J33: 22 | K33: 15 | L33: 36 | M33: 27 | N33: 77 | O33: 123 | P33: 175 | Q33: 13 | R33: 100 | S33: 85 | T33: 149 | U33: 38 | V33: 27 | W33: 72 | X33: 56
A34: 262 | B34: MEURTHE ET MOSELLE MEUSE | C34: 27 | D34: PONT A MOUSSON | E34: 554506 | F34: CHALIGNY NEUVES MAISONS | G34: 3.4 | H34: 25 | I34: 143 | J34: 127 | K34: 175 | L34: 13 | M34: 13 | N34: 17 | O34: 183 | P34: 205 | Q34: 48 | R34: 6 | S34: 7 | T34: 19 | U34: 11 | V34: 18 | W34: 27 | X34: 14
A35: 262 | B35: MARNE ARDENNES | C35: 11 | D35: REIMS | E35: 551365 | F35: DORMANS | G35: 2.6 | H35: 26 | I35: 93 | J35: 101 | K35: 73 | L35: 4 | M35: 5 | N35: 15 | O35: 179 | P35: 210 | Q35: 29 | R35: 37 | S35: 46 | T35: 32 | U35: 29 | V35: 37 | W35: 156 | X35: 11
A36: 262 | B36: MOSELLE | C36: 45 | D36: METZ | E36: 457446 | F36: METZ SAINT LOUIS | G36: 5.6 | H36: 27 | I36: 94 | J36: 104 | K36: 71 | L36: 26 | M36: 29 | N36: 42 | O36: 81 | P36: 126 | Q36: 11 | R36: 53 | S36: 49 | T36: 67 | U36: 27 | V36: 19 | W36: 111 | X36: 30
A37: 262 | B37: MOSELLE | C37: 45 | D37: METZ | E37: 557439 | F37: METZ POMPIDOU | G37: 2.5 | H37: 28 | I37: 65 | J37: 65 | K37: 63 | L37: 75 | M37: 123 | N37: 37 | O37: 10 | P37: 10 | Q37: 58 | R37: 111 | S37: 150 | T37: 52 | U37: 60 | V37: 46 | W37: 104 | X37: 72
A38: 262 | B38: MOSELLE | C38: 42 | D38: MOSELLE EST | E38: 557250 | F38: CREUTZWALD | G38: 2.5 | H38: 29 | I38: 17 | J38: 16 | K38: 34 | L38: 153 | M38: 178 | N38: 104 | O38: 79 | P38: 83 | Q38: 52 | R38: 52 | S38: 36 | T38: 124 | U38: 52 | V38: 74 | W38: 11 | X38: 120
A39: 262 | B39: MARNE ARDENNES | C39: 2 | D39: CHARLEVILLE MEZIERES | E39: 508833 | F39: VILLERS SEMEUSE CORA | G39: 3.2 | H39: 30 | I39: 192 | J39: 213 | K39: 173 | L39: 64 | M39: 106 | N39: 31 | O39: 27 | P39: 36 | Q39: 22 | R39: 5 | S39: 5 | T39: 17 | U39: 22 | V39: 39 | W39: 17 | X39: 31
A40: 262 | B40: MARNE ARDENNES | C40: 11 | D40: REIMS | E40: 451301 | F40: REIMS HOTEL DE VILLE | G40: 7.1 | H40: 31 | I40: 85 | J40: 82 | K40: 83 | L40: 51 | M40: 53 | N40: 59 | O40: 112 | P40: 140 | Q40: 31 | R40: 11 | S40: 9 | T40: 30 | U40: 47 | V40: 32 | W40: 145 | X40: 43
A41: 262 | B41: VOSGES | C41: 57 | D41: EPINAL | E41: 588336 | F41: GOLBEY | G41: 2.8 | H41: 32 | I41: 29 | J41: 28 | K41: 50 | L41: 96 | M41: 92 | N41: 100 | O41: 64 | P41: 63 | Q41: 96 | R41: 81 | S41: 75 | T41: 110 | U41: 62 | V41: 106 | W41: 57 | X41: 47
A42: 262 | B42: MEURTHE ET MOSELLE MEUSE | C42: 27 | D42: PONT A MOUSSON | E42: 554531 | F42: POMPEY | G42: 3.0 | H42: 33 | I42: 210 | J42: 197 | K42: 204 | L42: 10 | M42: 23 | N42: 4 | O42: 95 | P42: 142 | Q42: 16 | R42: 57 | S42: 83 | T42: 24 | U42: 5 | V42: 9 | W42: 13 | X42: 9
A43: 262 | B43: MARNE ARDENNES | C43: 6 | D43: CHALONS EN CHAMPAGNE | E43: 551110 | F43: CHALONS ROOSEVELT | G43: 4.3 | H43: 34 | I43: 20 | J43: 14 | K43: 72 | L43: 99 | M43: 86 | N43: 115 | O43: 127 | P43: 143 | Q43: 55 | R43: 26 | S43: 19 | T43: 97 | U43: 96 | V43: 64 | W43: 142 | X43: 93
A44: 262 | B44: MEURTHE ET MOSELLE MEUSE | C44: 26 | D44: NANCY | E44: 454481 | F44: NANCY PLACE DOMBASLE | G44: 8.0 | H44: 35 | I44: 157 | J44: 150 | K44: 166 | L44: 47 | M44: 78 | N44: 30 | O44: 8 | P44: 15 | Q44: 9 | R44: 91 | S44: 119 | T44: 51 | U44: 19 | V44: 14 | W44: 116 | X44: 25
A45: 262 | B45: MEURTHE ET MOSELLE MEUSE | C45: 26 | D45: NANCY | E45: 554356 | F45: JARVILLE LA MALGRANGE | G45: 4.3 | H45: 36 | I45: 40 | J45: 53 | K45: 36 | L45: 33 | M45: 14 | N45: 93 | O45: 180 | P45: 196 | Q45: 57 | R45: 63 | S45: 67 | T45: 59 | U45: 43 | V45: 38 | W45: 136 | X45: 37
A46: 262 | B46: MOSELLE | C46: 45 | D46: METZ | E46: 457574 | F46: ROMBAS | G46: 2.7 | H46: 37 | I46: 34 | J46: 27 | K46: 70 | L46: 90 | M46: 79 | N46: 108 | O46: 85 | P46: 98 | Q46: 43 | R46: 24 | S46: 16 | T46: 61 | U46: 151 | V46: 129 | W46: 134 | X46: 151
A47: 262 | B47: MARNE ARDENNES | C47: 11 | D47: REIMS | E47: 451361 | F47: PIERRY LECLERC | G47: 1.8 | H47: 38 | I47: 64 | J47: 61 | K47: 79 | L47: 52 | M47: 50 | N47: 64 | O47: 29 | P47: 31 | Q47: 46 | R47: 97 | S47: 79 | T47: 147 | U47: 100 | V47: 54 | W47: 203 | X47: 76
A48: 262 | B48: MEURTHE ET MOSELLE MEUSE | C48: 27 | D48: PONT A MOUSSON | E48: 554516 | F48: PAGNY SUR MOSELLE | G48: 2.8 | H48: 39 | I48: 109 | J48: 99 | K48: 132 | L48: 67 | M48: 61 | N48: 91 | O48: 46 | P48: 42 | Q48: 100 | R48: 22 | S48: 22 | T48: 31 | U48: 56 | V48: 52 | W48: 95 | X48: 62
A49: 262 | B49: MARNE ARDENNES | C49: 11 | D49: REIMS | E49: 451370 | F49: EPERNAY | G49: 8.9 | H49: 40 | I49: 76 | J49: 95 | K49: 41 | L49: 50 | M49: 42 | N49: 82 | O49: 42 | P49: 50 | Q49: 64 | R49: 88 | S49: 91 | T49: 96 | U49: 55 | V49: 68 | W49: 88 | X49: 46
A50: 262 | B50: MARNE ARDENNES | C50: 2 | D50: CHARLEVILLE MEZIERES | E50: 508839 | F50: GIVET | G50: 3.4 | H50: 41 | I50: 88 | J50: 84 | K50: 96 | L50: 69 | M50: 85 | N50: 50 | O50: 157 | P50: 178 | Q50: 39 | R50: 9 | S50: 6 | T50: 44 | U50: 48 | V50: 60 | W50: 43 | X50: 66
A51: 262 | B51: MOSELLE | C51: 42 | D51: MOSELLE EST | E51: 457583 | F51: SAINT AVOLD | G51: 7.1 | H51: 42 | I51: 44 | J51: 52 | K51: 51 | L51: 43 | M51: 35 | N51: 70 | O51: 104 | P51: 114 | Q51: 63 | R51: 68 | S51: 59 | T51: 92 | U51: 115 | V51: 108 | W51: 114 | X51: 111
A52: 262 | B52: MARNE ARDENNES | C52: 11 | D52: REIMS | E52: 551367 | F52: AY CHAMPAGNE | G52: 2.7 | H52: 43 | I52: 47 | J52: 39 | K52: 77 | L52: 105 | M52: 140 | N52: 71 | O52: 108 | P52: 85 | Q52: 207 | R52: 43 | S52: 53 | T52: 45 | U52: 53 | V52: 24 | W52: 192 | X52: 41
A53: 262 | B53: BAS RHIN | C53: 5006 | D53: STRASBOURG | E53: 4038 | F53: OBERHAUSBERGEN | G53: 3.3 | H53: 44 | I53: 60 | J53: 60 | K53: 65 | L53: 54 | M53: 83 | N53: 32 | O53: 23 | P53: 32 | Q53: 26 | R53: 202 | S53: 220 | T53: 70 | U53: 65 | V53: 44 | W53: 115 | X53: 80
A54: 262 | B54: BAS RHIN | C54: 5101 | D54: SELESTAT | E54: 4113 | F54: BARR | G54: 2.9 | H54: 45 | I54: 23 | J54: 44 | K54: 2 | L54: 38 | M54: 32 | N54: 69 | O54: 110 | P54: 137 | Q54: 36 | R54: 140 | S54: 112 | T54: 177 | U54: 140 | V54: 49 | W54: 243 | X54: 81
A55: 262 | B55: MEURTHE ET MOSELLE MEUSE | C55: 26 | D55: NANCY | E55: 554636 | F55: TOMBLAINE | G55: 2.7 | H55: 46 | I55: 14 | J55: 23 | K55: 7 | L55: 147 | M55: 156 | N55: 132 | O55: 50 | P55: 57 | Q55: 66 | R55: 124 | S55: 136 | T55: 108 | U55: 117 | V55: 143 | W55: 109 | X55: 101
A56: 262 | B56: MOSELLE | C56: 44 | D56: MOSELLE NORD | E56: 557352 | F56: HETTANGE GRANDE | G56: 2.9 | H56: 47 | I56: 152 | J56: 132 | K56: 182 | L56: 27 | M56: 55 | N56: 24 | O56: 111 | P56: 138 | Q56: 33 | R56: 55 | S56: 64 | T56: 38 | U56: 12 | V56: 34 | W56: 6 | X56: 23
A57: 262 | B57: BAS RHIN | C57: 5060 | D57: HAGUENAU | E57: 4092 | F57: HOCHFELDEN | G57: 1.8 | H57: 48 | I57: 61 | J57: 63 | K57: 52 | L57: 85 | M57: 125 | N57: 46 | O57: 25 | P57: 20 | Q57: 106 | R57: 131 | S57: 163 | T57: 69 | U57: 87 | V57: 65 | W57: 100 | X57: 106
A58: 262 | B58: MARNE ARDENNES | C58: 11 | D58: REIMS | E58: 451336 | F58: TINQUEUX | G58: 4.8 | H58: 49 | I58: 147 | J58: 129 | K58: 174 | L58: 53 | M58: 52 | N58: 75 | O58: 6 | P58: 4 | Q58: 53 | R58: 120 | S58: 137 | T58: 94 | U58: 61 | V58: 28 | W58: 166 | X58: 67
A59: 262 | B59: MOSELLE | C59: 44 | D59: MOSELLE NORD | E59: 457350 | F59: HAYANGE | G59: 6.4 | H59: 50 | I59: 136 | J59: 129 | K59: 148 | L59: 37 | M59: 34 | N59: 55 | O59: 101 | P59: 147 | Q59: 17 | R59: 20 | S59: 18 | T59: 29 | U59: 46 | V59: 31 | W59: 131 | X59: 51
A60: 262 | B60: MEURTHE ET MOSELLE MEUSE | C60: 31 | D60: VERDUN | E60: 455678 | F60: VERDUN CENTRALE | G60: 9.7 | H60: 51 | I60: 19 | J60: 12 | K60: 64 | L60: 62 | M60: 74 | N60: 58 | O60: 212 | P60: 225 | Q60: 82 | R60: 134 | S60: 141 | T60: 112 | U60: 37 | V60: 36 | W60: 78 | X60: 38
A61: 262 | B61: MOSELLE | C61: 42 | D61: MOSELLE EST | E61: 457308 | F61: FORBACH CENTRALE | G61: 9.4 | H61: 52 | I61: 82 | J61: 69 | K61: 131 | L61: 39 | M61: 30 | N61: 79 | O61: 109 | P61: 116 | Q61: 76 | R61: 42 | S61: 37 | T61: 87 | U61: 92 | V61: 105 | W61: 46 | X61: 112
A62: 262 | B62: MEURTHE ET MOSELLE MEUSE | C62: 31 | D62: VERDUN | E62: 554413 | F62: LONGWY BAS | G62: 3.6 | H62: 53 | I62: 21 | J62: 18 | K62: 54 | L62: 83 | M62: 68 | N62: 127 | O62: 128 | P62: 107 | Q62: 154 | R62: 98 | S62: 71 | T62: 173 | U62: 105 | V62: 73 | W62: 82 | X62: 161
A63: 262 | B63: MOSELLE | C63: 45 | D63: METZ | E63: 557447 | F63: METZ SAINT MAXIMIN | G63: 2.2 | H63: 54 | I63: 165 | J63: 174 | K63: 151 | L63: 63 | M63: 102 | N63: 34 | O63: 58 | P63: 106 | Q63: 7 | R63: 4 | S63: 4 | T63: 13 | U63: 74 | V63: 87 | W63: 25 | X63: 163
A64: 262 | B64: MARNE ARDENNES | C64: 11 | D64: REIMS | E64: 551369 | F64: DAMERY | G64: 1.7 | H64: 55 | I64: 80 | J64: 55 | K64: 162 | L64: 30 | M64: 57 | N64: 26 | O64: 222 | P64: 219 | Q64: 204 | R64: 66 | S64: 97 | T64: 22 | U64: 25 | V64: 22 | W64: 103 | X64: 22
A65: 262 | B65: MEURTHE ET MOSELLE MEUSE | C65: 26 | D65: NANCY | E65: 554116 | F65: BACCARAT | G65: 2.8 | H65: 56 | I65: 5 | J65: 6 | K65: 17 | L65: 132 | M65: 100 | N65: 179 | O65: 86 | P65: 66 | Q65: 221 | R65: 129 | S65: 117 | T65: 149 | U65: 199 | V65: 147 | W65: 183 | X65: 208
A66: 262 | B66: MEURTHE ET MOSELLE MEUSE | C66: 31 | D66: VERDUN | E66: 555679 | F66: VERDUN MAZEL | G66: 3.6 | H66: 57 | I66: 15 | J66: 19 | K66: 16 | L66: 104 | M66: 99 | N66: 116 | O66: 76 | P66: 64 | Q66: 161 | R66: 141 | S66: 113 | T66: 176 | U66: 174 | V66: 135 | W66: 188 | X66: 139
A67: 262 | B67: VOSGES | C67: 55 | D67: SAINT DIE | E67: 488246 | F67: CORNIMONT LA BRESSE | G67: 2.6 | H67: 58 | I67: 9 | J67: 9 | K67: 23 | L67: 97 | M67: 93 | N67: 103 | O67: 164 | P67: 136 | Q67: 233 | R67: 82 | S67: 58 | T67: 154 | U67: 168 | V67: 211 | W67: 77 | X67: 200
A68: 262 | B68: MARNE ARDENNES | C68: 11 | D68: REIMS | E68: 551314 | F68: FISMES | G68: 2.7 | H68: 59 | I68: 25 | J68: 34 | K68: 10 | L68: 31 | M68: 40 | N68: 35 | O68: 223 | P68: 234 | Q68: 30 | R68: 152 | S68: 185 | T68: 63 | U68: 64 | V68: 41 | W68: 200 | X68: 40
A69: 262 | B69: VOSGES | C69: 55 | D69: SAINT DIE | E69: 488326 | F69: GERARDMER | G69: 3.8 | H69: 60 | I69: 98 | J69: 89 | K69: 124 | L69: 123 | M69: 126 | N69: 126 | O69: 16 | P69: 11 | Q69: 131 | R69: 103 | S69: 96 | T69: 119 | U69: 68 | V69: 66 | W69: 62 | X69: 87
A70: 262 | B70: BAS RHIN | C70: 5006 | D70: STRASBOURG | E70: 4054 | F70: STRASBOURG MONTAGNE VERTE | G70: 2.6 | H70: 61 | I70: 48 | J70: 31 | K70: 133 | L70: 84 | M70: 142 | N70: 38 | O70: 68 | P70: 69 | Q70: 67 | R70: 41 | S70: 55 | T70: 34 | U70: 222 | V70: 244 | W70: 189 | X70: 156
A71: 262 | B71: BAS RHIN | C71: 5101 | D71: SELESTAT | E71: 4104 | F71: ERSTEIN | G71: 4.4 | H71: 62 | I71: 212 | J71: 207 | K71: 206 | L71: 11 | M71: 3 | N71: 56 | O71: 40 | P71: 38 | Q71: 87 | R71: 36 | S71: 17 | T71: 151 | U71: 76 | V71: 51 | W71: 150 | X71: 82
A72: 262 | B72: MEURTHE ET MOSELLE MEUSE | C72: 27 | D72: PONT A MOUSSON | E72: 554686 | F72: VEZELISE | G72: 1.9 | H72: 63 | I72: 10 | J72: 12 | K72: 13 | L72: 130 | M72: 136 | N72: 125 | O72: 69 | P72: 53 | Q72: 183 | R72: 142 | S72: 128 | T72: 161 | U72: 225 | V72: 210 | W72: 173 | X72: 229
A73: 262 | B73: BAS RHIN | C73: 5060 | D73: HAGUENAU | E73: 4079 | F73: SOULTZ SOUS FORETS | G73: 1.9 | H73: 64 | I73: 52 | J73: 66 | K73: 26 | L73: 71 | M73: 54 | N73: 114 | O73: 52 | P73: 48 | Q73: 109 | R73: 85 | S73: 90 | T73: 79 | U73: 217 | V73: 237 | W73: 139 | X73: 217
A74: 262 | B74: VOSGES | C74: 55 | D74: SAINT DIE | E74: 588551 | F74: RAMBERVILLERS | G74: 2.6 | H74: 65 | I74: 28 | J74: 25 | K74: 57 | L74: 185 | M74: 212 | N74: 95 | O74: 62 | P74: 44 | Q74: 186 | R74: 209 | S74: 206 | T74: 183 | U74: 36 | V74: 67 | W74: 55 | X74: 29
A75: 264 | B75: BAS RHIN | C75: 5006 | D75: STRASBOURG | E75: 4010 | F75: STRASBOURG MEINAU | G75: 2.8 | H75: 66 | I75: 90 | J75: 70 | K75: 146 | L75: 91 | M75: 127 | N75: 51 | O75: 73 | P75: 67 | Q75: 89 | R75: 27 | S75: 56 | T75: 16 | U75: 142 | V75: 201 | W75: 58 | X75: 159
A76: 264 | B76: BAS RHIN | C76: 5006 | D76: STRASBOURG | E76: 4043 | F76: STRASBOURG HALLES | G76: 7.8 | H76: 67 | I76: 148 | J76: 207 | K76: 89 | L76: 29 | M76: 65 | N76: 21 | O76: 125 | P76: 163 | Q76: 24 | R76: 7 | S76: 11 | T76: 6 | U76: 127 | V76: 79 | W76: 237 | X76: 55
A77: 264 | B77: MOSELLE | C77: 42 | D77: MOSELLE EST | E77: 557668 | F77: VALMONT | G77: 2.7 | H77: 68 | I77: 50 | J77: 34 | K77: 116 | L77: 183 | M77: 191 | N77: 146 | O77: 21 | P77: 14 | Q77: 128 | R77: 93 | S77: 80 | T77: 132 | U77: 157 | V77: 215 | W77: 50 | X77: 202
A78: 264 | B78: MOSELLE | C78: 44 | D78: MOSELLE NORD | E78: 457632 | F78: THIONVILLE CENTRALE | G78: 10.7 | H78: 69 | I78: 131 | J78: 140 | K78: 109 | L78: 28 | M78: 28 | N78: 49 | O78: 178 | P78: 200 | Q78: 41 | R78: 30 | S78: 35 | T78: 39 | U78: 44 | V78: 35 | W78: 97 | X78: 57
A79: 264 | B79: MARNE ARDENNES | C79: 11 | D79: REIMS | E79: 551310 | F79: REIMS CHATILLONS | G79: 3.9 | H79: 70 | I79: 128 | J79: 116 | K79: 153 | L79: 35 | M79: 41 | N79: 44 | O79: 120 | P79: 120 | Q79: 94 | R79: 62 | S79: 76 | T79: 41 | U79: 45 | V79: 57 | W79: 161 | X79: 26
A80: 264 | B80: AUBE HAUTE MARNE | C80: 21 | D80: CHAUMONT | E80: 410541 | F80: LANGRES | G80: 8.2 | H80: 71 | I80: 77 | J80: 76 | K80: 80 | L80: 98 | M80: 67 | N80: 173 | O80: 70 | P80: 60 | Q80: 116 | R80: 65 | S80: 42 | T80: 133 | U80: 106 | V80: 190 | W80: 35 | X80: 133
A81: 264 | B81: MARNE ARDENNES | C81: 2 | D81: CHARLEVILLE MEZIERES | E81: 508802 | F81: CHARLEVILLE NEVERS | G81: 2.8 | H81: 72 | I81: 24 | J81: 30 | K81: 25 | L81: 202 | M81: 192 | N81: 201 | O81: 100 | P81: 82 | Q81: 171 | R81: 72 | S81: 47 | T81: 156 | U81: 111 | V81: 76 | W81: 81 | X81: 182
A82: 264 | B82: MEURTHE ET MOSELLE MEUSE | C82: 31 | D82: VERDUN | E82: 454414 | F82: LONGWY HAUT | G82: 3.3 | H82: 73 | I82: 104 | J82: 110 | K82: 94 | L82: 89 | M82: 107 | N82: 74 | O82: 82 | P82: 71 | Q82: 124 | R82: 45 | S82: 51 | T82: 50 | U82: 91 | V82: 89 | W82: 91 | X82: 83
A83: 264 | B83: MOSELLE | C83: 44 | D83: MOSELLE NORD | E83: 457348 | F83: HAGONDANGE | G83: 8.2 | H83: 74 | I83: 103 | J83: 97 | K83: 112 | L83: 68 | M83: 62 | N83: 90 | O83: 151 | P83: 151 | Q83: 90 | R83: 59 | S83: 48 | T83: 105 | U83: 51 | V83: 40 | W83: 106 | X83: 59
A84: 264 | B84: MOSELLE | C84: 45 | D84: METZ | E84: 557612 | F84: SAINTE MARIE AUX CHENES | G84: 3.7 | H84: 75 | I84: 32 | J84: 56 | K84: 3 | L84: 230 | M84: 207 | N84: 235 | O84: 9 | P84: 5 | Q84: 240 | R84: 118 | S84: 86 | T84: 190 | U84: 218 | V84: 234 | W84: 214 | X84: 136
A85: 264 | B85: VOSGES | C85: 55 | D85: SAINT DIE | E85: 588186 | F85: BRUYERES | G85: 3.5 | H85: 76 | I85: 26 | J85: 20 | K85: 58 | L85: 138 | M85: 134 | N85: 138 | O85: 139 | P85: 129 | Q85: 119 | R85: 151 | S85: 182 | T85: 66 | U85: 86 | V85: 125 | W85: 113 | X85: 52
A86: 264 | B86: MARNE ARDENNES | C86: 6 | D86: CHALONS EN CHAMPAGNE | E86: 451101 | F86: CHALONS VIVIERS | G86: 9.6 | H86: 77 | I86: 36 | J86: 45 | K86: 18 | L86: 129 | M86: 111 | N86: 153 | O86: 155 | P86: 168 | Q86: 74 | R86: 92 | S86: 87 | T86: 107 | U86: 98 | V86: 91 | W86: 127 | X86: 86
A87: 264 | B87: MOSELLE | C87: 42 | D87: MOSELLE EST | E87: 457617 | F87: SARREGUEMINES | G87: 6.7 | H87: 78 | I87: 140 | J87: 147 | K87: 125 | L87: 59 | M87: 70 | N87: 62 | O87: 94 | P87: 108 | Q87: 45 | R87: 74 | S87: 81 | T87: 72 | U87: 35 | V87: 26 | W87: 90 | X87: 35
A88: 264 | B88: MARNE ARDENNES | C88: 11 | D88: REIMS | E88: 551306 | F88: REIMS SAINT MARCEAUX | G88: 4.0 | H88: 79 | I88: 58 | J88: 45 | K88: 90 | L88: 19 | M88: 9 | N88: 48 | O88: 238 | P88: 239 | Q88: 61 | R88: 80 | S88: 93 | T88: 65 | U88: 67 | V88: 50 | W88: 179 | X88: 44
A89: 264 | B89: VOSGES | C89: 57 | D89: EPINAL | E89: 488561 | F89: REMIREMONT | G89: 7.2 | H89: 80 | I89: 11 | J89: 7 | K89: 37 | L89: 121 | M89: 82 | N89: 188 | O89: 172 | P89: 166 | Q89: 173 | R89: 116 | S89: 74 | T89: 215 | U89: 189 | V89: 113 | W89: 235 | X89: 125
A90: 264 | B90: MOSELLE | C90: 45 | D90: METZ | E90: 557434 | F90: MARLY | G90: 3.1 | H90: 81 | I90: 30 | J90: 21 | K90: 81 | L90: 122 | M90: 96 | N90: 166 | O90: 99 | P90: 79 | Q90: 182 | R90: 185 | S90: 166 | T90: 222 | U90: 94 | V90: 62 | W90: 157 | X90: 77
A91: 264 | B91: MARNE ARDENNES | C91: 2 | D91: CHARLEVILLE MEZIERES | E91: 408840 | F91: RETHEL | G91: 4.3 | H91: 82 | I91: 139 | J91: 142 | K91: 135 | L91: 57 | M91: 48 | N91: 86 | O91: 77 | P91: 68 | Q91: 126 | R91: 64 | S91: 44 | T91: 129 | U91: 66 | V91: 82 | W91: 65 | X91: 61
A92: 264 | B92: MEURTHE ET MOSELLE MEUSE | C92: 27 | D92: PONT A MOUSSON | E92: 454535 | F92: PONT A MOUSSON CENTRALE | G92: 5.3 | H92: 83 | I92: 232 | J92: 182 | K92: 231 | L92: 23 | M92: 47 | N92: 25 | O92: 126 | P92: 101 | Q92: 184 | R92: 33 | S92: 43 | T92: 27 | U92: 21 | V92: 13 | W92: 148 | X92: 19
A93: 264 | B93: MOSELLE | C93: 42 | D93: MOSELLE EST | E93: 457543 | F93: PUTTELANGE AUX LACS | G93: 2.5 | H93: 84 | I93: 122 | J93: 123 | K93: 111 | L93: 72 | M93: 80 | N93: 66 | O93: 118 | P93: 148 | Q93: 40 | R93: 54 | S93: 60 | T93: 36 | U93: 71 | V93: 47 | W93: 215 | X93: 36
A94: 264 | B94: MOSELLE | C94: 44 | D94: MOSELLE NORD | E94: 457306 | F94: FLORANGE | G94: 4.7 | H94: 85 | I94: 230 | J94: 197 | K94: 226 | L94: 32 | M94: 36 | N94: 40 | O94: 117 | P94: 154 | Q94: 27 | R94: 78 | S94: 103 | T94: 46 | U94: 9 | V94: 10 | W94: 36 | X94: 21
A95: 264 | B95: MEURTHE ET MOSELLE MEUSE | C95: 31 | D95: VERDUN | E95: 555406 | F95: LIGNY EN BARROIS | G95: 2.5 | H95: 86 | I95: 16 | J95: 8 | K95: 68 | L95: 131 | M95: 137 | N95: 122 | O95: 72 | P95: 58 | Q95: 139 | R95: 218 | S95: 214 | T95: 203 | U95: 181 | V95: 218 | W95: 132 | X95: 167
A96: 264 | B96: MOSELLE | C96: 44 | D96: MOSELLE NORD | E96: 457158 | F96: YUTZ | G96: 4.4 | H96: 87 | I96: 155 | J96: 186 | K96: 136 | L96: 48 | M96: 24 | N96: 123 | O96: 84 | P96: 77 | Q96: 117 | R96: 44 | S96: 39 | T96: 81 | U96: 82 | V96: 77 | W96: 67 | X96: 104
A97: 30 | B97: BAS RHIN | C97: 5006 | D97: STRASBOURG | E97: 4024 | F97: STRASBOURG AUSTERLITZ | G97: 1.0 | H97: 88 | I97: 241 | J97: 202 | K97: 241 | L97: 76 | M97: 206 | N97: 3 | O97: 56 | P97: 88 | Q97: 14 | R97: 35 | S97: 203 | T97: 2 | U97: 13 | V97: 7 | W97: 56 | X97: 24
A98: 30 | B98: MOSELLE | C98: 45 | D98: METZ | E98: 557444 | F98: SAINT JULIEN LES METZ | G98: 3.7 | H98: 89 | I98: 220 | J98: 174 | K98: 225 | L98: 79 | M98: 98 | N98: 54 | O98: 15 | P98: 19 | Q98: 23 | R98: 58 | S98: 98 | T98: 20 | U98: 59 | V98: 112 | W98: 7 | X98: 109
A99: 30 | B99: MEURTHE ET MOSELLE MEUSE | C99: 27 | D99: PONT A MOUSSON | E99: 554416 | F99: LUDRES | G99: 3.5 | H99: 90 | I99: 84 | J99: 90 | K99: 62 | L99: 135 | M99: 116 | N99: 162 | O99: 60 | P99: 45 | Q99: 176 | R99: 123 | S99: 84 | T99: 214 | U99: 97 | V99: 71 | W99: 122 | X99: 98
A100: 30 | B100: MOSELLE | C100: 45 | D100: METZ | E100: 557432 | F100: MAIZIERES LES METZ | G100: 2.6 | H100: 91 | I100: 196 | J100: 213 | K100: 177 | L100: 44 | M100: 89 | N100: 18 | O100: 153 | P100: 171 | Q100: 42 | R100: 99 | S100: 116 | T100: 86 | U100: 14 | V100: 5 | W100: 105 | X100: 16
A101: 30 | B101: MOSELLE | C101: 44 | D101: MOSELLE NORD | E101: 557303 | F101: FAMECK | G101: 2.9 | H101: 92 | I101: 49 | J101: 56 | K101: 42 | L101: 94 | M101: 183 | N101: 28 | O101: 140 | P101: 150 | Q101: 69 | R101: 217 | S101: 217 | T101: 185 | U101: 49 | V101: 81 | W101: 38 | X101: 53
A102: 30 | B102: MARNE ARDENNES | C102: 11 | D102: REIMS | E102: 551341 | F102: REIMS JEAN JAURES | G102: 2.9 | H102: 93 | I102: 198 | J102: 182 | K102: 188 | L102: 61 | M102: 94 | N102: 36 | O102: 30 | P102: 28 | Q102: 75 | R102: 117 | S102: 162 | T102: 49 | U102: 40 | V102: 42 | W102: 194 | X102: 17
A103: 30 | B103: BAS RHIN | C103: 5060 | D103: HAGUENAU | E103: 4041 | F103: HOERDT | G103: 1.7 | H103: 94 | I103: 68 | J103: 68 | K103: 88 | L103: 159 | M103: 149 | N103: 175 | O103: 12 | P103: 7 | Q103: 177 | R103: 176 | S103: 144 | T103: 220 | U103: 183 | V103: 84 | W103: 210 | X103: 203
A104: 30 | B104: MARNE ARDENNES | C104: 2 | D104: CHARLEVILLE MEZIERES | E104: 408822 | F104: CHARLEVILLE MEZIERES | G104: 5.1 | H104: 95 | I104: 190 | J104: 163 | K104: 196 | L104: 140 | M104: 216 | N104: 33 | O104: 7 | P104: 24 | Q104: 4 | R104: 94 | S104: 151 | T104: 26 | U104: 50 | V104: 45 | W104: 231 | X104: 18
A105: 30 | B105: MOSELLE | C105: 45 | D105: METZ | E105: 557105 | F105: ARS SUR MOSELLE | G105: 3.2 | H105: 96 | I105: 91 | J105: 53 | K105: 185 | L105: 116 | M105: 143 | N105: 88 | O105: 119 | P105: 128 | Q105: 77 | R105: 162 | S105: 181 | T105: 90 | U105: 31 | V105: 30 | W105: 48 | X105: 45
A106: 30 | B106: MARNE ARDENNES | C106: 6 | D106: CHALONS EN CHAMPAGNE | E106: 551128 | F106: SAINTE MENEHOULD | G106: 3.0 | H106: 97 | I106: 39 | J106: 36 | K106: 74 | L106: 114 | M106: 60 | N106: 229 | O106: 174 | P106: 161 | Q106: 201 | R106: 69 | S106: 45 | T106: 137 | U106: 176 | V106: 191 | W106: 73 | X106: 225
A107: 30 | B107: MOSELLE | C107: 42 | D107: MOSELLE EST | E107: 557305 | F107: FAULQUEMONT | G107: 4.2 | H107: 98 | I107: 223 | J107: 174 | K107: 227 | L107: 20 | M107: 37 | N107: 14 | O107: 216 | P107: 231 | Q107: 32 | R107: 51 | S107: 68 | T107: 28 | U107: 15 | V107: 15 | W107: 125 | X107: 8
A108: 30 | B108: VOSGES | C108: 55 | D108: SAINT DIE | E108: 588666 | F108: VAGNEY | G108: 3.4 | H108: 99 | I108: 33 | J108: 32 | K108: 49 | L108: 178 | M108: 135 | N108: 228 | O108: 55 | P108: 43 | Q108: 166 | R108: 175 | S108: 129 | T108: 235 | U108: 179 | V108: 193 | W108: 135 | X108: 181
A109: 30 | B109: BAS RHIN | C109: 5006 | D109: STRASBOURG | E109: 4047 | F109: STRASBOURG CRONENBOURG | G109: 4.6 | H109: 100 | I109: 113 | J109: 138 | K109: 48 | L109: 55 | M109: 39 | N109: 112 | O109: 49 | P109: 61 | Q109: 51 | R109: 108 | S109: 106 | T109: 121 | U109: 186 | V109: 111 | W109: 211 | X109: 165
A110: 30 | B110: MOSELLE | C110: 45 | D110: METZ | E110: 557441 | F110: METZ PLAPPEVILLE | G110: 2.2 | H110: 101 | I110: 200 | J110: 162 | K110: 203 | L110: 146 | M110: 186 | N110: 89 | O110: 4 | P110: 3 | Q110: 86 | R110: 143 | S110: 127 | T110: 163 | U110: 89 | V110: 155 | W110: 18 | X110: 147
A111: 30 | B111: AUBE HAUTE MARNE | C111: 14 | D111: TROYES | E111: 510570 | F111: NOGENT SUR SEINE | G111: 4.3 | H111: 102 | I111: 27 | J111: 23 | K111: 53 | L111: 109 | M111: 112 | N111: 111 | O111: 191 | P111: 194 | Q111: 107 | R111: 155 | S111: 133 | T111: 191 | U111: 145 | V111: 102 | W111: 169 | X111: 128
A112: 30 | B112: MOSELLE | C112: 44 | D112: MOSELLE NORD | E112: 557347 | F112: GUENANGE | G112: 4.6 | H112: 103 | I112: 209 | J112: 202 | K112: 200 | L112: 42 | M112: 31 | N112: 84 | O112: 150 | P112: 155 | Q112: 84 | R112: 38 | S112: 33 | T112: 95 | U112: 30 | V112: 21 | W112: 75 | X112: 39
A113: 30 | B113: VOSGES | C113: 57 | D113: EPINAL | E113: 588396 | F113: LE VAL D AJOL | G113: 2.7 | H113: 104 | I113: 6 | J113: 9 | K113: 12 | L113: 191 | M113: 164 | N113: 211 | O113: 89 | P113: 72 | Q113: 191 | R113: 198 | S113: 170 | T113: 228 | U113: 232 | V113: 176 | W113: 240 | X113: 180
A114: 30 | B114: BAS RHIN | C114: 5060 | D114: HAGUENAU | E114: 4071 | F114: WISSEMBOURG | G114: 7.0 | H114: 105 | I114: 37 | J114: 43 | K114: 28 | L114: 126 | M114: 124 | N114: 131 | O114: 87 | P114: 78 | Q114: 134 | R114: 128 | S114: 121 | T114: 139 | U114: 234 | V114: 232 | W114: 205 | X114: 215
A115: 30 | B115: BAS RHIN | C115: 5006 | D115: STRASBOURG | E115: 4019 | F115: STRASBOURG ANVERS | G115: 4.5 | H115: 106 | I115: 171 | J115: 186 | K115: 161 | L115: 34 | M115: 38 | N115: 41 | O115: 97 | P115: 122 | Q115: 34 | R115: 75 | S115: 78 | T115: 80 | U115: 95 | V115: 29 | W115: 226 | X115: 79
A116: 30 | B116: MEURTHE ET MOSELLE MEUSE | C116: 26 | D116: NANCY | E116: 454426 | F116: LUNEVILLE CARNOT | G116: 8.2 | H116: 107 | I116: 172 | J116: 147 | K116: 190 | L116: 81 | M116: 109 | N116: 53 | O116: 65 | P116: 62 | Q116: 98 | R116: 170 | S116: 195 | T116: 78 | U116: 26 | V116: 55 | W116: 23 | X116: 32
A117: 30 | B117: VOSGES | C117: 57 | D117: EPINAL | E117: 588631 | F117: THAON LES VOSGES | G117: 4.4 | H117: 108 | I117: 99 | J117: 79 | K117: 140 | L117: 86 | M117: 69 | N117: 137 | O117: 170 | P117: 165 | Q117: 160 | R117: 95 | S117: 125 | T117: 55 | U117: 81 | V117: 133 | W117: 37 | X117: 97
A118: 30 | B118: VOSGES | C118: 57 | D118: EPINAL | E118: 488286 | F118: EPINAL ARISTIDE BRIAND | G118: 8.2 | H118: 109 | I118: 156 | J118: 155 | K118: 163 | L118: 49 | M118: 59 | N118: 47 | O118: 38 | P118: 49 | Q118: 50 | R118: 113 | S118: 145 | T118: 64 | U118: 139 | V118: 117 | W118: 202 | X118: 74
A119: 30 | B119: AUBE HAUTE MARNE | C119: 21 | D119: CHAUMONT | E119: 451154 | F119: JOINVILLE | G119: 1.9 | H119: 110 | I119: 71 | J119: 79 | K119: 45 | L119: 78 | M119: 90 | N119: 60 | O119: 233 | P119: 235 | Q119: 103 | R119: 39 | S119: 54 | T119: 37 | U119: 130 | V119: 168 | W119: 118 | X119: 99
A120: 30 | B120: VOSGES | C120: 57 | D120: EPINAL | E120: 488281 | F120: ELOYES | G120: 3.4 | H120: 111 | I120: 45 | J120: 39 | K120: 76 | L120: 193 | M120: 165 | N120: 210 | O120: 37 | P120: 33 | Q120: 125 | R120: 219 | S120: 210 | T120: 230 | U120: 122 | V120: 208 | W120: 33 | X120: 174
A121: 30 | B121: BAS RHIN | C121: 5006 | D121: STRASBOURG | E121: 4006 | F121: STRASBOURG NEUDORF | G121: 7.9 | H121: 112 | I121: 31 | J121: 41 | K121: 9 | L121: 169 | M121: 185 | N121: 134 | O121: 159 | P121: 145 | Q121: 193 | R121: 104 | S121: 101 | T121: 115 | U121: 196 | V121: 159 | W121: 228 | X121: 117
A122: 30 | B122: MEURTHE ET MOSELLE MEUSE | C122: 31 | D122: VERDUN | E122: 555624 | F122: STENAY | G122: 3.4 | H122: 113 | I122: 181 | J122: 213 | K122: 164 | L122: 45 | M122: 76 | N122: 29 | O122: 113 | P122: 117 | Q122: 83 | R122: 172 | S122: 194 | T122: 82 | U122: 23 | V122: 80 | W122: 3 | X122: 60
A123: 30 | B123: MOSELLE | C123: 42 | D123: MOSELLE EST | E123: 557523 | F123: PHALSBOURG | G123: 2.5 | H123: 114 | I123: 137 | J123: 150 | K123: 104 | L123: 148 | M123: 173 | N123: 106 | O123: 44 | P123: 47 | Q123: 79 | R123: 40 | S123: 21 | T123: 148 | U123: 158 | V123: 163 | W123: 76 | X123: 192
A124: 30 | B124: MEURTHE ET MOSELLE MEUSE | C124: 27 | D124: PONT A MOUSSON | E124: 554376 | F124: LAXOU BOUFFLERS | G124: 2.9 | H124: 115 | I124: 239 | J124: 202 | K124: 238 | L124: 21 | M124: 56 | N124: 8 | O124: 202 | P124: 204 | Q124: 138 | R124: 70 | S124: 152 | T124: 8 | U124: 18 | V124: 23 | W124: 53 | X124: 10
A125: 30 | B125: MARNE ARDENNES | C125: 6 | D125: CHALONS EN CHAMPAGNE | E125: 451381 | F125: SEZANNE | G125: 4.8 | H125: 116 | I125: 95 | J125: 90 | K125: 108 | L125: 106 | M125: 101 | N125: 121 | O125: 35 | P125: 29 | Q125: 130 | R125: 213 | S125: 211 | T125: 171 | U125: 123 | V125: 85 | W125: 184 | X125: 100
A126: 30 | B126: BAS RHIN | C126: 5006 | D126: STRASBOURG | E126: 4020 | F126: STRASBOURG ROBERTSAU | G126: 5.4 | H126: 117 | I126: 130 | J126: 142 | K126: 101 | L126: 160 | M126: 158 | N126: 158 | O126: 3 | P126: 2 | Q126: 102 | R126: 205 | S126: 180 | T126: 227 | U126: 213 | V126: 205 | W126: 182 | X126: 210
A127: 30 | B127: MEURTHE ET MOSELLE MEUSE | C127: 31 | D127: VERDUN | E127: 455566 | F127: REVIGNY SUR ORNAIN | G127: 2.7 | H127: 118 | I127: 116 | J127: 117 | K127: 102 | L127: 144 | M127: 103 | N127: 205 | O127: 39 | P127: 27 | Q127: 214 | R127: 96 | S127: 66 | T127: 178 | U127: 164 | V127: 233 | W127: 41 | X127: 216
A128: 30 | B128: MARNE ARDENNES | C128: 6 | D128: CHALONS EN CHAMPAGNE | E128: 551103 | F128: FAGNIERES LECLERC | G128: 2.9 | H128: 119 | I128: 110 | J128: 142 | K128: 29 | L128: 167 | M128: 171 | N128: 151 | O128: 145 | P128: 157 | Q128: 68 | R128: 25 | S128: 28 | T128: 47 | U128: 112 | V128: 142 | W128: 70 | X128: 122
A129: 30 | B129: MEURTHE ET MOSELLE MEUSE | C129: 31 | D129: VERDUN | E129: 554700 | F129: VILLERUPT | G129: 2.8 | H129: 120 | I129: 54 | J129: 45 | K129: 75 | L129: 103 | M129: 97 | N129: 118 | O129: 114 | P129: 127 | Q129: 70 | R129: 166 | S129: 153 | T129: 166 | U129: 204 | V129: 217 | W129: 92 | X129: 236
A130: 30 | B130: VOSGES | C130: 57 | D130: EPINAL | E130: 588716 | F130: XERTIGNY | G130: 2.8 | H130: 121 | I130: 67 | J130: 87 | K130: 27 | L130: 174 | M130: 138 | N130: 222 | O130: 71 | P130: 59 | Q130: 129 | R130: 112 | S130: 62 | T130: 219 | U130: 190 | V130: 182 | W130: 155 | X130: 194
A131: 30 | B131: BAS RHIN | C131: 5101 | D131: SELESTAT | E131: 4126 | F131: MUTZIG | G131: 2.7 | H131: 122 | I131: 159 | J131: 213 | K131: 117 | L131: 46 | M131: 19 | N131: 128 | O131: 43 | P131: 52 | Q131: 60 | R131: 150 | S131: 148 | T131: 140 | U131: 148 | V131: 75 | W131: 238 | X131: 73
A132: 30 | B132: MEURTHE ET MOSELLE MEUSE | C132: 31 | D132: VERDUN | E132: 455151 | F132: BAR LE DUC | G132: 10.0 | H132: 123 | I132: 62 | J132: 73 | K132: 30 | L132: 143 | M132: 113 | N132: 194 | O132: 165 | P132: 158 | Q132: 149 | R132: 125 | S132: 100 | T132: 169 | U132: 144 | V132: 170 | W132: 68 | X132: 171
A133: 30 | B133: BAS RHIN | C133: 5101 | D133: SELESTAT | E133: 4121 | F133: SCHIRMECK | G133: 2.8 | H133: 124 | I133: 63 | J133: 87 | K133: 11 | L133: 66 | M133: 49 | N133: 105 | O133: 217 | P133: 224 | Q133: 104 | R133: 197 | S133: 178 | T133: 213 | U133: 93 | V133: 94 | W133: 86 | X133: 90
A134: 30 | B134: VOSGES | C134: 55 | D134: SAINT DIE | E134: 588316 | F134: FRAIZE | G134: 3.7 | H134: 125 | I134: 89 | J134: 101 | K134: 56 | L134: 170 | M134: 157 | N134: 186 | O134: 103 | P134: 90 | Q134: 140 | R134: 89 | S134: 57 | T134: 182 | U134: 143 | V134: 175 | W134: 108 | X134: 121
A135: 30 | B135: AUBE HAUTE MARNE | C135: 21 | D135: CHAUMONT | E135: 451156 | F135: SAINT DIZIER CENTRE | G135: 8.6 | H135: 126 | I135: 121 | J135: 112 | K135: 141 | L135: 128 | M135: 148 | N135: 97 | O135: 143 | P135: 132 | Q135: 137 | R135: 71 | S135: 65 | T135: 91 | U135: 102 | V135: 148 | W135: 101 | X135: 70
A136: 110 | B136: BAS RHIN | C136: 5060 | D136: HAGUENAU | E136: 4057 | F136: BISCHWILLER | G136: 7.2 | H136: 127 | I136: 79 | J136: 84 | K136: 60 | L136: 87 | M136: 44 | N136: 195 | O136: 156 | P136: 134 | Q136: 213 | R136: 119 | S136: 99 | T136: 152 | U136: 188 | V136: 239 | W136: 59 | X136: 224
A137: 110 | B137: VOSGES | C137: 57 | D137: EPINAL | E137: 588201 | F137: CHANTRAINE | G137: 3.6 | H137: 128 | I137: 97 | J137: 101 | K137: 95 | L137: 80 | M137: 66 | N137: 124 | O137: 88 | P137: 80 | Q137: 108 | R137: 181 | S137: 155 | T137: 226 | U137: 172 | V137: 126 | W137: 209 | X137: 114
A138: 110 | B138: MEURTHE ET MOSELLE MEUSE | C138: 26 | D138: NANCY | E138: 554296 | F138: ESSEY LES NANCY | G138: 3.6 | H138: 129 | I138: 73 | J138: 83 | K138: 43 | L138: 112 | M138: 120 | N138: 107 | O138: 133 | P138: 105 | Q138: 185 | R138: 208 | S138: 201 | T138: 195 | U138: 131 | V138: 139 | W138: 187 | X138: 65
A139: 110 | B139: BAS RHIN | C139: 5006 | D139: STRASBOURG | E139: 4027 | F139: SCHILTIGHEIM CENTRE | G139: 3.9 | H139: 130 | I139: 201 | J139: 213 | K139: 179 | L139: 41 | M139: 33 | N139: 76 | O139: 105 | P139: 100 | Q139: 91 | R139: 84 | S139: 109 | T139: 48 | U139: 124 | V139: 128 | W139: 133 | X139: 105
A140: 110 | B140: VOSGES | C140: 55 | D140: SAINT DIE | E140: 588461 | F140: MOYENMOUTIER | G140: 4.3 | H140: 131 | I140: 86 | J140: 77 | K140: 105 | L140: 111 | M140: 51 | N140: 230 | O140: 138 | P140: 104 | Q140: 206 | R140: 115 | S140: 95 | T140: 155 | U140: 202 | V140: 240 | W140: 99 | X140: 212
A141: 110 | B141: VOSGES | C141: 55 | D141: SAINT DIE | E141: 588386 | F141: LE THILLOT | G141: 2.5 | H141: 132 | I141: 13 | J141: 15 | K141: 24 | L141: 171 | M141: 114 | N141: 237 | O141: 219 | P141: 208 | Q141: 234 | R141: 192 | S141: 173 | T141: 216 | U141: 191 | V141: 202 | W141: 177 | X141: 157
A142: 110 | B142: BAS RHIN | C142: 5006 | D142: STRASBOURG | E142: 4023 | F142: STRASBOURG VOSGES | G142: 2.9 | H142: 133 | I142: 135 | J142: 125 | K142: 154 | L142: 110 | M142: 115 | N142: 110 | O142: 18 | P142: 17 | Q142: 54 | R142: 188 | S142: 176 | T142: 199 | U142: 192 | V142: 95 | W142: 241 | X142: 131
A143: 110 | B143: BAS RHIN | C143: 5060 | D143: HAGUENAU | E143: 4031 | F143: TRUCHTERSHEIM | G143: 2.2 | H143: 134 | I143: 56 | J143: 45 | K143: 82 | L143: 58 | M143: 12 | N143: 220 | O143: 116 | P143: 89 | Q143: 222 | R143: 231 | S143: 228 | T143: 237 | U143: 230 | V143: 179 | W143: 207 | X143: 231
A144: 110 | B144: MEURTHE ET MOSELLE MEUSE | C144: 27 | D144: PONT A MOUSSON | E144: 554496 | F144: NANCY TROIS MAISONS | G144: 2.3 | H144: 135 | I144: 163 | J144: 181 | K144: 143 | L144: 102 | M144: 141 | N144: 65 | O144: 142 | P144: 130 | Q144: 135 | R144: 90 | S144: 114 | T144: 58 | U144: 57 | V144: 97 | W144: 32 | X144: 69
A145: 110 | B145: MOSELLE | C145: 42 | D145: MOSELLE EST | E145: 557210 | F145: CHATEAU SALINS | G145: 1.5 | H145: 136 | I145: 173 | J145: 213 | K145: 145 | L145: 74 | M145: 75 | N145: 85 | O145: 184 | P145: 177 | Q145: 163 | R145: 32 | S145: 26 | T145: 76 | U145: 103 | V145: 203 | W145: 22 | X145: 166
A146: 110 | B146: MEURTHE ET MOSELLE MEUSE | C146: 27 | D146: PONT A MOUSSON | E146: 554357 | F146: JOEUF | G146: 3.1 | H146: 137 | I146: 81 | J146: 77 | K146: 91 | L146: 136 | M146: 155 | N146: 96 | O146: 197 | P146: 188 | Q146: 172 | R146: 169 | S146: 184 | T146: 102 | U146: 80 | V146: 118 | W146: 26 | X146: 127
A147: 110 | B147: MOSELLE | C147: 42 | D147: MOSELLE EST | E147: 457435 | F147: MERLEBACH | G147: 2.8 | H147: 138 | I147: 106 | J147: 113 | K147: 92 | L147: 107 | M147: 182 | N147: 39 | O147: 204 | P147: 223 | Q147: 56 | R147: 146 | S147: 197 | T147: 35 | U147: 63 | V147: 173 | W147: 8 | X147: 91
A148: 110 | B148: AUBE HAUTE MARNE | C148: 21 | D148: CHAUMONT | E148: 410566 | F148: CHAUMONT HOTEL DE VILLE | G148: 10.4 | H148: 139 | I148: 100 | J148: 97 | K148: 110 | L148: 173 | M148: 176 | N148: 157 | O148: 67 | P148: 55 | Q148: 145 | R148: 157 | S148: 126 | T148: 200 | U148: 166 | V148: 160 | W148: 124 | X148: 184
A149: 110 | B149: MOSELLE | C149: 44 | D149: MOSELLE NORD | E149: 557307 | F149: FONTOY | G149: 1.9 | H149: 140 | I149: 51 | J149: 45 | K149: 67 | L149: 214 | M149: 198 | N149: 221 | O149: 96 | P149: 70 | Q149: 232 | R149: 233 | S149: 231 | T149: 233 | U149: 77 | V149: 131 | W149: 10 | X149: 169
A150: 110 | B150: MEURTHE ET MOSELLE MEUSE | C150: 27 | D150: PONT A MOUSSON | E150: 454355 | F150: JARNY | G150: 4.1 | H150: 141 | I150: 112 | J150: 117 | K150: 85 | L150: 133 | M150: 129 | N150: 135 | O150: 91 | P150: 76 | Q150: 169 | R150: 121 | S150: 122 | T150: 127 | U150: 200 | V150: 194 | W150: 172 | X150: 186
A151: 110 | B151: MEURTHE ET MOSELLE MEUSE | C151: 26 | D151: NANCY | E151: 554486 | F151: NANCY POINT CENTRAL | G151: 3.0 | H151: 142 | I151: 132 | J151: 94 | K151: 194 | L151: 205 | M151: 225 | N151: 117 | O151: 22 | P151: 16 | Q151: 80 | R151: 174 | S151: 174 | T151: 144 | U151: 149 | V151: 96 | W151: 121 | X151: 195
A152: 110 | B152: MARNE ARDENNES | C152: 2 | D152: CHARLEVILLE MEZIERES | E152: 408862 | F152: REVIN | G152: 4.0 | H152: 143 | I152: 83 | J152: 90 | K152: 59 | L152: 186 | M152: 177 | N152: 182 | O152: 186 | P152: 192 | Q152: 120 | R152: 83 | S152: 61 | T152: 134 | U152: 156 | V152: 127 | W152: 165 | X152: 126
A153: 110 | B153: BAS RHIN | C153: 5006 | D153: STRASBOURG | E153: 4039 | F153: REICHSTETT | G153: 1.6 | H153: 144 | I153: 169 | J153: 213 | K153: 134 | L153: 142 | M153: 130 | N153: 155 | O153: 33 | P153: 30 | Q153: 110 | R153: 87 | S153: 77 | T153: 117 | U153: 198 | V153: 137 | W153: 206 | X153: 170
A154: 110 | B154: HAUT RHIN | C154: 5130 | D154: COLMAR | E154: 4143 | F154: MUNSTER | G154: 4.3 | H154: 145 | I154: 141 | J154: 191 | K154: 61 | L154: 93 | M154: 46 | N154: 206 | O154: 137 | P154: 102 | Q154: 215 | R154: 135 | S154: 94 | T154: 197 | U154: 125 | V154: 158 | W154: 54 | X154: 168
A155: 110 | B155: VOSGES | C155: 57 | D155: EPINAL | E155: 588206 | F155: CHARMES | G155: 2.7 | H155: 146 | I155: 117 | J155: 149 | K155: 31 | L155: 155 | M155: 172 | N155: 119 | O155: 54 | P155: 34 | Q155: 218 | R155: 184 | S155: 207 | T155: 111 | U155: 175 | V155: 243 | W155: 93 | X155: 135
A156: 110 | B156: MEURTHE ET MOSELLE MEUSE | C156: 31 | D156: VERDUN | E156: 554412 | F156: LONGUYON | G156: 2.8 | H156: 147 | I156: 101 | J156: 117 | K156: 55 | L156: 88 | M156: 104 | N156: 72 | O156: 205 | P156: 198 | Q156: 189 | R156: 127 | S156: 115 | T156: 159 | U156: 155 | V156: 115 | W156: 168 | X156: 130
A157: 110 | B157: VOSGES | C157: 57 | D157: EPINAL | E157: 488706 | F157: VITTEL | G157: 3.1 | H157: 148 | I157: 102 | J157: 114 | K157: 69 | L157: 190 | M157: 167 | N157: 203 | O157: 160 | P157: 139 | Q157: 209 | R157: 107 | S157: 107 | T157: 116 | U157: 118 | V157: 156 | W157: 144 | X157: 75
A158: 110 | B158: MOSELLE | C158: 44 | D158: MOSELLE NORD | E158: 457192 | F158: CATTENOM | G158: 1.6 | H158: 149 | I158: 146 | J158: 159 | K158: 129 | L158: 95 | M158: 71 | N158: 147 | O158: 176 | P158: 199 | Q158: 38 | R158: 149 | S158: 146 | T158: 142 | U158: 72 | V158: 56 | W158: 60 | X158: 123
A159: 110 | B159: MOSELLE | C159: 42 | D159: MOSELLE EST | E159: 557503 | F159: NEUNKIRCH | G159: 3.4 | H159: 150 | I159: 4 | J159: 4 | K159: 5 | L159: 226 | M159: 204 | N159: 234 | O159: 215 | P159: 207 | Q159: 228 | R159: 230 | S159: 224 | T159: 240 | U159: 215 | V159: 192 | W159: 176 | X159: 218
A160: 110 | B160: MEURTHE ET MOSELLE MEUSE | C160: 26 | D160: NANCY | E160: 554166 | F160: BLAINVILLE | G160: 2.8 | H160: 151 | I160: 186 | J160: 213 | K160: 167 | L160: 70 | M160: 63 | N160: 98 | O160: 185 | P160: 184 | Q160: 150 | R160: 60 | S160: 50 | T160: 104 | U160: 108 | V160: 101 | W160: 149 | X160: 85
A161: 110 | B161: MEURTHE ET MOSELLE MEUSE | C161: 26 | D161: NANCY | E161: 554266 | F161: DOMBASLE SUR MEURTHE | G161: 3.4 | H161: 152 | I161: 184 | J161: 213 | K161: 165 | L161: 223 | M161: 224 | N161: 184 | O161: 31 | P161: 18 | Q161: 155 | R161: 102 | S161: 123 | T161: 71 | U161: 84 | V161: 130 | W161: 20 | X161: 152
A162: 110 | B162: BAS RHIN | C162: 5101 | D162: SELESTAT | E162: 4127 | F162: ROSHEIM | G162: 1.7 | H162: 153 | I162: 129 | J162: 132 | K162: 114 | L162: 194 | M162: 181 | N162: 196 | O162: 34 | P162: 25 | Q162: 195 | R162: 201 | S162: 179 | T162: 217 | U162: 153 | V162: 138 | W162: 199 | X162: 78
A163: 110 | B163: BAS RHIN | C163: 5060 | D163: HAGUENAU | E163: 4085 | F163: INGWILLER | G163: 3.5 | H163: 154 | I163: 142 | J163: 132 | K163: 159 | L163: 137 | M163: 131 | N163: 139 | O163: 154 | P163: 135 | Q163: 164 | R163: 114 | S163: 130 | T163: 101 | U163: 113 | V163: 154 | W163: 39 | X163: 176
A164: 110 | B164: BAS RHIN | C164: 5101 | D164: SELESTAT | E164: 4007 | F164: ILLKIRCH CENTRE | G164: 6.6 | H164: 155 | I164: 202 | J164: 194 | K164: 189 | L164: 113 | M164: 95 | N164: 148 | O164: 161 | P164: 162 | Q164: 132 | R164: 29 | S164: 20 | T164: 88 | U164: 141 | V164: 98 | W164: 158 | X164: 132
A165: 110 | B165: MEURTHE ET MOSELLE MEUSE | C165: 27 | D165: PONT A MOUSSON | E165: 454651 | F165: TOUL | G165: 10.0 | H165: 156 | I165: 213 | J165: 167 | K165: 222 | L165: 168 | M165: 187 | N165: 129 | O165: 102 | P165: 94 | Q165: 99 | R165: 76 | S165: 92 | T165: 56 | U165: 54 | V165: 43 | W165: 80 | X165: 71
A166: 110 | B166: HAUT RHIN | C166: 5130 | D166: COLMAR | E166: 4157 | F166: NEUF BRISACH | G166: 2.8 | H166: 157 | I166: 167 | J166: 131 | K166: 199 | L166: 152 | M166: 180 | N166: 99 | O166: 130 | P166: 144 | Q166: 65 | R166: 77 | S166: 69 | T166: 113 | U166: 126 | V166: 161 | W166: 85 | X166: 116
A167: 110 | B167: MOSELLE | C167: 42 | D167: MOSELLE EST | E167: 457614 | F167: SARREBOURG | G167: 7.9 | H167: 158 | I167: 123 | J167: 127 | K167: 103 | L167: 164 | M167: 145 | N167: 191 | O167: 147 | P167: 141 | Q167: 113 | R167: 139 | S167: 102 | T167: 186 | U167: 159 | V167: 150 | W167: 89 | X167: 197
A168: 110 | B168: MARNE ARDENNES | C168: 2 | D168: CHARLEVILLE MEZIERES | E168: 408806 | F168: SEDAN | G168: 7.6 | H168: 159 | I168: 78 | J168: 96 | K168: 40 | L168: 176 | M168: 166 | N168: 181 | O168: 166 | P168: 170 | Q168: 93 | R168: 220 | S168: 209 | T168: 236 | U168: 116 | V168: 107 | W168: 146 | X168: 94
A169: 110 | B169: MOSELLE | C169: 45 | D169: METZ | E169: 557459 | F169: MOULINS LES METZ | G169: 2.5 | H169: 160 | I169: 70 | J169: 45 | K169: 147 | L169: 195 | M169: 162 | N169: 225 | O169: 200 | P169: 195 | Q169: 167 | R169: 163 | S169: 132 | T169: 207 | U169: 173 | V169: 183 | W169: 112 | X169: 193
A170: 110 | B170: MOSELLE | C170: 45 | D170: METZ | E170: 557436 | F170: METZ CATHEDRALE | G170: 3.9 | H170: 161 | I170: 226 | J170: 213 | K170: 219 | L170: 139 | M170: 121 | N170: 169 | O170: 63 | P170: 54 | Q170: 153 | R170: 67 | S170: 52 | T170: 123 | U170: 165 | V170: 169 | W170: 141 | X170: 142
A171: 110 | B171: AUBE HAUTE MARNE | C171: 14 | D171: TROYES | E171: 510513 | F171: SAINT PARRES AUX TERTRES | G171: 2.4 | H171: 162 | I171: 240 | J171: 213 | K171: 236 | L171: 56 | M171: 119 | N171: 27 | O171: 173 | P171: 209 | Q171: 25 | R171: 56 | S171: 63 | T171: 40 | U171: 109 | V171: 99 | W171: 138 | X171: 95
A172: 110 | B172: AUBE HAUTE MARNE | C172: 14 | D172: TROYES | E172: 510523 | F172: LA CHAPELLE ST LUC | G172: 4.6 | H172: 163 | I172: 237 | J172: 194 | K172: 234 | L172: 118 | M172: 174 | N172: 52 | O172: 107 | P172: 133 | Q172: 37 | R172: 49 | S172: 72 | T172: 23 | U172: 121 | V172: 149 | W172: 110 | X172: 107
A173: 110 | B173: MOSELLE | C173: 45 | D173: METZ | E173: 557712 | F173: WOIPPY | G173: 4.5 | H173: 164 | I173: 178 | J173: 111 | K173: 233 | L173: 119 | M173: 118 | N173: 130 | O173: 141 | P173: 153 | Q173: 62 | R173: 105 | S173: 104 | T173: 122 | U173: 152 | V173: 119 | W173: 130 | X173: 160
A174: 110 | B174: MARNE ARDENNES | C174: 11 | D174: REIMS | E174: 551309 | F174: REIMS EUROPE | G174: 2.9 | H174: 165 | I174: 120 | J174: 72 | K174: 201 | L174: 175 | M174: 217 | N174: 78 | O174: 198 | P174: 202 | Q174: 115 | R174: 133 | S174: 172 | T174: 53 | U174: 119 | V174: 72 | W174: 234 | X174: 63
A175: 110 | B175: MARNE ARDENNES | C175: 2 | D175: CHARLEVILLE MEZIERES | E175: 508819 | F175: MOUZON | G175: 1.9 | H175: 166 | I175: 96 | J175: 84 | K175: 123 | L175: 235 | M175: 241 | N175: 102 | O175: 45 | P175: 41 | Q175: 88 | R175: 234 | S175: 241 | T175: 77 | U175: 135 | V175: 146 | W175: 233 | X175: 42
A176: 110 | B176: HAUT RHIN | C176: 5169 | D176: MULHOUSE | E176: 4170 | F176: MULHOUSE REUNION | G176: 7.6 | H176: 167 | I176: 151 | J176: 122 | K176: 198 | L176: 145 | M176: 161 | N176: 113 | O176: 193 | P176: 190 | Q176: 144 | R176: 101 | S176: 142 | T176: 42 | U176: 104 | V176: 92 | W176: 94 | X176: 110
A177: 110 | B177: VOSGES | C177: 55 | D177: SAINT DIE | E177: 488556 | F177: RAON L ETAPE | G177: 2.2 | H177: 168 | I177: 87 | J177: 75 | K177: 126 | L177: 229 | M177: 234 | N177: 141 | O177: 214 | P177: 212 | Q177: 202 | R177: 158 | S177: 175 | T177: 98 | U177: 78 | V177: 236 | W177: 15 | X177: 84
A178: 160 | B178: HAUT RHIN | C178: 5130 | D178: COLMAR | E178: 4132 | F178: COLMAR MARAICHERS | G178: 3.8 | H178: 169 | I178: 134 | J178: 124 | K178: 152 | L178: 120 | M178: 108 | N178: 145 | O178: 115 | P178: 111 | Q178: 114 | R178: 168 | S178: 143 | T178: 187 | U178: 224 | V178: 231 | W178: 154 | X178: 226
A179: 160 | B179: BAS RHIN | C179: 5006 | D179: STRASBOURG | E179: 4029 | F179: SCHILTIGHEIM KLEBER | G179: 0.9 | H179: 170 | I179: 149 | J179: 145 | K179: 169 | L179: 236 | M179: 236 | N179: 159 | O179: 47 | P179: 37 | Q179: 123 | R179: 137 | S179: 218 | T179: 7 | U179: 129 | V179: 157 | W179: 98 | X179: 113
A180: 160 | B180: BAS RHIN | C180: 5101 | D180: SELESTAT | E180: 4008 | F180: FEGERSHEIM | G180: 2.3 | H180: 171 | I180: 107 | J180: 106 | K180: 113 | L180: 108 | M180: 58 | N180: 218 | O180: 152 | P180: 119 | Q180: 220 | R180: 182 | S180: 167 | T180: 211 | U180: 238 | V180: 226 | W180: 225 | X180: 234
A181: 160 | B181: MEURTHE ET MOSELLE MEUSE | C181: 27 | D181: PONT A MOUSSON | E181: 554196 | F181: CHAMPIGNEULLES | G181: 2.5 | H181: 172 | I181: 179 | J181: 213 | K181: 155 | L181: 192 | M181: 168 | N181: 207 | O181: 158 | P181: 146 | Q181: 158 | R181: 46 | S181: 34 | T181: 106 | U181: 147 | V181: 86 | W181: 181 | X181: 137
A182: 160 | B182: MARNE ARDENNES | C182: 2 | D182: CHARLEVILLE MEZIERES | E182: 508815 | F182: CARIGNAN | G182: 2.7 | H182: 173 | I182: 92 | J182: 79 | K182: 127 | L182: 127 | M182: 154 | N182: 83 | O182: 168 | P182: 169 | Q182: 101 | R182: 222 | S182: 221 | T182: 179 | U182: 195 | V182: 124 | W182: 208 | X182: 175
A183: 160 | B183: MOSELLE | C183: 42 | D183: MOSELLE EST | E183: 457258 | F183: DIEUZE | G183: 3.0 | H183: 174 | I183: 75 | J183: 90 | K183: 47 | L183: 228 | M183: 214 | N183: 226 | O183: 134 | P183: 95 | Q183: 230 | R183: 165 | S183: 147 | T183: 170 | U183: 229 | V183: 228 | W183: 201 | X183: 214
A184: 160 | B184: MOSELLE | C184: 44 | D184: MOSELLE NORD | E184: 457180 | F184: BOUSSE | G184: 2.6 | H184: 175 | I184: 7 | J184: 5 | K184: 35 | L184: 219 | M184: 160 | N184: 244 | O184: 163 | P184: 109 | Q184: 244 | R184: 241 | S184: 232 | T184: 244 | U184: 244 | V184: 238 | W184: 244 | X184: 244
A185: 160 | B185: BAS RHIN | C185: 5006 | D185: STRASBOURG | E185: 4028 | F185: BISCHHEIM | G185: 3.3 | H185: 176 | I185: 174 | J185: 210 | K185: 149 | L185: 179 | M185: 179 | N185: 154 | O185: 92 | P185: 93 | Q185: 71 | R185: 73 | S185: 82 | T185: 60 | U185: 220 | V185: 198 | W185: 196 | X185: 206
A186: 160 | B186: BAS RHIN | C186: 5101 | D186: SELESTAT | E186: 4107 | F186: VILLE | G186: 2.3 | H186: 177 | I186: 217 | J186: 213 | K186: 209 | L186: 73 | M186: 22 | N186: 224 | O186: 48 | P186: 35 | Q186: 175 | R186: 171 | S186: 134 | T186: 225 | U186: 233 | V186: 235 | W186: 159 | X186: 238
A187: 160 | B187: MEURTHE ET MOSELLE MEUSE | C187: 27 | D187: PONT A MOUSSON | E187: 454696 | F187: VILLERS GENERAL LECLERC | G187: 4.2 | H187: 178 | I187: 161 | J187: 213 | K187: 121 | L187: 208 | M187: 209 | N187: 171 | O187: 20 | P187: 13 | Q187: 168 | R187: 194 | S187: 186 | T187: 192 | U187: 223 | V187: 185 | W187: 213 | X187: 201
A188: 160 | B188: MOSELLE | C188: 45 | D188: METZ | E188: 557559 | F188: REMILLY | G188: 3.5 | H188: 179 | I188: 162 | J188: 150 | K188: 170 | L188: 161 | M188: 132 | N188: 208 | O188: 131 | P188: 110 | Q188: 170 | R188: 187 | S188: 193 | T188: 164 | U188: 101 | V188: 122 | W188: 69 | X188: 103
A189: 160 | B189: HAUT RHIN | C189: 5169 | D189: MULHOUSE | E189: 4180 | F189: RIEDISHEIM | G189: 3.4 | H189: 180 | I189: 72 | J189: 45 | K189: 150 | L189: 172 | M189: 139 | N189: 213 | O189: 235 | P189: 232 | Q189: 227 | R189: 136 | S189: 111 | T189: 175 | U189: 226 | V189: 109 | W189: 232 | X189: 222
A190: 160 | B190: HAUT RHIN | C190: 5169 | D190: MULHOUSE | E190: 4178 | F190: SAINT LOUIS | G190: 6.5 | H190: 181 | I190: 185 | J190: 172 | K190: 186 | L190: 154 | M190: 150 | N190: 144 | O190: 61 | P190: 51 | Q190: 151 | R190: 161 | S190: 156 | T190: 143 | U190: 219 | V190: 141 | W190: 219 | X190: 213
A191: 160 | B191: HAUT RHIN | C191: 5130 | D191: COLMAR | E191: 4130 | F191: COLMAR REPUBLIQUE | G191: 6.0 | H191: 182 | I191: 194 | J191: 155 | K191: 208 | L191: 181 | M191: 144 | N191: 213 | O191: 132 | P191: 103 | Q191: 194 | R191: 61 | S191: 38 | T191: 158 | U191: 205 | V191: 178 | W191: 186 | X191: 199
A192: 160 | B192: MARNE ARDENNES | C192: 2 | D192: CHARLEVILLE MEZIERES | E192: 508860 | F192: ROCROI | G192: 2.3 | H192: 183 | I192: 211 | J192: 197 | K192: 205 | L192: 82 | M192: 84 | N192: 81 | O192: 175 | P192: 173 | Q192: 127 | R192: 167 | S192: 171 | T192: 125 | U192: 120 | V192: 103 | W192: 164 | X192: 96
A193: 160 | B193: BAS RHIN | C193: 5060 | D193: HAGUENAU | E193: 4060 | F193: HAGUENAU HOUBLON | G193: 8.8 | H193: 184 | I193: 189 | J193: 167 | K193: 192 | L193: 166 | M193: 151 | N193: 185 | O193: 90 | P193: 73 | Q193: 180 | R193: 126 | S193: 108 | T193: 167 | U193: 193 | V193: 199 | W193: 153 | X193: 189
A194: 160 | B194: MOSELLE | C194: 45 | D194: METZ | E194: 557440 | F194: METZ MOZART | G194: 3.1 | H194: 185 | I194: 164 | J194: 213 | K194: 122 | L194: 197 | M194: 159 | N194: 231 | O194: 59 | P194: 40 | Q194: 197 | R194: 164 | S194: 118 | T194: 218 | U194: 231 | V194: 172 | W194: 236 | X194: 207
A195: 160 | B195: MOSELLE | C195: 45 | D195: METZ | E195: 557433 | F195: MARANGE SILVANGE | G195: 2.9 | H195: 186 | I195: 180 | J195: 159 | K195: 195 | L195: 180 | M195: 170 | N195: 177 | O195: 167 | P195: 159 | Q195: 165 | R195: 148 | S195: 138 | T195: 162 | U195: 90 | V195: 189 | W195: 21 | X195: 118
A196: 160 | B196: BAS RHIN | C196: 5101 | D196: SELESTAT | E196: 4101 | F196: SELESTAT CENTRE | G196: 7.8 | H196: 187 | I196: 187 | J196: 186 | K196: 181 | L196: 134 | M196: 91 | N196: 197 | O196: 171 | P196: 149 | Q196: 223 | R196: 106 | S196: 105 | T196: 118 | U196: 167 | V196: 207 | W196: 107 | X196: 172
A197: 160 | B197: MEURTHE ET MOSELLE MEUSE | C197: 27 | D197: PONT A MOUSSON | E197: 554257 | F197: DIEULOUARD | G197: 2.8 | H197: 188 | I197: 127 | J197: 117 | K197: 138 | L197: 209 | M197: 175 | N197: 238 | O197: 41 | P197: 22 | Q197: 242 | R197: 214 | S197: 191 | T197: 239 | U197: 240 | V197: 224 | W197: 223 | X197: 243
A198: 160 | B198: HAUT RHIN | C198: 5169 | D198: MULHOUSE | E198: 4181 | F198: WITTELSHEIM | G198: 2.7 | H198: 189 | I198: 195 | J198: 213 | K198: 176 | L198: 203 | M198: 223 | N198: 120 | O198: 187 | P198: 174 | Q198: 211 | R198: 153 | S198: 165 | T198: 114 | U198: 39 | V198: 61 | W198: 28 | X198: 57
A199: 160 | B199: BAS RHIN | C199: 5060 | D199: HAGUENAU | E199: 4082 | F199: BOUXWILLER | G199: 2.3 | H199: 190 | I199: 46 | J199: 56 | K199: 38 | L199: 204 | M199: 200 | N199: 192 | O199: 241 | P199: 241 | Q199: 159 | R199: 109 | S199: 135 | T199: 84 | U199: 110 | V199: 88 | W199: 147 | X199: 102
A200: 160 | B200: AUBE HAUTE MARNE | C200: 14 | D200: TROYES | E200: 410550 | F200: BAR SUR AUBE | G200: 5.1 | H200: 191 | I200: 105 | J200: 99 | K200: 115 | L200: 163 | M200: 153 | N200: 168 | O200: 221 | P200: 214 | Q200: 205 | R200: 207 | S200: 200 | T200: 193 | U200: 162 | V200: 209 | W200: 63 | X200: 196
A201: 160 | B201: BAS RHIN | C201: 5101 | D201: SELESTAT | E201: 4109 | F201: MARCKOLSHEIM | G201: 2.7 | H201: 192 | I201: 144 | J201: 213 | K201: 66 | L201: 117 | M201: 87 | N201: 163 | O201: 224 | P201: 228 | Q201: 105 | R201: 147 | S201: 169 | T201: 93 | U201: 163 | V201: 187 | W201: 129 | X201: 146
A202: 160 | B202: BAS RHIN | C202: 5060 | D202: HAGUENAU | E202: 4030 | F202: BRUMATH | G202: 4.1 | H202: 193 | I202: 221 | J202: 213 | K202: 214 | L202: 115 | M202: 77 | N202: 200 | O202: 28 | P202: 21 | Q202: 118 | R202: 221 | S202: 213 | T202: 221 | U202: 207 | V202: 151 | W202: 185 | X202: 219
A203: 160 | B203: MEURTHE ET MOSELLE MEUSE | C203: 26 | D203: NANCY | E203: 454671 | F203: VANDOEUVRE LES NANCY | G203: 4.2 | H203: 194 | I203: 182 | J203: 146 | K203: 213 | L203: 182 | M203: 194 | N203: 140 | O203: 121 | P203: 91 | Q203: 216 | R203: 145 | S203: 139 | T203: 153 | U203: 154 | V203: 69 | W203: 180 | X203: 187
A204: 160 | B204: MARNE ARDENNES | C204: 11 | D204: REIMS | E204: 451308 | F204: REIMS SAINT THOMAS | G204: 5.3 | H204: 195 | I204: 235 | J204: 182 | K204: 237 | L204: 100 | M204: 122 | N204: 87 | O204: 220 | P204: 229 | Q204: 73 | R204: 110 | S204: 120 | T204: 100 | U204: 58 | V204: 33 | W204: 171 | X204: 54
... 50 more rows

Sheet AG_FICHE
A1: Accueil
A2: BAROMETRE GRAND PUBLIC
A4: UNITE: | B4: Agence | E4: ETP perf : | F4: =VLOOKUP(A5,'RECAP AG'!$G$6:$CY$251,3,FALSE) -> 5.32
A5: =VLOOKUP(B5,LISTES!$C$6:$D$249,2,FALSE) -> 4189 | B5: ALTKIRCH
C6: Coefficient du critère | E6: Résultats | I6: Ecart au 1ier | K6: =IF(OR(A5=4017,A5=4022),"Rang estimé","Rang") -> Rang
E7: du 1ier | G7: de l'Agence
A9: RANG GRAND PUBLIC | K9: =VLOOKUP($A$5,'RECAP AG'!$G$6:$CY$251,96,FALSE) -> 244
A11: SATISFACTION CLIENTS | C11: 20% | K11: =VLOOKUP($A$5,'RECAP AG'!$G$6:$CY$251,13,FALSE) -> 244
B12: NPS à froid (SAE) | C12: 10% | E12: =+'RECAP AG'!K4 -> 60 | G12: =VLOOKUP($A$5,'RECAP AG'!$G$6:$CY$251,5,FALSE) -> 0.0 | I12: =VLOOKUP($A$5,'RECAP AG'!$G$6:$CY$251,6,FALSE) -> 100% | K12: =VLOOKUP($A$5,'RECAP AG'!$G$6:$CY$251,7,FALSE) -> 213
B13: NPS à chaud (QHD) | C13: 10% | E13: =+'RECAP AG'!N4 -> 89% | G13: =VLOOKUP($A$5,'RECAP AG'!$G$6:$CY$251,8,FALSE) -> 10% | I13: =VLOOKUP($A$5,'RECAP AG'!$G$6:$CY$251,9,FALSE) -> 88% | K13: =VLOOKUP($A$5,'RECAP AG'!$G$6:$CY$251,10,FALSE) -> 244
A15: BANCARISATION | C15: 20% | K15: =VLOOKUP($A$5,'RECAP AG'!$G$6:$CY$251,28,FALSE) -> 242
B16: Ventes Nettes produits pondérés | C16: 12% | E16: ='RECAP AG'!X4 -> 103.7 | G16: =VLOOKUP($A$5,'RECAP AG'!$G$6:$CY$251,19,FALSE) -> -9.5 | I16: =VLOOKUP($A$5,'RECAP AG'!$G$6:$CY$251,20,FALSE) -> 109% | K16: =VLOOKUP($A$5,'RECAP AG'!$G$6:$CY$251,21,FALSE) -> 237
B17: Ventes sur client non détenteur de l’univers | C17: 8% | E17: ='RECAP AG'!AB4 -> 126.5 | G17: =VLOOKUP($A$5,'RECAP AG'!$G$6:$CY$251,23,FALSE) -> 27.6 | I17: =VLOOKUP($A$5,'RECAP AG'!$G$6:$CY$251,24,FALSE) -> 78% | K17: =VLOOKUP($A$5,'RECAP AG'!$G$6:$CY$251,25,FALSE) -> 236
A19: EPARGNE | C19: 20% | K19: =VLOOKUP($A$5,'RECAP AG'!$G$6:$CY$251,43,FALSE) -> 230
B20: Excédent Epargne hors DAV pondéré | C20: 12% | E20: ='RECAP AG'!AM4 -> 1441.3 | G20: =VLOOKUP($A$5,'RECAP AG'!$G$6:$CY$251,34,FALSE) -> -223.5 | I20: =VLOOKUP($A$5,'RECAP AG'!$G$6:$CY$251,35,FALSE) -> 78% | K20: =VLOOKUP($A$5,'RECAP AG'!$G$6:$CY$251,36,FALSE) -> 226
B21: Ventes sur client non détenteur de l’univers | C21: 8% | E21: ='RECAP AG'!AQ4 -> 245.2 | G21: =VLOOKUP($A$5,'RECAP AG'!$G$6:$CY$251,38,FALSE) -> 29.7 | I21: =VLOOKUP($A$5,'RECAP AG'!$G$6:$CY$251,39,FALSE) -> 88% | K21: =VLOOKUP($A$5,'RECAP AG'!$G$6:$CY$251,40,FALSE) -> 226
A23: IARD PREVOYANCE | C23: 20% | K23: =VLOOKUP($A$5,'RECAP AG'!$G$6:$CY$251,77,FALSE) -> 238
B24: Ventes Nettes produits pondérés | C24: 12% | E24: ='RECAP AG'!BU4 -> 591.0 | G24: =VLOOKUP($A$5,'RECAP AG'!$G$6:$CY$251,68,FALSE) -> -47.6 | I24: =VLOOKUP($A$5,'RECAP AG'!$G$6:$CY$251,69,FALSE) -> 108% | K24: =VLOOKUP($A$5,'RECAP AG'!$G$6:$CY$251,70,FALSE) -> 240
B25: Ventes sur client non détenteur de l’univers | C25: 8% | E25: ='RECAP AG'!BY4 -> 133.7 | G25: =VLOOKUP($A$5,'RECAP AG'!$G$6:$CY$251,72,FALSE) -> 21.4 | I25: =VLOOKUP($A$5,'RECAP AG'!$G$6:$CY$251,73,FALSE) -> 84% | K25: =VLOOKUP($A$5,'RECAP AG'!$G$6:$CY$251,74,FALSE) -> 224
A27: CREDITS | C27: 20% | K27: =VLOOKUP($A$5,'RECAP AG'!$G$6:$CY$251,62,FALSE) -> 241
B28: Engagements et ventes accessoires pondérés Immo | C28: 6% | E28: ='RECAP AG'!BB4 -> 1055.7 | G28: =VLOOKUP($A$5,'RECAP AG'!$G$6:$CY$251,49,FALSE) -> 67.7 | I28: =VLOOKUP($A$5,'RECAP AG'!$G$6:$CY$251,50,FALSE) -> 94% | K28: =VLOOKUP($A$5,'RECAP AG'!$G$6:$CY$251,51,FALSE) -> 241
B29: Engagements et ventes accessoires pondérés Conso | C29: 6% | E29: ='RECAP AG'!BF4 -> 100.6 | G29: =VLOOKUP($A$5,'RECAP AG'!$G$6:$CY$251,53,FALSE) -> 29.1 | I29: =VLOOKUP($A$5,'RECAP AG'!$G$6:$CY$251,54,FALSE) -> 71% | K29: =VLOOKUP($A$5,'RECAP AG'!$G$6:$CY$251,55,FALSE) -> 221
B30: Ventes sur client non détenteur de l’univers | C30: 8% | E30: ='RECAP AG'!BJ4 -> 75.9 | G30: =VLOOKUP($A$5,'RECAP AG'!$G$6:$CY$251,57,FALSE) -> 9.8 | I30: =VLOOKUP($A$5,'RECAP AG'!$G$6:$CY$251,58,FALSE) -> 87% | K30: =VLOOKUP($A$5,'RECAP AG'!$G$6:$CY$251,59,FALSE) -> 237

Sheet AG_TOTAL
B1: Accueil | H1: BAROMETRE BDD - AGENCES
H2: TOTAL GENERAL
H3: =ACCUEIL!F7 -> 2022-08-07
H7: TOTAL GENERAL | K7: Total Satisfaction Clients | N7: Total Bancarisation | Q7: Total Epargne | T7: Total IARD Prévoyance | W7: Total Crédits
I8: coef | J8: =M8+P8+S8+V8+Y8 -> 100% | L8: coef | M8: =AG_SATISFACTION!P8 -> 20% | O8: coef | P8: =AG_BANCA!R8 -> 20% | R8: coef | S8: =AG_EPARGNE!R8 -> 20% | U8: coef | V8: =AG_IARD!R8 -> 20% | X8: coef | Y8: =AG_CREDIT!V8 -> 20%
B9: Direction | C9: eds | D9: Territoire | E9: eds | F9: Agence | G9: ="ETP perf "&DATEMAJ!$C$28 -> ETP perf 07-août | H9: Moyenne ecart au 1er | I9: % Ecart au 1er | J9: Rang CEGEE | K9: Moyenne ecart au 1er | L9: % Ecart au 1er | M9: Rang CEGEE | N9: Moyenne ecart au 1er | O9: % Ecart au 1er | P9: Rang CEGEE | Q9: Moyenne ecart au 1er | R9: % Ecart au 1er | S9: Rang CEGEE | T9: Moyenne ecart au 1er | U9: % Ecart au 1er | V9: Rang CEGEE | W9: Moyenne ecart au 1er | X9: % Ecart au 1er | Y9: Rang CEGEE
A10: 50 | B10: MOSELLE | C10: 44 | D10: MOSELLE NORD | E10: 557508 | F10: NILVANGE | G10: 1.7 | H10: 8% | I10: 0% | J10: 1 | K10: 37% | L10: 37% | M10: 59 | N10: 0% | O10: 0% | P10: 1 | Q10: 33% | R10: 1% | S10: 2 | T10: 0% | U10: 0% | V10: 1 | W10: 4% | X10: 0% | Y10: 1
A11: 50 | B11: MOSELLE | C11: 42 | D11: MOSELLE EST | E11: 457163 | F11: BEHREN LES FORBACH | G11: 1.9 | H11: 31% | I11: 23% | J11: 2 | K11: 20% | L11: 20% | M11: 12 | N11: 37% | O11: 37% | P11: 2 | Q11: 52% | R11: 20% | S11: 24 | T11: 67% | U11: 67% | V11: 28 | W11: 14% | X11: 10% | Y11: 2
A12: 50 | B12: VOSGES | C12: 57 | D12: EPINAL | E12: 488288 | F12: EPINAL LEOPOLD BOURG | G12: 2.0 | H12: 39% | I12: 31% | J12: 3 | K12: 4% | L12: 4% | M12: 2 | N12: 59% | O12: 59% | P12: 24 | Q12: 38% | R12: 6% | S12: 5 | T12: 70% | U12: 70% | V12: 47 | W12: 57% | X12: 54% | Y12: 33
A13: 50 | B13: MARNE ARDENNES | C13: 11 | D13: REIMS | E13: 551305 | F13: REIMS HIPPODROME | G13: 5.3 | H13: 42% | I13: 35% | J13: 4 | K13: 42% | L13: 42% | M13: 74 | N13: 54% | O13: 54% | P13: 17 | Q13: 49% | R13: 17% | S13: 17 | T13: 58% | U13: 58% | V13: 8 | W13: 44% | X13: 41% | Y13: 8
A14: 50 | B14: MARNE ARDENNES | C14: 2 | D14: CHARLEVILLE MEZIERES | E14: 508820 | F14: VOUZIERS | G14: 2.9 | H14: 43% | I14: 36% | J14: 5 | K14: 34% | L14: 34% | M14: 42 | N14: 62% | O14: 62% | P14: 40 | Q14: 48% | R14: 16% | S14: 14 | T14: 48% | U14: 48% | V14: 3 | W14: 60% | X14: 57% | Y14: 42
A15: 50 | B15: MOSELLE | C15: 44 | D15: MOSELLE NORD | E15: 557660 | F15: UCKANGE | G15: 1.8 | H15: 44% | I15: 36% | J15: 6 | K15: 76% | L15: 76% | M15: 228 | N15: 50% | O15: 50% | P15: 9 | Q15: 58% | R15: 26% | S15: 53 | T15: 42% | U15: 42% | V15: 2 | W15: 30% | X15: 26% | Y15: 3
A16: 50 | B16: MARNE ARDENNES | C16: 6 | D16: CHALONS EN CHAMPAGNE | E16: 451115 | F16: MOURMELON LE GRAND | G16: 2.8 | H16: 45% | I16: 37% | J16: 7 | K16: 41% | L16: 41% | M16: 69 | N16: 47% | O16: 47% | P16: 6 | Q16: 52% | R16: 20% | S16: 26 | T16: 62% | U16: 62% | V16: 17 | W16: 56% | X16: 52% | Y16: 28
A17: 50 | B17: MARNE ARDENNES | C17: 6 | D17: CHALONS EN CHAMPAGNE | E17: 551330 | F17: MONTMIRAIL | G17: 2.8 | H17: 45% | I17: 38% | J17: 8 | K17: 17% | L17: 17% | M17: 8 | N17: 57% | O17: 57% | P17: 22 | Q17: 61% | R17: 29% | S17: 75 | T17: 62% | U17: 62% | V17: 14 | W17: 66% | X17: 62% | Y17: 75
A18: 50 | B18: MEURTHE ET MOSELLE MEUSE | C18: 26 | D18: NANCY | E18: 554476 | F18: NANCY ARTEM | G18: 2.8 | H18: 46% | I18: 38% | J18: 9 | K18: 36% | L18: 36% | M18: 57 | N18: 54% | O18: 54% | P18: 15 | Q18: 68% | R18: 36% | S18: 135 | T18: 70% | U18: 70% | V18: 48 | W18: 37% | X18: 33% | Y18: 4
A19: 50 | B19: MARNE ARDENNES | C19: 11 | D19: REIMS | E19: 551340 | F19: BETHENY | G19: 2.4 | H19: 46% | I19: 39% | J19: 10 | K19: 36% | L19: 36% | M19: 53 | N19: 49% | O19: 49% | P19: 7 | Q19: 58% | R19: 26% | S19: 51 | T19: 75% | U19: 75% | V19: 79 | W19: 49% | X19: 46% | Y19: 17
A20: 50 | B20: MARNE ARDENNES | C20: 6 | D20: CHALONS EN CHAMPAGNE | E20: 451120 | F20: SARRY | G20: 2.3 | H20: 47% | I20: 39% | J20: 11 | K20: 9% | L20: 9% | M20: 3 | N20: 59% | O20: 59% | P20: 25 | Q20: 65% | R20: 33% | S20: 98 | T20: 71% | U20: 71% | V20: 50 | W20: 65% | X20: 62% | Y20: 73
A21: 50 | B21: MOSELLE | C21: 45 | D21: METZ | E21: 457443 | F21: METZ REPUBLIQUE | G21: 3.6 | H21: 47% | I21: 39% | J21: 12 | K21: 32% | L21: 32% | M21: 38 | N21: 73% | O21: 73% | P21: 101 | Q21: 32% | R21: 0% | S21: 1 | T21: 62% | U21: 62% | V21: 15 | W21: 72% | X21: 68% | Y21: 137
A22: 50 | B22: MOSELLE | C22: 44 | D22: MOSELLE NORD | E22: 557113 | F22: AUDUN LE TICHE | G22: 2.1 | H22: 47% | I22: 39% | J22: 13 | K22: 54% | L22: 54% | M22: 124 | N22: 50% | O22: 50% | P22: 8 | Q22: 59% | R22: 27% | S22: 57 | T22: 62% | U22: 62% | V22: 18 | W22: 46% | X22: 43% | Y22: 10
A23: 50 | B23: MEURTHE ET MOSELLE MEUSE | C23: 26 | D23: NANCY | E23: 554601 | F23: SAINT MAX | G23: 3.5 | H23: 47% | I23: 40% | J23: 14 | K23: 25% | L23: 25% | M23: 22 | N23: 69% | O23: 69% | P23: 77 | Q23: 47% | R23: 15% | S23: 13 | T23: 67% | U23: 67% | V23: 31 | W23: 64% | X23: 61% | Y23: 69
A24: 50 | B24: MEURTHE ET MOSELLE MEUSE | C24: 27 | D24: PONT A MOUSSON | E24: 554381 | F24: LAXOU ARISTIDE BRIAND | G24: 2.4 | H24: 48% | I24: 40% | J24: 15 | K24: 66% | L24: 66% | M24: 175 | N24: 47% | O24: 47% | P24: 5 | Q24: 61% | R24: 30% | S24: 78 | T24: 61% | U24: 61% | V24: 12 | W24: 40% | X24: 36% | Y24: 6
A25: 50 | B25: BAS RHIN | C25: 5006 | D25: STRASBOURG | E25: 4037 | F25: MUNDOLSHEIM | G25: 3.7 | H25: 49% | I25: 41% | J25: 16 | K25: 39% | L25: 39% | M25: 66 | N25: 54% | O25: 54% | P25: 18 | Q25: 72% | R25: 41% | S25: 169 | T25: 58% | U25: 58% | V25: 10 | W25: 54% | X25: 50% | Y25: 24
A26: 50 | B26: MARNE ARDENNES | C26: 11 | D26: REIMS | E26: 551349 | F26: REIMS SAINT REMI | G26: 2.9 | H26: 49% | I26: 41% | J26: 17 | K26: 55% | L26: 55% | M26: 126 | N26: 45% | O26: 45% | P26: 3 | Q26: 69% | R26: 38% | S26: 148 | T26: 62% | U26: 62% | V26: 16 | W26: 49% | X26: 45% | Y26: 16
A27: 50 | B27: BAS RHIN | C27: 5006 | D27: STRASBOURG | E27: 4048 | F27: STRASBOURG KOENIGSHOFFEN | G27: 1.8 | H27: 49% | I27: 42% | J27: 18 | K27: 67% | L27: 67% | M27: 177 | N27: 52% | O27: 52% | P27: 14 | Q27: 50% | R27: 18% | S27: 19 | T27: 61% | U27: 61% | V27: 13 | W27: 52% | X27: 48% | Y27: 20
A28: 262 | B28: MOSELLE | C28: 42 | D28: MOSELLE EST | E28: 457165 | F28: BITCHE | G28: 2.5 | H28: 50% | I28: 42% | J28: 19 | K28: 29% | L28: 29% | M28: 35 | N28: 54% | O28: 54% | P28: 16 | Q28: 67% | R28: 35% | S28: 122 | T28: 63% | U28: 63% | V28: 19 | W28: 70% | X28: 66% | Y28: 114
A29: 262 | B29: MARNE ARDENNES | C29: 11 | D29: REIMS | E29: 451350 | F29: REIMS CENTRE VILLE | G29: 6.6 | H29: 50% | I29: 42% | J29: 20 | K29: 63% | L29: 63% | M29: 153 | N29: 52% | O29: 52% | P29: 12 | Q29: 63% | R29: 31% | S29: 83 | T29: 65% | U29: 65% | V29: 23 | W29: 42% | X29: 38% | Y29: 7
A30: 262 | B30: MARNE ARDENNES | C30: 6 | D30: CHALONS EN CHAMPAGNE | E30: 551354 | F30: VERTUS | G30: 2.0 | H30: 50% | I30: 43% | J30: 21 | K30: 0% | L30: 0% | M30: 1 | N30: 80% | O30: 80% | P30: 165 | Q30: 46% | R30: 15% | S30: 11 | T30: 88% | U30: 88% | V30: 199 | W30: 73% | X30: 69% | Y30: 150
A31: 262 | B31: MARNE ARDENNES | C31: 2 | D31: CHARLEVILLE MEZIERES | E31: 408801 | F31: CHARLEVILLE JEAN JAURES | G31: 8.8 | H31: 50% | I31: 43% | J31: 22 | K31: 36% | L31: 36% | M31: 55 | N31: 67% | O31: 67% | P31: 60 | Q31: 60% | R31: 28% | S31: 66 | T31: 68% | U31: 68% | V31: 34 | W31: 57% | X31: 54% | Y31: 32
A32: 262 | B32: AUBE HAUTE MARNE | C32: 21 | D32: CHAUMONT | E32: 510590 | F32: CHAUMONT REPUBLIQUE | G32: 2.9 | H32: 51% | I32: 43% | J32: 23 | K32: 34% | L32: 34% | M32: 41 | N32: 76% | O32: 76% | P32: 124 | Q32: 55% | R32: 23% | S32: 36 | T32: 64% | U32: 64% | V32: 21 | W32: 60% | X32: 56% | Y32: 41
A33: 262 | B33: MOSELLE | C33: 45 | D33: METZ | E33: 457453 | F33: MONTIGNY LES METZ | G33: 7.0 | H33: 51% | I33: 43% | J33: 24 | K33: 22% | L33: 22% | M33: 18 | N33: 62% | O33: 62% | P33: 36 | Q33: 67% | R33: 35% | S33: 123 | T33: 78% | U33: 78% | V33: 100 | W33: 59% | X33: 56% | Y33: 38
A34: 262 | B34: MEURTHE ET MOSELLE MEUSE | C34: 27 | D34: PONT A MOUSSON | E34: 554506 | F34: CHALIGNY NEUVES MAISONS | G34: 3.4 | H34: 51% | I34: 43% | J34: 25 | K34: 60% | L34: 60% | M34: 143 | N34: 52% | O34: 52% | P34: 13 | Q34: 74% | R34: 42% | S34: 183 | T34: 56% | U34: 56% | V34: 6 | W34: 46% | X34: 43% | Y34: 11
A35: 262 | B35: MARNE ARDENNES | C35: 11 | D35: REIMS | E35: 551365 | F35: DORMANS | G35: 2.6 | H35: 51% | I35: 43% | J35: 26 | K35: 47% | L35: 47% | M35: 93 | N35: 46% | O35: 46% | P35: 4 | Q35: 73% | R35: 42% | S35: 179 | T35: 68% | U35: 68% | V35: 37 | W35: 56% | X35: 52% | Y35: 29
A36: 262 | B36: MOSELLE | C36: 45 | D36: METZ | E36: 457446 | F36: METZ SAINT LOUIS | G36: 5.6 | H36: 52% | I36: 44% | J36: 27 | K36: 47% | L36: 47% | M36: 94 | N36: 59% | O36: 59% | P36: 26 | Q36: 62% | R36: 30% | S36: 81 | T36: 71% | U36: 71% | V36: 53 | W36: 56% | X36: 52% | Y36: 27
A37: 262 | B37: MOSELLE | C37: 45 | D37: METZ | E37: 557439 | F37: METZ POMPIDOU | G37: 2.5 | H37: 52% | I37: 44% | J37: 28 | K37: 39% | L37: 39% | M37: 65 | N37: 69% | O37: 69% | P37: 75 | Q37: 45% | R37: 14% | S37: 10 | T37: 79% | U37: 79% | V37: 111 | W37: 63% | X37: 60% | Y37: 60
A38: 262 | B38: MOSELLE | C38: 42 | D38: MOSELLE EST | E38: 557250 | F38: CREUTZWALD | G38: 2.5 | H38: 52% | I38: 44% | J38: 29 | K38: 22% | L38: 22% | M38: 17 | N38: 79% | O38: 79% | P38: 153 | Q38: 62% | R38: 30% | S38: 79 | T38: 71% | U38: 71% | V38: 52 | W38: 62% | X38: 58% | Y38: 52
A39: 262 | B39: MARNE ARDENNES | C39: 2 | D39: CHARLEVILLE MEZIERES | E39: 508833 | F39: VILLERS SEMEUSE CORA | G39: 3.2 | H39: 52% | I39: 44% | J39: 30 | K39: 69% | L39: 69% | M39: 192 | N39: 67% | O39: 67% | P39: 64 | Q39: 52% | R39: 20% | S39: 27 | T39: 54% | U39: 54% | V39: 5 | W39: 53% | X39: 49% | Y39: 22
A40: 262 | B40: MARNE ARDENNES | C40: 11 | D40: REIMS | E40: 451301 | F40: REIMS HOTEL DE VILLE | G40: 7.1 | H40: 52% | I40: 45% | J40: 31 | K40: 44% | L40: 44% | M40: 85 | N40: 65% | O40: 65% | P40: 51 | Q40: 66% | R40: 34% | S40: 112 | T40: 61% | U40: 61% | V40: 11 | W40: 61% | X40: 57% | Y40: 47
A41: 262 | B41: VOSGES | C41: 57 | D41: EPINAL | E41: 588336 | F41: GOLBEY | G41: 2.8 | H41: 53% | I41: 45% | J41: 32 | K41: 28% | L41: 28% | M41: 29 | N41: 72% | O41: 72% | P41: 96 | Q41: 59% | R41: 28% | S41: 64 | T41: 75% | U41: 75% | V41: 81 | W41: 64% | X41: 60% | Y41: 62
A42: 262 | B42: MEURTHE ET MOSELLE MEUSE | C42: 27 | D42: PONT A MOUSSON | E42: 554531 | F42: POMPEY | G42: 3.0 | H42: 53% | I42: 45% | J42: 33 | K42: 73% | L42: 73% | M42: 210 | N42: 50% | O42: 50% | P42: 10 | Q42: 64% | R42: 33% | S42: 95 | T42: 72% | U42: 72% | V42: 57 | W42: 39% | X42: 36% | Y42: 5
A43: 262 | B43: MARNE ARDENNES | C43: 6 | D43: CHALONS EN CHAMPAGNE | E43: 551110 | F43: CHALONS ROOSEVELT | G43: 4.3 | H43: 53% | I43: 45% | J43: 34 | K43: 25% | L43: 25% | M43: 20 | N43: 72% | O43: 72% | P43: 99 | Q43: 67% | R43: 36% | S43: 127 | T43: 67% | U43: 67% | V43: 26 | W43: 67% | X43: 64% | Y43: 96
A44: 262 | B44: MEURTHE ET MOSELLE MEUSE | C44: 26 | D44: NANCY | E44: 454481 | F44: NANCY PLACE DOMBASLE | G44: 8.0 | H44: 53% | I44: 45% | J44: 35 | K44: 64% | L44: 64% | M44: 157 | N44: 64% | O44: 64% | P44: 47 | Q44: 43% | R44: 11% | S44: 8 | T44: 76% | U44: 76% | V44: 91 | W44: 52% | X44: 48% | Y44: 19
A45: 262 | B45: MEURTHE ET MOSELLE MEUSE | C45: 26 | D45: NANCY | E45: 554356 | F45: JARVILLE LA MALGRANGE | G45: 4.3 | H45: 53% | I45: 45% | J45: 36 | K45: 33% | L45: 33% | M45: 40 | N45: 61% | O45: 61% | P45: 33 | Q45: 73% | R45: 42% | S45: 180 | T45: 73% | U45: 73% | V45: 63 | W45: 61% | X45: 57% | Y45: 43
A46: 262 | B46: MOSELLE | C46: 45 | D46: METZ | E46: 457574 | F46: ROMBAS | G46: 2.7 | H46: 53% | I46: 46% | J46: 37 | K46: 29% | L46: 29% | M46: 34 | N46: 71% | O46: 71% | P46: 90 | Q46: 63% | R46: 31% | S46: 85 | T46: 65% | U46: 65% | V46: 24 | W46: 73% | X46: 69% | Y46: 151
A47: 262 | B47: MARNE ARDENNES | C47: 11 | D47: REIMS | E47: 451361 | F47: PIERRY LECLERC | G47: 1.8 | H47: 53% | I47: 46% | J47: 38 | K47: 39% | L47: 39% | M47: 64 | N47: 65% | O47: 65% | P47: 52 | Q47: 52% | R47: 21% | S47: 29 | T47: 77% | U47: 77% | V47: 97 | W47: 68% | X47: 65% | Y47: 100
A48: 262 | B48: MEURTHE ET MOSELLE MEUSE | C48: 27 | D48: PONT A MOUSSON | E48: 554516 | F48: PAGNY SUR MOSELLE | G48: 2.8 | H48: 53% | I48: 46% | J48: 39 | K48: 50% | L48: 50% | M48: 109 | N48: 68% | O48: 68% | P48: 67 | Q48: 57% | R48: 25% | S48: 46 | T48: 64% | U48: 64% | V48: 22 | W48: 63% | X48: 59% | Y48: 56
A49: 262 | B49: MARNE ARDENNES | C49: 11 | D49: REIMS | E49: 451370 | F49: EPERNAY | G49: 8.9 | H49: 54% | I49: 46% | J49: 40 | K49: 43% | L49: 43% | M49: 76 | N49: 65% | O49: 65% | P49: 50 | Q49: 56% | R49: 25% | S49: 42 | T49: 76% | U49: 76% | V49: 88 | W49: 63% | X49: 59% | Y49: 55
A50: 262 | B50: MARNE ARDENNES | C50: 2 | D50: CHARLEVILLE MEZIERES | E50: 508839 | F50: GIVET | G50: 3.4 | H50: 54% | I50: 46% | J50: 41 | K50: 45% | L50: 45% | M50: 88 | N50: 68% | O50: 68% | P50: 69 | Q50: 71% | R50: 39% | S50: 157 | T50: 58% | U50: 58% | V50: 9 | W50: 61% | X50: 57% | Y50: 48
A51: 262 | B51: MOSELLE | C51: 42 | D51: MOSELLE EST | E51: 457583 | F51: SAINT AVOLD | G51: 7.1 | H51: 54% | I51: 46% | J51: 42 | K51: 34% | L51: 34% | M51: 44 | N51: 63% | O51: 63% | P51: 43 | Q51: 65% | R51: 33% | S51: 104 | T51: 73% | U51: 73% | V51: 68 | W51: 70% | X51: 67% | Y51: 115
A52: 262 | B52: MARNE ARDENNES | C52: 11 | D52: REIMS | E52: 551367 | F52: AY CHAMPAGNE | G52: 2.7 | H52: 54% | I52: 46% | J52: 43 | K52: 34% | L52: 34% | M52: 47 | N52: 74% | O52: 74% | P52: 105 | Q52: 66% | R52: 34% | S52: 108 | T52: 70% | U52: 70% | V52: 43 | W52: 62% | X52: 58% | Y52: 53
A53: 262 | B53: BAS RHIN | C53: 5006 | D53: STRASBOURG | E53: 4038 | F53: OBERHAUSBERGEN | G53: 3.3 | H53: 54% | I53: 47% | J53: 44 | K53: 37% | L53: 37% | M53: 60 | N53: 66% | O53: 66% | P53: 54 | Q53: 51% | R53: 19% | S53: 23 | T53: 88% | U53: 88% | V53: 202 | W53: 64% | X53: 60% | Y53: 65
A54: 262 | B54: BAS RHIN | C54: 5101 | D54: SELESTAT | E54: 4113 | F54: BARR | G54: 2.9 | H54: 54% | I54: 47% | J54: 45 | K54: 26% | L54: 26% | M54: 23 | N54: 62% | O54: 62% | P54: 38 | Q54: 66% | R54: 34% | S54: 110 | T54: 81% | U54: 81% | V54: 140 | W54: 72% | X54: 68% | Y54: 140
A55: 262 | B55: MEURTHE ET MOSELLE MEUSE | C55: 26 | D55: NANCY | E55: 554636 | F55: TOMBLAINE | G55: 2.7 | H55: 54% | I55: 47% | J55: 46 | K55: 20% | L55: 20% | M55: 14 | N55: 78% | O55: 78% | P55: 147 | Q55: 58% | R55: 26% | S55: 50 | T55: 80% | U55: 80% | V55: 124 | W55: 70% | X55: 67% | Y55: 117
A56: 262 | B56: MOSELLE | C56: 44 | D56: MOSELLE NORD | E56: 557352 | F56: HETTANGE GRANDE | G56: 2.9 | H56: 54% | I56: 47% | J56: 47 | K56: 63% | L56: 63% | M56: 152 | N56: 60% | O56: 60% | P56: 27 | Q56: 66% | R56: 34% | S56: 111 | T56: 71% | U56: 71% | V56: 55 | W56: 47% | X56: 44% | Y56: 12
A57: 262 | B57: BAS RHIN | C57: 5060 | D57: HAGUENAU | E57: 4092 | F57: HOCHFELDEN | G57: 1.8 | H57: 54% | I57: 47% | J57: 48 | K57: 37% | L57: 37% | M57: 61 | N57: 71% | O57: 71% | P57: 85 | Q57: 52% | R57: 20% | S57: 25 | T57: 81% | U57: 81% | V57: 131 | W57: 67% | X57: 63% | Y57: 87
A58: 262 | B58: MARNE ARDENNES | C58: 11 | D58: REIMS | E58: 451336 | F58: TINQUEUX | G58: 4.8 | H58: 54% | I58: 47% | J58: 49 | K58: 61% | L58: 61% | M58: 147 | N58: 66% | O58: 66% | P58: 53 | Q58: 38% | R58: 6% | S58: 6 | T58: 79% | U58: 79% | V58: 120 | W58: 63% | X58: 60% | Y58: 61
A59: 262 | B59: MOSELLE | C59: 44 | D59: MOSELLE NORD | E59: 457350 | F59: HAYANGE | G59: 6.4 | H59: 55% | I59: 47% | J59: 50 | K59: 58% | L59: 58% | M59: 136 | N59: 62% | O59: 62% | P59: 37 | Q59: 65% | R59: 33% | S59: 101 | T59: 63% | U59: 63% | V59: 20 | W59: 61% | X59: 57% | Y59: 46
A60: 262 | B60: MEURTHE ET MOSELLE MEUSE | C60: 31 | D60: VERDUN | E60: 455678 | F60: VERDUN CENTRALE | G60: 9.7 | H60: 55% | I60: 47% | J60: 51 | K60: 23% | L60: 23% | M60: 19 | N60: 67% | O60: 67% | P60: 62 | Q60: 79% | R60: 47% | S60: 212 | T60: 81% | U60: 81% | V60: 134 | W60: 58% | X60: 55% | Y60: 37
A61: 262 | B61: MOSELLE | C61: 42 | D61: MOSELLE EST | E61: 457308 | F61: FORBACH CENTRALE | G61: 9.4 | H61: 55% | I61: 47% | J61: 52 | K61: 44% | L61: 44% | M61: 82 | N61: 62% | O61: 62% | P61: 39 | Q61: 66% | R61: 34% | S61: 109 | T61: 70% | U61: 70% | V61: 42 | W61: 67% | X61: 63% | Y61: 92
A62: 262 | B62: MEURTHE ET MOSELLE MEUSE | C62: 31 | D62: VERDUN | E62: 554413 | F62: LONGWY BAS | G62: 3.6 | H62: 55% | I62: 47% | J62: 53 | K62: 25% | L62: 25% | M62: 21 | N62: 70% | O62: 70% | P62: 83 | Q62: 67% | R62: 36% | S62: 128 | T62: 77% | U62: 77% | V62: 98 | W62: 69% | X62: 65% | Y62: 105
A63: 262 | B63: MOSELLE | C63: 45 | D63: METZ | E63: 557447 | F63: METZ SAINT MAXIMIN | G63: 2.2 | H63: 55% | I63: 47% | J63: 54 | K63: 64% | L63: 64% | M63: 165 | N63: 67% | O63: 67% | P63: 63 | Q63: 59% | R63: 27% | S63: 58 | T63: 54% | U63: 54% | V63: 4 | W63: 66% | X63: 62% | Y63: 74
A64: 262 | B64: MARNE ARDENNES | C64: 11 | D64: REIMS | E64: 551369 | F64: DAMERY | G64: 1.7 | H64: 55% | I64: 47% | J64: 55 | K64: 44% | L64: 44% | M64: 80 | N64: 60% | O64: 60% | P64: 30 | Q64: 80% | R64: 49% | S64: 222 | T64: 73% | U64: 73% | V64: 66 | W64: 54% | X64: 50% | Y64: 25
A65: 262 | B65: MEURTHE ET MOSELLE MEUSE | C65: 26 | D65: NANCY | E65: 554116 | F65: BACCARAT | G65: 2.8 | H65: 55% | I65: 48% | J65: 56 | K65: 14% | L65: 14% | M65: 5 | N65: 76% | O65: 76% | P65: 132 | Q65: 63% | R65: 31% | S65: 86 | T65: 80% | U65: 80% | V65: 129 | W65: 77% | X65: 74% | Y65: 199
A66: 262 | B66: MEURTHE ET MOSELLE MEUSE | C66: 31 | D66: VERDUN | E66: 555679 | F66: VERDUN MAZEL | G66: 3.6 | H66: 55% | I66: 48% | J66: 57 | K66: 21% | L66: 21% | M66: 15 | N66: 74% | O66: 74% | P66: 104 | Q66: 61% | R66: 29% | S66: 76 | T66: 81% | U66: 81% | V66: 141 | W66: 75% | X66: 71% | Y66: 174
A67: 262 | B67: VOSGES | C67: 55 | D67: SAINT DIE | E67: 488246 | F67: CORNIMONT LA BRESSE | G67: 2.6 | H67: 55% | I67: 48% | J67: 58 | K67: 18% | L67: 18% | M67: 9 | N67: 72% | O67: 72% | P67: 97 | Q67: 72% | R67: 40% | S67: 164 | T67: 75% | U67: 75% | V67: 82 | W67: 75% | X67: 71% | Y67: 168
A68: 262 | B68: MARNE ARDENNES | C68: 11 | D68: REIMS | E68: 551314 | F68: FISMES | G68: 2.7 | H68: 56% | I68: 48% | J68: 59 | K68: 26% | L68: 26% | M68: 25 | N68: 60% | O68: 60% | P68: 31 | Q68: 80% | R68: 49% | S68: 223 | T68: 82% | U68: 82% | V68: 152 | W68: 64% | X68: 60% | Y68: 64
A69: 262 | B69: VOSGES | C69: 55 | D69: SAINT DIE | E69: 488326 | F69: GERARDMER | G69: 3.8 | H69: 56% | I69: 48% | J69: 60 | K69: 48% | L69: 48% | M69: 98 | N69: 76% | O69: 76% | P69: 123 | Q69: 48% | R69: 16% | S69: 16 | T69: 78% | U69: 78% | V69: 103 | W69: 64% | X69: 61% | Y69: 68
A70: 262 | B70: BAS RHIN | C70: 5006 | D70: STRASBOURG | E70: 4054 | F70: STRASBOURG MONTAGNE VERTE | G70: 2.6 | H70: 56% | I70: 48% | J70: 61 | K70: 35% | L70: 35% | M70: 48 | N70: 71% | O70: 71% | P70: 84 | Q70: 60% | R70: 28% | S70: 68 | T70: 70% | U70: 70% | V70: 41 | W70: 79% | X70: 76% | Y70: 222
A71: 262 | B71: BAS RHIN | C71: 5101 | D71: SELESTAT | E71: 4104 | F71: ERSTEIN | G71: 4.4 | H71: 56% | I71: 48% | J71: 62 | K71: 73% | L71: 73% | M71: 212 | N71: 51% | O71: 51% | P71: 11 | Q71: 56% | R71: 25% | S71: 40 | T71: 68% | U71: 68% | V71: 36 | W71: 66% | X71: 62% | Y71: 76
A72: 262 | B72: MEURTHE ET MOSELLE MEUSE | C72: 27 | D72: PONT A MOUSSON | E72: 554686 | F72: VEZELISE | G72: 1.9 | H72: 56% | I72: 48% | J72: 63 | K72: 18% | L72: 18% | M72: 10 | N72: 76% | O72: 76% | P72: 130 | Q72: 60% | R72: 28% | S72: 69 | T72: 81% | U72: 81% | V72: 142 | W72: 80% | X72: 76% | Y72: 225
A73: 262 | B73: BAS RHIN | C73: 5060 | D73: HAGUENAU | E73: 4079 | F73: SOULTZ SOUS FORETS | G73: 1.9 | H73: 56% | I73: 49% | J73: 64 | K73: 35% | L73: 35% | M73: 52 | N73: 68% | O73: 68% | P73: 71 | Q73: 58% | R73: 26% | S73: 52 | T73: 76% | U73: 76% | V73: 85 | W73: 79% | X73: 75% | Y73: 217
A74: 262 | B74: VOSGES | C74: 55 | D74: SAINT DIE | E74: 588551 | F74: RAMBERVILLERS | G74: 2.6 | H74: 56% | I74: 49% | J74: 65 | K74: 27% | L74: 27% | M74: 28 | N74: 82% | O74: 82% | P74: 185 | Q74: 59% | R74: 27% | S74: 62 | T74: 89% | U74: 89% | V74: 209 | W74: 58% | X74: 55% | Y74: 36
A75: 264 | B75: BAS RHIN | C75: 5006 | D75: STRASBOURG | E75: 4010 | F75: STRASBOURG MEINAU | G75: 2.8 | H75: 56% | I75: 49% | J75: 66 | K75: 46% | L75: 46% | M75: 90 | N75: 71% | O75: 71% | P75: 91 | Q75: 60% | R75: 29% | S75: 73 | T75: 67% | U75: 67% | V75: 27 | W75: 72% | X75: 69% | Y75: 142
A76: 264 | B76: BAS RHIN | C76: 5006 | D76: STRASBOURG | E76: 4043 | F76: STRASBOURG HALLES | G76: 7.8 | H76: 56% | I76: 49% | J76: 67 | K76: 61% | L76: 61% | M76: 148 | N76: 60% | O76: 60% | P76: 29 | Q76: 67% | R76: 36% | S76: 125 | T76: 57% | U76: 57% | V76: 7 | W76: 71% | X76: 67% | Y76: 127
A77: 264 | B77: MOSELLE | C77: 42 | D77: MOSELLE EST | E77: 557668 | F77: VALMONT | G77: 2.7 | H77: 56% | I77: 49% | J77: 68 | K77: 35% | L77: 35% | M77: 50 | N77: 82% | O77: 82% | P77: 183 | Q77: 50% | R77: 18% | S77: 21 | T77: 77% | U77: 77% | V77: 93 | W77: 73% | X77: 70% | Y77: 157
A78: 264 | B78: MOSELLE | C78: 44 | D78: MOSELLE NORD | E78: 457632 | F78: THIONVILLE CENTRALE | G78: 10.7 | H78: 56% | I78: 49% | J78: 69 | K78: 56% | L78: 56% | M78: 131 | N78: 60% | O78: 60% | P78: 28 | Q78: 73% | R78: 41% | S78: 178 | T78: 67% | U78: 67% | V78: 30 | W78: 61% | X78: 57% | Y78: 44
A79: 264 | B79: MARNE ARDENNES | C79: 11 | D79: REIMS | E79: 551310 | F79: REIMS CHATILLONS | G79: 3.9 | H79: 56% | I79: 49% | J79: 70 | K79: 56% | L79: 56% | M79: 128 | N79: 61% | O79: 61% | P79: 35 | Q79: 67% | R79: 35% | S79: 120 | T79: 73% | U79: 73% | V79: 62 | W79: 61% | X79: 57% | Y79: 45
A80: 264 | B80: AUBE HAUTE MARNE | C80: 21 | D80: CHAUMONT | E80: 410541 | F80: LANGRES | G80: 8.2 | H80: 56% | I80: 49% | J80: 71 | K80: 43% | L80: 43% | M80: 77 | N80: 72% | O80: 72% | P80: 98 | Q80: 60% | R80: 28% | S80: 70 | T80: 73% | U80: 73% | V80: 65 | W80: 69% | X80: 65% | Y80: 106
A81: 264 | B81: MARNE ARDENNES | C81: 2 | D81: CHARLEVILLE MEZIERES | E81: 508802 | F81: CHARLEVILLE NEVERS | G81: 2.8 | H81: 57% | I81: 49% | J81: 72 | K81: 26% | L81: 26% | M81: 24 | N81: 85% | O81: 85% | P81: 202 | Q81: 65% | R81: 33% | S81: 100 | T81: 74% | U81: 74% | V81: 72 | W81: 70% | X81: 66% | Y81: 111
A82: 264 | B82: MEURTHE ET MOSELLE MEUSE | C82: 31 | D82: VERDUN | E82: 454414 | F82: LONGWY HAUT | G82: 3.3 | H82: 57% | I82: 49% | J82: 73 | K82: 49% | L82: 49% | M82: 104 | N82: 71% | O82: 71% | P82: 89 | Q82: 62% | R82: 30% | S82: 82 | T82: 70% | U82: 70% | V82: 45 | W82: 67% | X82: 63% | Y82: 91
A83: 264 | B83: MOSELLE | C83: 44 | D83: MOSELLE NORD | E83: 457348 | F83: HAGONDANGE | G83: 8.2 | H83: 57% | I83: 49% | J83: 74 | K83: 49% | L83: 49% | M83: 103 | N83: 68% | O83: 68% | P83: 68 | Q83: 70% | R83: 38% | S83: 151 | T83: 72% | U83: 72% | V83: 59 | W83: 62% | X83: 58% | Y83: 51
A84: 264 | B84: MOSELLE | C84: 45 | D84: METZ | E84: 557612 | F84: SAINTE MARIE AUX CHENES | G84: 3.7 | H84: 57% | I84: 49% | J84: 75 | K84: 28% | L84: 28% | M84: 32 | N84: 89% | O84: 89% | P84: 230 | Q84: 44% | R84: 13% | S84: 9 | T84: 79% | U84: 79% | V84: 118 | W84: 79% | X84: 75% | Y84: 218
A85: 264 | B85: VOSGES | C85: 55 | D85: SAINT DIE | E85: 588186 | F85: BRUYERES | G85: 3.5 | H85: 57% | I85: 49% | J85: 76 | K85: 26% | L85: 26% | M85: 26 | N85: 77% | O85: 77% | P85: 138 | Q85: 69% | R85: 37% | S85: 139 | T85: 82% | U85: 82% | V85: 151 | W85: 67% | X85: 63% | Y85: 86
A86: 264 | B86: MARNE ARDENNES | C86: 6 | D86: CHALONS EN CHAMPAGNE | E86: 451101 | F86: CHALONS VIVIERS | G86: 9.6 | H86: 57% | I86: 50% | J86: 77 | K86: 30% | L86: 30% | M86: 36 | N86: 76% | O86: 76% | P86: 129 | Q86: 70% | R86: 39% | S86: 155 | T86: 76% | U86: 76% | V86: 92 | W86: 68% | X86: 64% | Y86: 98
A87: 264 | B87: MOSELLE | C87: 42 | D87: MOSELLE EST | E87: 457617 | F87: SARREGUEMINES | G87: 6.7 | H87: 57% | I87: 50% | J87: 78 | K87: 59% | L87: 59% | M87: 140 | N87: 67% | O87: 67% | P87: 59 | Q87: 64% | R87: 33% | S87: 94 | T87: 75% | U87: 75% | V87: 74 | W87: 58% | X87: 54% | Y87: 35
A88: 264 | B88: MARNE ARDENNES | C88: 11 | D88: REIMS | E88: 551306 | F88: REIMS SAINT MARCEAUX | G88: 4.0 | H88: 57% | I88: 50% | J88: 79 | K88: 37% | L88: 37% | M88: 58 | N88: 55% | O88: 55% | P88: 19 | Q88: 91% | R88: 59% | S88: 238 | T88: 75% | U88: 75% | V88: 80 | W88: 64% | X88: 60% | Y88: 67
A89: 264 | B89: VOSGES | C89: 57 | D89: EPINAL | E89: 488561 | F89: REMIREMONT | G89: 7.2 | H89: 57% | I89: 50% | J89: 80 | K89: 18% | L89: 18% | M89: 11 | N89: 75% | O89: 75% | P89: 121 | Q89: 73% | R89: 41% | S89: 172 | T89: 79% | U89: 79% | V89: 116 | W89: 77% | X89: 73% | Y89: 189
A90: 264 | B90: MOSELLE | C90: 45 | D90: METZ | E90: 557434 | F90: MARLY | G90: 3.1 | H90: 57% | I90: 50% | J90: 81 | K90: 28% | L90: 28% | M90: 30 | N90: 76% | O90: 76% | P90: 122 | Q90: 65% | R90: 33% | S90: 99 | T90: 87% | U90: 87% | V90: 185 | W90: 67% | X90: 64% | Y90: 94
A91: 264 | B91: MARNE ARDENNES | C91: 2 | D91: CHARLEVILLE MEZIERES | E91: 408840 | F91: RETHEL | G91: 4.3 | H91: 57% | I91: 50% | J91: 82 | K91: 58% | L91: 58% | M91: 139 | N91: 66% | O91: 66% | P91: 57 | Q91: 61% | R91: 30% | S91: 77 | T91: 73% | U91: 73% | V91: 64 | W91: 64% | X91: 60% | Y91: 66
A92: 264 | B92: MEURTHE ET MOSELLE MEUSE | C92: 27 | D92: PONT A MOUSSON | E92: 454535 | F92: PONT A MOUSSON CENTRALE | G92: 5.3 | H92: 58% | I92: 50% | J92: 83 | K92: 77% | L92: 77% | M92: 232 | N92: 59% | O92: 59% | P92: 23 | Q92: 67% | R92: 36% | S92: 126 | T92: 68% | U92: 68% | V92: 33 | W92: 52% | X92: 48% | Y92: 21
A93: 264 | B93: MOSELLE | C93: 42 | D93: MOSELLE EST | E93: 457543 | F93: PUTTELANGE AUX LACS | G93: 2.5 | H93: 58% | I93: 50% | J93: 84 | K93: 54% | L93: 54% | M93: 122 | N93: 69% | O93: 69% | P93: 72 | Q93: 67% | R93: 35% | S93: 118 | T93: 71% | U93: 71% | V93: 54 | W93: 65% | X93: 61% | Y93: 71
A94: 264 | B94: MOSELLE | C94: 44 | D94: MOSELLE NORD | E94: 457306 | F94: FLORANGE | G94: 4.7 | H94: 58% | I94: 50% | J94: 85 | K94: 77% | L94: 77% | M94: 230 | N94: 60% | O94: 60% | P94: 32 | Q94: 67% | R94: 35% | S94: 117 | T94: 75% | U94: 75% | V94: 78 | W94: 46% | X94: 42% | Y94: 9
A95: 264 | B95: MEURTHE ET MOSELLE MEUSE | C95: 31 | D95: VERDUN | E95: 555406 | F95: LIGNY EN BARROIS | G95: 2.5 | H95: 58% | I95: 50% | J95: 86 | K95: 21% | L95: 21% | M95: 16 | N95: 76% | O95: 76% | P95: 131 | Q95: 60% | R95: 29% | S95: 72 | T95: 92% | U95: 92% | V95: 218 | W95: 76% | X95: 72% | Y95: 181
A96: 264 | B96: MOSELLE | C96: 44 | D96: MOSELLE NORD | E96: 457158 | F96: YUTZ | G96: 4.4 | H96: 58% | I96: 51% | J96: 87 | K96: 64% | L96: 64% | M96: 155 | N96: 64% | O96: 64% | P96: 48 | Q96: 63% | R96: 31% | S96: 84 | T96: 70% | U96: 70% | V96: 44 | W96: 66% | X96: 63% | Y96: 82
A97: 30 | B97: BAS RHIN | C97: 5006 | D97: STRASBOURG | E97: 4024 | F97: STRASBOURG AUSTERLITZ | G97: 1.0 | H97: 58% | I97: 51% | J97: 88 | K97: 83% | L97: 83% | M97: 241 | N97: 69% | O97: 69% | P97: 76 | Q97: 58% | R97: 27% | S97: 56 | T97: 68% | U97: 68% | V97: 35 | W97: 48% | X97: 44% | Y97: 13
A98: 30 | B98: MOSELLE | C98: 45 | D98: METZ | E98: 557444 | F98: SAINT JULIEN LES METZ | G98: 3.7 | H98: 58% | I98: 51% | J98: 89 | K98: 75% | L98: 75% | M98: 220 | N98: 69% | O98: 69% | P98: 79 | Q98: 48% | R98: 16% | S98: 15 | T98: 72% | U98: 72% | V98: 58 | W98: 63% | X98: 59% | Y98: 59
A99: 30 | B99: MEURTHE ET MOSELLE MEUSE | C99: 27 | D99: PONT A MOUSSON | E99: 554416 | F99: LUDRES | G99: 3.5 | H99: 58% | I99: 51% | J99: 90 | K99: 44% | L99: 44% | M99: 84 | N99: 77% | O99: 77% | P99: 135 | Q99: 59% | R99: 27% | S99: 60 | T99: 80% | U99: 80% | V99: 123 | W99: 68% | X99: 64% | Y99: 97
A100: 30 | B100: MOSELLE | C100: 45 | D100: METZ | E100: 557432 | F100: MAIZIERES LES METZ | G100: 2.6 | H100: 58% | I100: 51% | J100: 91 | K100: 70% | L100: 70% | M100: 196 | N100: 63% | O100: 63% | P100: 44 | Q100: 70% | R100: 38% | S100: 153 | T100: 78% | U100: 78% | V100: 99 | W100: 48% | X100: 44% | Y100: 14
A101: 30 | B101: MOSELLE | C101: 44 | D101: MOSELLE NORD | E101: 557303 | F101: FAMECK | G101: 2.9 | H101: 59% | I101: 51% | J101: 92 | K101: 35% | L101: 35% | M101: 49 | N101: 72% | O101: 72% | P101: 94 | Q101: 69% | R101: 37% | S101: 140 | T101: 91% | U101: 91% | V101: 217 | W101: 61% | X101: 57% | Y101: 49
A102: 30 | B102: MARNE ARDENNES | C102: 11 | D102: REIMS | E102: 551341 | F102: REIMS JEAN JAURES | G102: 2.9 | H102: 59% | I102: 51% | J102: 93 | K102: 70% | L102: 70% | M102: 198 | N102: 67% | O102: 67% | P102: 61 | Q102: 52% | R102: 21% | S102: 30 | T102: 79% | U102: 79% | V102: 117 | W102: 60% | X102: 56% | Y102: 40
A103: 30 | B103: BAS RHIN | C103: 5060 | D103: HAGUENAU | E103: 4041 | F103: HOERDT | G103: 1.7 | H103: 59% | I103: 51% | J103: 94 | K103: 40% | L103: 40% | M103: 68 | N103: 80% | O103: 80% | P103: 159 | Q103: 47% | R103: 15% | S103: 12 | T103: 85% | U103: 85% | V103: 176 | W103: 76% | X103: 72% | Y103: 183
A104: 30 | B104: MARNE ARDENNES | C104: 2 | D104: CHARLEVILLE MEZIERES | E104: 408822 | F104: CHARLEVILLE MEZIERES | G104: 5.1 | H104: 59% | I104: 51% | J104: 95 | K104: 69% | L104: 69% | M104: 190 | N104: 78% | O104: 78% | P104: 140 | Q104: 43% | R104: 11% | S104: 7 | T104: 77% | U104: 77% | V104: 94 | W104: 62% | X104: 58% | Y104: 50
A105: 30 | B105: MOSELLE | C105: 45 | D105: METZ | E105: 557105 | F105: ARS SUR MOSELLE | G105: 3.2 | H105: 59% | I105: 51% | J105: 96 | K105: 47% | L105: 47% | M105: 91 | N105: 75% | O105: 75% | P105: 116 | Q105: 67% | R105: 35% | S105: 119 | T105: 83% | U105: 83% | V105: 162 | W105: 57% | X105: 53% | Y105: 31
A106: 30 | B106: MARNE ARDENNES | C106: 6 | D106: CHALONS EN CHAMPAGNE | E106: 551128 | F106: SAINTE MENEHOULD | G106: 3.0 | H106: 59% | I106: 51% | J106: 97 | K106: 33% | L106: 33% | M106: 39 | N106: 75% | O106: 75% | P106: 114 | Q106: 73% | R106: 41% | S106: 174 | T106: 73% | U106: 73% | V106: 69 | W106: 75% | X106: 72% | Y106: 176
A107: 30 | B107: MOSELLE | C107: 42 | D107: MOSELLE EST | E107: 557305 | F107: FAULQUEMONT | G107: 4.2 | H107: 59% | I107: 51% | J107: 98 | K107: 75% | L107: 75% | M107: 223 | N107: 56% | O107: 56% | P107: 20 | Q107: 79% | R107: 48% | S107: 216 | T107: 71% | U107: 71% | V107: 51 | W107: 48% | X107: 45% | Y107: 15
A108: 30 | B108: VOSGES | C108: 55 | D108: SAINT DIE | E108: 588666 | F108: VAGNEY | G108: 3.4 | H108: 59% | I108: 51% | J108: 99 | K108: 29% | L108: 29% | M108: 33 | N108: 81% | O108: 81% | P108: 178 | Q108: 58% | R108: 27% | S108: 55 | T108: 85% | U108: 85% | V108: 175 | W108: 75% | X108: 72% | Y108: 179
A109: 30 | B109: BAS RHIN | C109: 5006 | D109: STRASBOURG | E109: 4047 | F109: STRASBOURG CRONENBOURG | G109: 4.6 | H109: 59% | I109: 51% | J109: 100 | K109: 51% | L109: 51% | M109: 113 | N109: 66% | O109: 66% | P109: 55 | Q109: 58% | R109: 26% | S109: 49 | T109: 78% | U109: 78% | V109: 108 | W109: 76% | X109: 73% | Y109: 186
A110: 30 | B110: MOSELLE | C110: 45 | D110: METZ | E110: 557441 | F110: METZ PLAPPEVILLE | G110: 2.2 | H110: 59% | I110: 51% | J110: 101 | K110: 70% | L110: 70% | M110: 200 | N110: 78% | O110: 78% | P110: 146 | Q110: 34% | R110: 2% | S110: 4 | T110: 81% | U110: 81% | V110: 143 | W110: 67% | X110: 63% | Y110: 89
A111: 30 | B111: AUBE HAUTE MARNE | C111: 14 | D111: TROYES | E111: 510570 | F111: NOGENT SUR SEINE | G111: 4.3 | H111: 59% | I111: 51% | J111: 102 | K111: 26% | L111: 26% | M111: 27 | N111: 74% | O111: 74% | P111: 109 | Q111: 75% | R111: 44% | S111: 191 | T111: 83% | U111: 83% | V111: 155 | W111: 72% | X111: 69% | Y111: 145
A112: 30 | B112: MOSELLE | C112: 44 | D112: MOSELLE NORD | E112: 557347 | F112: GUENANGE | G112: 4.6 | H112: 59% | I112: 51% | J112: 103 | K112: 72% | L112: 72% | M112: 209 | N112: 63% | O112: 63% | P112: 42 | Q112: 70% | R112: 38% | S112: 150 | T112: 69% | U112: 69% | V112: 38 | W112: 57% | X112: 53% | Y112: 30
A113: 30 | B113: VOSGES | C113: 57 | D113: EPINAL | E113: 588396 | F113: LE VAL D AJOL | G113: 2.7 | H113: 59% | I113: 51% | J113: 104 | K113: 16% | L113: 16% | M113: 6 | N113: 83% | O113: 83% | P113: 191 | Q113: 63% | R113: 32% | S113: 89 | T113: 88% | U113: 88% | V113: 198 | W113: 81% | X113: 77% | Y113: 232
A114: 30 | B114: BAS RHIN | C114: 5060 | D114: HAGUENAU | E114: 4071 | F114: WISSEMBOURG | G114: 7.0 | H114: 59% | I114: 52% | J114: 105 | K114: 31% | L114: 31% | M114: 37 | N114: 76% | O114: 76% | P114: 126 | Q114: 63% | R114: 31% | S114: 87 | T114: 80% | U114: 80% | V114: 128 | W114: 81% | X114: 78% | Y114: 234
A115: 30 | B115: BAS RHIN | C115: 5006 | D115: STRASBOURG | E115: 4019 | F115: STRASBOURG ANVERS | G115: 4.5 | H115: 60% | I115: 52% | J115: 106 | K115: 66% | L115: 66% | M115: 171 | N115: 61% | O115: 61% | P115: 34 | Q115: 64% | R115: 33% | S115: 97 | T115: 75% | U115: 75% | V115: 75 | W115: 67% | X115: 64% | Y115: 95
A116: 30 | B116: MEURTHE ET MOSELLE MEUSE | C116: 26 | D116: NANCY | E116: 454426 | F116: LUNEVILLE CARNOT | G116: 8.2 | H116: 60% | I116: 52% | J116: 107 | K116: 66% | L116: 66% | M116: 172 | N116: 70% | O116: 70% | P116: 81 | Q116: 59% | R116: 28% | S116: 65 | T116: 84% | U116: 84% | V116: 170 | W116: 55% | X116: 51% | Y116: 26
A117: 30 | B117: VOSGES | C117: 57 | D117: EPINAL | E117: 588631 | F117: THAON LES VOSGES | G117: 4.4 | H117: 60% | I117: 52% | J117: 108 | K117: 48% | L117: 48% | M117: 99 | N117: 71% | O117: 71% | P117: 86 | Q117: 72% | R117: 41% | S117: 170 | T117: 77% | U117: 77% | V117: 95 | W117: 66% | X117: 63% | Y117: 81
A118: 30 | B118: VOSGES | C118: 57 | D118: EPINAL | E118: 488286 | F118: EPINAL ARISTIDE BRIAND | G118: 8.2 | H118: 60% | I118: 52% | J118: 109 | K118: 64% | L118: 64% | M118: 156 | N118: 64% | O118: 64% | P118: 49 | Q118: 56% | R118: 24% | S118: 38 | T118: 79% | U118: 79% | V118: 113 | W118: 72% | X118: 68% | Y118: 139
A119: 30 | B119: AUBE HAUTE MARNE | C119: 21 | D119: CHAUMONT | E119: 451154 | F119: JOINVILLE | G119: 1.9 | H119: 60% | I119: 52% | J119: 110 | K119: 41% | L119: 41% | M119: 71 | N119: 69% | O119: 69% | P119: 78 | Q119: 84% | R119: 53% | S119: 233 | T119: 69% | U119: 69% | V119: 39 | W119: 71% | X119: 68% | Y119: 130
A120: 30 | B120: VOSGES | C120: 57 | D120: EPINAL | E120: 488281 | F120: ELOYES | G120: 3.4 | H120: 60% | I120: 52% | J120: 111 | K120: 34% | L120: 34% | M120: 45 | N120: 83% | O120: 83% | P120: 193 | Q120: 55% | R120: 24% | S120: 37 | T120: 92% | U120: 92% | V120: 219 | W120: 71% | X120: 67% | Y120: 122
A121: 30 | B121: BAS RHIN | C121: 5006 | D121: STRASBOURG | E121: 4006 | F121: STRASBOURG NEUDORF | G121: 7.9 | H121: 60% | I121: 52% | J121: 112 | K121: 28% | L121: 28% | M121: 31 | N121: 81% | O121: 81% | P121: 169 | Q121: 71% | R121: 40% | S121: 159 | T121: 78% | U121: 78% | V121: 104 | W121: 77% | X121: 73% | Y121: 196
A122: 30 | B122: MEURTHE ET MOSELLE MEUSE | C122: 31 | D122: VERDUN | E122: 555624 | F122: STENAY | G122: 3.4 | H122: 60% | I122: 52% | J122: 113 | K122: 68% | L122: 68% | M122: 181 | N122: 63% | O122: 63% | P122: 45 | Q122: 66% | R122: 35% | S122: 113 | T122: 84% | U122: 84% | V122: 172 | W122: 54% | X122: 50% | Y122: 23
A123: 30 | B123: MOSELLE | C123: 42 | D123: MOSELLE EST | E123: 557523 | F123: PHALSBOURG | G123: 2.5 | H123: 60% | I123: 52% | J123: 114 | K123: 58% | L123: 58% | M123: 137 | N123: 78% | O123: 78% | P123: 148 | Q123: 57% | R123: 25% | S123: 44 | T123: 69% | U123: 69% | V123: 40 | W123: 73% | X123: 70% | Y123: 158
A124: 30 | B124: MEURTHE ET MOSELLE MEUSE | C124: 27 | D124: PONT A MOUSSON | E124: 554376 | F124: LAXOU BOUFFLERS | G124: 2.9 | H124: 60% | I124: 52% | J124: 115 | K124: 80% | L124: 80% | M124: 239 | N124: 56% | O124: 56% | P124: 21 | Q124: 77% | R124: 45% | S124: 202 | T124: 74% | U124: 74% | V124: 70 | W124: 50% | X124: 46% | Y124: 18
A125: 30 | B125: MARNE ARDENNES | C125: 6 | D125: CHALONS EN CHAMPAGNE | E125: 451381 | F125: SEZANNE | G125: 4.8 | H125: 60% | I125: 53% | J125: 116 | K125: 47% | L125: 47% | M125: 95 | N125: 74% | O125: 74% | P125: 106 | Q125: 55% | R125: 23% | S125: 35 | T125: 90% | U125: 90% | V125: 213 | W125: 71% | X125: 67% | Y125: 123
A126: 30 | B126: BAS RHIN | C126: 5006 | D126: STRASBOURG | E126: 4020 | F126: STRASBOURG ROBERTSAU | G126: 5.4 | H126: 60% | I126: 53% | J126: 117 | K126: 56% | L126: 56% | M126: 130 | N126: 80% | O126: 80% | P126: 160 | Q126: 33% | R126: 2% | S126: 3 | T126: 88% | U126: 88% | V126: 205 | W126: 79% | X126: 75% | Y126: 213
A127: 30 | B127: MEURTHE ET MOSELLE MEUSE | C127: 31 | D127: VERDUN | E127: 455566 | F127: REVIGNY SUR ORNAIN | G127: 2.7 | H127: 60% | I127: 53% | J127: 118 | K127: 52% | L127: 52% | M127: 116 | N127: 78% | O127: 78% | P127: 144 | Q127: 56% | R127: 24% | S127: 39 | T127: 77% | U127: 77% | V127: 96 | W127: 74% | X127: 70% | Y127: 164
A128: 30 | B128: MARNE ARDENNES | C128: 6 | D128: CHALONS EN CHAMPAGNE | E128: 551103 | F128: FAGNIERES LECLERC | G128: 2.9 | H128: 60% | I128: 53% | J128: 119 | K128: 50% | L128: 50% | M128: 110 | N128: 81% | O128: 81% | P128: 167 | Q128: 69% | R128: 38% | S128: 145 | T128: 66% | U128: 66% | V128: 25 | W128: 70% | X128: 66% | Y128: 112
A129: 30 | B129: MEURTHE ET MOSELLE MEUSE | C129: 31 | D129: VERDUN | E129: 554700 | F129: VILLERUPT | G129: 2.8 | H129: 60% | I129: 53% | J129: 120 | K129: 36% | L129: 36% | M129: 54 | N129: 73% | O129: 73% | P129: 103 | Q129: 67% | R129: 35% | S129: 114 | T129: 83% | U129: 83% | V129: 166 | W129: 78% | X129: 74% | Y129: 204
A130: 30 | B130: VOSGES | C130: 57 | D130: EPINAL | E130: 588716 | F130: XERTIGNY | G130: 2.8 | H130: 60% | I130: 53% | J130: 121 | K130: 40% | L130: 40% | M130: 67 | N130: 81% | O130: 81% | P130: 174 | Q130: 60% | R130: 28% | S130: 71 | T130: 79% | U130: 79% | V130: 112 | W130: 77% | X130: 73% | Y130: 190
A131: 30 | B131: BAS RHIN | C131: 5101 | D131: SELESTAT | E131: 4126 | F131: MUTZIG | G131: 2.7 | H131: 61% | I131: 53% | J131: 122 | K131: 64% | L131: 64% | M131: 159 | N131: 64% | O131: 64% | P131: 46 | Q131: 56% | R131: 25% | S131: 43 | T131: 82% | U131: 82% | V131: 150 | W131: 72% | X131: 69% | Y131: 148
A132: 30 | B132: MEURTHE ET MOSELLE MEUSE | C132: 31 | D132: VERDUN | E132: 455151 | F132: BAR LE DUC | G132: 10.0 | H132: 61% | I132: 53% | J132: 123 | K132: 38% | L132: 38% | M132: 62 | N132: 78% | O132: 78% | P132: 143 | Q132: 72% | R132: 40% | S132: 165 | T132: 80% | U132: 80% | V132: 125 | W132: 72% | X132: 69% | Y132: 144
A133: 30 | B133: BAS RHIN | C133: 5101 | D133: SELESTAT | E133: 4121 | F133: SCHIRMECK | G133: 2.8 | H133: 61% | I133: 53% | J133: 124 | K133: 38% | L133: 38% | M133: 63 | N133: 68% | O133: 68% | P133: 66 | Q133: 79% | R133: 48% | S133: 217 | T133: 88% | U133: 88% | V133: 197 | W133: 67% | X133: 63% | Y133: 93
A134: 30 | B134: VOSGES | C134: 55 | D134: SAINT DIE | E134: 588316 | F134: FRAIZE | G134: 3.7 | H134: 61% | I134: 53% | J134: 125 | K134: 45% | L134: 45% | M134: 89 | N134: 81% | O134: 81% | P134: 170 | Q134: 65% | R134: 33% | S134: 103 | T134: 76% | U134: 76% | V134: 89 | W134: 72% | X134: 69% | Y134: 143
A135: 30 | B135: AUBE HAUTE MARNE | C135: 21 | D135: CHAUMONT | E135: 451156 | F135: SAINT DIZIER CENTRE | G135: 8.6 | H135: 61% | I135: 53% | J135: 126 | K135: 53% | L135: 53% | M135: 121 | N135: 76% | O135: 76% | P135: 128 | Q135: 69% | R135: 37% | S135: 143 | T135: 74% | U135: 74% | V135: 71 | W135: 69% | X135: 65% | Y135: 102
A136: 110 | B136: BAS RHIN | C136: 5060 | D136: HAGUENAU | E136: 4057 | F136: BISCHWILLER | G136: 7.2 | H136: 61% | I136: 53% | J136: 127 | K136: 43% | L136: 43% | M136: 79 | N136: 71% | O136: 71% | P136: 87 | Q136: 71% | R136: 39% | S136: 156 | T136: 79% | U136: 79% | V136: 119 | W136: 76% | X136: 73% | Y136: 188
A137: 110 | B137: VOSGES | C137: 57 | D137: EPINAL | E137: 588201 | F137: CHANTRAINE | G137: 3.6 | H137: 61% | I137: 54% | J137: 128 | K137: 48% | L137: 48% | M137: 97 | N137: 70% | O137: 70% | P137: 80 | Q137: 63% | R137: 32% | S137: 88 | T137: 86% | U137: 86% | V137: 181 | W137: 75% | X137: 71% | Y137: 172
A138: 110 | B138: MEURTHE ET MOSELLE MEUSE | C138: 26 | D138: NANCY | E138: 554296 | F138: ESSEY LES NANCY | G138: 3.6 | H138: 62% | I138: 54% | J138: 129 | K138: 41% | L138: 41% | M138: 73 | N138: 74% | O138: 74% | P138: 112 | Q138: 68% | R138: 36% | S138: 133 | T138: 89% | U138: 89% | V138: 208 | W138: 71% | X138: 68% | Y138: 131
A139: 110 | B139: BAS RHIN | C139: 5006 | D139: STRASBOURG | E139: 4027 | F139: SCHILTIGHEIM CENTRE | G139: 3.9 | H139: 62% | I139: 54% | J139: 130 | K139: 70% | L139: 70% | M139: 201 | N139: 62% | O139: 62% | P139: 41 | Q139: 65% | R139: 34% | S139: 105 | T139: 76% | U139: 76% | V139: 84 | W139: 71% | X139: 67% | Y139: 124
A140: 110 | B140: VOSGES | C140: 55 | D140: SAINT DIE | E140: 588461 | F140: MOYENMOUTIER | G140: 4.3 | H140: 62% | I140: 54% | J140: 131 | K140: 45% | L140: 45% | M140: 86 | N140: 74% | O140: 74% | P140: 111 | Q140: 68% | R140: 37% | S140: 138 | T140: 79% | U140: 79% | V140: 115 | W140: 77% | X140: 74% | Y140: 202
A141: 110 | B141: VOSGES | C141: 55 | D141: SAINT DIE | E141: 588386 | F141: LE THILLOT | G141: 2.5 | H141: 62% | I141: 54% | J141: 132 | K141: 20% | L141: 20% | M141: 13 | N141: 81% | O141: 81% | P141: 171 | Q141: 79% | R141: 48% | S141: 219 | T141: 87% | U141: 87% | V141: 192 | W141: 77% | X141: 73% | Y141: 191
A142: 110 | B142: BAS RHIN | C142: 5006 | D142: STRASBOURG | E142: 4023 | F142: STRASBOURG VOSGES | G142: 2.9 | H142: 62% | I142: 54% | J142: 133 | K142: 58% | L142: 58% | M142: 135 | N142: 74% | O142: 74% | P142: 110 | Q142: 49% | R142: 18% | S142: 18 | T142: 87% | U142: 87% | V142: 188 | W142: 77% | X142: 73% | Y142: 192
A143: 110 | B143: BAS RHIN | C143: 5060 | D143: HAGUENAU | E143: 4031 | F143: TRUCHTERSHEIM | G143: 2.2 | H143: 62% | I143: 54% | J143: 134 | K143: 36% | L143: 36% | M143: 56 | N143: 66% | O143: 66% | P143: 58 | Q143: 67% | R143: 35% | S143: 116 | T143: 95% | U143: 95% | V143: 231 | W143: 81% | X143: 77% | Y143: 230
A144: 110 | B144: MEURTHE ET MOSELLE MEUSE | C144: 27 | D144: PONT A MOUSSON | E144: 554496 | F144: NANCY TROIS MAISONS | G144: 2.3 | H144: 62% | I144: 54% | J144: 135 | K144: 64% | L144: 64% | M144: 163 | N144: 73% | O144: 73% | P144: 102 | Q144: 69% | R144: 37% | S144: 142 | T144: 76% | U144: 76% | V144: 90 | W144: 63% | X144: 59% | Y144: 57
A145: 110 | B145: MOSELLE | C145: 42 | D145: MOSELLE EST | E145: 557210 | F145: CHATEAU SALINS | G145: 1.5 | H145: 62% | I145: 54% | J145: 136 | K145: 66% | L145: 66% | M145: 173 | N145: 69% | O145: 69% | P145: 74 | Q145: 74% | R145: 43% | S145: 184 | T145: 68% | U145: 68% | V145: 32 | W145: 69% | X145: 65% | Y145: 103
A146: 110 | B146: MEURTHE ET MOSELLE MEUSE | C146: 27 | D146: PONT A MOUSSON | E146: 554357 | F146: JOEUF | G146: 3.1 | H146: 62% | I146: 55% | J146: 137 | K146: 44% | L146: 44% | M146: 81 | N146: 77% | O146: 77% | P146: 136 | Q146: 76% | R146: 44% | S146: 197 | T146: 84% | U146: 84% | V146: 169 | W146: 66% | X146: 62% | Y146: 80
A147: 110 | B147: MOSELLE | C147: 42 | D147: MOSELLE EST | E147: 457435 | F147: MERLEBACH | G147: 2.8 | H147: 62% | I147: 55% | J147: 138 | K147: 50% | L147: 50% | M147: 106 | N147: 74% | O147: 74% | P147: 107 | Q147: 77% | R147: 45% | S147: 204 | T147: 82% | U147: 82% | V147: 146 | W147: 64% | X147: 60% | Y147: 63
A148: 110 | B148: AUBE HAUTE MARNE | C148: 21 | D148: CHAUMONT | E148: 410566 | F148: CHAUMONT HOTEL DE VILLE | G148: 10.4 | H148: 62% | I148: 55% | J148: 139 | K148: 49% | L148: 49% | M148: 100 | N148: 81% | O148: 81% | P148: 173 | Q148: 60% | R148: 28% | S148: 67 | T148: 83% | U148: 83% | V148: 157 | W148: 75% | X148: 71% | Y148: 166
A149: 110 | B149: MOSELLE | C149: 44 | D149: MOSELLE NORD | E149: 557307 | F149: FONTOY | G149: 1.9 | H149: 62% | I149: 55% | J149: 140 | K149: 35% | L149: 35% | M149: 51 | N149: 87% | O149: 87% | P149: 214 | Q149: 64% | R149: 33% | S149: 96 | T149: 95% | U149: 95% | V149: 233 | W149: 66% | X149: 62% | Y149: 77
A150: 110 | B150: MEURTHE ET MOSELLE MEUSE | C150: 27 | D150: PONT A MOUSSON | E150: 454355 | F150: JARNY | G150: 4.1 | H150: 62% | I150: 55% | J150: 141 | K150: 51% | L150: 51% | M150: 112 | N150: 76% | O150: 76% | P150: 133 | Q150: 64% | R150: 32% | S150: 91 | T150: 80% | U150: 80% | V150: 121 | W150: 77% | X150: 74% | Y150: 200
A151: 110 | B151: MEURTHE ET MOSELLE MEUSE | C151: 26 | D151: NANCY | E151: 554486 | F151: NANCY POINT CENTRAL | G151: 3.0 | H151: 63% | I151: 55% | J151: 142 | K151: 56% | L151: 56% | M151: 132 | N151: 85% | O151: 85% | P151: 205 | Q151: 50% | R151: 18% | S151: 22 | T151: 85% | U151: 85% | V151: 174 | W151: 73% | X151: 69% | Y151: 149
A152: 110 | B152: MARNE ARDENNES | C152: 2 | D152: CHARLEVILLE MEZIERES | E152: 408862 | F152: REVIN | G152: 4.0 | H152: 63% | I152: 55% | J152: 143 | K152: 44% | L152: 44% | M152: 83 | N152: 82% | O152: 82% | P152: 186 | Q152: 75% | R152: 43% | S152: 186 | T152: 75% | U152: 75% | V152: 83 | W152: 73% | X152: 70% | Y152: 156
A153: 110 | B153: BAS RHIN | C153: 5006 | D153: STRASBOURG | E153: 4039 | F153: REICHSTETT | G153: 1.6 | H153: 63% | I153: 55% | J153: 144 | K153: 65% | L153: 65% | M153: 169 | N153: 78% | O153: 78% | P153: 142 | Q153: 55% | R153: 23% | S153: 33 | T153: 76% | U153: 76% | V153: 87 | W153: 77% | X153: 73% | Y153: 198
A154: 110 | B154: HAUT RHIN | C154: 5130 | D154: COLMAR | E154: 4143 | F154: MUNSTER | G154: 4.3 | H154: 63% | I154: 55% | J154: 145 | K154: 59% | L154: 59% | M154: 141 | N154: 72% | O154: 72% | P154: 93 | Q154: 68% | R154: 36% | S154: 137 | T154: 81% | U154: 81% | V154: 135 | W154: 71% | X154: 67% | Y154: 125
A155: 110 | B155: VOSGES | C155: 57 | D155: EPINAL | E155: 588206 | F155: CHARMES | G155: 2.7 | H155: 63% | I155: 55% | J155: 146 | K155: 52% | L155: 52% | M155: 117 | N155: 79% | O155: 79% | P155: 155 | Q155: 58% | R155: 26% | S155: 54 | T155: 87% | U155: 87% | V155: 184 | W155: 75% | X155: 71% | Y155: 175
A156: 110 | B156: MEURTHE ET MOSELLE MEUSE | C156: 31 | D156: VERDUN | E156: 554412 | F156: LONGUYON | G156: 2.8 | H156: 63% | I156: 55% | J156: 147 | K156: 49% | L156: 49% | M156: 101 | N156: 71% | O156: 71% | P156: 88 | Q156: 77% | R156: 46% | S156: 205 | T156: 80% | U156: 80% | V156: 127 | W156: 73% | X156: 70% | Y156: 155
A157: 110 | B157: VOSGES | C157: 57 | D157: EPINAL | E157: 488706 | F157: VITTEL | G157: 3.1 | H157: 63% | I157: 56% | J157: 148 | K157: 49% | L157: 49% | M157: 102 | N157: 83% | O157: 83% | P157: 190 | Q157: 71% | R157: 40% | S157: 160 | T157: 78% | U157: 78% | V157: 107 | W157: 71% | X157: 67% | Y157: 118
A158: 110 | B158: MOSELLE | C158: 44 | D158: MOSELLE NORD | E158: 457192 | F158: CATTENOM | G158: 1.6 | H158: 63% | I158: 56% | J158: 149 | K158: 60% | L158: 60% | M158: 146 | N158: 72% | O158: 72% | P158: 95 | Q158: 73% | R158: 41% | S158: 176 | T158: 82% | U158: 82% | V158: 149 | W158: 65% | X158: 61% | Y158: 72
A159: 110 | B159: MOSELLE | C159: 42 | D159: MOSELLE EST | E159: 557503 | F159: NEUNKIRCH | G159: 3.4 | H159: 63% | I159: 56% | J159: 150 | K159: 11% | L159: 11% | M159: 4 | N159: 89% | O159: 89% | P159: 226 | Q159: 79% | R159: 47% | S159: 215 | T159: 95% | U159: 95% | V159: 230 | W159: 79% | X159: 75% | Y159: 215
A160: 110 | B160: MEURTHE ET MOSELLE MEUSE | C160: 26 | D160: NANCY | E160: 554166 | F160: BLAINVILLE | G160: 2.8 | H160: 64% | I160: 56% | J160: 151 | K160: 69% | L160: 69% | M160: 186 | N160: 68% | O160: 68% | P160: 70 | Q160: 75% | R160: 43% | S160: 185 | T160: 72% | U160: 72% | V160: 60 | W160: 69% | X160: 66% | Y160: 108
A161: 110 | B161: MEURTHE ET MOSELLE MEUSE | C161: 26 | D161: NANCY | E161: 554266 | F161: DOMBASLE SUR MEURTHE | G161: 3.4 | H161: 64% | I161: 56% | J161: 152 | K161: 69% | L161: 69% | M161: 184 | N161: 88% | O161: 88% | P161: 223 | Q161: 53% | R161: 21% | S161: 31 | T161: 78% | U161: 78% | V161: 102 | W161: 66% | X161: 63% | Y161: 84
A162: 110 | B162: BAS RHIN | C162: 5101 | D162: SELESTAT | E162: 4127 | F162: ROSHEIM | G162: 1.7 | H162: 64% | I162: 56% | J162: 153 | K162: 56% | L162: 56% | M162: 129 | N162: 83% | O162: 83% | P162: 194 | Q162: 55% | R162: 23% | S162: 34 | T162: 88% | U162: 88% | V162: 201 | W162: 73% | X162: 69% | Y162: 153
A163: 110 | B163: BAS RHIN | C163: 5060 | D163: HAGUENAU | E163: 4085 | F163: INGWILLER | G163: 3.5 | H163: 64% | I163: 56% | J163: 154 | K163: 60% | L163: 60% | M163: 142 | N163: 77% | O163: 77% | P163: 137 | Q163: 70% | R163: 38% | S163: 154 | T163: 79% | U163: 79% | V163: 114 | W163: 70% | X163: 66% | Y163: 113
A164: 110 | B164: BAS RHIN | C164: 5101 | D164: SELESTAT | E164: 4007 | F164: ILLKIRCH CENTRE | G164: 6.6 | H164: 64% | I164: 56% | J164: 155 | K164: 70% | L164: 70% | M164: 202 | N164: 75% | O164: 75% | P164: 113 | Q164: 71% | R164: 40% | S164: 161 | T164: 67% | U164: 67% | V164: 29 | W164: 72% | X164: 68% | Y164: 141
A165: 110 | B165: MEURTHE ET MOSELLE MEUSE | C165: 27 | D165: PONT A MOUSSON | E165: 454651 | F165: TOUL | G165: 10.0 | H165: 64% | I165: 56% | J165: 156 | K165: 73% | L165: 73% | M165: 213 | N165: 81% | O165: 81% | P165: 168 | Q165: 65% | R165: 33% | S165: 102 | T165: 75% | U165: 75% | V165: 76 | W165: 62% | X165: 58% | Y165: 54
A166: 110 | B166: HAUT RHIN | C166: 5130 | D166: COLMAR | E166: 4157 | F166: NEUF BRISACH | G166: 2.8 | H166: 64% | I166: 57% | J166: 157 | K166: 65% | L166: 65% | M166: 167 | N166: 79% | O166: 79% | P166: 152 | Q166: 68% | R166: 36% | S166: 130 | T166: 75% | U166: 75% | V166: 77 | W166: 71% | X166: 67% | Y166: 126
A167: 110 | B167: MOSELLE | C167: 42 | D167: MOSELLE EST | E167: 457614 | F167: SARREBOURG | G167: 7.9 | H167: 65% | I167: 57% | J167: 158 | K167: 54% | L167: 54% | M167: 123 | N167: 80% | O167: 80% | P167: 164 | Q167: 69% | R167: 38% | S167: 147 | T167: 81% | U167: 81% | V167: 139 | W167: 73% | X167: 70% | Y167: 159
A168: 110 | B168: MARNE ARDENNES | C168: 2 | D168: CHARLEVILLE MEZIERES | E168: 408806 | F168: SEDAN | G168: 7.6 | H168: 65% | I168: 57% | J168: 159 | K168: 43% | L168: 43% | M168: 78 | N168: 81% | O168: 81% | P168: 176 | Q168: 72% | R168: 40% | S168: 166 | T168: 92% | U168: 92% | V168: 220 | W168: 70% | X168: 67% | Y168: 116
A169: 110 | B169: MOSELLE | C169: 45 | D169: METZ | E169: 557459 | F169: MOULINS LES METZ | G169: 2.5 | H169: 65% | I169: 57% | J169: 160 | K169: 41% | L169: 41% | M169: 70 | N169: 83% | O169: 83% | P169: 195 | Q169: 77% | R169: 45% | S169: 200 | T169: 83% | U169: 83% | V169: 163 | W169: 75% | X169: 71% | Y169: 173
A170: 110 | B170: MOSELLE | C170: 45 | D170: METZ | E170: 557436 | F170: METZ CATHEDRALE | G170: 3.9 | H170: 65% | I170: 57% | J170: 161 | K170: 76% | L170: 76% | M170: 226 | N170: 77% | O170: 77% | P170: 139 | Q170: 59% | R170: 28% | S170: 63 | T170: 73% | U170: 73% | V170: 67 | W170: 74% | X170: 70% | Y170: 165
A171: 110 | B171: AUBE HAUTE MARNE | C171: 14 | D171: TROYES | E171: 510513 | F171: SAINT PARRES AUX TERTRES | G171: 2.4 | H171: 65% | I171: 57% | J171: 162 | K171: 80% | L171: 80% | M171: 240 | N171: 66% | O171: 66% | P171: 56 | Q171: 73% | R171: 41% | S171: 173 | T171: 71% | U171: 71% | V171: 56 | W171: 70% | X171: 66% | Y171: 109
A172: 110 | B172: AUBE HAUTE MARNE | C172: 14 | D172: TROYES | E172: 510523 | F172: LA CHAPELLE ST LUC | G172: 4.6 | H172: 65% | I172: 57% | J172: 163 | K172: 79% | L172: 79% | M172: 237 | N172: 75% | O172: 75% | P172: 118 | Q172: 66% | R172: 34% | S172: 107 | T172: 70% | U172: 70% | V172: 49 | W172: 71% | X172: 67% | Y172: 121
A173: 110 | B173: MOSELLE | C173: 45 | D173: METZ | E173: 557712 | F173: WOIPPY | G173: 4.5 | H173: 65% | I173: 58% | J173: 164 | K173: 67% | L173: 67% | M173: 178 | N173: 75% | O173: 75% | P173: 119 | Q173: 69% | R173: 37% | S173: 141 | T173: 78% | U173: 78% | V173: 105 | W173: 73% | X173: 69% | Y173: 152
A174: 110 | B174: MARNE ARDENNES | C174: 11 | D174: REIMS | E174: 551309 | F174: REIMS EUROPE | G174: 2.9 | H174: 65% | I174: 58% | J174: 165 | K174: 53% | L174: 53% | M174: 120 | N174: 81% | O174: 81% | P174: 175 | Q174: 76% | R174: 44% | S174: 198 | T174: 81% | U174: 81% | V174: 133 | W174: 71% | X174: 67% | Y174: 119
A175: 110 | B175: MARNE ARDENNES | C175: 2 | D175: CHARLEVILLE MEZIERES | E175: 508819 | F175: MOUZON | G175: 1.9 | H175: 65% | I175: 58% | J175: 166 | K175: 47% | L175: 47% | M175: 96 | N175: 91% | O175: 91% | P175: 235 | Q175: 57% | R175: 25% | S175: 45 | T175: 96% | U175: 96% | V175: 234 | W175: 71% | X175: 68% | Y175: 135
A176: 110 | B176: HAUT RHIN | C176: 5169 | D176: MULHOUSE | E176: 4170 | F176: MULHOUSE REUNION | G176: 7.6 | H176: 65% | I176: 58% | J176: 167 | K176: 63% | L176: 63% | M176: 151 | N176: 78% | O176: 78% | P176: 145 | Q176: 75% | R176: 44% | S176: 193 | T176: 78% | U176: 78% | V176: 101 | W176: 69% | X176: 65% | Y176: 104
A177: 110 | B177: VOSGES | C177: 55 | D177: SAINT DIE | E177: 488556 | F177: RAON L ETAPE | G177: 2.2 | H177: 65% | I177: 58% | J177: 168 | K177: 45% | L177: 45% | M177: 87 | N177: 89% | O177: 89% | P177: 229 | Q177: 79% | R177: 47% | S177: 214 | T177: 83% | U177: 83% | V177: 158 | W177: 66% | X177: 62% | Y177: 78
A178: 160 | B178: HAUT RHIN | C178: 5130 | D178: COLMAR | E178: 4132 | F178: COLMAR MARAICHERS | G178: 3.8 | H178: 65% | I178: 58% | J178: 169 | K178: 57% | L178: 57% | M178: 134 | N178: 75% | O178: 75% | P178: 120 | Q178: 67% | R178: 35% | S178: 115 | T178: 84% | U178: 84% | V178: 168 | W178: 80% | X178: 76% | Y178: 224
A179: 160 | B179: BAS RHIN | C179: 5006 | D179: STRASBOURG | E179: 4029 | F179: SCHILTIGHEIM KLEBER | G179: 0.9 | H179: 66% | I179: 58% | J179: 170 | K179: 62% | L179: 62% | M179: 149 | N179: 91% | O179: 91% | P179: 236 | Q179: 57% | R179: 25% | S179: 47 | T179: 81% | U179: 81% | V179: 137 | W179: 71% | X179: 68% | Y179: 129
A180: 160 | B180: BAS RHIN | C180: 5101 | D180: SELESTAT | E180: 4008 | F180: FEGERSHEIM | G180: 2.3 | H180: 66% | I180: 58% | J180: 171 | K180: 50% | L180: 50% | M180: 107 | N180: 74% | O180: 74% | P180: 108 | Q180: 70% | R180: 38% | S180: 152 | T180: 86% | U180: 86% | V180: 182 | W180: 83% | X180: 80% | Y180: 238
A181: 160 | B181: MEURTHE ET MOSELLE MEUSE | C181: 27 | D181: PONT A MOUSSON | E181: 554196 | F181: CHAMPIGNEULLES | G181: 2.5 | H181: 66% | I181: 58% | J181: 172 | K181: 67% | L181: 67% | M181: 179 | N181: 83% | O181: 83% | P181: 192 | Q181: 71% | R181: 39% | S181: 158 | T181: 70% | U181: 70% | V181: 46 | W181: 72% | X181: 69% | Y181: 147
A182: 160 | B182: MARNE ARDENNES | C182: 2 | D182: CHARLEVILLE MEZIERES | E182: 508815 | F182: CARIGNAN | G182: 2.7 | H182: 66% | I182: 58% | J182: 173 | K182: 47% | L182: 47% | M182: 92 | N182: 76% | O182: 76% | P182: 127 | Q182: 72% | R182: 40% | S182: 168 | T182: 92% | U182: 92% | V182: 222 | W182: 77% | X182: 73% | Y182: 195
A183: 160 | B183: MOSELLE | C183: 42 | D183: MOSELLE EST | E183: 457258 | F183: DIEUZE | G183: 3.0 | H183: 66% | I183: 58% | J183: 174 | K183: 43% | L183: 43% | M183: 75 | N183: 89% | O183: 89% | P183: 228 | Q183: 68% | R183: 36% | S183: 134 | T183: 83% | U183: 83% | V183: 165 | W183: 81% | X183: 77% | Y183: 229
A184: 160 | B184: MOSELLE | C184: 44 | D184: MOSELLE NORD | E184: 457180 | F184: BOUSSE | G184: 2.6 | H184: 66% | I184: 58% | J184: 175 | K184: 16% | L184: 16% | M184: 7 | N184: 88% | O184: 88% | P184: 219 | Q184: 71% | R184: 40% | S184: 163 | T184: 99% | U184: 99% | V184: 241 | W184: 90% | X184: 86% | Y184: 244
A185: 160 | B185: BAS RHIN | C185: 5006 | D185: STRASBOURG | E185: 4028 | F185: BISCHHEIM | G185: 3.3 | H185: 66% | I185: 58% | J185: 176 | K185: 66% | L185: 66% | M185: 174 | N185: 82% | O185: 82% | P185: 179 | Q185: 64% | R185: 32% | S185: 92 | T185: 74% | U185: 74% | V185: 73 | W185: 79% | X185: 76% | Y185: 220
A186: 160 | B186: BAS RHIN | C186: 5101 | D186: SELESTAT | E186: 4107 | F186: VILLE | G186: 2.3 | H186: 66% | I186: 58% | J186: 177 | K186: 74% | L186: 74% | M186: 217 | N186: 69% | O186: 69% | P186: 73 | Q186: 57% | R186: 26% | S186: 48 | T186: 84% | U186: 84% | V186: 171 | W186: 81% | X186: 77% | Y186: 233
A187: 160 | B187: MEURTHE ET MOSELLE MEUSE | C187: 27 | D187: PONT A MOUSSON | E187: 454696 | F187: VILLERS GENERAL LECLERC | G187: 4.2 | H187: 66% | I187: 59% | J187: 178 | K187: 64% | L187: 64% | M187: 161 | N187: 86% | O187: 86% | P187: 208 | Q187: 50% | R187: 18% | S187: 20 | T187: 87% | U187: 87% | V187: 194 | W187: 79% | X187: 76% | Y187: 223
A188: 160 | B188: MOSELLE | C188: 45 | D188: METZ | E188: 557559 | F188: REMILLY | G188: 3.5 | H188: 66% | I188: 59% | J188: 179 | K188: 64% | L188: 64% | M188: 162 | N188: 80% | O188: 80% | P188: 161 | Q188: 68% | R188: 36% | S188: 131 | T188: 87% | U188: 87% | V188: 187 | W188: 68% | X188: 65% | Y188: 101
A189: 160 | B189: HAUT RHIN | C189: 5169 | D189: MULHOUSE | E189: 4180 | F189: RIEDISHEIM | G189: 3.4 | H189: 67% | I189: 59% | J189: 180 | K189: 41% | L189: 41% | M189: 72 | N189: 81% | O189: 81% | P189: 172 | Q189: 85% | R189: 54% | S189: 235 | T189: 81% | U189: 81% | V189: 136 | W189: 80% | X189: 76% | Y189: 226
A190: 160 | B190: HAUT RHIN | C190: 5169 | D190: MULHOUSE | E190: 4178 | F190: SAINT LOUIS | G190: 6.5 | H190: 67% | I190: 59% | J190: 181 | K190: 69% | L190: 69% | M190: 185 | N190: 79% | O190: 79% | P190: 154 | Q190: 59% | R190: 27% | S190: 61 | T190: 83% | U190: 83% | V190: 161 | W190: 79% | X190: 75% | Y190: 219
A191: 160 | B191: HAUT RHIN | C191: 5130 | D191: COLMAR | E191: 4130 | F191: COLMAR REPUBLIQUE | G191: 6.0 | H191: 67% | I191: 59% | J191: 182 | K191: 69% | L191: 69% | M191: 194 | N191: 82% | O191: 82% | P191: 181 | Q191: 68% | R191: 36% | S191: 132 | T191: 73% | U191: 73% | V191: 61 | W191: 78% | X191: 74% | Y191: 205
A192: 160 | B192: MARNE ARDENNES | C192: 2 | D192: CHARLEVILLE MEZIERES | E192: 508860 | F192: ROCROI | G192: 2.3 | H192: 67% | I192: 59% | J192: 183 | K192: 73% | L192: 73% | M192: 211 | N192: 70% | O192: 70% | P192: 82 | Q192: 73% | R192: 41% | S192: 175 | T192: 83% | U192: 83% | V192: 167 | W192: 71% | X192: 67% | Y192: 120
A193: 160 | B193: BAS RHIN | C193: 5060 | D193: HAGUENAU | E193: 4060 | F193: HAGUENAU HOUBLON | G193: 8.8 | H193: 67% | I193: 59% | J193: 184 | K193: 69% | L193: 69% | M193: 189 | N193: 81% | O193: 81% | P193: 166 | Q193: 64% | R193: 32% | S193: 90 | T193: 80% | U193: 80% | V193: 126 | W193: 77% | X193: 73% | Y193: 193
A194: 160 | B194: MOSELLE | C194: 45 | D194: METZ | E194: 557440 | F194: METZ MOZART | G194: 3.1 | H194: 67% | I194: 59% | J194: 185 | K194: 64% | L194: 64% | M194: 164 | N194: 84% | O194: 84% | P194: 197 | Q194: 59% | R194: 27% | S194: 59 | T194: 83% | U194: 83% | V194: 164 | W194: 81% | X194: 77% | Y194: 231
A195: 160 | B195: MOSELLE | C195: 45 | D195: METZ | E195: 557433 | F195: MARANGE SILVANGE | G195: 2.9 | H195: 67% | I195: 59% | J195: 186 | K195: 68% | L195: 68% | M195: 180 | N195: 82% | O195: 82% | P195: 180 | Q195: 72% | R195: 40% | S195: 167 | T195: 82% | U195: 82% | V195: 148 | W195: 67% | X195: 63% | Y195: 90
A196: 160 | B196: BAS RHIN | C196: 5101 | D196: SELESTAT | E196: 4101 | F196: SELESTAT CENTRE | G196: 7.8 | H196: 67% | I196: 59% | J196: 187 | K196: 69% | L196: 69% | M196: 187 | N196: 76% | O196: 76% | P196: 134 | Q196: 73% | R196: 41% | S196: 171 | T196: 78% | U196: 78% | V196: 106 | W196: 75% | X196: 71% | Y196: 167
A197: 160 | B197: MEURTHE ET MOSELLE MEUSE | C197: 27 | D197: PONT A MOUSSON | E197: 554257 | F197: DIEULOUARD | G197: 2.8 | H197: 67% | I197: 59% | J197: 188 | K197: 55% | L197: 55% | M197: 127 | N197: 86% | O197: 86% | P197: 209 | Q197: 56% | R197: 25% | S197: 41 | T197: 90% | U197: 90% | V197: 214 | W197: 84% | X197: 80% | Y197: 240
A198: 160 | B198: HAUT RHIN | C198: 5169 | D198: MULHOUSE | E198: 4181 | F198: WITTELSHEIM | G198: 2.7 | H198: 67% | I198: 60% | J198: 189 | K198: 70% | L198: 70% | M198: 195 | N198: 85% | O198: 85% | P198: 203 | Q198: 75% | R198: 43% | S198: 187 | T198: 82% | U198: 82% | V198: 153 | W198: 59% | X198: 56% | Y198: 39
A199: 160 | B199: BAS RHIN | C199: 5060 | D199: HAGUENAU | E199: 4082 | F199: BOUXWILLER | G199: 2.3 | H199: 67% | I199: 60% | J199: 190 | K199: 34% | L199: 34% | M199: 46 | N199: 85% | O199: 85% | P199: 204 | Q199: 104% | R199: 72% | S199: 241 | T199: 79% | U199: 79% | V199: 109 | W199: 70% | X199: 66% | Y199: 110
A200: 160 | B200: AUBE HAUTE MARNE | C200: 14 | D200: TROYES | E200: 410550 | F200: BAR SUR AUBE | G200: 5.1 | H200: 67% | I200: 60% | J200: 191 | K200: 49% | L200: 49% | M200: 105 | N200: 80% | O200: 80% | P200: 163 | Q200: 80% | R200: 48% | S200: 221 | T200: 89% | U200: 89% | V200: 207 | W200: 74% | X200: 70% | Y200: 162
A201: 160 | B201: BAS RHIN | C201: 5101 | D201: SELESTAT | E201: 4109 | F201: MARCKOLSHEIM | G201: 2.7 | H201: 67% | I201: 60% | J201: 192 | K201: 60% | L201: 60% | M201: 144 | N201: 75% | O201: 75% | P201: 117 | Q201: 81% | R201: 49% | S201: 224 | T201: 82% | U201: 82% | V201: 147 | W201: 74% | X201: 70% | Y201: 163
A202: 160 | B202: BAS RHIN | C202: 5060 | D202: HAGUENAU | E202: 4030 | F202: BRUMATH | G202: 4.1 | H202: 67% | I202: 60% | J202: 193 | K202: 75% | L202: 75% | M202: 221 | N202: 75% | O202: 75% | P202: 115 | Q202: 52% | R202: 21% | S202: 28 | T202: 92% | U202: 92% | V202: 221 | W202: 78% | X202: 74% | Y202: 207
A203: 160 | B203: MEURTHE ET MOSELLE MEUSE | C203: 26 | D203: NANCY | E203: 454671 | F203: VANDOEUVRE LES NANCY | G203: 4.2 | H203: 67% | I203: 60% | J203: 194 | K203: 68% | L203: 68% | M203: 182 | N203: 82% | O203: 82% | P203: 182 | Q203: 67% | R203: 35% | S203: 121 | T203: 82% | U203: 82% | V203: 145 | W203: 73% | X203: 69% | Y203: 154
... 51 more rows

Sheet AG_BANCA
B1: Accueil | H1: BAROMETRE BDD - AGENCES
H2: BANCARISATION
H3: =ACCUEIL!F7 -> 2022-08-07
H7: Ventes Nettes produits pondérés | L7: Ventes sur client non détenteur de l’univers | P7: Total Bancarisation
H8: =DATEMAJ!C8 -> au 07/08 | J8: coef | K8: ='RECAP DIRCOM'!AA4 -> 12% | L8: =DATEMAJ!C9 -> au 07/08 | N8: coef | O8: ='RECAP DIRCOM'!AE4 -> 8% | Q8: coef | R8: ='RECAP DIRCOM'!$AH$4 -> 20%
B9: Direction | C9: eds | D9: Territoire | E9: eds | F9: Agence | G9: ="ETP perf "&DATEMAJ!$C$28 -> ETP perf 07-août | H9: VN | I9: VN / ETP | J9: % Ecart au 1er | K9: Rang | L9: VB | M9: VB / ETP | N9: % Ecart au 1er | O9: Rang | P9: Moyenne ecart au 1er | Q9: % Ecart au 1er | R9: Rang CEGEE
A10: 50 | B10: AUBE HAUTE MARNE | C10: 21 | D10: CHAUMONT | E10: 410541 | F10: LANGRES | G10: =VLOOKUP($E10,'RECAP AG'!$G$6:$CU$250,3,FALSE) -> 8.2 | H10: =VLOOKUP($E10,'RECAP AG'!$G$6:$CU$250,18,FALSE) -> 212.2 | I10: =VLOOKUP($E10,'RECAP AG'!$G$6:$CU$250,19,FALSE) -> 25.82 | J10: =VLOOKUP($E10,'RECAP AG'!$G$6:$CU$250,20,FALSE) -> 75% | K10: =VLOOKUP($E10,'RECAP AG'!$G$6:$CU$250,21,FALSE) -> 67 | L10: =VLOOKUP($E10,'RECAP AG'!$G$6:$CU$250,22,FALSE) -> 328 | M10: =VLOOKUP($E10,'RECAP AG'!$G$6:$CU$250,23,FALSE) -> 39.90 | N10: =VLOOKUP($E10,'RECAP AG'!$G$6:$CU$250,24,FALSE) -> 68% | O10: =VLOOKUP($E10,'RECAP AG'!$G$6:$CU$250,25,FALSE) -> 173 | P10: =VLOOKUP($E10,'RECAP AG'!$G$6:$CU$250,26,FALSE) -> 72% | Q10: =VLOOKUP($E10,'RECAP AG'!$G$6:$CU$250,27,FALSE) -> 72% | R10: =VLOOKUP($E10,'RECAP AG'!$G$6:$CU$250,28,FALSE) -> 98
A11: 50 | B11: AUBE HAUTE MARNE | C11: 21 | D11: CHAUMONT | E11: 410566 | F11: CHAUMONT HOTEL DE VILLE | G11: =VLOOKUP($E11,'RECAP AG'!$G$6:$CU$250,3,FALSE) -> 10.4 | H11: =VLOOKUP($E11,'RECAP AG'!$G$6:$CU$250,18,FALSE) -> 100.8 | I11: =VLOOKUP($E11,'RECAP AG'!$G$6:$CU$250,19,FALSE) -> 9.66 | J11: =VLOOKUP($E11,'RECAP AG'!$G$6:$CU$250,20,FALSE) -> 91% | K11: =VLOOKUP($E11,'RECAP AG'!$G$6:$CU$250,21,FALSE) -> 176 | L11: =VLOOKUP($E11,'RECAP AG'!$G$6:$CU$250,22,FALSE) -> 436 | M11: =VLOOKUP($E11,'RECAP AG'!$G$6:$CU$250,23,FALSE) -> 41.76 | N11: =VLOOKUP($E11,'RECAP AG'!$G$6:$CU$250,24,FALSE) -> 67% | O11: =VLOOKUP($E11,'RECAP AG'!$G$6:$CU$250,25,FALSE) -> 157 | P11: =VLOOKUP($E11,'RECAP AG'!$G$6:$CU$250,26,FALSE) -> 81% | Q11: =VLOOKUP($E11,'RECAP AG'!$G$6:$CU$250,27,FALSE) -> 81% | R11: =VLOOKUP($E11,'RECAP AG'!$G$6:$CU$250,28,FALSE) -> 173
A12: 50 | B12: AUBE HAUTE MARNE | C12: 21 | D12: CHAUMONT | E12: 510590 | F12: CHAUMONT REPUBLIQUE | G12: =VLOOKUP($E12,'RECAP AG'!$G$6:$CU$250,3,FALSE) -> 2.9 | H12: =VLOOKUP($E12,'RECAP AG'!$G$6:$CU$250,18,FALSE) -> 29.3 | I12: =VLOOKUP($E12,'RECAP AG'!$G$6:$CU$250,19,FALSE) -> 10.28 | J12: =VLOOKUP($E12,'RECAP AG'!$G$6:$CU$250,20,FALSE) -> 90% | K12: =VLOOKUP($E12,'RECAP AG'!$G$6:$CU$250,21,FALSE) -> 169 | L12: =VLOOKUP($E12,'RECAP AG'!$G$6:$CU$250,22,FALSE) -> 165 | M12: =VLOOKUP($E12,'RECAP AG'!$G$6:$CU$250,23,FALSE) -> 57.89 | N12: =VLOOKUP($E12,'RECAP AG'!$G$6:$CU$250,24,FALSE) -> 54% | O12: =VLOOKUP($E12,'RECAP AG'!$G$6:$CU$250,25,FALSE) -> 68 | P12: =VLOOKUP($E12,'RECAP AG'!$G$6:$CU$250,26,FALSE) -> 76% | Q12: =VLOOKUP($E12,'RECAP AG'!$G$6:$CU$250,27,FALSE) -> 76% | R12: =VLOOKUP($E12,'RECAP AG'!$G$6:$CU$250,28,FALSE) -> 124
A13: 50 | B13: AUBE HAUTE MARNE | C13: 21 | D13: CHAUMONT | E13: 451154 | F13: JOINVILLE | G13: =VLOOKUP($E13,'RECAP AG'!$G$6:$CU$250,3,FALSE) -> 1.9 | H13: =VLOOKUP($E13,'RECAP AG'!$G$6:$CU$250,18,FALSE) -> 39.0 | I13: =VLOOKUP($E13,'RECAP AG'!$G$6:$CU$250,19,FALSE) -> 20.86 | J13: =VLOOKUP($E13,'RECAP AG'!$G$6:$CU$250,20,FALSE) -> 80% | K13: =VLOOKUP($E13,'RECAP AG'!$G$6:$CU$250,21,FALSE) -> 90 | L13: =VLOOKUP($E13,'RECAP AG'!$G$6:$CU$250,22,FALSE) -> 111 | M13: =VLOOKUP($E13,'RECAP AG'!$G$6:$CU$250,23,FALSE) -> 59.36 | N13: =VLOOKUP($E13,'RECAP AG'!$G$6:$CU$250,24,FALSE) -> 53% | O13: =VLOOKUP($E13,'RECAP AG'!$G$6:$CU$250,25,FALSE) -> 60 | P13: =VLOOKUP($E13,'RECAP AG'!$G$6:$CU$250,26,FALSE) -> 69% | Q13: =VLOOKUP($E13,'RECAP AG'!$G$6:$CU$250,27,FALSE) -> 69% | R13: =VLOOKUP($E13,'RECAP AG'!$G$6:$CU$250,28,FALSE) -> 78
A14: 50 | B14: AUBE HAUTE MARNE | C14: 21 | D14: CHAUMONT | E14: 451156 | F14: SAINT DIZIER CENTRE | G14: =VLOOKUP($E14,'RECAP AG'!$G$6:$CU$250,3,FALSE) -> 8.6 | H14: =VLOOKUP($E14,'RECAP AG'!$G$6:$CU$250,18,FALSE) -> 110.9 | I14: =VLOOKUP($E14,'RECAP AG'!$G$6:$CU$250,19,FALSE) -> 12.84 | J14: =VLOOKUP($E14,'RECAP AG'!$G$6:$CU$250,20,FALSE) -> 88% | K14: =VLOOKUP($E14,'RECAP AG'!$G$6:$CU$250,21,FALSE) -> 148 | L14: =VLOOKUP($E14,'RECAP AG'!$G$6:$CU$250,22,FALSE) -> 451 | M14: =VLOOKUP($E14,'RECAP AG'!$G$6:$CU$250,23,FALSE) -> 52.20 | N14: =VLOOKUP($E14,'RECAP AG'!$G$6:$CU$250,24,FALSE) -> 59% | O14: =VLOOKUP($E14,'RECAP AG'!$G$6:$CU$250,25,FALSE) -> 97 | P14: =VLOOKUP($E14,'RECAP AG'!$G$6:$CU$250,26,FALSE) -> 76% | Q14: =VLOOKUP($E14,'RECAP AG'!$G$6:$CU$250,27,FALSE) -> 76% | R14: =VLOOKUP($E14,'RECAP AG'!$G$6:$CU$250,28,FALSE) -> 128
A15: 50 | B15: AUBE HAUTE MARNE | C15: 21 | D15: CHAUMONT | E15: 451151 | F15: WASSY | G15: =VLOOKUP($E15,'RECAP AG'!$G$6:$CU$250,3,FALSE) -> 1.9 | H15: =VLOOKUP($E15,'RECAP AG'!$G$6:$CU$250,18,FALSE) -> 23.6 | I15: =VLOOKUP($E15,'RECAP AG'!$G$6:$CU$250,19,FALSE) -> 12.36 | J15: =VLOOKUP($E15,'RECAP AG'!$G$6:$CU$250,20,FALSE) -> 88% | K15: =VLOOKUP($E15,'RECAP AG'!$G$6:$CU$250,21,FALSE) -> 152 | L15: =VLOOKUP($E15,'RECAP AG'!$G$6:$CU$250,22,FALSE) -> 77 | M15: =VLOOKUP($E15,'RECAP AG'!$G$6:$CU$250,23,FALSE) -> 40.31 | N15: =VLOOKUP($E15,'RECAP AG'!$G$6:$CU$250,24,FALSE) -> 68% | O15: =VLOOKUP($E15,'RECAP AG'!$G$6:$CU$250,25,FALSE) -> 167 | P15: =VLOOKUP($E15,'RECAP AG'!$G$6:$CU$250,26,FALSE) -> 80% | Q15: =VLOOKUP($E15,'RECAP AG'!$G$6:$CU$250,27,FALSE) -> 80% | R15: =VLOOKUP($E15,'RECAP AG'!$G$6:$CU$250,28,FALSE) -> 158
A16: 50 | B16: AUBE HAUTE MARNE | C16: 14 | D16: TROYES | E16: 510523 | F16: LA CHAPELLE ST LUC | G16: =VLOOKUP($E16,'RECAP AG'!$G$6:$CU$250,3,FALSE) -> 4.6 | H16: =VLOOKUP($E16,'RECAP AG'!$G$6:$CU$250,18,FALSE) -> 45.2 | I16: =VLOOKUP($E16,'RECAP AG'!$G$6:$CU$250,19,FALSE) -> 9.91 | J16: =VLOOKUP($E16,'RECAP AG'!$G$6:$CU$250,20,FALSE) -> 90% | K16: =VLOOKUP($E16,'RECAP AG'!$G$6:$CU$250,21,FALSE) -> 174 | L16: =VLOOKUP($E16,'RECAP AG'!$G$6:$CU$250,22,FALSE) -> 279 | M16: =VLOOKUP($E16,'RECAP AG'!$G$6:$CU$250,23,FALSE) -> 61.18 | N16: =VLOOKUP($E16,'RECAP AG'!$G$6:$CU$250,24,FALSE) -> 52% | O16: =VLOOKUP($E16,'RECAP AG'!$G$6:$CU$250,25,FALSE) -> 52 | P16: =VLOOKUP($E16,'RECAP AG'!$G$6:$CU$250,26,FALSE) -> 75% | Q16: =VLOOKUP($E16,'RECAP AG'!$G$6:$CU$250,27,FALSE) -> 75% | R16: =VLOOKUP($E16,'RECAP AG'!$G$6:$CU$250,28,FALSE) -> 118
A17: 50 | B17: AUBE HAUTE MARNE | C17: 14 | D17: TROYES | E17: 510530 | F17: ARCIS SUR AUBE | G17: =VLOOKUP($E17,'RECAP AG'!$G$6:$CU$250,3,FALSE) -> 3.6 | H17: =VLOOKUP($E17,'RECAP AG'!$G$6:$CU$250,18,FALSE) -> 48.4 | I17: =VLOOKUP($E17,'RECAP AG'!$G$6:$CU$250,19,FALSE) -> 13.41 | J17: =VLOOKUP($E17,'RECAP AG'!$G$6:$CU$250,20,FALSE) -> 87% | K17: =VLOOKUP($E17,'RECAP AG'!$G$6:$CU$250,21,FALSE) -> 146 | L17: =VLOOKUP($E17,'RECAP AG'!$G$6:$CU$250,22,FALSE) -> 142 | M17: =VLOOKUP($E17,'RECAP AG'!$G$6:$CU$250,23,FALSE) -> 39.34 | N17: =VLOOKUP($E17,'RECAP AG'!$G$6:$CU$250,24,FALSE) -> 69% | O17: =VLOOKUP($E17,'RECAP AG'!$G$6:$CU$250,25,FALSE) -> 183 | P17: =VLOOKUP($E17,'RECAP AG'!$G$6:$CU$250,26,FALSE) -> 80% | Q17: =VLOOKUP($E17,'RECAP AG'!$G$6:$CU$250,27,FALSE) -> 80% | R17: =VLOOKUP($E17,'RECAP AG'!$G$6:$CU$250,28,FALSE) -> 157
A18: 50 | B18: AUBE HAUTE MARNE | C18: 14 | D18: TROYES | E18: 410550 | F18: BAR SUR AUBE | G18: =VLOOKUP($E18,'RECAP AG'!$G$6:$CU$250,3,FALSE) -> 5.1 | H18: =VLOOKUP($E18,'RECAP AG'!$G$6:$CU$250,18,FALSE) -> 62.7 | I18: =VLOOKUP($E18,'RECAP AG'!$G$6:$CU$250,19,FALSE) -> 12.20 | J18: =VLOOKUP($E18,'RECAP AG'!$G$6:$CU$250,20,FALSE) -> 88% | K18: =VLOOKUP($E18,'RECAP AG'!$G$6:$CU$250,21,FALSE) -> 153 | L18: =VLOOKUP($E18,'RECAP AG'!$G$6:$CU$250,22,FALSE) -> 207 | M18: =VLOOKUP($E18,'RECAP AG'!$G$6:$CU$250,23,FALSE) -> 40.27 | N18: =VLOOKUP($E18,'RECAP AG'!$G$6:$CU$250,24,FALSE) -> 68% | O18: =VLOOKUP($E18,'RECAP AG'!$G$6:$CU$250,25,FALSE) -> 168 | P18: =VLOOKUP($E18,'RECAP AG'!$G$6:$CU$250,26,FALSE) -> 80% | Q18: =VLOOKUP($E18,'RECAP AG'!$G$6:$CU$250,27,FALSE) -> 80% | R18: =VLOOKUP($E18,'RECAP AG'!$G$6:$CU$250,28,FALSE) -> 163
A19: 50 | B19: AUBE HAUTE MARNE | C19: 14 | D19: TROYES | E19: 510556 | F19: BAR SUR SEINE | G19: =VLOOKUP($E19,'RECAP AG'!$G$6:$CU$250,3,FALSE) -> 2.6 | H19: =VLOOKUP($E19,'RECAP AG'!$G$6:$CU$250,18,FALSE) -> 16.7 | I19: =VLOOKUP($E19,'RECAP AG'!$G$6:$CU$250,19,FALSE) -> 6.35 | J19: =VLOOKUP($E19,'RECAP AG'!$G$6:$CU$250,20,FALSE) -> 94% | K19: =VLOOKUP($E19,'RECAP AG'!$G$6:$CU$250,21,FALSE) -> 196 | L19: =VLOOKUP($E19,'RECAP AG'!$G$6:$CU$250,22,FALSE) -> 88 | M19: =VLOOKUP($E19,'RECAP AG'!$G$6:$CU$250,23,FALSE) -> 33.46 | N19: =VLOOKUP($E19,'RECAP AG'!$G$6:$CU$250,24,FALSE) -> 74% | O19: =VLOOKUP($E19,'RECAP AG'!$G$6:$CU$250,25,FALSE) -> 212 | P19: =VLOOKUP($E19,'RECAP AG'!$G$6:$CU$250,26,FALSE) -> 86% | Q19: =VLOOKUP($E19,'RECAP AG'!$G$6:$CU$250,27,FALSE) -> 86% | R19: =VLOOKUP($E19,'RECAP AG'!$G$6:$CU$250,28,FALSE) -> 207
A20: 50 | B20: AUBE HAUTE MARNE | C20: 14 | D20: TROYES | E20: 510570 | F20: NOGENT SUR SEINE | G20: =VLOOKUP($E20,'RECAP AG'!$G$6:$CU$250,3,FALSE) -> 4.3 | H20: =VLOOKUP($E20,'RECAP AG'!$G$6:$CU$250,18,FALSE) -> 78.1 | I20: =VLOOKUP($E20,'RECAP AG'!$G$6:$CU$250,19,FALSE) -> 18.25 | J20: =VLOOKUP($E20,'RECAP AG'!$G$6:$CU$250,20,FALSE) -> 82% | K20: =VLOOKUP($E20,'RECAP AG'!$G$6:$CU$250,21,FALSE) -> 112 | L20: =VLOOKUP($E20,'RECAP AG'!$G$6:$CU$250,22,FALSE) -> 211 | M20: =VLOOKUP($E20,'RECAP AG'!$G$6:$CU$250,23,FALSE) -> 49.30 | N20: =VLOOKUP($E20,'RECAP AG'!$G$6:$CU$250,24,FALSE) -> 61% | O20: =VLOOKUP($E20,'RECAP AG'!$G$6:$CU$250,25,FALSE) -> 111 | P20: =VLOOKUP($E20,'RECAP AG'!$G$6:$CU$250,26,FALSE) -> 74% | Q20: =VLOOKUP($E20,'RECAP AG'!$G$6:$CU$250,27,FALSE) -> 74% | R20: =VLOOKUP($E20,'RECAP AG'!$G$6:$CU$250,28,FALSE) -> 109
A21: 50 | B21: AUBE HAUTE MARNE | C21: 14 | D21: TROYES | E21: 410571 | F21: ROMILLY SUR SEINE | G21: =VLOOKUP($E21,'RECAP AG'!$G$6:$CU$250,3,FALSE) -> 4.8 | H21: =VLOOKUP($E21,'RECAP AG'!$G$6:$CU$250,18,FALSE) -> 1.7 | I21: =VLOOKUP($E21,'RECAP AG'!$G$6:$CU$250,19,FALSE) -> 0.35 | J21: =VLOOKUP($E21,'RECAP AG'!$G$6:$CU$250,20,FALSE) -> 100% | K21: =VLOOKUP($E21,'RECAP AG'!$G$6:$CU$250,21,FALSE) -> 221 | L21: =VLOOKUP($E21,'RECAP AG'!$G$6:$CU$250,22,FALSE) -> 208 | M21: =VLOOKUP($E21,'RECAP AG'!$G$6:$CU$250,23,FALSE) -> 43.42 | N21: =VLOOKUP($E21,'RECAP AG'!$G$6:$CU$250,24,FALSE) -> 66% | O21: =VLOOKUP($E21,'RECAP AG'!$G$6:$CU$250,25,FALSE) -> 149 | P21: =VLOOKUP($E21,'RECAP AG'!$G$6:$CU$250,26,FALSE) -> 86% | Q21: =VLOOKUP($E21,'RECAP AG'!$G$6:$CU$250,27,FALSE) -> 86% | R21: =VLOOKUP($E21,'RECAP AG'!$G$6:$CU$250,28,FALSE) -> 211
A22: 50 | B22: AUBE HAUTE MARNE | C22: 14 | D22: TROYES | E22: 510520 | F22: SAINT ANDRE LES VERGERS | G22: =VLOOKUP($E22,'RECAP AG'!$G$6:$CU$250,3,FALSE) -> 3.3 | H22: =VLOOKUP($E22,'RECAP AG'!$G$6:$CU$250,18,FALSE) -> 25.4 | I22: =VLOOKUP($E22,'RECAP AG'!$G$6:$CU$250,19,FALSE) -> 7.77 | J22: =VLOOKUP($E22,'RECAP AG'!$G$6:$CU$250,20,FALSE) -> 93% | K22: =VLOOKUP($E22,'RECAP AG'!$G$6:$CU$250,21,FALSE) -> 188 | L22: =VLOOKUP($E22,'RECAP AG'!$G$6:$CU$250,22,FALSE) -> 167 | M22: =VLOOKUP($E22,'RECAP AG'!$G$6:$CU$250,23,FALSE) -> 51.07 | N22: =VLOOKUP($E22,'RECAP AG'!$G$6:$CU$250,24,FALSE) -> 60% | O22: =VLOOKUP($E22,'RECAP AG'!$G$6:$CU$250,25,FALSE) -> 101 | P22: =VLOOKUP($E22,'RECAP AG'!$G$6:$CU$250,26,FALSE) -> 79% | Q22: =VLOOKUP($E22,'RECAP AG'!$G$6:$CU$250,27,FALSE) -> 79% | R22: =VLOOKUP($E22,'RECAP AG'!$G$6:$CU$250,28,FALSE) -> 156
A23: 50 | B23: AUBE HAUTE MARNE | C23: 14 | D23: TROYES | E23: 410524 | F23: SAINT JULIEN LES VILLAS | G23: =VLOOKUP($E23,'RECAP AG'!$G$6:$CU$250,3,FALSE) -> 5.2 | H23: =VLOOKUP($E23,'RECAP AG'!$G$6:$CU$250,18,FALSE) -> 38.1 | I23: =VLOOKUP($E23,'RECAP AG'!$G$6:$CU$250,19,FALSE) -> 7.37 | J23: =VLOOKUP($E23,'RECAP AG'!$G$6:$CU$250,20,FALSE) -> 93% | K23: =VLOOKUP($E23,'RECAP AG'!$G$6:$CU$250,21,FALSE) -> 190 | L23: =VLOOKUP($E23,'RECAP AG'!$G$6:$CU$250,22,FALSE) -> 219 | M23: =VLOOKUP($E23,'RECAP AG'!$G$6:$CU$250,23,FALSE) -> 42.36 | N23: =VLOOKUP($E23,'RECAP AG'!$G$6:$CU$250,24,FALSE) -> 67% | O23: =VLOOKUP($E23,'RECAP AG'!$G$6:$CU$250,25,FALSE) -> 152 | P23: =VLOOKUP($E23,'RECAP AG'!$G$6:$CU$250,26,FALSE) -> 82% | Q23: =VLOOKUP($E23,'RECAP AG'!$G$6:$CU$250,27,FALSE) -> 82% | R23: =VLOOKUP($E23,'RECAP AG'!$G$6:$CU$250,28,FALSE) -> 188
A24: 50 | B24: AUBE HAUTE MARNE | C24: 14 | D24: TROYES | E24: 410521 | F24: SAINTE SAVINE | G24: =VLOOKUP($E24,'RECAP AG'!$G$6:$CU$250,3,FALSE) -> 4.1 | H24: =VLOOKUP($E24,'RECAP AG'!$G$6:$CU$250,18,FALSE) -> 14.6 | I24: =VLOOKUP($E24,'RECAP AG'!$G$6:$CU$250,19,FALSE) -> 3.54 | J24: =VLOOKUP($E24,'RECAP AG'!$G$6:$CU$250,20,FALSE) -> 97% | K24: =VLOOKUP($E24,'RECAP AG'!$G$6:$CU$250,21,FALSE) -> 205 | L24: =VLOOKUP($E24,'RECAP AG'!$G$6:$CU$250,22,FALSE) -> 176 | M24: =VLOOKUP($E24,'RECAP AG'!$G$6:$CU$250,23,FALSE) -> 42.62 | N24: =VLOOKUP($E24,'RECAP AG'!$G$6:$CU$250,24,FALSE) -> 66% | O24: =VLOOKUP($E24,'RECAP AG'!$G$6:$CU$250,25,FALSE) -> 150 | P24: =VLOOKUP($E24,'RECAP AG'!$G$6:$CU$250,26,FALSE) -> 84% | Q24: =VLOOKUP($E24,'RECAP AG'!$G$6:$CU$250,27,FALSE) -> 84% | R24: =VLOOKUP($E24,'RECAP AG'!$G$6:$CU$250,28,FALSE) -> 201
A25: 50 | B25: AUBE HAUTE MARNE | C25: 14 | D25: TROYES | E25: 510513 | F25: SAINT PARRES AUX TERTRES | G25: =VLOOKUP($E25,'RECAP AG'!$G$6:$CU$250,3,FALSE) -> 2.4 | H25: =VLOOKUP($E25,'RECAP AG'!$G$6:$CU$250,18,FALSE) -> 42.7 | I25: =VLOOKUP($E25,'RECAP AG'!$G$6:$CU$250,19,FALSE) -> 17.79 | J25: =VLOOKUP($E25,'RECAP AG'!$G$6:$CU$250,20,FALSE) -> 83% | K25: =VLOOKUP($E25,'RECAP AG'!$G$6:$CU$250,21,FALSE) -> 119 | L25: =VLOOKUP($E25,'RECAP AG'!$G$6:$CU$250,22,FALSE) -> 181 | M25: =VLOOKUP($E25,'RECAP AG'!$G$6:$CU$250,23,FALSE) -> 75.42 | N25: =VLOOKUP($E25,'RECAP AG'!$G$6:$CU$250,24,FALSE) -> 40% | O25: =VLOOKUP($E25,'RECAP AG'!$G$6:$CU$250,25,FALSE) -> 27 | P25: =VLOOKUP($E25,'RECAP AG'!$G$6:$CU$250,26,FALSE) -> 66% | Q25: =VLOOKUP($E25,'RECAP AG'!$G$6:$CU$250,27,FALSE) -> 66% | R25: =VLOOKUP($E25,'RECAP AG'!$G$6:$CU$250,28,FALSE) -> 56
A26: 50 | B26: AUBE HAUTE MARNE | C26: 14 | D26: TROYES | E26: 410510 | F26: TROYES GAMBETTA | G26: =VLOOKUP($E26,'RECAP AG'!$G$6:$CU$250,3,FALSE) -> 8.9 | H26: =VLOOKUP($E26,'RECAP AG'!$G$6:$CU$250,18,FALSE) -> 100.3 | I26: =VLOOKUP($E26,'RECAP AG'!$G$6:$CU$250,19,FALSE) -> 11.31 | J26: =VLOOKUP($E26,'RECAP AG'!$G$6:$CU$250,20,FALSE) -> 89% | K26: =VLOOKUP($E26,'RECAP AG'!$G$6:$CU$250,21,FALSE) -> 163 | L26: =VLOOKUP($E26,'RECAP AG'!$G$6:$CU$250,22,FALSE) -> 372 | M26: =VLOOKUP($E26,'RECAP AG'!$G$6:$CU$250,23,FALSE) -> 41.94 | N26: =VLOOKUP($E26,'RECAP AG'!$G$6:$CU$250,24,FALSE) -> 67% | O26: =VLOOKUP($E26,'RECAP AG'!$G$6:$CU$250,25,FALSE) -> 156 | P26: =VLOOKUP($E26,'RECAP AG'!$G$6:$CU$250,26,FALSE) -> 80% | Q26: =VLOOKUP($E26,'RECAP AG'!$G$6:$CU$250,27,FALSE) -> 80% | R26: =VLOOKUP($E26,'RECAP AG'!$G$6:$CU$250,28,FALSE) -> 162
A27: 50 | B27: AUBE HAUTE MARNE | C27: 14 | D27: TROYES | E27: 410512 | F27: TROYES ZOLA | G27: =VLOOKUP($E27,'RECAP AG'!$G$6:$CU$250,3,FALSE) -> 5.4 | H27: =VLOOKUP($E27,'RECAP AG'!$G$6:$CU$250,18,FALSE) -> -18.9 | I27: =VLOOKUP($E27,'RECAP AG'!$G$6:$CU$250,19,FALSE) -> -3.53 | J27: =VLOOKUP($E27,'RECAP AG'!$G$6:$CU$250,20,FALSE) -> 103% | K27: =VLOOKUP($E27,'RECAP AG'!$G$6:$CU$250,21,FALSE) -> 230 | L27: =VLOOKUP($E27,'RECAP AG'!$G$6:$CU$250,22,FALSE) -> 213 | M27: =VLOOKUP($E27,'RECAP AG'!$G$6:$CU$250,23,FALSE) -> 39.74 | N27: =VLOOKUP($E27,'RECAP AG'!$G$6:$CU$250,24,FALSE) -> 69% | O27: =VLOOKUP($E27,'RECAP AG'!$G$6:$CU$250,25,FALSE) -> 176 | P27: =VLOOKUP($E27,'RECAP AG'!$G$6:$CU$250,26,FALSE) -> 89% | Q27: =VLOOKUP($E27,'RECAP AG'!$G$6:$CU$250,27,FALSE) -> 89% | R27: =VLOOKUP($E27,'RECAP AG'!$G$6:$CU$250,28,FALSE) -> 231
A28: 262 | B28: BAS RHIN | C28: 5060 | D28: HAGUENAU | E28: 4057 | F28: BISCHWILLER | G28: =VLOOKUP($E28,'RECAP AG'!$G$6:$CU$250,3,FALSE) -> 7.2 | H28: =VLOOKUP($E28,'RECAP AG'!$G$6:$CU$250,18,FALSE) -> 216.4 | I28: =VLOOKUP($E28,'RECAP AG'!$G$6:$CU$250,19,FALSE) -> 30.22 | J28: =VLOOKUP($E28,'RECAP AG'!$G$6:$CU$250,20,FALSE) -> 71% | K28: =VLOOKUP($E28,'RECAP AG'!$G$6:$CU$250,21,FALSE) -> 44 | L28: =VLOOKUP($E28,'RECAP AG'!$G$6:$CU$250,22,FALSE) -> 265 | M28: =VLOOKUP($E28,'RECAP AG'!$G$6:$CU$250,23,FALSE) -> 37.01 | N28: =VLOOKUP($E28,'RECAP AG'!$G$6:$CU$250,24,FALSE) -> 71% | O28: =VLOOKUP($E28,'RECAP AG'!$G$6:$CU$250,25,FALSE) -> 195 | P28: =VLOOKUP($E28,'RECAP AG'!$G$6:$CU$250,26,FALSE) -> 71% | Q28: =VLOOKUP($E28,'RECAP AG'!$G$6:$CU$250,27,FALSE) -> 71% | R28: =VLOOKUP($E28,'RECAP AG'!$G$6:$CU$250,28,FALSE) -> 87
A29: 262 | B29: BAS RHIN | C29: 5060 | D29: HAGUENAU | E29: 4082 | F29: BOUXWILLER | G29: =VLOOKUP($E29,'RECAP AG'!$G$6:$CU$250,3,FALSE) -> 2.3 | H29: =VLOOKUP($E29,'RECAP AG'!$G$6:$CU$250,18,FALSE) -> 11.8 | I29: =VLOOKUP($E29,'RECAP AG'!$G$6:$CU$250,19,FALSE) -> 5.06 | J29: =VLOOKUP($E29,'RECAP AG'!$G$6:$CU$250,20,FALSE) -> 95% | K29: =VLOOKUP($E29,'RECAP AG'!$G$6:$CU$250,21,FALSE) -> 200 | L29: =VLOOKUP($E29,'RECAP AG'!$G$6:$CU$250,22,FALSE) -> 87 | M29: =VLOOKUP($E29,'RECAP AG'!$G$6:$CU$250,23,FALSE) -> 37.34 | N29: =VLOOKUP($E29,'RECAP AG'!$G$6:$CU$250,24,FALSE) -> 70% | O29: =VLOOKUP($E29,'RECAP AG'!$G$6:$CU$250,25,FALSE) -> 192 | P29: =VLOOKUP($E29,'RECAP AG'!$G$6:$CU$250,26,FALSE) -> 85% | Q29: =VLOOKUP($E29,'RECAP AG'!$G$6:$CU$250,27,FALSE) -> 85% | R29: =VLOOKUP($E29,'RECAP AG'!$G$6:$CU$250,28,FALSE) -> 204
A30: 262 | B30: BAS RHIN | C30: 5060 | D30: HAGUENAU | E30: 4030 | F30: BRUMATH | G30: =VLOOKUP($E30,'RECAP AG'!$G$6:$CU$250,3,FALSE) -> 4.1 | H30: =VLOOKUP($E30,'RECAP AG'!$G$6:$CU$250,18,FALSE) -> 97.4 | I30: =VLOOKUP($E30,'RECAP AG'!$G$6:$CU$250,19,FALSE) -> 23.70 | J30: =VLOOKUP($E30,'RECAP AG'!$G$6:$CU$250,20,FALSE) -> 77% | K30: =VLOOKUP($E30,'RECAP AG'!$G$6:$CU$250,21,FALSE) -> 77 | L30: =VLOOKUP($E30,'RECAP AG'!$G$6:$CU$250,22,FALSE) -> 149 | M30: =VLOOKUP($E30,'RECAP AG'!$G$6:$CU$250,23,FALSE) -> 36.25 | N30: =VLOOKUP($E30,'RECAP AG'!$G$6:$CU$250,24,FALSE) -> 71% | O30: =VLOOKUP($E30,'RECAP AG'!$G$6:$CU$250,25,FALSE) -> 200 | P30: =VLOOKUP($E30,'RECAP AG'!$G$6:$CU$250,26,FALSE) -> 75% | Q30: =VLOOKUP($E30,'RECAP AG'!$G$6:$CU$250,27,FALSE) -> 75% | R30: =VLOOKUP($E30,'RECAP AG'!$G$6:$CU$250,28,FALSE) -> 115
A31: 262 | B31: BAS RHIN | C31: 5060 | D31: HAGUENAU | E31: 4060 | F31: HAGUENAU HOUBLON | G31: =VLOOKUP($E31,'RECAP AG'!$G$6:$CU$250,3,FALSE) -> 8.8 | H31: =VLOOKUP($E31,'RECAP AG'!$G$6:$CU$250,18,FALSE) -> 109.5 | I31: =VLOOKUP($E31,'RECAP AG'!$G$6:$CU$250,19,FALSE) -> 12.47 | J31: =VLOOKUP($E31,'RECAP AG'!$G$6:$CU$250,20,FALSE) -> 88% | K31: =VLOOKUP($E31,'RECAP AG'!$G$6:$CU$250,21,FALSE) -> 151 | L31: =VLOOKUP($E31,'RECAP AG'!$G$6:$CU$250,22,FALSE) -> 339 | M31: =VLOOKUP($E31,'RECAP AG'!$G$6:$CU$250,23,FALSE) -> 38.61 | N31: =VLOOKUP($E31,'RECAP AG'!$G$6:$CU$250,24,FALSE) -> 69% | O31: =VLOOKUP($E31,'RECAP AG'!$G$6:$CU$250,25,FALSE) -> 185 | P31: =VLOOKUP($E31,'RECAP AG'!$G$6:$CU$250,26,FALSE) -> 81% | Q31: =VLOOKUP($E31,'RECAP AG'!$G$6:$CU$250,27,FALSE) -> 81% | R31: =VLOOKUP($E31,'RECAP AG'!$G$6:$CU$250,28,FALSE) -> 166
A32: 262 | B32: BAS RHIN | C32: 5060 | D32: HAGUENAU | E32: 4092 | F32: HOCHFELDEN | G32: =VLOOKUP($E32,'RECAP AG'!$G$6:$CU$250,3,FALSE) -> 1.8 | H32: =VLOOKUP($E32,'RECAP AG'!$G$6:$CU$250,18,FALSE) -> 29.1 | I32: =VLOOKUP($E32,'RECAP AG'!$G$6:$CU$250,19,FALSE) -> 16.26 | J32: =VLOOKUP($E32,'RECAP AG'!$G$6:$CU$250,20,FALSE) -> 84% | K32: =VLOOKUP($E32,'RECAP AG'!$G$6:$CU$250,21,FALSE) -> 125 | L32: =VLOOKUP($E32,'RECAP AG'!$G$6:$CU$250,22,FALSE) -> 113 | M32: =VLOOKUP($E32,'RECAP AG'!$G$6:$CU$250,23,FALSE) -> 63.13 | N32: =VLOOKUP($E32,'RECAP AG'!$G$6:$CU$250,24,FALSE) -> 50% | O32: =VLOOKUP($E32,'RECAP AG'!$G$6:$CU$250,25,FALSE) -> 46 | P32: =VLOOKUP($E32,'RECAP AG'!$G$6:$CU$250,26,FALSE) -> 71% | Q32: =VLOOKUP($E32,'RECAP AG'!$G$6:$CU$250,27,FALSE) -> 71% | R32: =VLOOKUP($E32,'RECAP AG'!$G$6:$CU$250,28,FALSE) -> 85
A33: 262 | B33: BAS RHIN | C33: 5060 | D33: HAGUENAU | E33: 4041 | F33: HOERDT | G33: =VLOOKUP($E33,'RECAP AG'!$G$6:$CU$250,3,FALSE) -> 1.7 | H33: =VLOOKUP($E33,'RECAP AG'!$G$6:$CU$250,18,FALSE) -> 21.0 | I33: =VLOOKUP($E33,'RECAP AG'!$G$6:$CU$250,19,FALSE) -> 12.65 | J33: =VLOOKUP($E33,'RECAP AG'!$G$6:$CU$250,20,FALSE) -> 88% | K33: =VLOOKUP($E33,'RECAP AG'!$G$6:$CU$250,21,FALSE) -> 149 | L33: =VLOOKUP($E33,'RECAP AG'!$G$6:$CU$250,22,FALSE) -> 66 | M33: =VLOOKUP($E33,'RECAP AG'!$G$6:$CU$250,23,FALSE) -> 39.76 | N33: =VLOOKUP($E33,'RECAP AG'!$G$6:$CU$250,24,FALSE) -> 69% | O33: =VLOOKUP($E33,'RECAP AG'!$G$6:$CU$250,25,FALSE) -> 175 | P33: =VLOOKUP($E33,'RECAP AG'!$G$6:$CU$250,26,FALSE) -> 80% | Q33: =VLOOKUP($E33,'RECAP AG'!$G$6:$CU$250,27,FALSE) -> 80% | R33: =VLOOKUP($E33,'RECAP AG'!$G$6:$CU$250,28,FALSE) -> 159
A34: 262 | B34: BAS RHIN | C34: 5060 | D34: HAGUENAU | E34: 4085 | F34: INGWILLER | G34: =VLOOKUP($E34,'RECAP AG'!$G$6:$CU$250,3,FALSE) -> 3.5 | H34: =VLOOKUP($E34,'RECAP AG'!$G$6:$CU$250,18,FALSE) -> 53.9 | I34: =VLOOKUP($E34,'RECAP AG'!$G$6:$CU$250,19,FALSE) -> 15.44 | J34: =VLOOKUP($E34,'RECAP AG'!$G$6:$CU$250,20,FALSE) -> 85% | K34: =VLOOKUP($E34,'RECAP AG'!$G$6:$CU$250,21,FALSE) -> 131 | L34: =VLOOKUP($E34,'RECAP AG'!$G$6:$CU$250,22,FALSE) -> 158 | M34: =VLOOKUP($E34,'RECAP AG'!$G$6:$CU$250,23,FALSE) -> 45.27 | N34: =VLOOKUP($E34,'RECAP AG'!$G$6:$CU$250,24,FALSE) -> 64% | O34: =VLOOKUP($E34,'RECAP AG'!$G$6:$CU$250,25,FALSE) -> 139 | P34: =VLOOKUP($E34,'RECAP AG'!$G$6:$CU$250,26,FALSE) -> 77% | Q34: =VLOOKUP($E34,'RECAP AG'!$G$6:$CU$250,27,FALSE) -> 77% | R34: =VLOOKUP($E34,'RECAP AG'!$G$6:$CU$250,28,FALSE) -> 137
A35: 262 | B35: BAS RHIN | C35: 5060 | D35: HAGUENAU | E35: 4066 | F35: NIEDERBRONN LES BAINS | G35: =VLOOKUP($E35,'RECAP AG'!$G$6:$CU$250,3,FALSE) -> 5.7 | H35: =VLOOKUP($E35,'RECAP AG'!$G$6:$CU$250,18,FALSE) -> 0.2 | I35: =VLOOKUP($E35,'RECAP AG'!$G$6:$CU$250,19,FALSE) -> 0.04 | J35: =VLOOKUP($E35,'RECAP AG'!$G$6:$CU$250,20,FALSE) -> 100% | K35: =VLOOKUP($E35,'RECAP AG'!$G$6:$CU$250,21,FALSE) -> 222 | L35: =VLOOKUP($E35,'RECAP AG'!$G$6:$CU$250,22,FALSE) -> 210 | M35: =VLOOKUP($E35,'RECAP AG'!$G$6:$CU$250,23,FALSE) -> 37.10 | N35: =VLOOKUP($E35,'RECAP AG'!$G$6:$CU$250,24,FALSE) -> 71% | O35: =VLOOKUP($E35,'RECAP AG'!$G$6:$CU$250,25,FALSE) -> 193 | P35: =VLOOKUP($E35,'RECAP AG'!$G$6:$CU$250,26,FALSE) -> 88% | Q35: =VLOOKUP($E35,'RECAP AG'!$G$6:$CU$250,27,FALSE) -> 88% | R35: =VLOOKUP($E35,'RECAP AG'!$G$6:$CU$250,28,FALSE) -> 225
A36: 262 | B36: BAS RHIN | C36: 5060 | D36: HAGUENAU | E36: 4067 | F36: PFAFFENHOFFEN | G36: =VLOOKUP($E36,'RECAP AG'!$G$6:$CU$250,3,FALSE) -> 1.9 | H36: =VLOOKUP($E36,'RECAP AG'!$G$6:$CU$250,18,FALSE) -> 34.3 | I36: =VLOOKUP($E36,'RECAP AG'!$G$6:$CU$250,19,FALSE) -> 18.05 | J36: =VLOOKUP($E36,'RECAP AG'!$G$6:$CU$250,20,FALSE) -> 83% | K36: =VLOOKUP($E36,'RECAP AG'!$G$6:$CU$250,21,FALSE) -> 117 | L36: =VLOOKUP($E36,'RECAP AG'!$G$6:$CU$250,22,FALSE) -> 72 | M36: =VLOOKUP($E36,'RECAP AG'!$G$6:$CU$250,23,FALSE) -> 37.89 | N36: =VLOOKUP($E36,'RECAP AG'!$G$6:$CU$250,24,FALSE) -> 70% | O36: =VLOOKUP($E36,'RECAP AG'!$G$6:$CU$250,25,FALSE) -> 189 | P36: =VLOOKUP($E36,'RECAP AG'!$G$6:$CU$250,26,FALSE) -> 78% | Q36: =VLOOKUP($E36,'RECAP AG'!$G$6:$CU$250,27,FALSE) -> 78% | R36: =VLOOKUP($E36,'RECAP AG'!$G$6:$CU$250,28,FALSE) -> 141
A37: 262 | B37: BAS RHIN | C37: 5060 | D37: HAGUENAU | E37: 4095 | F37: SARRE UNION | G37: =VLOOKUP($E37,'RECAP AG'!$G$6:$CU$250,3,FALSE) -> 2.7 | H37: =VLOOKUP($E37,'RECAP AG'!$G$6:$CU$250,18,FALSE) -> 34.2 | I37: =VLOOKUP($E37,'RECAP AG'!$G$6:$CU$250,19,FALSE) -> 12.91 | J37: =VLOOKUP($E37,'RECAP AG'!$G$6:$CU$250,20,FALSE) -> 88% | K37: =VLOOKUP($E37,'RECAP AG'!$G$6:$CU$250,21,FALSE) -> 147 | L37: =VLOOKUP($E37,'RECAP AG'!$G$6:$CU$250,22,FALSE) -> 87 | M37: =VLOOKUP($E37,'RECAP AG'!$G$6:$CU$250,23,FALSE) -> 32.83 | N37: =VLOOKUP($E37,'RECAP AG'!$G$6:$CU$250,24,FALSE) -> 74% | O37: =VLOOKUP($E37,'RECAP AG'!$G$6:$CU$250,25,FALSE) -> 216 | P37: =VLOOKUP($E37,'RECAP AG'!$G$6:$CU$250,26,FALSE) -> 82% | Q37: =VLOOKUP($E37,'RECAP AG'!$G$6:$CU$250,27,FALSE) -> 82% | R37: =VLOOKUP($E37,'RECAP AG'!$G$6:$CU$250,28,FALSE) -> 184
A38: 262 | B38: BAS RHIN | C38: 5060 | D38: HAGUENAU | E38: 4087 | F38: SAVERNE | G38: =VLOOKUP($E38,'RECAP AG'!$G$6:$CU$250,3,FALSE) -> 6.4 | H38: =VLOOKUP($E38,'RECAP AG'!$G$6:$CU$250,18,FALSE) -> 142.7 | I38: =VLOOKUP($E38,'RECAP AG'!$G$6:$CU$250,19,FALSE) -> 22.47 | J38: =VLOOKUP($E38,'RECAP AG'!$G$6:$CU$250,20,FALSE) -> 78% | K38: =VLOOKUP($E38,'RECAP AG'!$G$6:$CU$250,21,FALSE) -> 81 | L38: =VLOOKUP($E38,'RECAP AG'!$G$6:$CU$250,22,FALSE) -> 226 | M38: =VLOOKUP($E38,'RECAP AG'!$G$6:$CU$250,23,FALSE) -> 35.59 | N38: =VLOOKUP($E38,'RECAP AG'!$G$6:$CU$250,24,FALSE) -> 72% | O38: =VLOOKUP($E38,'RECAP AG'!$G$6:$CU$250,25,FALSE) -> 202 | P38: =VLOOKUP($E38,'RECAP AG'!$G$6:$CU$250,26,FALSE) -> 76% | Q38: =VLOOKUP($E38,'RECAP AG'!$G$6:$CU$250,27,FALSE) -> 76% | R38: =VLOOKUP($E38,'RECAP AG'!$G$6:$CU$250,28,FALSE) -> 125
A39: 262 | B39: BAS RHIN | C39: 5060 | D39: HAGUENAU | E39: 4079 | F39: SOULTZ SOUS FORETS | G39: =VLOOKUP($E39,'RECAP AG'!$G$6:$CU$250,3,FALSE) -> 1.9 | H39: =VLOOKUP($E39,'RECAP AG'!$G$6:$CU$250,18,FALSE) -> 51.8 | I39: =VLOOKUP($E39,'RECAP AG'!$G$6:$CU$250,19,FALSE) -> 27.85 | J39: =VLOOKUP($E39,'RECAP AG'!$G$6:$CU$250,20,FALSE) -> 73% | K39: =VLOOKUP($E39,'RECAP AG'!$G$6:$CU$250,21,FALSE) -> 54 | L39: =VLOOKUP($E39,'RECAP AG'!$G$6:$CU$250,22,FALSE) -> 91 | M39: =VLOOKUP($E39,'RECAP AG'!$G$6:$CU$250,23,FALSE) -> 48.92 | N39: =VLOOKUP($E39,'RECAP AG'!$G$6:$CU$250,24,FALSE) -> 61% | O39: =VLOOKUP($E39,'RECAP AG'!$G$6:$CU$250,25,FALSE) -> 114 | P39: =VLOOKUP($E39,'RECAP AG'!$G$6:$CU$250,26,FALSE) -> 68% | Q39: =VLOOKUP($E39,'RECAP AG'!$G$6:$CU$250,27,FALSE) -> 68% | R39: =VLOOKUP($E39,'RECAP AG'!$G$6:$CU$250,28,FALSE) -> 71
A40: 262 | B40: BAS RHIN | C40: 5060 | D40: HAGUENAU | E40: 4031 | F40: TRUCHTERSHEIM | G40: =VLOOKUP($E40,'RECAP AG'!$G$6:$CU$250,3,FALSE) -> 2.2 | H40: =VLOOKUP($E40,'RECAP AG'!$G$6:$CU$250,18,FALSE) -> 90.4 | I40: =VLOOKUP($E40,'RECAP AG'!$G$6:$CU$250,19,FALSE) -> 40.54 | J40: =VLOOKUP($E40,'RECAP AG'!$G$6:$CU$250,20,FALSE) -> 61% | K40: =VLOOKUP($E40,'RECAP AG'!$G$6:$CU$250,21,FALSE) -> 12 | L40: =VLOOKUP($E40,'RECAP AG'!$G$6:$CU$250,22,FALSE) -> 72 | M40: =VLOOKUP($E40,'RECAP AG'!$G$6:$CU$250,23,FALSE) -> 32.29 | N40: =VLOOKUP($E40,'RECAP AG'!$G$6:$CU$250,24,FALSE) -> 74% | O40: =VLOOKUP($E40,'RECAP AG'!$G$6:$CU$250,25,FALSE) -> 220 | P40: =VLOOKUP($E40,'RECAP AG'!$G$6:$CU$250,26,FALSE) -> 66% | Q40: =VLOOKUP($E40,'RECAP AG'!$G$6:$CU$250,27,FALSE) -> 66% | R40: =VLOOKUP($E40,'RECAP AG'!$G$6:$CU$250,28,FALSE) -> 58
A41: 262 | B41: BAS RHIN | C41: 5060 | D41: HAGUENAU | E41: 4071 | F41: WISSEMBOURG | G41: =VLOOKUP($E41,'RECAP AG'!$G$6:$CU$250,3,FALSE) -> 7.0 | H41: =VLOOKUP($E41,'RECAP AG'!$G$6:$CU$250,18,FALSE) -> 115.6 | I41: =VLOOKUP($E41,'RECAP AG'!$G$6:$CU$250,19,FALSE) -> 16.56 | J41: =VLOOKUP($E41,'RECAP AG'!$G$6:$CU$250,20,FALSE) -> 84% | K41: =VLOOKUP($E41,'RECAP AG'!$G$6:$CU$250,21,FALSE) -> 124 | L41: =VLOOKUP($E41,'RECAP AG'!$G$6:$CU$250,22,FALSE) -> 323 | M41: =VLOOKUP($E41,'RECAP AG'!$G$6:$CU$250,23,FALSE) -> 46.28 | N41: =VLOOKUP($E41,'RECAP AG'!$G$6:$CU$250,24,FALSE) -> 63% | O41: =VLOOKUP($E41,'RECAP AG'!$G$6:$CU$250,25,FALSE) -> 131 | P41: =VLOOKUP($E41,'RECAP AG'!$G$6:$CU$250,26,FALSE) -> 76% | Q41: =VLOOKUP($E41,'RECAP AG'!$G$6:$CU$250,27,FALSE) -> 76% | R41: =VLOOKUP($E41,'RECAP AG'!$G$6:$CU$250,28,FALSE) -> 126
A42: 262 | B42: BAS RHIN | C42: 5101 | D42: SELESTAT | E42: 4113 | F42: BARR | G42: =VLOOKUP($E42,'RECAP AG'!$G$6:$CU$250,3,FALSE) -> 2.9 | H42: =VLOOKUP($E42,'RECAP AG'!$G$6:$CU$250,18,FALSE) -> 99.2 | I42: =VLOOKUP($E42,'RECAP AG'!$G$6:$CU$250,19,FALSE) -> 34.56 | J42: =VLOOKUP($E42,'RECAP AG'!$G$6:$CU$250,20,FALSE) -> 67% | K42: =VLOOKUP($E42,'RECAP AG'!$G$6:$CU$250,21,FALSE) -> 32 | L42: =VLOOKUP($E42,'RECAP AG'!$G$6:$CU$250,22,FALSE) -> 166 | M42: =VLOOKUP($E42,'RECAP AG'!$G$6:$CU$250,23,FALSE) -> 57.84 | N42: =VLOOKUP($E42,'RECAP AG'!$G$6:$CU$250,24,FALSE) -> 54% | O42: =VLOOKUP($E42,'RECAP AG'!$G$6:$CU$250,25,FALSE) -> 69 | P42: =VLOOKUP($E42,'RECAP AG'!$G$6:$CU$250,26,FALSE) -> 62% | Q42: =VLOOKUP($E42,'RECAP AG'!$G$6:$CU$250,27,FALSE) -> 62% | R42: =VLOOKUP($E42,'RECAP AG'!$G$6:$CU$250,28,FALSE) -> 38
A43: 262 | B43: BAS RHIN | C43: 5101 | D43: SELESTAT | E43: 4111 | F43: BENFELD | G43: =VLOOKUP($E43,'RECAP AG'!$G$6:$CU$250,3,FALSE) -> 3.0 | H43: =VLOOKUP($E43,'RECAP AG'!$G$6:$CU$250,18,FALSE) -> 12.3 | I43: =VLOOKUP($E43,'RECAP AG'!$G$6:$CU$250,19,FALSE) -> 4.17 | J43: =VLOOKUP($E43,'RECAP AG'!$G$6:$CU$250,20,FALSE) -> 96% | K43: =VLOOKUP($E43,'RECAP AG'!$G$6:$CU$250,21,FALSE) -> 202 | L43: =VLOOKUP($E43,'RECAP AG'!$G$6:$CU$250,22,FALSE) -> 96 | M43: =VLOOKUP($E43,'RECAP AG'!$G$6:$CU$250,23,FALSE) -> 32.54 | N43: =VLOOKUP($E43,'RECAP AG'!$G$6:$CU$250,24,FALSE) -> 74% | O43: =VLOOKUP($E43,'RECAP AG'!$G$6:$CU$250,25,FALSE) -> 219 | P43: =VLOOKUP($E43,'RECAP AG'!$G$6:$CU$250,26,FALSE) -> 87% | Q43: =VLOOKUP($E43,'RECAP AG'!$G$6:$CU$250,27,FALSE) -> 87% | R43: =VLOOKUP($E43,'RECAP AG'!$G$6:$CU$250,28,FALSE) -> 217
A44: 262 | B44: BAS RHIN | C44: 5101 | D44: SELESTAT | E44: 4104 | F44: ERSTEIN | G44: =VLOOKUP($E44,'RECAP AG'!$G$6:$CU$250,3,FALSE) -> 4.4 | H44: =VLOOKUP($E44,'RECAP AG'!$G$6:$CU$250,18,FALSE) -> 225.8 | I44: =VLOOKUP($E44,'RECAP AG'!$G$6:$CU$250,19,FALSE) -> 51.67 | J44: =VLOOKUP($E44,'RECAP AG'!$G$6:$CU$250,20,FALSE) -> 50% | K44: =VLOOKUP($E44,'RECAP AG'!$G$6:$CU$250,21,FALSE) -> 3 | L44: =VLOOKUP($E44,'RECAP AG'!$G$6:$CU$250,22,FALSE) -> 263 | M44: =VLOOKUP($E44,'RECAP AG'!$G$6:$CU$250,23,FALSE) -> 60.18 | N44: =VLOOKUP($E44,'RECAP AG'!$G$6:$CU$250,24,FALSE) -> 52% | O44: =VLOOKUP($E44,'RECAP AG'!$G$6:$CU$250,25,FALSE) -> 56 | P44: =VLOOKUP($E44,'RECAP AG'!$G$6:$CU$250,26,FALSE) -> 51% | Q44: =VLOOKUP($E44,'RECAP AG'!$G$6:$CU$250,27,FALSE) -> 51% | R44: =VLOOKUP($E44,'RECAP AG'!$G$6:$CU$250,28,FALSE) -> 11
A45: 262 | B45: BAS RHIN | C45: 5101 | D45: SELESTAT | E45: 4008 | F45: FEGERSHEIM | G45: =VLOOKUP($E45,'RECAP AG'!$G$6:$CU$250,3,FALSE) -> 2.3 | H45: =VLOOKUP($E45,'RECAP AG'!$G$6:$CU$250,18,FALSE) -> 63.9 | I45: =VLOOKUP($E45,'RECAP AG'!$G$6:$CU$250,19,FALSE) -> 27.42 | J45: =VLOOKUP($E45,'RECAP AG'!$G$6:$CU$250,20,FALSE) -> 74% | K45: =VLOOKUP($E45,'RECAP AG'!$G$6:$CU$250,21,FALSE) -> 58 | L45: =VLOOKUP($E45,'RECAP AG'!$G$6:$CU$250,22,FALSE) -> 76 | M45: =VLOOKUP($E45,'RECAP AG'!$G$6:$CU$250,23,FALSE) -> 32.62 | N45: =VLOOKUP($E45,'RECAP AG'!$G$6:$CU$250,24,FALSE) -> 74% | O45: =VLOOKUP($E45,'RECAP AG'!$G$6:$CU$250,25,FALSE) -> 218 | P45: =VLOOKUP($E45,'RECAP AG'!$G$6:$CU$250,26,FALSE) -> 74% | Q45: =VLOOKUP($E45,'RECAP AG'!$G$6:$CU$250,27,FALSE) -> 74% | R45: =VLOOKUP($E45,'RECAP AG'!$G$6:$CU$250,28,FALSE) -> 108
A46: 262 | B46: BAS RHIN | C46: 5101 | D46: SELESTAT | E46: 4007 | F46: ILLKIRCH CENTRE | G46: =VLOOKUP($E46,'RECAP AG'!$G$6:$CU$250,3,FALSE) -> 6.6 | H46: =VLOOKUP($E46,'RECAP AG'!$G$6:$CU$250,18,FALSE) -> 134.4 | I46: =VLOOKUP($E46,'RECAP AG'!$G$6:$CU$250,19,FALSE) -> 20.27 | J46: =VLOOKUP($E46,'RECAP AG'!$G$6:$CU$250,20,FALSE) -> 80% | K46: =VLOOKUP($E46,'RECAP AG'!$G$6:$CU$250,21,FALSE) -> 95 | L46: =VLOOKUP($E46,'RECAP AG'!$G$6:$CU$250,22,FALSE) -> 288 | M46: =VLOOKUP($E46,'RECAP AG'!$G$6:$CU$250,23,FALSE) -> 43.44 | N46: =VLOOKUP($E46,'RECAP AG'!$G$6:$CU$250,24,FALSE) -> 66% | O46: =VLOOKUP($E46,'RECAP AG'!$G$6:$CU$250,25,FALSE) -> 148 | P46: =VLOOKUP($E46,'RECAP AG'!$G$6:$CU$250,26,FALSE) -> 75% | Q46: =VLOOKUP($E46,'RECAP AG'!$G$6:$CU$250,27,FALSE) -> 75% | R46: =VLOOKUP($E46,'RECAP AG'!$G$6:$CU$250,28,FALSE) -> 113
A47: 262 | B47: BAS RHIN | C47: 5101 | D47: SELESTAT | E47: 4015 | F47: LINGOLSHEIM | G47: =VLOOKUP($E47,'RECAP AG'!$G$6:$CU$250,3,FALSE) -> 2.3 | H47: =VLOOKUP($E47,'RECAP AG'!$G$6:$CU$250,18,FALSE) -> -26.3 | I47: =VLOOKUP($E47,'RECAP AG'!$G$6:$CU$250,19,FALSE) -> -11.64 | J47: =VLOOKUP($E47,'RECAP AG'!$G$6:$CU$250,20,FALSE) -> 111% | K47: =VLOOKUP($E47,'RECAP AG'!$G$6:$CU$250,21,FALSE) -> 239 | L47: =VLOOKUP($E47,'RECAP AG'!$G$6:$CU$250,22,FALSE) -> 119 | M47: =VLOOKUP($E47,'RECAP AG'!$G$6:$CU$250,23,FALSE) -> 52.65 | N47: =VLOOKUP($E47,'RECAP AG'!$G$6:$CU$250,24,FALSE) -> 58% | O47: =VLOOKUP($E47,'RECAP AG'!$G$6:$CU$250,25,FALSE) -> 94 | P47: =VLOOKUP($E47,'RECAP AG'!$G$6:$CU$250,26,FALSE) -> 90% | Q47: =VLOOKUP($E47,'RECAP AG'!$G$6:$CU$250,27,FALSE) -> 90% | R47: =VLOOKUP($E47,'RECAP AG'!$G$6:$CU$250,28,FALSE) -> 233
A48: 262 | B48: BAS RHIN | C48: 5101 | D48: SELESTAT | E48: 4109 | F48: MARCKOLSHEIM | G48: =VLOOKUP($E48,'RECAP AG'!$G$6:$CU$250,3,FALSE) -> 2.7 | H48: =VLOOKUP($E48,'RECAP AG'!$G$6:$CU$250,18,FALSE) -> 56.3 | I48: =VLOOKUP($E48,'RECAP AG'!$G$6:$CU$250,19,FALSE) -> 21.01 | J48: =VLOOKUP($E48,'RECAP AG'!$G$6:$CU$250,20,FALSE) -> 80% | K48: =VLOOKUP($E48,'RECAP AG'!$G$6:$CU$250,21,FALSE) -> 87 | L48: =VLOOKUP($E48,'RECAP AG'!$G$6:$CU$250,22,FALSE) -> 110 | M48: =VLOOKUP($E48,'RECAP AG'!$G$6:$CU$250,23,FALSE) -> 41.04 | N48: =VLOOKUP($E48,'RECAP AG'!$G$6:$CU$250,24,FALSE) -> 68% | O48: =VLOOKUP($E48,'RECAP AG'!$G$6:$CU$250,25,FALSE) -> 163 | P48: =VLOOKUP($E48,'RECAP AG'!$G$6:$CU$250,26,FALSE) -> 75% | Q48: =VLOOKUP($E48,'RECAP AG'!$G$6:$CU$250,27,FALSE) -> 75% | R48: =VLOOKUP($E48,'RECAP AG'!$G$6:$CU$250,28,FALSE) -> 117
A49: 262 | B49: BAS RHIN | C49: 5101 | D49: SELESTAT | E49: 4120 | F49: WASSELONNE | G49: =VLOOKUP($E49,'RECAP AG'!$G$6:$CU$250,3,FALSE) -> 2.7 | H49: =VLOOKUP($E49,'RECAP AG'!$G$6:$CU$250,18,FALSE) -> -10.0 | I49: =VLOOKUP($E49,'RECAP AG'!$G$6:$CU$250,19,FALSE) -> -3.76 | J49: =VLOOKUP($E49,'RECAP AG'!$G$6:$CU$250,20,FALSE) -> 104% | K49: =VLOOKUP($E49,'RECAP AG'!$G$6:$CU$250,21,FALSE) -> 231 | L49: =VLOOKUP($E49,'RECAP AG'!$G$6:$CU$250,22,FALSE) -> 119 | M49: =VLOOKUP($E49,'RECAP AG'!$G$6:$CU$250,23,FALSE) -> 44.74 | N49: =VLOOKUP($E49,'RECAP AG'!$G$6:$CU$250,24,FALSE) -> 65% | O49: =VLOOKUP($E49,'RECAP AG'!$G$6:$CU$250,25,FALSE) -> 143 | P49: =VLOOKUP($E49,'RECAP AG'!$G$6:$CU$250,26,FALSE) -> 88% | Q49: =VLOOKUP($E49,'RECAP AG'!$G$6:$CU$250,27,FALSE) -> 88% | R49: =VLOOKUP($E49,'RECAP AG'!$G$6:$CU$250,28,FALSE) -> 220
